Workbook

Sheet Kreations-UI
B1: =CONCATENATE(" Kreator: ",'Teig-Führung'!P7) -> Kreator: *** Standard-Vorlage für neues ST-Brotrezept ***
AF2: =CONCATENATE('Kreations-UI'!G27,IF('Kreations-UI'!AL6=1,'Kreations-UI'!AM6,""),IF('Kreations-UI'!AR6=0,", freigeschoben"," aus der Backform")) -> Weizenbrot mit Sauerteig, freigeschoben | AM2: =CONCATENATE(IF(AR13>1,CONCATENATE(", ",AR13," Stück"),"")," á ca. ",ROUND(F7/AR13/5,0)*5,"g") -> , 2 Stück á ca. 770g | AO2: =CONCATENATE('Kreations-UI'!G27,IF('Kreations-UI'!AL6=0,'Kreations-UI'!AM6,IF('Kreations-UI'!AL7=1,'Kreations-UI'!AM7,'Kreations-UI'!AM8)),IF('Kreations-UI'!AR6=0,", freigeschoben"," aus der Backform")) -> Weizenbrot mit Weizen/Dinkel-Sauerteig, freigeschoben | AR2: =ROUND(54+2*AR14+(AR12-1500)*0.03+7.5*AH12+7*AR6,0) -> 39 | AS2: alte Formel Backzeit (AM9) | BJ2: Ergänzung oder Änderung der Zutaten für Hauptteig und Nullteige
AM3: =CONCATENATE(IF(AR13>1,CONCATENATE(", ",AR13,"x ca. ",ROUND(F7/AR13/5,0)*5," g"),AM2)) -> , 2x ca. 770 g
B6: <= ST ohne ASG (Wasser blau) | C6: <= Hauptteig (Wasser blau) | D6: Zielmenge Brot: | F6: 1600 | G6: g | I6: Salz: | J6: =ROUND(F12*L6/100,2) -> 20.16 | K6: g bei | L6: 2 | M6: =CONCATENATE("% d. BGM (typ. 1,8-2,2%) => ",ROUND(J6/F11*100,1),"% der TrM") -> % d. BGM (typ. 1,8-2,2%) => 2% der TrM | Q6: [alt. | R6: =CONCATENATE(AR8,"g") -> 22,7g | S6: =CONCATENATE("Salz für 1,3% der TM (d.h. ",ROUND(AR8/F12*100,1),"% d. BGM)]") -> Salz für 1,3% der TM (d.h. 2,3% d. BGM)] | Z6: Mengenumrechnung | AF6: D14 war auf 1 gesetzt => versuchsweise gelöscht | AL6: =M18 -> 1 | AM6: mit Sauerteig | AP6: =ROUND(SUM(AP7:AP11),0) -> 1740 | AQ6: gesamte Teigmenge | AR6: ='Teig-Führung'!C6 -> 0 | AS6: freigeschoben/Form | BQ6: =CONCATENATE("bisher ",'Daten für UI'!$AQ$20," Zutaten im ",BL10) -> bisher 38 Zutaten im Hauptteig
D7: aktuell erreichte Brotmenge (Kr/TF) | F7: =F10*(1-AR7) -> 1536.48 | G7: =AP6*(1-AR7) -> 1531.2 | H7: g | I7: TrHefe: | J7: =ROUND(F12*L7/300,2) -> 7.16 | K7: g bei | L7: 2.13 | M7: % FrH/BGM (1-3-4%), entspricht für Frischhefe | R7: =CONCATENATE(AR18,"g") -> 21,47g | S7: (bzw. < 1% bei langer Führung >8h) | Z7: (1) beliebiger Faktor | AB7: 1.09 | AF7: =mehlanteile(AH10,AH11,AH12) -> 100% Weizen / 0% Dinkel / 0% Roggen | AL7: =IF(AND(AL6=1,Q34>0),1,0) -> 0 | AM7: mit Roggen-Sauerteig | AP7: =ROUND(SUM(C17:C26)+SUM(F57:G62)+J6+AR22,0) -> 1500 | AQ7: Menge Hauptteig (inkl. Salz+TrHefe) ohne NT/ST | AR7: =(10-3*AR6+AR13)/100 -> 0.12 | AS7: Backverlust (Form/Frei, Anzahl Tgl) | AW7: Teigtemperatur | AY7: erfüllt | BC7: TA Kreator vs TF
D8: =CONCATENATE("erforderliche TM bei ca. ",ROUND(AR7*100,0),"% Backverlust") -> erforderliche TM bei ca. 12% Backverlust | F8: =ROUND(F6/(1-AR7),0) -> 1818 | G8: g | J8: 0 | K8: =CONCATENATE(" ggf. ",AR17,"g trockene/",AR17*3,"g frische Hefe zum Sauerteig => (0-1) => keine bis max. ⅓ der gewählten Normalhefe") -> ggf. 0g trockene/0g frische Hefe zum Sauerteig => (0-1) => keine bis max. ⅓ der gewählten Normalhefe | Z8: (2) Faktor für Zielmenge | AB8: =F6/F7 -> 1.041341248 | AG8: W-ST-Wunsch? | AH8: =IF(OR(AH13,AH14),FALSE,TRUE) -> TRUE | AL8: =IF(AND(AL6=1,AL7=0),1,0) -> 1 | AM8: mit Weizen/Dinkel-Sauerteig | AP8: =ROUND(F29+G29,0) -> 0 | AQ8: Menge QS | AR8: =ROUND(0.013*F10,1) -> 22.7 | AS8: Salz bei 1,3% d Teigmasse | AW8: Minimum | AX8: 22 | AY8: 1 | AZ8: 22-26 | BA8: Brötchen | BC8: =ROUND(100+G14/(F11)*100,0) -> 169 | BD8: TA Kreator (ohne Salz, ohne Hefe) | BL8: Für welchen Teig möchtest du eine Zutat ergänzen oder ändern? | BQ8: Alpenroggen 1500
D9: Differenz zur Ziel-TM (Kr/TF) | F9: =F8-F10 -> 72 | G9: =F8-AP6 -> 78 | H9: g | AF9: =AF10+AF11 -> 1008 | AG9: W+D | AH9: =AH10+AH11 -> 1 | AK9: Backzeit | AM9: =ROUND(53+0.0015*AR14*AR12+(AR12-1500)*0.026+7.5*AH12+7*AR6,0) -> 39 | AN9: =TIMEVALUE(CONCATENATE(AO10,":",AO11)) -> 0.02708333333 | AP9: =ROUND(F38+G38,0) -> 0 | AQ9: Menge BrS | AR9: =IF(AND(AR6=1,F10>2200),1,0) -> 0 | AS9: Achtung KF zu klein | AW9: Brot vs Brötchen | AX9: 2 | AY9: =IF(AR12>250,1,0) -> 1 | AZ9: 24-26 | BA9: Weizenbrot | BC9: =ROUND(G14/((F10-J6)-G14)*100+100,0) -> 169 | BD9: andere Rechenmethode | BQ9: Altbrot
D10: Teigmenge TM (Kreator/Teig-Führung) | E10: =IF(F9<-10,"<",IF(F9>10,">","")) -> > | F10: =ROUND(F11+G14+J6+AR22,0) -> 1746 | G10: =AP6 -> 1740 | H10: g | I10: 2 | J10: =IF(I10=1," Teigling",IF(I10>1,CONCATENATE(" Teiglinge, Teigeinlage je ",'Kreations-UI'!AR12,"g")," <= mindestens 1 eingeben!")) -> Teiglinge, Teigeinlage je 870g | Z10: ausgewählter Modus | AB10: 1 | AE10: Weizen | AF10: =SUMIF(AH$18:AH$53,"W",AI$18:AI$53) -> 1008 | AG10: g Weizen = | AH10: =AF10/AF13 -> 1 | AI10: =IF('Kreations-UI'!AF10>0,CONCATENATE(ROUND('Kreations-UI'!AH10*100,0),"% Weizen"),"") -> 100% Weizen | AK10: FG/Form | AM10: =IF(AR6=0,"freigeschoben als ",IF(OR(F10>2200,AND(F10>1050,F10<1400)),"","in der ")) -> freigeschoben als | AN10: Std | AO10: =(AM9-AO11)/60 -> 0 | AP10: =ROUND(F47+G47,0) -> 0 | AQ10: Menge KS | AR10: =IF(AND(AR6=0,F10>1750),1,0) -> 0 | AS10: Achtung, mehr als 1 Laib erforderlich | AW10: Roggen>15% | AX10: 2 | AY10: =IF(AH12>0.15,1,0) -> 0 | AZ10: 26-28 | BA10: Mischbrot | BC10: Kreator-Daten | BL10: Hauptteig | BQ10: Alt-R-ST (nur Mehlanteil)
D11: Trockenmasse TrM (inkl. ASG lt. Kreator) | F11: =F17+F29+F38+F47+F56+0.5*(M34+M27) -> 1023.150643 | G11: g | R11: ST-Nutzung | AE11: Dinkel | AF11: =SUMIF(AH$18:AH$53,"D",AI$18:AI$53) -> 0 | AG11: g Dinkel = | AH11: =AF11/AF13 -> 0 | AI11: =IF('Kreations-UI'!AF11>0,CONCATENATE(ROUND('Kreations-UI'!AH11*100,0),"% Dinkel"),"") ->  | AK11: Form | AM11: =IF(AR6=1,IF(AR12>2100,"zu groß für Brotbackform!",IF(AR12>1400,"Brot-Kastenform",IF(AR12>1150,"keine Form vorhanden für Teige von 1150-1400g",IF(AR12>750,"großen Königskuchenform",IF(AR12>650,"kleinen Königskuchenform","Mini-Springform"))))),"") ->  | AN11: min | AO11: =MOD(AM9,60) -> 39 | AP11: ='Teig-Führung'!J5*AL6 -> 240 | AQ11: Menge ST wie gewählt | AR11: =1/AR13 -> 0.5 | AS11: der Teigmenge/Brot | AW11: Roggen >79 | AX11: 1 | AY11: =IF(AH12>0.79,1,0) -> 0 | AZ11: 27-29 | BA11: Roggenbrot | BC11: =0.5*(M27+M34) -> 15.1506432 | BD11: ASG-Wasser | BQ11: Alt-W-ST (nur Mehlanteil)
D12: Backfähiges Getreide ohne ASG (BGM) | F12: =AF14 -> 1008 | G12: g | I12: typische TA: | K12: =IF(AR6=0,156+0.25*AH12*100,165+(0.15*AH12*100))+R12*8 -> 164 | M12: =IF(AR6=0,"freigesch.","in der Form") -> freigesch. | P12: Klebepotential | R12: ='Teig-Führung'!AH20 -> 1 | AE12: Roggen | AF12: =SUMIF(AH$18:AH$53,"R",AI$18:AI$53) -> 0 | AG12: g Roggen = | AH12: =AF12/F$12 -> 0 | AI12: =IF('Kreations-UI'!AF12>0,CONCATENATE(ROUND('Kreations-UI'!AH12*100,0),"% Roggen"),"") ->  | AK12: Laib | AM12: =IF(AR6=0,IF(AR10=1," - zwei! - längliche Laibe",IF(F10>1490,"länglicher Laib",IF(F10<1250,"runder Laib","runder oder länglicher Laib"))),"") -> länglicher Laib | AP12: =SUM(AP7:AP10) -> 1500 | AQ12: Menge HAT+NT (ohne ST) | AR12: =ROUND(AP6/AR13,0) -> 870 | AS12: g/Teigling | AW12: VK > 50 | AX12: 1 | AY12: =IF(AL57>0.49,1,0) -> 0 | AZ12: 28-32 | BA12: Schrotbrot | BC12: =B17 -> 108 | BD12: ST-Wasser (ohne ASG) | BL12: nach Änderung des Teigs bitte Liste rechts aktualisieren | BQ12: ASG-Mehlmix
D13: Zuschüttwasser (Angabe K oder Z =>) | F13: k | G13: =IF(OR(F13="K",F13="k"),G14-BC13-BC14,F14) -> 580 | H13: Wz | I13: akt. TA | K13: Gesamtteig | M13: Mehle HT+ST | P13: =AG17 -> 0.9851921676 | AE13: W+D+R (auch nicht mehr backfähig) | AF13: =AF9+AF12 -> 1008 | AG13: R-ST-Pflicht? | AH13: =IF(AH12>=0.45,TRUE,FALSE) -> FALSE | AP13: =ROUND((M27+M34)/2,0) -> 15 | AQ13: ASG-Menge Wasser=Mehl | AR13: =I10 -> 2 | AS13: Anzahl Brote | AW13: Schrot >10 | AX13: 2 | AY13: =IF(AM57>0.1,1,0) -> 0 | BC13: =BC11+BC12 -> 123.1506432 | BD13: Gesamt-Wasser ST | BQ13: Champagner-R VK-M
D14: Ges-Wass-Korrektur (K) / Zuschütt-W (Z) | F14: 33 | G14: =IF(OR(F13="K",F13="k"),G15+F14,G13+BC13+BC14) -> 703.1506432 | H14: Wk | I14: ='Teig-Führung'!AL6 -> TA korr. | K14: ='Teig-Führung'!AK6 -> 169 | M14: =100+(C17+B17)/F17*100 -> 168.2539683 | AE14: backfähiges Getr. | AF14: =SUMIF(AE18:AE53,">0",F18:F53) -> 1008 | AG14: R-ST-Wunsch? | AH14: =IF(AND(AH12>=0.3,M30>M23),TRUE,FALSE) -> FALSE | AP14: =(IF('Teig-Führung'!J4>0,ABS((1-AP11/'Teig-Führung'!J4))<0.15,TRUE)) -> TRUE | AQ14: ST angemessen? (max.15% Abw) | AR14: =AR13/'Teig-Führung'!C9 -> 2 | AS14: Anzahl Brote/Backvorgang | AW14: Ziel-TT calc | AX14: =SUMPRODUCT(AX8:AX13,AY8:AY13) -> 24 | AY14: <= | BC14: =G29+G38+G47+G56 -> 0 | BD14: Wasser Nullteige und Sonstige | BL14: Name der Zutat => Falls du eine Zutat ändern möchtest: Wähle sie aus über die Liste und den Mehlsack rechts. | BQ14: D-Grieß
D15: =CONCATENATE("Gesamt-Wasser primär",IF(M18>0," (inkl. ST und ASG)","")) -> Gesamt-Wasser primär (inkl. ST und ASG) | G15: =G17+BC14+BC11 -> 670.1506432 | H15: Wp | I15: Primär-TA | K15: =100+G15/F11*100 -> 165.4987267 | M15: =100+G17/F17*100 -> 164.9801587 | P15: (mind. 75%) | AE15: Klebrigkeit | AF15: abs. Klebr. | AG15: rel. Klebrigkeit | AK15: VK/S? | AL15: Mengen je | AO15: Berechnung Sauerteig-Grenzwerte | AP15: =I10/'Teig-Führung'!C9 -> 2 | AQ15: Teiglinge/Backvorgang | AR15: =IF(OR(M18+AR18=0,AND(M18=1,AR17=0)),0,IF(M18=0,2,1)) -> 0 | AS15: Hefeangabe (0=0;>0-1=AngstH, 2=NormalH) | AW15: TT lt Rezept | AX15: ='Teig-Führung'!L12 -> 0 | BQ15: Dinkel 1050
AG16: ST-Vollwertigkeit
B17: =IF(M18>0,ROUND((M26+M33),0),0) -> 108 | C17: =G13 -> 580 | D17: =CONCATENATE("Hauptteig (TA ",BC25,")",IF(M18>0," und Sauerteig","")) -> Hauptteig (TA 164) und Sauerteig | F17: =SUM(F18:F26) -> 1008 | G17: =ROUND(SUM(G18:G26),0) -> 655 | H17: Hydr. | AE17: Summe | AF17: =SUM(AF18:AF44) -> 1008 | AG17: =AF17/F11 -> 0.9851921676 | AL17: VK | AM17: Schrot | AN17: Typ>1000 | AO17: mind. 1/4 der TM soll (R-)ST sein | AP17: =F10/8 -> 218.25 | AQ17: g Mehl im ST | AR17: =ROUND(J7/3*J8,1) -> 0 | AS17: g Panik-Hefe (trocken) | AW17: def. Ziel-TT | AX17: =IF(AX15>0,AX15,AX14) -> 24 | BE17: Indikator bekannte Zutat | BQ17: Dinkel 630
A18: ='Teig-Führung'!AC21 -> 128 | B18: =IF(AND(M18+V22>1,M23>0),'Teig-Führung'!AF5,0) -> 108 | C18: =F18-B18 -> 900 | D18: Weizen 550 | E18: ST | F18: 1008 | G18: =F18*H18 -> 655.2 | H18: =IF(ISERROR(VLOOKUP(D18,GesHT,2)),,VLOOKUP(D18,GesHT,2)) -> 0.65 | I18: =F18/F$12 -> 1 | J18: der BGM | M18: =IF(M20+R20>0,1,0) -> 1 | N18: Sauerteignutzung (0/1) => bei ST generell höhere TA anstreben (165+) | Y18: 7 | AE18: =IFERROR(VLOOKUP($D18,GesHT,3,0),0) -> 1 | AF18: =AE18*F18 -> 1008 | AG18: =IF(B18>0,AK18,"") -> 0 | AH18: =IFERROR(VLOOKUP($D18,GesHT,4,0),0) -> W | AI18: =F18 -> 1008 | AK18: =IF(D18<>"",VLOOKUP(D18,GesHT,5),"") -> 0 | AL18: =IF(AK18="VK",F18,0) -> 0 | AM18: =IF(AK18="S",F18,0) -> 0 | AN18: =IF(AK18="T",F18,0) -> 0 | AP18: =AP17 -> 218.25 | AQ18: g Wasser im ST | AR18: =ROUND(F12*L7/100,2) -> 21.47 | AS18: g Frischhefe | AZ18: =CONCATENATE("geschätzte Backzeit: ca. ",ROUND(AM9,0),"min") -> geschätzte Backzeit: ca. 39min | BE18: =IFERROR(ROW(D18)+LEN(D18)+CODE(LEFT(D18,1)),0) -> 115 | BQ18: Dinkel VK-M
A19: ='Teig-Führung'!AC29 -> 0 | B19: =IF(AND(M18+V22>1,M23>0),'Teig-Führung'!AF6,0) -> 0 | C19: =F19-B19 -> 0 | E19: ST | G19: 0 | H19: 0 | I19: =F19/F$12 -> 0 | J19: der BGM | M19: =IF(M20<M18,"Achtung: Sauerteig-Basis wählen!","") ->  | AE19: 0 | AF19: 0 | AH19: 0 | AI19: 0 | AL19: 0 | AM19: 0 | AN19: =IF(AK19="T",F19,0) -> 0 | AP19: =0.4*AP18 -> 87.3 | AQ19: ASG (10-20% bei 1StF) => | AR19: =SUM(AP17:AP18) -> 436.5 | AS19: g ST + | AT19: =AP19 -> 87.3 | AU19: g neues ASG | AZ19: =CONCATENATE("Backen: min. Backzeit ",ROUND(AM9,0),"min") -> Backen: min. Backzeit 39min | BC19: 98°C Kern-Temp. | BE19: =IFERROR(ROW(D19)+LEN(D19)+CODE(LEFT(D19,1)),0) -> 0 | BL19: Der Name sollte am besten weniger als 29 Zeichen lang sein. | BQ19: Gelbweizenmehl 550
C20: =F20 -> 0 | G20: 0 | H20: 0 | I20: 0 | J20: der BGM | M20: ='Teig-Führung'!AH20 -> 1 | N20: Sauerteigwunsch lt. TF (0/1) | R20: =IF(AH12>0.49,1,0) -> 0 | S20: Sauerteigpflicht (0/1) | AE20: 0 | AF20: 0 | AH20: 0 | AI20: 0 | AL20: 0 | AM20: 0 | AN20: 0 | AO20: ergibt mindestens | AP20: =IF(AH12>0,AP17/AF12,0) -> 0 | AQ20: Versäuerung d. RM, bzw. | AR20: =IF(AH9>0,0.1,0) -> 0.1 | AS20: d. WDM (unabhängig von Teigmenge) | AZ20: =CONCATENATE(AM10,AM11,AM12) -> freigeschoben als länglicher Laib | BE20: 0 | BQ20: Haferflocken
C21: 0 | G21: 0 | H21: 0 | I21: 0 | J21: der BGM | AE21: 0 | AF21: 0 | AH21: 0 | AI21: 0 | AK21: =IF(D21<>"",VLOOKUP(D21,GesHT,5),"") ->  | AL21: 0 | AM21: 0 | AN21: 0 | AR21: Wert unabhängig von obiger Bedingung geändert | AZ21: =IF(AR13>1,CONCATENATE(ROUND(AR11*100,0),"% TM/Brot = ",ROUND(F10*AR11,0),"g/Teigling => ",AR13," Brote á ",ROUND(F7*AR11,0),"g"),"") -> 50% TM/Brot = 873g/Teigling => 2 Brote á 768g | BE21: 0 | BQ21: Hefe trocken
C22: 0 | G22: 0 | H22: 0 | I22: 0 | J22: der BGM | M22: =CONCATENATE("Weizen/Dinkel-ST ",IF(M26>0,'Teig-Führung'!AH13,"")) -> Weizen/Dinkel-ST (TA 200) | Q22: =IF(V22=1,"hier erforderlich",IF(V22=0.5,"hier möglich",IF(M18=1,"hier nicht sinnvoll","nicht gewünscht"))) -> hier erforderlich | V22: =IF(M18=0,0,IF(AH12<0.2,1,IF(AH12<0.49,0.5,0))) -> 1 | AE22: 0 | AF22: 0 | AH22: 0 | AI22: 0 | AL22: 0 | AM22: 0 | AN22: 0 | AP22: maximal | AR22: =IF('Teig-Führung'!AH19,'Kreations-UI'!AR17,J7) -> 0 | AS22: Trockenhefe im Rezept (auch Hilfshefe) | BE22: 0 | BM22: =CONCATENATE("Mit wieviel Wasser möchtest du die Zutat im ",BL10," typischerweise verwenden?",CHAR(10),"Wenn du dir nicht sicher bist, lass die Angabe einfach weg.") -> Mit wieviel Wasser möchtest du die Zutat im Hauptteig typischerweise verwenden? Wenn du dir nicht sicher bist, lass die Angabe einfach weg. | BQ22: Khorasan-KeimlingsM (Ur-W-VK)
A23: =A18 -> 128 | B23: =IF(AND(M18+V29>1,M30>0),'Teig-Führung'!AF5,0) -> 0 | C23: =F23-B23 -> 0 | E23: ST | G23: 0 | H23: 0 | I23: 0 | J23: der BGM | M23: 12.2 | N23: % Wunsch-Vers. d. W/D-M => | Q23: =IF(ISERROR((Q25/'Teig-Führung'!CK32)),Q25/F12,Q25/'Teig-Führung'!CK32*100) -> 12.05236991 | R23: =IF(AND(V22>0,AH12>0),AQ68,"Gesamt-Versäuerung (typ. 10-20-40%)") -> Gesamt-Versäuerung (typ. 10-20-40%) | Y23: =IF(ISERROR((Q25)/(F$12-Q25)),0,(Q25)/(F$12-Q25)) -> 0.139394841 | Z23: S-M/RestM | AD23: =IF(M23=0,0,Q25/AF9) -> 0.12234112 | AE23: 0 | AF23: 0 | AH23: 0 | AI23: 0 | AL23: 0 | AM23: 0 | AN23: 0 | AO23: max. 50% der TM soll R-ST sein => | AP23: =IF(AH12>0,IF(AP20<0.67,AP20*1.5,1),0) -> 0 | AQ23: % d. RM | AR23: =IF(AH12>0,AP23*AH12*F$12/1000," - ") -> - | AS23: Max.-Versäuerung d. bfG | AW23: =IF(M23>0,2,0) -> 2 | AX23: W-Versäuerung ausgefüllt>0 | BB23: Mehle nur HT | BC23: =F17-(M25+M32) -> 899.78112 | BE23: 0 | BK23: Zu welcher Gruppe gehört die Zutat? | BQ23: Mailänder Krusties WM
A24: =A19 -> 0 | B24: =IF(AND(M18+V29>1,M30>0),'Teig-Führung'!AF6,0) -> 0 | C24: =F24-B24 -> 0 | E24: ST | G24: 0 | H24: 0 | I24: 0 | J24: der BGM | M24: =IF(V22=0,"- ",AG63) -> 9 | N24: % Mindestversäuerung | Q24: =IF(V22=0," - ",AG64) -> 35 | R24: % Maximalversäuerung (besser <25%) | Y24: =Q27/F$12 -> 0.2447808 | Z24: ST/GesM | AD24: S-WDM/GesWDM | AE24: 0 | AF24: 0 | AH24: 0 | AI24: 0 | AL24: 0 | AM24: 0 | AN24: 0 | AO24: max. 40% der TM soll W/D-ST sein => | AP24: =IF(AH9>0,MIN(AP27,1),0) -> 0.3464285714 | AQ24: % d. W/D-M | AR24: =IF(AH10>0,AP24*AH10*F$12/1000," - ") -> 0.3492 | AS24: Max.-Versäuerung d. bfG | BB24: Wasser nur HT | BC24: =C17 -> 580 | BE24: 0 | BQ24: Malz, inaktiv (Pulver)
C25: 0 | G25: 0 | H25: 0 | I25: 0 | J25: der BGM | M25: =IF(V22>0,(AF9*'Teig-Führung'!CQ9*M23/100),"0") -> 108.21888 | N25: =CONCATENATE("g ",D18,IF(B19>0,CONCATENATE("/",D19),"")) -> g Weizen 550 | Q25: =IF(ISERROR('Teig-Führung'!CN30),"- ",M25+'Teig-Führung'!CN30*M27) -> 123.319849 | R25: g versäuertes WM bzw. DM (inkl. ASG) | Y25: =IF(M23>0,Q27/(F$12-M25),"0") -> 0.2742211866 | Z25: ST/RestM | AD25: % ST von Rest-Mehl (typ. 10-30%) | AE25: 0 | AF25: 0 | AH25: 0 | AI25: 0 | AL25: 0 | AM25: 0 | AN25: 0 | AP25: =AP26/2 -> 349.2 | AQ25: g Mehl im ST max (bei TA200) | AX25: Übernahme aus UI | BB25: TA nur HT | BC25: =ROUND(BC24/BC23*100+100,0) -> 164 | BE25: 0 | BO25: ml/100g Zutat | BQ25: Manitobo W-VK-M
C26: 0 | G26: 0 | H26: 0 | I26: 0 | J26: der BGM | M26: =IF(V22>0,(AF9*'Teig-Führung'!CQ10*M23/100),"0") -> 108.21888 | N26: g Wasser | Q26: =IF(V22>0,'Teig-Führung'!AF3,"0") -> 12.43 | R26: % ASG (typ. 2-10-30% des ST) | Y26: =ROUND(Q27/F$10,3) -> 0.141 | Z26: ST/GesTeig | AE26: 0 | AF26: 0 | AH26: 0 | AI26: 0 | AL26: 0 | AM26: 0 | AN26: 0 | AO26: 40% der TM = | AP26: =0.4*F10 -> 698.4 | AQ26: g ST max. | AS26: Versäuerung effektiv=>Druck | AW26: =M18 -> 1 | AX26: ST-Nutzung | BB26: (ohne ST/NT/VT) | BE26: 0 | BQ26: Roggen 1150
C27: =F17/F$11 -> 0.9851921676 | D27: der Trockenmasse (min 30%) | G27: =IF(AH10=1,"Weizenbrot",IF(AH10>0.49,"Weizenmischbrot",IF(AH12>0.9,"Roggenbrot",IF(AH12>0,"Roggenmischbrot",IF(AH11<1,"Dinkelmischbrot","Dinkelbrot"))))) -> Weizenbrot | M27: =IF(V22>0,'Teig-Führung'!CL10*M25,"0") -> 30.3012864 | N27: g ASG (entspr. Teig-Führung) | Q27: =SUM(M25:M27) -> 246.7390464 | R27: g Weizen-ST (ohne neues ASG!) | Y27: Gesamtversäuerung | AA27: =IF(ISERROR((Q25+Q32)/F12),0,ROUND((Q25+Q32)/F12,3)) -> 0.122 | AD27: % (typ 10-50%) | AO27: Anteil zu versäuerndes W/D-Mehl = | AP27: =AP25/AF9 -> 0.3464285714 | AS27: =IF(M18=1,IF(AH8,ROUND('Teig-Führung'!AN13/AF9*100,1),ROUND('Teig-Führung'!AN13/AF12*100,1)),0) -> 12 | AT27: % pro Sorte ST-Mehl | AW27: =V22 -> 1 | AX27: W-ST | AY27: W-Vers | AZ27: =M23 -> 12.2 | BE27: 153 | BQ27: Roggen 997
M28: bzw. | O28: =IF(M18=1,AH76,"") ->  | Y28: Ges.-Inokulation | AA28: =Y26+Y32 -> 0.141 | AD28: =ROUND((AD23+AD30)*100,0) -> 12 | AS28: =IF(M18=1,ROUND('Teig-Führung'!AN13/'Kreations-UI'!AF14*100,1),0) -> 12 | AT28: % pro alle Mehle | AW28: =V29 -> 0 | AX28: R-ST | AY28: R-Vers | AZ28: =M30 -> 0 | BE28: 0 | BQ28: Roggen VK-M
B29: =BD75 -> GesQS | C29: =G29 -> 0 | D29: Quellstück (mit Salz ansetzen) | F29: =SUM(F30:F35)+F37 -> 0 | G29: =ROUND(SUM(G30:G35),0) -> 0 | H29: Hydr. | I29: =F29/F$11 -> 0 | J29: der TrM | M29: =CONCATENATE("Roggen-ST",IF(M33>0,'Teig-Führung'!AH13,"")) -> Roggen-ST | Q29: =IF(V29=1,"hier erforderlich",IF(V29=0.5,"hier möglich",IF(M18=1,"hier nicht sinnvoll","nicht gewünscht"))) -> hier nicht sinnvoll | V29: =IF(M18=0,0,IF(AH12>=0.49,1,IF(AH12<0.2,0,0.5))) -> 0 | Y29: =IF(ISERROR((Q32)/(F$12-Q32)),0,(Q32)/(F$12-Q32)) -> 0 | Z29: S-M/RestM | AP29: minimal | BE29: 140 | BK29: Wie vollwertig ist die Zutat? | BN29: =CONCATENATE("Welche ""Klebrigkeit"" hat die Zutat im ",BL10,"?") -> Welche "Klebrigkeit" hat die Zutat im Hauptteig? | BQ29: Roggenflocken
A30: =COUNTIF(INDIRECT(B$30),D30) -> 0 | B30: =BE75 -> NamQS | C30: =F30 -> 0 | G30: =F30*H30 -> 0 | H30: =IF(ISERROR(VLOOKUP(D30,INDIRECT(B$29),2,0)),,VLOOKUP(D30,INDIRECT(B$29),2,0)) -> 0 | I30: =F30/F$12 -> 0 | J30: =IF(AH30<>0,"der BGM","der TrM") -> der TrM | M30: 0 | N30: % Wunsch-Vers. d. RM => | Q30: =IF(ISERROR(Q32/F12),"- ",(Q32/F12*100)) -> 0 | R30: =IF(V29,AQ69,"% Gesamt-Versäuerung (typ. 18-45%)") -> % Gesamt-Versäuerung (typ. 18-45%) | Y30: =Q34/F$12 -> 0 | Z30: ST/GesM | AD30: =IF(M30=0,0,Q32/AF12) -> 0 | AE30: =IFERROR(VLOOKUP(D30,INDIRECT(B$29),3,0),0) -> 0 | AF30: =AE30*F30 -> 0 | AH30: =IFERROR(VLOOKUP($D30,INDIRECT(B$29),4,0),0) -> 0 | AI30: =F30 -> 0 | AK30: =IF(D30<>"",IFERROR(VLOOKUP(D30,INDIRECT(B$29),5,0),0),0) -> 0 | AL30: =IF(AK30="VK",F30,0) -> 0 | AM30: =IF(AK30="S",F30,0) -> 0 | AN30: =IF(AK30="T",F30,0) -> 0 | AO30: Bei 20-45% RM => 12% GM versäuern | AP30: =IF(AF9>0,(0.12*AF14/AF9),0) -> 0.12 | AQ30: d. W/D-Mehls mind | AR30: Bitte Weizen- oder Roggenmehl versäuern! | BE30: 0 | BQ30: Sauerteig-Spice
A31: 0 | C31: =F31 -> 0 | G31: 0 | H31: 0 | I31: =F31/F$12 -> 0 | J31: der TrM | M31: =IF(V29=0," - ",AG65) -> - | N31: % Mindestversäuerung | Q31: =IF(V29=0," - ",AG66) -> - | R31: % Maximalversäuerung | Y31: =IF(M30>0,Q34/(F$12-M32),0) -> 0 | Z31: ST/RM | AD31: S-RM/GesRM | AE31: 0 | AF31: 0 | AH31: 0 | AI31: 0 | AK31: 0 | AL31: 0 | AM31: 0 | AN31: 0 | AO31: mind. 20% des GMehls versäuern | AP31: =0.2*AF14 -> 201.6 | AQ31: g mind | AR31: Bitte nur EINE Mehlsorte versäuern! | AW31: Anzahl Zeilen für Rezeptdruck | BE31: 0 | BO31: (0-1) | BP31: Vorschlag Klebrigkeit | BQ31: Sauerteigzusatz (Mehlanteil)
A32: 0 | C32: =F32 -> 0 | G32: 0 | H32: 0 | I32: =F32/F$12 -> 0 | J32: der TrM | M32: =IF(V29>0,(AF12*'Teig-Führung'!CQ9*M30/100),"0") -> 0 | N32: =CONCATENATE("g ",D23,IF(B24>0,CONCATENATE("/",D24),"")) -> g | Q32: =IF(ISERROR('Teig-Führung'!CN30),"- ",M32+'Teig-Führung'!CN30*M34) -> 0 | R32: g versäuertes RM (inkl. ASG) | Y32: =Q34/F$10 -> 0 | Z32: ST/GesTeig | AE32: 0 | AF32: 0 | AH32: 0 | AI32: 0 | AK32: 0 | AL32: 0 | AM32: 0 | AN32: 0 | AO32: d.h. aktuell | AP32: =IF(AF9>0,AP31/AF9,0) -> 0.2 | AQ32: d. W/D-Mehls | AV32: =SUM(AV33:AV39) -> 17 | AX32: Abstandszeile | AY32: fix | AZ32: variabel | BA32: Hefe | BB32: NT-Hinweis | BC32: bis Zeile | BD32: Übertritt bei | BE32: 0 | BQ32: Semola rimacinata HartWMehl
A33: 0 | C33: =F33 -> 0 | G33: 0 | H33: 0 | I33: =F33/F$12 -> 0 | J33: der TrM | M33: =IF(V29>0,ROUND(AF12*'Teig-Führung'!CQ10*M30/100,0),0) -> 0 | N33: g Wasser | Q33: =IF(V29>0,'Teig-Führung'!AF3,"0") -> 0 | R33: % ASG (typ. 2-10-30% des ST) | AD33: % ST der Teigmenge (typ. 33-40-50%) | AE33: 0 | AF33: 0 | AH33: 0 | AI33: 0 | AK33: 0 | AL33: 0 | AM33: 0 | AN33: 0 | AP33: weniger geht auch | AV33: =AX33*(AY33+AZ33)+AV47 -> 5 | AW33: ST+Testzahl | AX33: =IF(AZ33>0,1,0) -> 1 | AY33: 4 | AZ33: =M18*(COUNTIF(B18:B24,">0")+IF(Garzeiten!C19>0,1,0)) -> 1 | BC33: =AV33+AX40 -> 6 | BE33: 0 | BQ33: T110 Landbrotmehl (W1200)
A34: 0 | C34: =F34 -> 0 | G34: 0 | H34: 0 | I34: =F34/F$12 -> 0 | J34: der TrM | M34: =IF(V29>0,'Teig-Führung'!CL10*M32,"0") -> 0 | N34: g ASG (entspr. Teig-Führung) | Q34: =SUM(M32:M34) -> 0 | R34: g Roggen-ST (ohne neues ASG!) | AE34: 0 | AF34: 0 | AH34: 0 | AI34: 0 | AK34: 0 | AL34: 0 | AM34: 0 | AN34: 0 | AV34: =AX34*(AY34+AZ34) -> 0 | AW34: QS | AX34: =IF(AZ34>0,1,0) -> 0 | AY34: 1 | AZ34: =COUNTIF('Kreations-UI'!F30:F35,">0")-COUNTIFS(D30:D35,"X Korrekturwasse*",F30:F35,">0")+IF(G29>0,1,0) -> 0 | BC34: =BC33+AV34+IF(AV34>0,AX$40,0) -> 6 | BD34: =IF(BC34>AV$42,AW34,"") ->  | BE34: 0 | BQ34: T80 Label Rouge (W1050)
A35: 1 | C35: =IF(D35="X Korrekturwasser (1/100 TrM angeben)","",F35) -> 0 | D35: X Korrekturwasser - als TrM angeben | G35: 0 | H35: 1 | I35: =F35/F$11 -> 0 | J35: der TrM | AE35: 0 | AF35: 0 | AH35: 0 | AI35: 0 | AK35: 0 | AL35: 0 | AM35: 0 | AN35: 0 | AO35: Vers. d GesM je nach R% | AP35: =(0.34*AH12*100+6.8)/100 -> 0.068 | AV35: =AX35*(AY35+AZ35) -> 0 | AW35: BS | AX35: =IF(AZ35>0,1,0) -> 0 | AY35: 1 | AZ35: =COUNTIF('Kreations-UI'!F39:F44,">0")-COUNTIFS(D39:D44,"X Korrekturwasse*",F39:F44,">0")+IF(G38>0,1,0) -> 0 | BC35: =BC34+AV35+IF(AV35>0,AX$40,0) -> 6 | BD35: =IF(AND(BC35>AV$42,BC34<=AV$42),AW35,"") ->  | BE35: 158 | BJ35: Hinweis: | BK35: Du kannst in jeder Liste bis zu 60 verschiedene Zutaten auflisten, jedoch keine löschen oder umbenennen, | BQ35: Tipo 0 Manitobo
C36: =F29/F$12 -> 0 | D36: der backf. Getreidemasse (max 60%) | F36: =IF(F29<=0,"",CONCATENATE(G37,"g TA ",ROUND(100+(G29/F29)*100,0))) ->  | I36: =(F29+G29)/F$10 -> 0 | J36: der TM | AO36: entspricht | AP36: =AP35*AF14 -> 68.544 | AQ36: g des Ges-Mehls | AR36: min | AS36: max | AV36: =AX36*(AY36+AZ36) -> 0 | AW36: KS | AX36: =IF(AZ36>0,1,0) -> 0 | AY36: 1 | AZ36: =COUNTIF('Kreations-UI'!F48:F53,">0")-COUNTIFS(D48:D53,"X Korrekturwasse*",F48:F53,">0")+IF(G47>0,1,0) -> 0 | BC36: =BC35+AV36+IF(AV36>0,AX$40,0) -> 6 | BD36: =IF(AND(BC36>AV$42,BC35<=AV$42),AW36,"") ->  | BE36: 171 | BJ36: weil es zu Konflikten käme bei Rezepten, die diese Zutat schon verwenden. | BQ36: Tipo 0 violett (W550)
F37: =-SUMIF(D30:D35,"X Korrekturwasse*",F30:F35) -> 0 | G37: =ROUND(F29+G29,0) -> 0 | L37: Versäuerungs-Info | AO37: bei <=20% RM | AP37: =IF(AF9>0,AP36/AF9,0) -> 0.068 | AQ37: des W/D-M | AR37: =AVERAGE(AP37,AP30) -> 0.094 | AS37: =AP24 -> 0.3464285714 | AV37: =AX37*SUM(AY37:BB37) -> 6 | AW37: HT | AX37: =IF(SUM(AZ37:BB37)>0,1,0) -> 1 | AY37: 3 | AZ37: =COUNTIF(C18:C26,">0")+COUNTIF(C57:C62,">0")+IF(G29>0,1,0)+IF(G14>0,1,0) -> 2 | BA37: =IF(AND(M18=1,J8>0),1,0)+ABS(M18-1) -> 0 | BB37: =IF(SUM(AV33:AV36)>0,1,0) -> 1 | BC37: =BC36+AV37+IF(AV37>0,AX$40,0) -> 13 | BD37: =IF(AND(BC37>AV$42,BC36<=AV$42),AW37,"") ->  | BE37: 0 | BJ37: Die Zutaten werden in der Liste rechts und im Kreator-DropDown-Menü immer in alfabetischer Reihenfolge aufgelistet. | BQ37: Tipo 00 Pizza-Mehl
B38: =BD76 -> GesBS | C38: =G38 -> 0 | D38: Brühstück | F38: =SUM(F39:F44)+F46 -> 0 | G38: =ROUND(SUM(G39:G44),0) -> 0 | H38: Hydr. | I38: =F38/F$11 -> 0 | J38: der TrM | L38: =CONCATENATE(AF10,"g = ",ROUND(AH10*100,0),"%") -> 1008g = 100% | P38: Wenn 55-80% W(u/oD)-Mehl => 12-25% der Ges-Mehlmenge versäuern. Wenn >=80% W(u/o D)-Mehl => Versäuerung nur optional. Wenn ST, dann mind. 10-33% der Teigmenge für genug Triebkraft. | AO38: bei RM 20%-45% | AQ38: des W/D-M | AV38: 2 | AW38: Info | AX38: 1 | BC38: =BC37+AV38 -> 15 | BD38: =IF(AND(BC38>AV$42,BC37<=AV$42),AW38,"") ->  | BE38: 113 | BJ38: Bitte benutze keine außergewöhnlichen Sonderzeichen für die Namen deiner Zutaten. | BQ38: Weizen 1050
A39: =COUNTIF(INDIRECT(B$39),D39) -> 0 | B39: =BE76 -> NamBS | C39: =F39 -> 0 | G39: =F39*H39 -> 0 | H39: =IF(ISERROR(VLOOKUP(D39,INDIRECT(B$38),2,0)),,VLOOKUP(D39,INDIRECT(B$38),2,0)) -> 0 | I39: =F39/F$12 -> 0 | J39: =IF(AH39<>0,"der BGM","der TrM") -> der TrM | N39: Weizen | AE39: =IFERROR(VLOOKUP(D39,INDIRECT(B$38),3,0),0) -> 0 | AF39: =AE39*F39 -> 0 | AH39: =IFERROR(VLOOKUP($D39,INDIRECT(B$38),4,0),0) -> 0 | AI39: =F39 -> 0 | AK39: =IF(D39<>"",IFERROR(VLOOKUP(D39,INDIRECT(B$38),5,0),0),0) -> 0 | AL39: 0 | AM39: 0 | AN39: =IF(AK39="T",F39,0) -> 0 | AO39: bei RM 20%-45% | AP39: =IF(AF12>0,AP36/AF12,0) -> 0 | AQ39: des R-M | AR39: =AP39 -> 0 | AS39: =AP23 -> 0 | AV39: =AY39+AZ39 -> 4 | AW39: Formen | AX39: 1 | AY39: 1 | AZ39: =Druck!H78 -> 3 | BC39: =BC38+AV39 -> 19 | BD39: =IF(AND(BC39>AV$42,BC38<=AV$42),AW39,"") ->  | BE39: 0 | BQ39: Weizen 550
A40: 0 | C40: =F40 -> 0 | G40: 0 | H40: 0 | I40: 0 | J40: der TrM | AE40: 0 | AF40: 0 | AH40: 0 | AI40: 0 | AK40: 0 | AL40: 0 | AM40: 0 | AN40: 0 | AO40: Bei RM >= 45%: | AV40: =SUM(AX33:AX38)-1 -> 2 | AW40: Leerezeilen | AX40: =IF(AND(AV46,AV45=FALSE),0,1) -> 1 | BD40: =CONCATENATE(BD34,BD35,BD36,BD37,BD38,BD39) ->  | BE40: 0 | BJ40: Für die Vollwertigkeit von gemahlenen Nüssen und Saaten ist die Zuordnung "Vollkorn-Mehle" am passendsten, für ganze Nüsse etc. "Schrote, ganze Körner, Saaten". | BQ40: Weizen VK-M
A41: 0 | C41: =F41 -> 0 | G41: 0 | H41: 0 | I41: 0 | J41: der TrM | L41: =CONCATENATE(AF11,"g = ",ROUND(AH11*100,0),"%") -> 0g = 0% | N41: Dinkel | P41: Hoher Dinkel-Anteil immer mit Quellstück, um benötigte TA zu ermöglichen. Dinkel wird sauerteigtechnisch dem Weizen zugerechnet. | AE41: 0 | AF41: 0 | AH41: 0 | AI41: 0 | AK41: 0 | AL41: 0 | AM41: 0 | AN41: 0 | AV41: =SUM(AV33:AV40) -> 19 | AW41: benötigte Zeilen inkl Leerzeilen | BE41: 0 | BQ41: Weizenflocken
A42: 0 | C42: =F42 -> 0 | G42: 0 | H42: 0 | I42: 0 | J42: der TrM | AE42: 0 | AF42: 0 | AH42: 0 | AI42: 0 | AK42: 0 | AL42: 0 | AM42: 0 | AN42: 0 | AP42: =F18+F19 -> 1008 | AQ42: pot ST W/D | AU42: 34 | AV42: 35 | AW42: verfügbar | BB42: =IF(BB44,BB43,AV32) -> 17 | BC42: hier benötigte Zeilen | BE42: 0 | BQ42: Weizen-Gluten
A43: 0 | C43: =F43 -> 0 | G43: 0 | H43: 0 | I43: 0 | J43: der TrM | L43: =CONCATENATE(AF12,"g = ",ROUND(AH12*100,0),"%") -> 0g = 0% | P43: Mind. 30-50% des RM werden versäuert (bis 100% bei kleinem Roggenanteil). Bei <45% RM kann auch W-ST genutzt werden. ST-Menge normalerweise >=20% der TM. Bei <= 20% RM keine Versäuerung nötig (<50% bei modernen Mehlsorten). | AE43: 0 | AF43: 0 | AH43: 0 | AI43: 0 | AK43: 0 | AL43: 0 | AM43: 0 | AN43: 0 | AP43: =F23+F24 -> 0 | AQ43: pot ST R | AV43: =IF(AV41<=AV42,TRUE,FALSE) -> TRUE | AW43: ok? | BB43: =AV32-AV39 -> 13 | BC43: benötigte Z - (Formen+LZ) | BE43: 0 | BJ43: Die Klebrigkeit ist eine BrotWerk-eigene Eigenschaft und beschreibt die Backfähigkeit im jeweils verwendeten (Null-)Teig. | BQ43: Weizenschrot
A44: 1 | C44: =IF(D44="X Korrekturwasser (1/100 TrM angeben)","",F44) -> 0 | D44: X Korrekturwasser - als TrM angeben | G44: 0 | H44: 1 | I44: 0 | J44: der TrM | N44: Roggen | AE44: 0 | AF44: 0 | AH44: 0 | AI44: 0 | AK44: 0 | AL44: 0 | AM44: 0 | AN44: 0 | AP44: =IF(V22*M23>V29*M30,AP42,AP43) -> 1008 | AQ44: ST-Mehl | AV44: =IF(AV41-AV40<=AV42,TRUE,FALSE) -> TRUE | AW44: ohne Leerzeilen ok? | BB44: =IF(BC39>AV42,TRUE,FALSE) -> FALSE | BC44: Formen in Fußzeile | BE44: 167 | BQ44: W-Ruchmehl 1100
C45: =F38/F$12 -> 0 | D45: der backf. Getreidemasse (max 45%) | F45: =IF(F38<=0,"",CONCATENATE(F38+G38,"g TA ",ROUND(100+(G38/F38)*100,0))) ->  | I45: =(F38+G38)/F$10 -> 0 | J45: der TM | AR45: ab | AS45: =ROUND((AP54+1.5)/3.2,0) -> 2 | AT45: =VLOOKUP(AS45,AS46:AT50,2) -> ↘ | AV45: =IF(AV41-AV39<=AV42,TRUE,FALSE) -> TRUE | AW45: ohne Formen mit Leerzeilen ok? | BB45: =IF(AND(BB46=0,BB42<AV42),1,0) -> 0 | BC45: Leerzeile vor Teiginfo | BE45: 180 | BQ45: X Korrekturwasser - als TrM angeben
F46: =-SUMIF(D39:D44,"X Korrekturwasse*",F39:F44) -> 0 | G46: =ROUND(F38+G38,0) -> 0 | AR46: 2 | AS46: 1 | AT46: ↓ | AV46: =IF(AV41-AV39-AV40<=AV42,TRUE,FALSE) -> TRUE | AW46: ohne Formen und ohne Leerzeichen ok? | BB46: =IF(AND(AV46,NOT(AV45)),0,1) -> 1 | BC46: normale Leerzeilen | BE46: 0 | BQ46: X Korrekturwasser (1/100 TrM angeben)
B47: =BD77 -> GesKS | C47: =G47 -> 0 | D47: Kochstück | F47: =SUM(F48:F53)+F55 -> 0 | G47: =ROUND(SUM(G48:G53),0) -> 0 | H47: Hydr. | I47: =F47/F$11 -> 0 | J47: der TrM | L47: TA-Assistent | T47: Versäuerungs-Assistent | Y47: Salz-Assistent | AR47: 4 | AS47: 2 | AT47: ↘ | AV47: 0 | AW47: Testzahl | BE47: 131
A48: =COUNTIF(INDIRECT(B$48),D48) -> 0 | B48: =BE77 -> NamKS | C48: =F48 -> 0 | G48: =F48*H48 -> 0 | H48: =IF(ISERROR(VLOOKUP(D48,INDIRECT(B$47),2,0)),,VLOOKUP(D48,INDIRECT(B$47),2,0)) -> 0 | I48: =F47/F$12 -> 0 | J48: =IF(AH48<>0,"der BGM","der TrM") -> der TrM | T48: für vorhandenes Rezept | Y48: gewünschtes Salz insgesamt: | AE48: =IFERROR(VLOOKUP(D48,INDIRECT(B$47),3,0),0) -> 0 | AF48: =AE48*F48 -> 0 | AH48: =IFERROR(VLOOKUP($D48,INDIRECT(B$47),4,0),0) -> 0 | AI48: =F48 -> 0 | AK48: =IF(D48<>"",IFERROR(VLOOKUP(D48,INDIRECT(B$47),5,0),0),0) -> 0 | AL48: 0 | AM48: 0 | AN48: =IF(AK48="T",F48,0) -> 0 | AR48: 7 | AS48: 3 | AT48: → | BE48: 0
A49: 0 | C49: =F49 -> 0 | G49: 0 | H49: 0 | I49: 0 | J49: der TrM | P49: gewünschte TA: | Q49: 165 | AA49: 20 | AB49: g | AE49: 0 | AF49: 0 | AH49: 0 | AI49: 0 | AK49: 0 | AL49: 0 | AM49: 0 | AN49: 0 | AP49: Infos für Rezeptübersicht | AR49: 10 | AS49: 4 | AT49: ↗ | BE49: 0
A50: 0 | C50: =F50 -> 0 | G50: 0 | H50: 0 | I50: 0 | J50: der TrM | P50: =IF(OR(F13="K",F13="k"),"erforderliche Wasserkorrektur: ","erforderliches Zusatzwasser: ") -> erforderliche Wasserkorrektur: | Q50: 739 | U50: =IF(V22*M23>V29*M30,AF9,AF12) -> 1008 | V50: g aller zu versäuernden | AA50: ò | AE50: 0 | AF50: 0 | AH50: 0 | AI50: 0 | AK50: 0 | AL50: 0 | AM50: 0 | AN50: 0 | AP50: 10 | AQ50: Max-Wert Vollwert-Rating | AR50: 13 | AS50: 5 | AT50: ↑ | BE50: 0
A51: 0 | C51: =F51 -> 0 | G51: 0 | H51: 0 | I51: 0 | J51: der TrM | V51: Mehlsorten im GesTeig | AA51: =ROUND(AA49/F12,4) -> 0.0198 | AE51: 0 | AF51: 0 | AH51: 0 | AI51: 0 | AK51: 0 | AL51: 0 | AM51: 0 | AN51: 0 | AP51: =AO60 -> 0 | AQ51: Vollwert-Rating | BE51: 0
A52: 0 | C52: =F52 -> 0 | G52: 0 | H52: 0 | I52: 0 | J52: der TrM | T52: W | U52: =B18+B19 -> 108 | Y52: davon im effektiv genutzten Sauerteig: (normalerweise 0) | AE52: 0 | AF52: 0 | AH52: 0 | AI52: 0 | AK52: 0 | AL52: 0 | AM52: 0 | AN52: 0 | AP52: =CONCATENATE(ROUND(AH12*100,0)," / ",ROUND(AH10*100,0)," / ",ROUND(AH11*100,0)) -> 0 / 100 / 0 | AQ52: Roggen/Weizen/Dinkel | AS52: =CONCATENATE(AH12*100,"R/",AH10*100,"W/",AH11*100,"D") -> 0R/100W/0D | BE52: 0
A53: 1 | C53: =IF(D53="X Korrekturwasser (1/100 TrM angeben)","",F53) -> 0 | D53: X Korrekturwasser - als TrM angeben | G53: 0 | H53: 1 | I53: 0 | J53: der TrM | L53: TA-Taschenrechner | R53: =CONCATENATE("resultierende TA: ",ROUND(100+R55/N55*100,0)) -> resultierende TA: 142 | U53: 100 | V53: g Mehle gewünscht | AA53: 10 | AB53: g | AE53: 0 | AF53: 0 | AH53: 0 | AI53: 0 | AK53: 0 | AL53: 0 | AM53: 0 | AN53: 0 | AP53: =ROUND('Teig-Führung'!O34,1) -> 2.1 | AQ53: Zeitbedarf in Tagen | BE53: 176
C54: =F47/F12 -> 0 | D54: der BGM (max 25%), max 10% der TM? | F54: =IF(F47<=0,"",CONCATENATE(F47+G47,"g TA ",ROUND(100+(G47/F47)*100,0))) ->  | I54: =(F47+G47)/F$10 -> 0 | J54: der TM | R54: =CONCATENATE("Gesamtmenge: ",R55+N55) -> Gesamtmenge: 2453 | T54: R | U54: =B23+B24 -> 0 | V54: für ST | AA54: ò | AP54: =SUM(AP57:AP63) -> 6.3 | AQ54: Aufwand (Vorteige, ST-Stufen, Anzahl Zutaten, Arbeitszeit und ges. Zeitbedarf) | AY54: Prüfsummen | AZ54: aktuell | BA54: gesetzt | BE54: 188
F55: =-SUMIF(D48:D53,"X Korrekturwasse*",F48:F53) -> 0 | G55: =ROUND(F47+G47,0) -> 0 | L55: Trockenes | N55: =SUM(N56:N62) -> 1727 | O55: Flüssigkeiten | R55: =SUM(R56:R62) -> 726 | U55: ò | V55: =IF(U50>0,CONCATENATE("(",AP44-U53,"g für HT)"),"") -> (908g für HT) | AA55: =ROUND(AA53/'Teig-Führung'!CK31,4) -> 0.0794 | AY55: Summe Mengen | AZ55: =F10+J7+J8+AR8+I10+'Teig-Führung'!J5+'Teig-Führung'!C6 -> 2017.86 | BA55: 2017.86 | BB55: =IF(AZ55+AZ56=BA55+BA56,0,16) -> 0 | BC55: geänderte Zutaten | BE55: 0
C56: =G56 -> 0 | D56: Sonstige Zutaten | F56: =SUM(F57:F62) -> 0 | G56: =SUM(G57:G62) -> 0 | L56: ST | N56: 1016 | R56: 161 | AK56: Summen | AL56: =SUM(AL18:AL54) -> 0 | AM56: =SUM(AM18:AM54) -> 0 | AN56: =SUM(AN18:AN54) -> 0 | AP56: Aufwands-Ermittlung | AV56: Text für Sonstige Zutaten | AY56: Summe ZutatenText | AZ56: =SUM(BE18:BE62) -> 1847 | BA56: 1847 | BB56: =BC56<>AZ55+AZ56 -> FALSE | BC56: 3864.86 | BD56: ZwSpeicherDruckMarkierung | BE56: 155
A57: =IF(F57>0,1,0) -> 0 | B57: =IF(G57>0,1,-1)+A57 -> -1 | C57: =F57+G57 -> 0 | H57: =CONCATENATE(IF(A57=1,AV57,""),IF(B57=2," /",""),IF(B57>0,AW57,"")) ->  | L57: BS | N57: 711 | R57: 115 | U57: 15.7 | V57: % Versäuerung | AF57: Fehlermeldung Versäuerung | AK57: Anteil | AL57: =AL56/$F11 -> 0 | AM57: =AM56/$F11 -> 0 | AN57: =AN56/$F11 -> 0 | AO57: =1-AL57-AM57-AN57 -> 1 | AP57: =AS57 -> 3 | AQ57: Stufen Sauerteig (Hefeteig =0) +1 | AS57: ='Teig-Führung'!BC8*'Teig-Führung'!AH20+1 -> 3 | AV57: =CONCATENATE(" ",ROUND(F57/F$12,2)*100,"% d. BGM") -> 0% d. BGM | AW57: =CONCATENATE(" ",ROUND(G57/G$14,2)*100,"% d. Flüss.") -> 0% d. Flüss. | AY57: Summe ST (ohne Startzeit) | AZ57: =SUM('Teig-Führung'!K17:Q20) -> 909.4166667 | BA57: 909.4166667 | BB57: =IF(AZ57=BA57,0,8) -> 0 | BC57: geänderte Sauerteigführung | BE57: 0
A58: 0 | B58: -1 | C58: 0 | H58: =CONCATENATE(IF(A58=1,AV58,""),IF(B58=2,"/",""),IF(B58>0,AW58,"")) ->  | L58: HT | R58: 450 | Y58: Hefe-Assistent | AF58: ST | AG58: =M18 -> 1 | AL58: VK | AM58: Schrot | AN58: Typ>1000 | AO58: Restliche Trockenmasse | AP58: =IF(F29>0,AS58,0) -> 0 | AQ58: Quellstück | AS58: 1 | AV58: 0% d. BGM | AW58: 0% d. Flüss. | AY58: Zeiten ohne ST inkl. Startzeit | AZ58: =SUM('Teig-Führung'!O21:O36)+SUM('Teig-Führung'!P21:P35)+SUM('Teig-Führung'!Q21:Q35) -> 12.63888889 | BA58: 12.63888889 | BB58: =IF(AZ58+AZ59=BA58+BA59,0,4) -> 0 | BC58: geänderte Gare Hauptteig | BE58: 0
A59: 0 | B59: -1 | C59: 0 | H59: =CONCATENATE(IF(A59=1,AV59,""),IF(B59=2,"/",""),IF(B59>0,AW59,"")) ->  | Y59: =CONCATENATE(IF(AY69,"Trocken-Hefe ","Frisch-Hefe"),CHAR(10),"für Hefebrot:") -> Trocken-Hefe für Hefebrot: | AF59: W-Vers [%] | AG59: =M23 -> 12.2 | AP59: =IF(F38>0,AS59,0) -> 0 | AQ59: Brühstück | AS59: 2 | AV59: 0% d. BGM | AW59: 0% d. Flüss. | AY59: Temp ohne ST | AZ59: ='Teig-Führung'!AM30 -> 375 | BA59: 375 | BE59: 0
A60: 0 | B60: -1 | C60: 0 | H60: =CONCATENATE(IF(A60=1,AV60,""),IF(B60=2,"/",""),IF(B60>0,AW60,"")) ->  | T60: Gluten-Assistent | AA60: 0.6 | AB60: g | AF60: R-Vers [%] | AG60: =M30 -> 0 | AK60: VW-Rating | AL60: =MIN(AL61,ROUND(AL57*AL61,1)) -> 0 | AM60: =MIN(AM61,ROUND(AM57*AM61,1)) -> 0 | AN60: =MIN(AN61,ROUND(AN57*AN61,1)) -> 0 | AO60: =AL60+AM60+AN60 -> 0 | AP60: =IF(F47>0,AS60,0) -> 0 | AQ60: Kochstück | AS60: 3 | AV60: 0% d. BGM | AW60: 0% d. Flüss. | AY60: Arb-Info TF+Dr+Name | AZ60: ='Teig-Führung'!D61+Druck!C78+'Teig-Führung'!AE2 -> 4390 | BA60: 4390 | BB60: =IF(AZ60=BA60,0,2) -> 0 | BC60: geänderte Arbeitsinfos oder Name | BE60: 0
A61: 0 | B61: -1 | C61: 0 | H61: =CONCATENATE(IF(A61=1,AV61,""),IF(B61=2,"/",""),IF(B61>0,AW61,"")) ->  | AA61: ò | AF61: W-ST | AG61: =V22 -> 1 | AK61: max. Wert | AL61: 5 | AM61: =AP50 -> 10 | AN61: 2.5 | AP61: =ROUNDDOWN(AS61/5,0) -> 0 | AQ61: Zutaten (ab 5 pro 5 1 Pkt) | AS61: =34-COUNTIF(D17:D62,"") -> 1 | AV61: 0% d. BGM | AW61: 0% d. Flüss. | AY61: Prozess (Krea+TF), Startzeit | AZ61: =I10+'Teig-Führung'!C6+'Teig-Führung'!C9+'Teig-Führung'!J7+'Teig-Führung'!J12+'Teig-Führung'!J13 -> 7.875 | BA61: 7.875 | BB61: =IF(AZ61=BA61,0,1) -> 0 | BC61: kleinere Prozess-Änderungen | BE61: 0
A62: 0 | B62: -1 | C62: 0 | H62: =CONCATENATE(IF(A62=1,AV62,""),IF(B62=2,"/",""),IF(B62>0,AW62,"")) ->  | U62: 500 | V62: g Mehl | Z62: trocken frisch | AA62: =ROUND(IF(AY69,AA60*3/F12,AA60/F12),4) -> 0.0018 | AF62: R-ST | AG62: =V29 -> 0 | AP62: =AP53 -> 2.1 | AQ62: Zeitbedarf | AV62: 0% d. BGM | AW62: 0% d. Flüss. | AY62: Gesamt | AZ62: =SUM(AZ55:AZ61) -> 9559.790556 | BA62: =SUM(BA55:BA61) -> 9559.790556 | BB62: =SUM(BB55:BB61) -> 0 | BE62: 0
D63: (für nicht quantifizierte Zutaten 0,1 in gelber Spalte angeben) | U63: ò | Y63: =CONCATENATE(IF(AY69,"Hilfs-Hefe (trocken) ","Hilfs-Hefe (frisch) "),CHAR(10),"für Sauerteig:") -> Hilfs-Hefe (trocken) für Sauerteig: | AF63: UGW | AG63: =ROUND(AR37*100,0) -> 9 | AK63: ST | AL63: VK | AM63: T>1000 | AN63: hell | AP63: ='Teig-Führung'!AQ23 -> 1.2 | AQ63: Arbeitszeit | BB63: =COUNTIF(BB55:BB61,">0") -> 0 | BC63: Anzahl Änderungen
U64: =(U72-U68)*U62/U70 -> 10 | V64: =CONCATENATE("g Gluten / ",U62,"g Mehl") -> g Gluten / 500g Mehl | AA64: 1.7 | AB64: g | AF64: OGW | AG64: =ROUND(AS37*100,0) -> 35 | AL64: =IF($AG18="VK",$B18,0) -> 0 | AM64: =IF($AG18="T",$B18,0) -> 0 | AN64: =IF($AG18=0,$B18,0) -> 108 | BB64: =IF(BB62>15,BC55,IF(BB62>7,BC57,IF(BB62>3,BC58,IF(BB62>1,BC60,IF(BB62=1,BC61))))) -> FALSE | BC64: =IF(BB63>1," etc.","") ->  | BD64: Art der Änderung
V65: =CONCATENATE("für ",U72,"g Eiweiß im Mix") -> für 12,5g Eiweiß im Mix | AA65: ò | AF65: UGR | AG65: =ROUND(AR39*100,0) -> 0 | AK65: Garkorr. | AL65: 0 | AM65: 0 | AN65: 0 | AQ65: Textbausteine | BC65: =AND(AY88,BB63=0,AY83>0) -> FALSE | BD65: aktuell, aber altes Rezept
U66: =U62*0.03 -> 15 | V66: g bei max. 3% G/M | AA66: =ROUND(IF(AY69,AA64*3/J7,AA64/J7),2) -> 0.71 | AF66: OGR | AG66: =ROUND(AS39*100,0) -> 0 | AK66: =SUM(AL71:AN71) -> 108 | AL66: 0 | AM66: 0 | AN66: 0 | AP66: WS | BC66: =CONCATENATE("● Älteres Rezept, ",CHAR(10),"bitte Salz in den Nullteigen",CHAR(10),"überprüfen") -> ● Älteres Rezept, bitte Salz in den Nullteigen überprüfen
AK67: =IF(AK66>0,ROUND((AL71+0.5*AM71)/AK66,3),0) -> 0 | AL67: 0 | AM67: 0 | AN67: 0 | AP67: - R=0 | AQ67: % aller Mehle (Gesamt-Versäuerung) | AT67: =IF(AH12>0,39+600/AH12/100,0) -> 0 | AU67: theor. RM-Vers. => Korrektur : | AW67: =IF(AT67>100,100,IF(AT67<10,10,ROUND(AT67,1))) -> 10 | AY67: Hefe-Assistent | BC67: =CONCATENATE("● Achtung, ",CHAR(10),'Kreations-UI'!BB64,'Kreations-UI'!BC64," noch nicht gespeichert.") -> ● Achtung, FALSCH noch nicht gespeichert.
U68: 11 | V68: g Eiweiß / 100g Mehl | AF68: UG | AG68: =(AG61>0)*(AG63)*(AG59>0)+(AG62>0)*AG65*(AG60>0) -> 9 | AK68: (~%VW) | AL68: 0 | AM68: 0 | AN68: 0 | AP68: - R>0<30 | AQ68: =CONCATENATE("% aller Mehle (typ. ",AT70,"g d. Ges-M bei ",AT71,"% R-M)") -> % aller Mehle (typ. 101g d. Ges-M bei 0% R-M) | AU68: mind. 10% d GMM im ST | AY68: Trockenhefe gewählt: | BB68: Auswahl Fehlertext: | BC68: =IF(BB63=0,IF(BC65,BC66,""),BC67) -> 
Y69: Max. Volumenzunahme des Teiges je nach Proteingehalt des Mehls | AF69: OG | AG69: =(AG64)*(AG61>0)*(AG59>0)+(AG62>0)*AG66*(AG60>0) -> 35 | AL69: 0 | AM69: 0 | AN69: 0 | AP69: ~RS | AQ69: =CONCATENATE("% aller Mehle (typ. ",AW67,"% d RM bei ",AT71,"% R-M)") -> % aller Mehle (typ. 10% d RM bei 0% R-M) | AU69: =CONCATENATE(AW67,"% d RM bzw. 10%=",AT70,"g d GM") -> 10% d RM bzw. 10%=101g d GM | AY69: TRUE | BD69: Pos 1. QS | BE69: =IFERROR(MATCH(AQ76,BF75:BF77,0),0) -> 0
U70: 75 | V70: g Eiweiß / 100g Gluten | AL70: 0 | AM70: 0 | AN70: 0 | AT70: =ROUND(F12*0.1,0) -> 101 | AU70: g vom Ges-M | AY70: nicht verschieben | BD70: Pos 1. BS | BE70: =IFERROR(MATCH(AQ78,BF75:BF77,0),0) -> 0
AE71: 1 | AF71: 50-50 richtig | AG71: =OR(AG61*AG62=0,AND(AG59*AG60=0,AG59+AG60>0)) -> TRUE | AH71: =IF(NOT(AG71),"Bitte entweder Weizen/Dinkel ODER Roggen versäuern!","") ->  | AK71: Summe | AL71: =SUM(AL64:AL70) -> 0 | AM71: =SUM(AM64:AM70) -> 0 | AN71: =SUM(AN64:AN70) -> 108 | AT71: =ROUND(AH12*100,0) -> 0 | AU71: % Roggenanteil | BD71: Pos 1. KS | BE71: =IFERROR(MATCH(AQ80,BF75:BF77,0),0) -> 0
U72: 12.5 | V72: g Ziel-Protein / 100g Mix | Z72: Vol+ | AA72: Protein | AE72: 2 | AF72: W%-Richtig | AG72: =OR(NOT(AG71),AG58=0,AG61=0,AND(AG61=0.5,AG59=0),AND(AG59*AG61>0,AG59>=AG63,AG59<=AG64)) -> TRUE | AH72: =IF(NOT(AG72),CONCATENATE("Bitte Weizen/Dinkel-Versäuerung kontrollieren! (",AG63,"-",AG64,"%)"),"") ->  | BF72: =IF(BF75=BF76,BB75,CONCATENATE(BB75,"/",BB76)) -> Quellstück
Z73: 10-20% | AA73: <10% | AE73: 3 | AF73: R%-Richtig | AG73: =OR(NOT(AG71),AG58=0,AG62=0,AND(AG62=0.5,AG60=0),AND(AG60*AG62>0,AG60>=AG65,AG60<=AG66)) -> TRUE | AH73: =IF(NOT(AG73),CONCATENATE("Bitte Roggen-Versäuerung kontrollieren! (",AG65,"-",AG66,"%)"),"") ->  | AK73: GesT (BFG ohne Schrot) | AN73: =SUM(AL74:AN74) -> 1023.150643 | AP73: Vorteige/Nullteige (VTNT) | BD73: Matrix | BE73: Liste
AF74: Summe 1-3 | AG74: =AND(AG71,AG72,AG73) -> TRUE | AH74: =CONCATENATE(AH71,AH72,AH73) ->  | AL74: =AL56 -> 0 | AM74: =AN56 -> 0 | AN74: =F11-AL56-AM56-AN56 -> 1023.150643 | AP74: Namensliste | AQ74: Art | AR74: Salz | AV74: VTNT existiert | AW74: Salz (real) | AX74: (Frei-)Text | AY74: Drucktitel | AZ74: ZusText | BB74: Typ f Druck | BC74: Typ | BD74: Ges | BE74: Nam
U75: typische Proteingehalte von | Z75: 20-40% | AA75: 10-12% | AE75: 4 | AF75: ST in TF ok | AG75: =NOT(AND(NOT(AP14),M18=1)) -> TRUE | AH75: =IF(NOT(AG75),"Bitte angemessene ST-Menge in der Teigführung angeben!","") ->  | AK75: GesTohne ST* | AN75: =SUM(AL76:AN76) -> 915.1506432 | AP75: Vorteig | AQ75: HT | AR75: 0 | AS75: Vorteig | AT75: =IFERROR(VLOOKUP($AX75,VTNTplus,2,0),"HT") -> QS | AU75: 1.VTNT | AV75: =IF(G37>0,1,0) -> 0 | AW75: =IFERROR(VLOOKUP($AX75,VTNTplus,3,0)*AV75,0) -> 0 | AX75: =D29 -> Quellstück (mit Salz ansetzen) | AY75: =CONCATENATE(BB75," (") -> Quellstück ( | AZ75: =IF(AW75=0,"g)","g, mit Salz ansetzen)") -> g) | BA75: =COUNTIFS(BB$75:BB$77,BB75,AW$75:AW$77,1) -> 0 | BB75: =IFERROR(VLOOKUP($AX75,VTNTplus,4,0),AX75) -> Quellstück | BC75: =IF(AT75="HT",IFERROR(VLOOKUP(LEFT(AX75,2),AP$83:AS$85,2,0),"HT"),AT75) -> QS | BD75: =CONCATENATE($BD$74,$BC75) -> GesQS | BE75: =CONCATENATE($BE$74,$BC75) -> NamQS | BF75: =IF(AW75*AV75=0,"",AT75) -> 
U76: Supermarkt-Mehlen: | AF76: 1-3 und 4 ok | AG76: =AND(AG74,AG75) -> TRUE | AH76: =IF(NOT(AG76),IF(AG74,AH75,AH74),"") ->  | AL76: =AL74-AL71 -> 0 | AM76: =AM74-AM71 -> 0 | AN76: =AN74-AN71 -> 915.1506432 | AP76: Quellstück | AQ76: QS | AR76: 0 | AS76: Quellstück | AT76: =IFERROR(VLOOKUP($AX76,VTNTplus,2,0),"HT") -> BS | AU76: 2.VTNT | AV76: =IF(G46>0,1,0) -> 0 | AW76: =IFERROR(VLOOKUP($AX76,VTNTplus,3,0)*AV76,0) -> 0 | AX76: =D38 -> Brühstück | AY76: =CONCATENATE(BB76," (") -> Brühstück ( | AZ76: =IF(AW76=0,"g)","g, mit Salz ansetzen)") -> g) | BA76: =COUNTIFS(BB$75:BB$77,BB76,AW$75:AW$77,1) -> 0 | BB76: =IFERROR(VLOOKUP($AX76,VTNTplus,4,0),AX76) -> Brühstück | BC76: =IF(AT76="HT",IFERROR(VLOOKUP(LEFT(AX76,2),AP$83:AS$85,2,0),"HT"),AT76) -> BS | BD76: =CONCATENATE($BD$74,$BC76) -> GesBS | BE76: =CONCATENATE($BE$74,$BC76) -> NamBS | BF76: =IF(AW76*AV76=0,"",AT76) -> 
U77: Roggen 9g | Z77: 40-70% | AA77: 13-14% | AK77: Rest-HT* | AP77: Quellstück (mit Salz ansetzen) | AQ77: QS | AR77: 1 | AS77: Quellstück | AT77: =IFERROR(VLOOKUP($AX77,VTNTplus,2,0),"HT") -> KS | AU77: 3.VTNT | AV77: =IF(G55>0,1,0) -> 0 | AW77: =IFERROR(VLOOKUP($AX77,VTNTplus,3,0)*AV77,0) -> 0 | AX77: =D47 -> Kochstück | AY77: =CONCATENATE(BB77," (") -> Kochstück ( | AZ77: =IF(AW77=0,"g)","g, mit Salz ansetzen)") -> g) | BA77: =COUNTIFS(BB$75:BB$77,BB77,AW$75:AW$77,1) -> 0 | BB77: =IFERROR(VLOOKUP($AX77,VTNTplus,4,0),AX77) -> Kochstück | BC77: =IF(AT77="HT",IFERROR(VLOOKUP(LEFT(AX77,2),AP$83:AS$85,2,0),"HT"),AT77) -> KS | BD77: =CONCATENATE($BD$74,$BC77) -> GesKS | BE77: =CONCATENATE($BE$74,$BC77) -> NamKS | BF77: =IF(AW77*AV77=0,"",AT77) -> 
U78: Weizen 11g | AK78: Garkorr | AL78: =ROUND((AL76+0.5*AM76)/AN75,3) -> 0 | AN78: (~%Vollwertigkeit) | AP78: Brühstück | AQ78: BS | AR78: 0 | AS78: Brühstück
U79: Dinkel 13g | Z79: 70-110% | AA79: >14% | AK79: *Schrote werden nicht berücksichtigt | AP79: Brühstück (mit Salz ansetzen) | AQ79: BS | AR79: 1 | AS79: Brühstück
AK80: =ROUND(AK67,2) -> 0 | AL80: Vollwertigkeit des ST | AP80: Kochstück | AQ80: KS | AR80: 0 | AS80: Kochstück | AV80: kein NT mit Salz | AW80: =IF(AX80<>"","QS","") ->  | AX80: =IF(AY80>0,AP76,"") ->  | AY80: =COUNTIFS(AT$75:AT$77,AZ80,AV$75:AV$77,1) -> 0 | AZ80: QS | BB80: Textbaustein | BC80: Kombi1 | BE80: Anzahl spez NT mit Salz
AK81: =ROUND(AL78,2) -> 0 | AL81: Vollwertigkeit des Rest-HT | AP81: Kochstück (mit Salz ansetzen) | AQ81: KS | AR81: 1 | AS81: Kochstück | AV81: Anzahl NT | AW81: =IF(AX81<>"","BS","") ->  | AX81: =IF(AND(AY80=0,AY81>0),AP78,"") ->  | AY81: =COUNTIFS(AT$75:AT$77,AZ81,AV$75:AV$77,1) -> 0 | AZ81: BS | BB81: =IF(BF$85=1,AP76,AQ76) -> QS | BC81: =IF(BE81>0,CONCATENATE(BB81,BF81),"") ->  | BD81: QS | BE81: =COUNTIF(BF$75:BF$77,BD81) -> 0 | BF81: =IF(AND(BE81>0,BE82+BE83>0),"/","") -> 
AP82: (Name nicht in Liste =>) | AQ82: HT | AR82: 0 | AW82: =IF(AX82<>"","KS","") ->  | AX82: =IF(AND(AY80+AY81=0,AY82>0),AP80,"") ->  | AY82: =COUNTIFS(AT$75:AT$77,AZ82,AV$75:AV$77,1) -> 0 | AZ82: KS | BB82: =IF(BF$85=1,AP78,AQ78) -> BS | BC82: =IF(BE82>0,CONCATENATE(BB82,BF82),"") ->  | BD82: BS | BE82: =COUNTIF(BF$75:BF$77,BD82) -> 0 | BF82: =IF(BE83>0,"/","") -> 
AP83: KS | AQ83: KS | AR83: 0 | AS83: Kochstück | AY83: =SUM(AY80:AY82) -> 0 | BB83: =IF(BF$85=1,AP80,AQ80) -> KS | BC83: =IF(BE83>0,BB83,"") ->  | BD83: KS | BE83: =COUNTIF(BF$75:BF$77,BD83) -> 0
AP84: QS | AQ84: QS | AR84: 0 | AS84: Quellstück | AV84: je nach Speicherdatum | AW84: =IF(AY88,CONCATENATE(" evt. zum ",AW80,AW81,AW82)," im HT") -> im HT | AX84: =IF(AND(AY83>0,AY88),CONCATENATE(" evt. zum ",AX80,AX81,AX82)," im Hauptteig") -> im Hauptteig | AY84: =BE85 -> 0 | AZ84: Salzsauer | BE84: =SUM(BE81:BE83) -> 0
AP85: BS | AQ85: BS | AR85: 0 | AS85: Brühstück | AY85: =AY83+AY84 -> 0 | BD85: Salzsauer | BE85: =IF(Garzeiten!C19>0,1,0) -> 0 | BF85: =BE85+BE84 -> 0
O86: Entscheidungshilfe zur | AQ86: =COUNTIF(INDIRECT(AR86),AT76) -> 2 | AR86: VTNTplus | AV86: Text Salz fix | AW86: =CONCATENATE(" zum ",BC81,BC82,BC83) -> zum | AY86: ='Teig-Führung'!AB11 -> - | AZ86: zuletzt gespeichert
O87: Wahl des passenden Sauerteigs | AV87: Text Salz ? | AW87: =IF(AY84>0,AW84,AX84) -> im Hauptteig | AY87: 2023-03-04 | AZ87: Referenzdatum
O88: je nach Roggenateil | AV88: ausgewählter Salztext: | AW88: =IF(AY83=0,"",IF(BE84=0,AW87,AW86)) ->  | AY88: =AY86<AY87 -> FALSE | AZ88: altes Rezept?
AQ104: Testfeld
AQ105: Vorteig | AR105: HT | AS105: 0 | AT105: Vorteig | AV105: Brühstück | AW105: =IFERROR(VLOOKUP($AV105,AQ105:AT114,4,0),AV105) -> Brühstück | AX105: =IFERROR(VLOOKUP($AV105,AQ105:AT114,2,0),"HT") -> BS | AY105: =IF(AX105="HT",IFERROR(VLOOKUP(LEFT(AV105,2),AP83:AS85,2,0),"HT"),AX105) -> BS
AQ106: Quellstück | AR106: QS | AS106: 0 | AT106: Quellstück | AV106: QS Cjjj | AW106: =IFERROR(VLOOKUP($AV106,AQ105:AT114,4,0),AV106) -> QS Cjjj | AX106: =IFERROR(VLOOKUP($AV106,AQ105:AT114,2,0),"HT") -> HT | AY106: =IF(AX106="HT",IFERROR(VLOOKUP(LEFT(AV106,2),AP83:AS85,2,0),"HT"),AX106) -> QS
AQ107: Quellstück (mit Salz ansetzen) | AR107: QS | AS107: 1 | AT107: Quellstück
AQ108: Brühstück | AR108: BS | AS108: 0 | AT108: Brühstück
AQ109: Brühstück (mit Salz ansetzen) | AR109: BS | AS109: 1 | AT109: Brühstück
AQ110: Kochstück | AR110: KS | AS110: 0 | AT110: Kochstück
AQ111: Kochstück (mit Salz ansetzen) | AR111: KS | AS111: 1 | AT111: Kochstück
BK196: Vorschlag Klebrigkeit | BL196: =ROUND(BL197*BL198*BL199,2) -> 
BJ197: Backfähigkeit | BK197: =BK25 -> 0 | BL197: =VLOOKUP(BK197,'Daten für UI'!AM23:AS26,7,FALSE) -> 
BJ198: Vollwertigkeit | BK198: =BK31 -> 0 | BL198: =VLOOKUP(BK198,'Daten für UI'!AM31:AP34,4,FALSE) -> 
BJ199: Teigsorte: | BK199: Quellstück | BL199: =VLOOKUP(BM199,'Daten für UI'!AM18:AT21,8,FALSE) -> 1 | BM199: =BL10 -> Hauptteig
BJ200: Zutat: | BK200: Alt-W-ST (nur Mehlanteil)
BJ201: EdInd | BK201: FALSE

Sheet Teig-Führung
B1: =CONCATENATE(" Teigführung für ",B120) -> Teigführung für *** Standard-Vorlage für neues ST-Brotrezept *** | AE1: =CONCATENATE(W6,IF(U4=0,O4,W4),'Kreations-UI'!AM3) -> *** Standard-Vorlage für neues ST-Brotrezept ***, 2x ca. 770 g | AJ1: =IF('Kreations-UI'!AP51>0,CONCATENATE(" (VW-Rating ",'Kreations-UI'!AP51,")"),"") ->  | AV1: =CONCATENATE(" Detail-Sauerteig-Führung für ",IF(U4=0,O4,W4)) -> Detail-Sauerteig-Führung für *** Standard-Vorlage für neues ST-Brotrezept *** | CW1: Gärkörbchen/Backformen
N2: Name des Rezepts | AE2: =IFERROR(LEN(W4)+CODE(LEFT(W4,1)),0)+IFERROR(CODE(RIGHT(W4,1)),0)+AG2+U4+2*U5+3*U6+IFERROR(LEN(Q9)+CODE(LEFT(Q9,1))+LEN(Q12)+CODE(LEFT(Q12,1)),0) -> 431 | AF2: Prüfsumme Name | AG2: =IFERROR(CODE(MID(W4,ROUNDDOWN(LEN(W4)/2,0),1)),0) -> 114 | AH2: 0 | AK2: =J8 -> 282 | AL2: ST total angesetzt => | AN2: =IF(J5>0,AF14/J5,0) -> 1.05 | AO2: =CONCATENATE("von eff. ST (",IF(J5>0,J5,0),"g)") -> von eff. ST (240g) | DD2: Bitte keine zwei Formen mit exakt den gleichen Werten eingeben. Volumenassistent => weiter rechts auf dieser Seite
O3: Automatischer Name (0): | U3: ó | W3: Wunschname (1): | AE3: ASG % | AF3: =CH10 -> 12.43 | AH3: 1 | AI3: ⃝ | AK3: =ROUND('Kreations-UI'!BC8,0) -> 169 | AL3: TA lt Kreator | AM3: TA korr. | AN3: =AN2*AJ12 -> 30.975 | AO3: g ASG total
B4: Backen | E4: 98°C Kern-T | I4: gewünschte Zielmengen ST: | J4: =ROUND(AD14,0) -> 247 | K4: g (Kreator) | N4: (A) | O4: =CONCATENATE('Kreations-UI'!AF2) -> Weizenbrot mit Sauerteig, freigeschoben | U4: 1 | V4: (A) | W4: *** Standard-Vorlage für neues ST-Brotrezept *** | AG4: inkl. ASG | AH4: 2 | AI4: □ | AK4: =ROUND(AM11,0) -> 169 | AL4: TA lt TF | AM4: TA Krea/TF | AN4: =AF14-AN3 -> 221.025 | AO4: g RestST (ohne ASG) total | AY4: Anzahl der Stufen | BG4: Rezept-übergreifende Angaben | BR4: Automatisierte Führungsoptionen
I5: - gewünschter ST für Rezept: | J5: 240 | K5: g | N5: (B) | O5: ='Kreations-UI'!AM2 -> , 2 Stück á ca. 770g | U5: 1 | V5: (B) | AE5: M1 Rp | AF5: =ROUND(AB16*('Kreations-UI'!M25+'Kreations-UI'!M32),0) -> 108 | AG5: =ROUND(AF5+0.5*'Kreations-UI'!$M$27*$AB$16,0) -> 123 | AH5: 3 | AI5: ՕՕ | AK5: =CONCATENATE(AK3,"/",AK4) -> 169/169 | AN5: =IF(AH19,CQ24,0) -> 112 | AO5: g M im RestST (ohne ASG) total | CX5: Hier kann der eigene Fundus hinterlegt werden. Im Ausdruck werden dann die entsprechenden Empfehlungen gegeben.
C6: 0 | D6: (0/1) | I6: - neues ASG (typ. 30g) | J6: 30 | K6: g | O6: 1: ⃝ 2: □ 3: ՕՕ 4: ჻ 5: □□ 6: ֎ | W6: =IF(U6>0,VLOOKUP(U6,AH2:AI9,2),"") ->  | AE6: M2 Rp | AF6: =ROUND(('Kreations-UI'!M25+'Kreations-UI'!M32)-AF5,0) -> 0 | AG6: =ROUND(AF6+0.5*'Kreations-UI'!$M$27*(1-$AB$16),0) -> 0 | AH6: 4 | AI6: ჻ | AK6: =IF(AK3=AK4,AK3,AK5) -> 169 | AL6: =IF(AK3=AK4,AM3,AM4) -> TA korr. | AM6: Anzeige | AN6: =IF(AH19,CR24,0) -> 112 | AO6: g W im RestST (ohne ASG) total | BB6: Anzahl der Aktivierungsstufen: | BC6: 1 | BG6: 12 | BH6: g ST-Schwund | BQ6: Auffrischstufen | BS6: =CONCATENATE("(max. ",4-BC7,"), z.B.") -> (max. 3), z.B. | BT6: =B112 -> 1:2:2 / ≈5h / 27° | BV6: nach Pos. | CD6: 1 | CE6: =IF(BC8>0,VLOOKUP(CD6,CE$21:CG$27,2,0),"") -> Auffrischung | CG6: =BG7 -> 30 | CH6: g Mindestmenge/Stufe => | CJ6: =ROUND(100*CG6/CG12,2) -> 11.9 | CK6: % d Ziel-ST
B7: freigeschoben/Backform | I7: aus Stufe | J7: 2 | K7: =IF(BC8=1," (=> 1)",CONCATENATE(" (=> 1-",BC8,")")) -> (=> 1-2) | O7: Resultat: | P7: =CONCATENATE(W6,IF(U4=0,O4,W4),IF(U5=0,O5,W5)) -> *** Standard-Vorlage für neues ST-Brotrezept *** | AH7: 5 | AI7: □□ | AN7: =ROUND(AN3/2,1) -> 15.5 | AO7: M=W im ASG | BB7: Anzahl der eigentlichen ST-Stufen: | BC7: 1 | BG7: 30 | BH7: g Mindestmenge/Stufe | BQ7: personalisierte 1-stfg. Führungen | BT7: =B113 -> 1:3:3 / ≈6h / 27° | BV7: nach Pos. | CD7: 2 | CE7: =IF(BC8>1,VLOOKUP(CD7,CE$21:CG$27,2,0),"") -> Vollsauer | CG7: =BG8 -> 3 | CH7: g Mindestmenge/Vorstufe => | CJ7: =ROUND(100*CG7/CG12,2) -> 1.19 | CK7: % d Ziel-ST | CL7: =J8 -> 282 | CM7: g Gesamt-ST (inkl. Schwund und ggf. ASG)
I8: =CONCATENATE("Vollsauer inkl. ",BG6,"g Schwund: ") -> Vollsauer inkl. 12g Schwund: | J8: =J5+BG6+IF(J7=BC8,J6,0) -> 282 | K8: g | W8: [bitte Texteingaben nie mit "=" beginnen ] | AF8: Verhätnis ST-Mehl 1 / ST-Mehl 2 | AG8: =IF('Kreations-UI'!M23>0,ROUND('Kreations-UI'!F18/('Kreations-UI'!F18+'Kreations-UI'!F19),0),ROUND('Kreations-UI'!F23/('Kreations-UI'!F23+'Kreations-UI'!F24),0)) -> 1 | AH8: 6 | AI8: ֎ | AN8: =IF(NOT(AH19),0,AN5+AN7) -> 127.5 | AO8: g Mehl im ST total | BB8: Summe (max. 4) | BC8: =BC6+BC7 -> 2 | BG8: 3 | BH8: g Mindestmenge/Vorstufe | BQ8: 1 | BR8: =CE30 -> 1 : 1 : 1 / ≈5h / 24°C | BT8: =B114 -> 1:5:5 / ≈12h / 22° | BV8: nach Pos. | CD8: 3 | CE8: =IF(BC8>2,VLOOKUP(CD8,CE$21:CG$27,2,0),"") ->  | CG8: =J6 -> 30 | CH8: g neues ASG aus (ggf. korr.) Stufe | CJ8: =IF(OR(J7<1,J7>BC8),BC6,J7) -> 2 | CL8: 30 | CM8: g ASG aus 2. Stufe | CQ8: =ROUND(100/CT12*CU12+100,0) -> 200 | CR8: TA ASG | CY8: Bitte keine zwei exakt gleichen Min- oder Max-Werte eingeben. | DH8: Bitte keine zwei exakt gleichen Min- oder Max-Werte eingeben.
C9: 1 | D9: (1/2) | O9: Quelle (0/1) | P9: 1 | Q9: Steffi | AJ9: =AJ12/AJ11*100 -> 14.75 | AK9: =IF(AN7>0,AK12/AK11*100,1) -> 105.25 | AL9: =AL12/AL11*100 -> 899.84 | AN9: =IF(NOT(AH19),0,AN6+AN7) -> 127.5 | AO9: g W im ST total | BQ9: 2 | BR9: =CE31 -> 1 : 2 : 2 / ≈6h / 24°C | BT9: =B115 -> 1:7:7 / ≈10h / 27° | BV9: nach Pos. | CD9: 4 | CE9: =IF(BC8=4,VLOOKUP(CD9,CE$21:CG$27,2,0),"") ->  | CL9: =J5 -> 240 | CM9: g geplanter ST für Rezept | CQ9: =ROUND(CQ12/(CH10*INDIRECT("CR"&13+$CF$10)+CQ12),2) -> 0.88 | CR9: ZusM/ST-M
B10: Anzahl Backvorgänge | O10: Zusatz (0/1) | P10: 1 | Q10: =CONCATENATE('Kreations-UI'!AF7,AJ1) -> 100% Weizen / 0% Dinkel / 0% Roggen | AH10: TA Ges-ST | AJ10: ASG | AK10: Rest-ST | AL10: HT+NT | AM10: eff. TA | AN10: =AL12+AK12+AJ12 -> 1719.84 | AO10: TM (ohne Salz, ohne Hefe) (wird nicht benutzt) | BQ10: 3 | BR10: =CE32 -> 1 : 5 : 5 / ≈10h / 20°C | BT10: =B116 -> 1:10:5/ ≈15h / 27° | BV10: nach Pos. | BW10: 1 | CD10: ASG(Druck) = Starter von Stufe | CF10: =1+BC6 -> 2 | CG10: => | CH10: =INDIRECT("CL"&13+CF10) -> 12.43 | CI10: %ASG in [g] = | CJ10: =INDIRECT("CL"&19+CF10) -> 32 | CL10: =ROUND(CH10/CQ12,2) -> 0.28 | CM10: ASG bezogen auf ST-Zusatzmehl* | CQ10: =ROUND(CS12/(CH10*INDIRECT("CR"&13+$CF$10)+CQ12),2) -> 0.88 | CR10: ZusW/ST-M | CY10: Bezeichnung Gärkörbchen | DB10: Teigeinlage [g]* | DH10: Bezeichnung Backform | DK10: Teigeinlage [g]* | DW10: Volumenassistent
I11: Wochentag | J11: Do | K11: Raum-T | L11: 24 | M11: °C | AA11: gespeichert am | AB11: - | AG11: =ROUND((AH11*AH12+AL11*AL12)/(AL12+AH12),0) -> 169 | AH11: =INDIRECT("BE"&BC8+13) -> 200 | AI11: TA | AJ11: =CQ8 -> 200 | AK11: =IF(NOT(AH19),0,IF(AND(J5>0,J4>0),ROUND(AN6/AN5*100+100,1),0)) -> 200 | AL11: =AN12/AN11*100+100 -> 164.4559033 | AM11: =(AJ9*AJ11+AK9*AK11+AL9*AL11)/(AJ9+AK9+AL9) -> 168.6382178 | AN11: =AL12-AN12 -> 899.84 | AO11: M HAT+NT | AY11: Verhältnisse S : M : W | BG11: Dauer | BL11: Temperatur | BQ11: fixe 1-stufige ST-Führungen | CI11: ASG effektiv | CJ11: =ROUND(INDIRECT("CK"&19+CF10)*100,1) -> 11.3 | CK11: % | DA11: minimal | DC11: maximal | DJ11: minimal | DL11: maximal
B12: =CONCATENATE('Kreations-UI'!I10," Teigling(e)") -> 2 Teigling(e) | I12: =CONCATENATE(IF(AH19,"Start ST","Start HT")," Uhrzeit") -> Start ST Uhrzeit | J12: 21:00:00 | K12: Teig-T | M12: °C (ggf.) | O12: Info (0/1) | P12: 1 | Q12: Vorlage | AA12: gedruckt am | AB12: - | AH12: =J5 -> 240 | AI12: eff. Menge | AJ12: =IF(AH19,IF(AND(J5>0,J4>0),ROUND(('Kreations-UI'!M27+'Kreations-UI'!M34)/('Kreations-UI'!Q27+'Kreations-UI'!Q34)*J5,1),0),0) -> 29.5 | AK12: =IF(AH19,IF(AND(J5>0,J4>0),J5-AJ12,0),0) -> 210.5 | AL12: ='Kreations-UI'!AP12-'Kreations-UI'!J6-'Kreations-UI'!AR22 -> 1479.84 | AN12: ='Kreations-UI'!C17+'Kreations-UI'!C29+'Kreations-UI'!C38+'Kreations-UI'!C47+'Kreations-UI'!C56 -> 580 | AO12: W HT+NT | BE12: TA | BQ12: 4 | BR12: Detmolder 1-Stufen-Führung (R-ST) | CD12: Ziel-ST gesamt | CE12: 100 | CF12: % = | CG12: =J5+BG6 -> 252 | CH12: g | CI12: (mit Schwund ohne neues ASG) | CL12: Inklusive ES-ASG | CQ12: =SUM(CQ13:CQ17) -> 44.41 | CR12: =INDIRECT("CR"&13+CF10) -> 0.5 | CS12: =SUM(CS13:CS17) -> 44.41 | CT12: =SUM(CT14:CT16) -> 6.547619048 | CU12: =SUM(CU14:CU16) -> 6.547619048 | DP12: Sonstige Gefäße | DQ12: Volumen [ml] | DW12: eckige Form | EB12: runde Form | EH12: Tipp:
B13: =CONCATENATE("kalk. Backzeit: ",'Kreations-UI'!AM9,"min") -> kalk. Backzeit: 39min | I13: Position | J13: 2 | L13: =CONCATENATE("(kalk. Teig-T = ",'Kreations-UI'!AX14,"°C)") -> (kalk. Teig-T = 24°C) | Q13: (z.B. Favorit, geändert, testen) | AD13: =VLOOKUP(BC8,AX14:BE17,8) -> 200 | AE13: TA im ST (letzte Stufe) | AH13: =CONCATENATE("(",INDIRECT("R"&BC8+16),")") -> (TA 200) | AL13: ohne Salz, ohne Hefe | AN13: =IF(AN2>0,ROUND(AN8/AN2,1),0) -> 121.4 | AO13: Mehl im genutzten ST | BE13: 200 | BQ13: 5 | BR13: 1 : 4,5 : 4,5 / ≈12h / 22°C | BU13: Gewählte Führung | CE13: Anteile gesamt | CF13: Starter [%] | CG13: MM [%] | CH13: WM [%] | CI13: Stufe [%] | CJ13: Stufe [g] | CL13: Starter [%] | CM13: MM [%] | CN13: WM [%] | CO13: Stufe [%] | CP13: Stufe [g] | CQ13: Zusatzmehl [%] | CR13: M% Starter | CS13: Zus-W | CT13: M ASG | CU13: W ASG | CY13: Gärkörbchen Peddigrohr rund (2x) | DA13: 600 | DC13: 1080 | DH13: Mini-Springform (16cm) | DJ13: 450 | DL13: 650 | EH13: Für eine Form mit schrägen Wänden den jeweiligen Mittelwert für die Länge und Breite angeben. Bei einer Form mit gewölbten Wänden für den Durchmesser einen Wert etwas über dem Mittelwert vom Außen- und Innendurchmesser angeben.
Y14: 1. Mehl | AA14: 2. Mehl | AB14: Anteil 1.Mehl/ST-Mehl | AD14: ='Kreations-UI'!Q27+'Kreations-UI'!Q34 -> 246.7390464 | AE14: ST lt- Rezept | AF14: =ROUND(K20+L20+M20,0) -> 252 | AG14: ST total angesetzt | AJ14: Wochentags-Berechnung | AO14: =ROUND(J7/2,0) -> 1 | AP14: = g Mehl für neues ASG | AX14: 1 | AY14: =CE6 -> Auffrischung | AZ14: 1 : | BA14: 5 | BB14: : | BC14: 5 | BE14: =ROUND(CU20*100+100,0) -> 200 | BG14: 06:00:00 | BH14: - | BI14: 12:00:00 | BJ14: h | BM14: 22 | BN14: °C | BQ14: 6 | BR14: Lievito Madre (W-ST => Auffr. 1:10:5) | BU14: 5 | CD14: =IF(AND(CJ$8=1,CG$8>0),CONCATENATE(" +",CG$8,"g ASG"),"") ->  | CE14: =BC14+BA14+1 -> 11 | CF14: =ROUND(CI14/CE14,1) -> 1.2 | CG14: =ROUND($CI14/CE14*BA14,1) -> 6 | CH14: =ROUND($CI14/CE14*BC14,1) -> 6 | CI14: =MAX(CI15-CH15-CG15,CJ6,CJ7*CE14) -> 13.09 | CJ14: =ROUND(CI14*CG12/100,0) -> 33 | CL14: =CL20/$CG$12*100 -> 1.19047619 | CM14: =CM20/$CG$12*100 -> 5.952380952 | CN14: =CN20/$CG$12*100 -> 5.952380952 | CO14: =CP14/$CG$12*100 -> 12.6984127 | CP14: =CP20 -> 32 | CQ14: =IF(BC$6>0,0,CM14) -> 0 | CR14: 0.5 | CS14: =IF(BC$6>0,0,CN14) -> 0 | CT14: =0.5*CL14+CM14 -> 6.547619048 | CU14: =0.5*CL14+CN14 -> 6.547619048 | DX14: Höhe | DY14: 8 | DZ14: cm | EC14: Höhe | ED14: 6 | EE14: cm
B15: Tag | E15: # | F15: Tätigkeit | J15: Start-Zeit | K15: Vorstufe [g] | L15: Zugabe [g] | N15: Temp [°C] | O15: Dauer [hh:mm] | R15: *= kalte Führung möglich | W15: Mehle: | Y15: =IF('Kreations-UI'!M23>0,'Kreations-UI'!D18,IF('Kreations-UI'!M30>0,'Kreations-UI'!D23,"kein ST")) -> Weizen 550 | AA15: =IF(AND('Kreations-UI'!M18=1,'Kreations-UI'!B19>0),'Kreations-UI'!D19,IF(AND('Kreations-UI'!M30>0,'Kreations-UI'!B24>0),'Kreations-UI'!D24,"nicht im ST")) -> nicht im ST | AO15: Führungsstufen ausführlich | AR15: Mehl effektiv | AX15: 2 | AY15: =CE7 -> Vollsauer | AZ15: 1 : | BA15: 4 | BB15: : | BC15: 4 | BE15: =ROUND(CU21*100+100,0) -> 200 | BG15: 08:00:00 | BH15: - | BI15: 12:00:00 | BJ15: h | BM15: 20 | BN15: °C | BQ15: fixe mehrstufige R-ST-Führungen | CD15: =IF(AND(CJ$8=2,CG$8>0),CONCATENATE(" +",CG$8,"g ASG"),"") -> +30g ASG | CE15: =BC15+BA15+1 -> 9 | CF15: =IF(BC8>1,ROUND(MIN(CI14,CI15/CE15),2),100) -> 12.43 | CG15: =IF($BC$8>1,ROUND($CI15/CE15*BA15,1),0) -> 49.7 | CH15: =IF($BC$8>1,ROUND($CI15/CE15*BC15,1),0) -> 49.7 | CI15: =MAX(CI16-CH16-CG16+CI21,CJ6,CJ7*CE15) -> 111.9 | CJ15: =ROUND(CI15*CG12/100,0) -> 282 | CL15: =CF15 -> 12.43 | CM15: 49.7 | CN15: 49.7 | CO15: 111.9 | CP15: =CJ15 -> 282 | CQ15: =IF(BC$6>1,0,ROUND(CM15*CL16/CO15,2)) -> 44.41 | CR15: =(CL15*CR14+CM14/(CM14+CN14)*(CM14+CN14))/(CL15+CM14+CN14) -> 0.5 | CS15: =IF(BC$6>1,0,ROUND(CN15*CL16/CO15,2)) -> 44.41 | CT15: =IF(CF$10>2,CM15,0) -> 0 | CU15: =IF(CF$10>2,CN15,0) -> 0 | CY15: Gärkörbchen Peddigrohr oval (2x) | DA15: 650 | DC15: 1020 | DH15: Mini-Kastenform (3x) | DJ15: 500 | DL15: 750 | DP15: Kleines Bambus-Glas | DR15: 420
L16: M | M16: W | O16: Wahl | P16: min | Q16: max | W16: Ges.Summen | Y16: =SUM(Y17:Y20) -> 143 | Z16: =Y16+AA16 -> 143 | AA16: =SUM(AA17:AA20) -> 0 | AB16: =IF('Kreations-UI'!M18=0,0,IF('Kreations-UI'!AH8,('Kreations-UI'!F18/('Kreations-UI'!F18+'Kreations-UI'!F19)),('Kreations-UI'!F23/('Kreations-UI'!F23+'Kreations-UI'!F24)))) -> 1 | AD16: Führungsstufen kurz, effektiv | AJ16: Starttag | AK16: =J11 -> Do | AL16: =VLOOKUP(AK16,AK19:AL25,2,0) -> 4 | AM16: =VLOOKUP(AL16,AL19:AM25,2,0) -> 2021-01-14 | AN16: =CONCATENATE(K17+L17+M17,"g") -> 33g | AO16: =CONCATENATE(AY14,IF(AH20=1,CONCATENATE(" (1:",BA14,":",BC14,") ",IF(J7=1,AS16,AN16)),"")) -> Auffrischung (1:5:5) 33g | AR16: =L17/(K17+L17+M17)*K18 -> 14.54545455 | AS16: =CONCATENATE(K18,"g",CD14) -> 32g | AX16: 3 | AY16: =CE8 ->  | AZ16: 1 : | BA16: 1 | BB16: : | BC16: 1 | BE16: =ROUND(CU22*100+100,0) -> 200 | BG16: 01:00:00 | BH16: - | BI16: 04:00:00 | BJ16: h | BM16: 27 | BN16: °C | BQ16: 7 | BR16: LOZ: Lutz' optimierte 2-Stufen-Führung | CD16: =IF(AND(CJ$8=3,CG$8>0),CONCATENATE(" +",CG$8,"g ASG"),"") ->  | CE16: =BC16+BA16+1 -> 3 | CF16: =IF(BC8>2,ROUND(MIN(CI15,CI16/CE16),1),100) -> 100 | CG16: =IF($BC$8>2,ROUND($CI16/CE16*BA16,1),0) -> 0 | CH16: =IF($BC$8>2,ROUND($CI16/CE16*BC16,1),0) -> 0 | CI16: =MAX(CI17-CH17-CG17+CI22,CJ6) -> 100 | CJ16: =ROUND(CI16*CG12/100,0) -> 252 | CL16: 100 | CM16: 0 | CN16: 0 | CO16: 100 | CP16: =CJ16 -> 252 | CQ16: =IF(BC$6>2,0,ROUND(CM16*CL17/CO16,2)) -> 0 | CR16: =(CL16*CR15+CM15/(CM15+CN15)*(CM15+CN15))/(CL16+CM15+CN15) -> 0.5 | CS16: =IF(BC$6>2,0,ROUND(CN16*CL17/CO16,2)) -> 0 | CT16: =IF(CF$10>3,CM16,0) -> 0 | CU16: =IF(CF$10>3,CN16,0) -> 0 | DX16: Länge | DY16: 28 | DZ16: cm | EB16: Durch-messer
A17: =AND(AH$19,S17) -> FALSE | C17: =J17 -> 2021-01-14T13:00:00 | D17: =J17 -> 44210.54167 | E17: 1a | F17: =IF(NOT(AH19),CONCATENATE(" kein Sauerteig im",CHAR(10)," Kreator vorgesehen"),CONCATENATE(" ST-Bereitung",CHAR(10)," (Float-Test)",IF(Garzeiten!C19>0,CONCATENATE(CHAR(10),"SALZSAUER aktiviert! "),""))) -> ST-Bereitung (Float-Test) | I17: =IF(AH19,AO16,"") -> Auffrischung (1:5:5) 33g | J17: =AI45 -> 44210.54167 | K17: =IF($AH$19,CL20,0) -> 3 | L17: =IF($AH$19,CM20,0) -> 15 | M17: 15 | N17: =IF($AH$19,BM14,0) -> 22 | O17: 0.3333333333 | P17: =IF($AH$19,BG14,"") -> 0.25 | Q17: =IF($AH$19,BI14,"") -> 0.5 | R17: =CONCATENATE("TA ",BE14) -> TA 200 | S17: =IF(AP$33,OR(TIME(HOUR(D17),MINUTE(D17),0)>AO$31,TIME(HOUR(D17),MINUTE(D17),0)<AQ$31),AND(TIME(HOUR(D17),MINUTE(D17),0)>AO$31,TIME(HOUR(D17),MINUTE(D17),0)<AQ$31)) -> FALSE | Y17: =ROUND(L17*$AB$16,0) -> 15 | AA17: =ROUND(L17*(1-$AB$16),0) -> 0 | AB17: Rp-ST/Ges-ST | AC17: =IF($BC$6=0,Y17,0) -> 0 | AD17: =IF($K$20>0,ROUND(L17/$K17,1),0) -> 5 | AE17: 5 | AF17: =AY14 -> Auffrischung | AJ17: Backtag: | AK17: =C33 -> 2021-01-16T13:50:00 | AN17: =CONCATENATE(K18+L18+M18,"g") -> 288g | AO17: =IF(AY15="","",CONCATENATE(AY15," (1:",AD18,":",AE18,") ",IF(J7=2,AS17,AN17))) -> Vollsauer (1:4:4) 252g +30g ASG | AR17: =L18/(K18+L18+M18)*K19 -> 112 | AS17: =CONCATENATE(K19,"g",CD15) -> 252g +30g ASG | AX17: 4 | AY17: =CE9 ->  | AZ17: 1 : | BA17: 0 | BB17: : | BC17: 0 | BE17: =ROUND(CU23*100+100,0) -> 200 | BG17: 01:00:00 | BH17: - | BI17: 05:00:00 | BJ17: h | BM17: 22 | BN17: °C | BQ17: 8 | BR17: klassische 3-Stufen-Führung | CD17: =IF(AND(CJ$8=4,CG$8>0),CONCATENATE(" +",CG$8,"g ASG"),"") ->  | CE17: =BC17+BA17+1 -> 1 | CF17: =IF(BC8>3,ROUND(MIN(CI16,CI17/CE17),1),100) -> 100 | CG17: =IF($BC$8=4,ROUND($CI17/CE17*BA17,1),0) -> 0 | CH17: =IF($BC$8=4,ROUND($CI17/CE17*BC17,1),0) -> 0 | CI17: =CE12+CI23 -> 100 | CJ17: =ROUND(CI17*CG12/100,0) -> 252 | CL17: 100 | CM17: 0 | CN17: 0 | CO17: 100 | CP17: =CJ17 -> 252 | CQ17: =IF(BC$6>3,0,CM17) -> 0 | CR17: =(CL17*CR16+CM16/(CM16+CN16)*(CM16+CN16))/(CL17+CM16+CN16) ->  | CS17: =IF(BC$6>3,0,CN17) -> 0 | CY17: Gärkörbchen Holzschliff kurz | DA17: 750 | DC17: 950 | DH17: kurze Königskuchenform (24x9) | DJ17: 551 | DL17: 760 | DP17: Kleines Weck-Glas | DR17: 500 | ED17: 16 | EE17: cm
A18: =AND(AH$19,S18) -> FALSE | C18: 2021-01-14T21:00:00 | D18: 44210.875 | E18: 1b | I18: =IF(AH19,AO17,"") -> Vollsauer (1:4:4) 252g +30g ASG | J18: =AI46 -> 44210.875 | K18: =IF($AH$19,CL21,0) -> 32 | L18: 128 | M18: 128 | N18: =IF($AH$19,IF(BC8>1,BM15,N17),0) -> 20 | O18: 0.5 | P18: =IF(AND($BC$8>1,$AH$19),BG15,"") -> 0.3333333333 | Q18: =IF(AND($BC$8>1,$AH$19),BI15,"") -> 0.5 | R18: =CONCATENATE("TA ",BE15) -> TA 200 | S18: =IF(AP$33,OR(TIME(HOUR(D18),MINUTE(D18),0)>AO$31,TIME(HOUR(D18),MINUTE(D18),0)<AQ$31),AND(TIME(HOUR(D18),MINUTE(D18),0)>AO$31,TIME(HOUR(D18),MINUTE(D18),0)<AQ$31)) -> FALSE | Y18: =ROUND(L18*$AB$16,0) -> 128 | AA18: =ROUND(L18*(1-$AB$16),0) -> 0 | AB18: =J5/J8 -> 0.8510638298 | AC18: =IF($BC$6<2,Y18,0) -> 128 | AD18: 4 | AE18: 4 | AF18: =AY15 -> Vollsauer | AH18: Sauerteignutzung | AN18: =CONCATENATE(K19+L19+M19,"g") -> 252g | AO18: =IF(AY16="","",CONCATENATE(AY16," (1:",AD19,":",AE19,") ",IF(J7=3,AS18,AN18))) ->  | AR18: =L19/(K19+L19+M19)*K20 -> 0 | AS18: =CONCATENATE(K20,"g",CD16) -> 252g | BQ18: 9 | BR18: alternative 3-Stufen-Führung (Pöt) | DX18: Breite | DY18: 10 | DZ18: cm
A19: FALSE | C19: 2021-01-15T09:00:00 | D19: 44211.375 | E19: 1c | I19: =IF(AH19,AO18,"") ->  | J19: =AI47 -> 44211.375 | K19: =IF($AH$19,CL22,0) -> 252 | L19: 0 | M19: 0 | N19: =IF($AH$19,IF(BC8>2,BM16,N18),0) -> 20 | P19: =IF(AND($BC$8>2,$AH$19),BG16,"") ->  | Q19: =IF(AND($BC$8>2,$AH$19),BI16,"") ->  | R19: =CONCATENATE("TA ",BE16) -> TA 200 | S19: =IF(AP$33,OR(TIME(HOUR(D19),MINUTE(D19),0)>AO$31,TIME(HOUR(D19),MINUTE(D19),0)<AQ$31),AND(TIME(HOUR(D19),MINUTE(D19),0)>AO$31,TIME(HOUR(D19),MINUTE(D19),0)<AQ$31)) -> FALSE | Y19: =ROUND(L19*$AB$16,0) -> 0 | AA19: =ROUND(L19*(1-$AB$16),0) -> 0 | AC19: =IF($BC$6<3,Y19,0) -> 0 | AD19: 0 | AE19: 0 | AF19: =AY16 ->  | AH19: TRUE | AK19: Di | AL19: 2 | AM19: 2021-01-12 | AN19: =CONCATENATE(K20+L20+M20,"g") -> 252g | AO19: =IF(AY17="","",CONCATENATE(AY17," (1 : ",AD20," : ",AE20,") ",IF(J7=4,AS19,AN19))) ->  | AR19: =L20 -> 0 | AS19: =CONCATENATE(ROUND(K20+L20+M20-CJ23,0),"g",CD17) -> 252g | CI19: % | CJ19: ASG | CL19: S [g] | CM19: MM [g] | CN19: WM [g] | CO19: ST-Stufe? | CP19: Stufe [g] | CQ19: MMeff [g] | CR19: WMeff [g] | CS19: g | CT19: Inok. TM | CU19: Hydratation | CY19: Gärkörbchen Holzschliff rund (2x) | DA19: 899 | DC19: 1301 | DH19: Backrahmen Viertel: 15x11x10 (4x) | DJ19: 560 | DL19: 880 | DP19: Großes Bambus-Glas | DR19: 630 | DY19: ò | ED19: ò
A20: FALSE | C20: 2021-01-15T09:00:00 | D20: 44211.375 | E20: 1d | I20: =IF(AH19,AO19,"") ->  | J20: =AI48 -> 44211.375 | K20: =IF($AH$19,CL23,0) -> 252 | L20: 0 | M20: 0 | N20: =IF($AH$19,IF(BC8>3,BM17,N19),0) -> 20 | P20: =IF(AND($BC$8>3,$AH$19),BG17,"") ->  | Q20: =IF(AND($BC$8>3,$AH$19),BI17,"") ->  | R20: =CONCATENATE("TA ",BE17) -> TA 200 | S20: =IF(AP$33,OR(TIME(HOUR(D20),MINUTE(D20),0)>AO$31,TIME(HOUR(D20),MINUTE(D20),0)<AQ$31),AND(TIME(HOUR(D20),MINUTE(D20),0)>AO$31,TIME(HOUR(D20),MINUTE(D20),0)<AQ$31)) -> FALSE | Y20: =ROUND(L20*$AB$16,0) -> 0 | AA20: =ROUND(L20*(1-$AB$16),0) -> 0 | AB20: =IF(Z21>0,ROUND(AB21/Z21,2),0) -> 1 | AC20: =Y20 -> 0 | AD20: 0 | AE20: 0 | AF20: =AY17 ->  | AH20: =IF(AH19,1,0) -> 1 | AK20: Do | AL20: 4 | AM20: 2021-01-14 | AO20: =IF(AND(J6>0,J7=BC8),CONCATENATE("Ca. ",ROUND(J6,0),"g ASG abnehmen! "),"") -> Ca. 30g ASG abnehmen! | AQ20: Summe: | AR20: =ROUND(SUM(AR16:AR19),1) -> 126.5 | BP20: =IF(AX45=2,AY45,IF(AX43=2,AY43,IF(AX41=1,AY41,""))) ->  | CE20: Pos | CF20: Bezeichnungen | CI20: =ROUND(CJ20/$CG$12*100,1) -> 0 | CJ20: =IF(CJ$8=1,$J$6,0) -> 0 | CK20: =CL20/CL$7 -> 0.01063829787 | CL20: =ROUNDUP(CP20/CE14,0) -> 3 | CM20: =ROUND(CL20*BA14,0) -> 15 | CN20: =ROUNDUP(CL20*BC14,0) -> 15 | CO20: =IF(BC$6>0,0,1) -> 0 | CP20: =ROUND(MAX(CL21+CJ20,CG6),0) -> 32 | CQ20: =CM20*CL21/CP20*CO20 -> 0 | CR20: =CN20*CL21/CP20*CO20 -> 0 | CT20: =ROUND(CL14*0.5/(CL14*0.5+CM14),3) -> 0.091 | CU20: =ROUND((0.5*CL20+CN20)/(0.5*CL20+CM20),3) -> 1 | DX20: Volumen | DY20: =ROUND(DY14*DY16*DY18,0) -> 2240 | DZ20: ml | EC20: Volumen | ED20: =ROUND((ED17*0.5)^2*3.14*ED14,0) -> 1206 | EE20: ml
A21: =IF(AP$33,OR(TIME(HOUR(D21),MINUTE(D21),0)>AO$31,TIME(HOUR(D21),MINUTE(D21),0)<AQ$31),AND(TIME(HOUR(D21),MINUTE(D21),0)>AO$31,TIME(HOUR(D21),MINUTE(D21),0)<AQ$31)) -> FALSE | C21: 2021-01-15T09:00:00 | D21: 44211.375 | E21: 2a | F21: Vorteige/Nullteige | J21: =J23-O21 -> 44211.375 | K21: parallel zu #1 (hh:mm vor #3) | N21: 24 | O21: 0 | P21: 0 | Q21: 1 | R21: * | W21: ohne ASG | Y21: =SUM(Y18:Y20) -> 128 | Z21: =Y21+AA21 -> 128 | AA21: =SUM(AA18:AA20) -> 0 | AB21: =ROUND(SUM(M18:M20),0) -> 128 | AC21: =SUM(AC17:AC20) -> 128 | AD21: 1 Starter : x Mehl : x Wasser | AK21: Fr | AL21: 5 | AM21: 2021-01-15 | AO21: TxtBaustein Hauptteig s.o. | BP21: õ Kritischer Fehler! Die Anzahl der ST-Stufen muss mindestens 1 betragen! | CD21: Auffrischstufen | CE21: =IF(CD22=1,1,0) -> 1 | CF21: Auffrischung | CI21: =ROUND(CJ21/$CG$12*100,1) -> 11.9 | CJ21: =IF(CJ$8=2,J6,0) -> 30 | CK21: =CL21/CL$7 -> 0.1134751773 | CL21: =ROUNDUP(CF15*($CG$12)/100,0) -> 32 | CM21: =IF(CG15>0,ROUND(CL21*BA15,0),0) -> 128 | CN21: =IF(CH15>0,ROUND(CL21*BC15,0),0) -> 128 | CO21: =IF(BC$6>1,0,1) -> 1 | CP21: =CL21+CM21+CN21 -> 288 | CQ21: =CM21*CL22/CP21*CO21 -> 112 | CR21: =CN21*CL22/CP21*CO21 -> 112 | CT21: =ROUND((CL15*CU20/2)/CM15+CL15,3)/100 -> 0.12555 | CU21: =ROUND((CL21*CU20*0.5+CN21)/(CM21+CL21-(CL21*CU20*0.5)),3) -> 1 | CY21: Gärkörbchen Holzschliff lang | DA21: 900 | DC21: 1300 | DH21: Kleine Springform (22cm) | DJ21: 700 | DL21: 1105 | DP21: Großes Weck-Glas | DR21: 800
A22: FALSE | C22: 2021-01-15T08:30:00 | D22: 44211.35417 | E22: 2b | F22: ggf. Autolyse/Fermentolyse (WM) + ggf. andere Nullteige | J22: =J23-O22 -> 44211.35417 | K22: parallel zu #1 (hh:mm vor #3) | N22: 24 | O22: 0.02083333333 | P22: 0.02083333333 | Q22: 0.5 | R22: * | AB22: Wasser | AC22: 1. Mehl ST ohne ASG (=> AC21) | AF22: Schritt 2a vorgelagert? | AI22: =AND(AI25>AI24,AH19) -> FALSE | AK22: Mi | AL22: 3 | AM22: 2021-01-13 | AO22: Arbeitszeit | AQ22: =O23+O28+O30+(T24*AR22) -> 00:41:00 | AR22: 00:02:00 | CD22: =BC6 -> 1 | CE22: =IF(CD22>1,1,0) -> 0 | CF22: 1. Auffrischung | CI22: =ROUND(CJ22/$CG$12*100,1) -> 0 | CJ22: =IF(CJ$8=3,J6,0) -> 0 | CK22: =CL22/CL$7 -> 0.8936170213 | CL22: =ROUNDUP(CF16*($CG$12)/100,0) -> 252 | CM22: =IF(CG16>0,ROUND(CL22*BA16,0),0) -> 0 | CN22: =IF(CH16>0,ROUND(CL22*BC16,0),0) -> 0 | CO22: =IF(BC$6>2,0,1) -> 1 | CP22: =CL22+CM22+CN22 -> 252 | CQ22: =CM22*CL23/CP22*CO22 -> 0 | CR22: =CN22*CL23/CP22*CO22 -> 0 | CT22: =ROUND(1/CE16,2) -> 0.33 | CU22: =ROUND((CL22*CU21*0.5+CN22)/(CM22+CL22-(CL22*CU21*0.5)),3) -> 1 | DW22: ungefähre Teigeinlage
A23: FALSE | C23: 2021-01-15T09:00:00 | D23: 44211.375 | E23: 3 | F23: =IF(AH20=1,CONCATENATE(AO20,"HT mit ",J5,"g Sauerteig ansetzen"),"Hauptteig mischen und kneten") -> Ca. 30g ASG abnehmen! HT mit 240g Sauerteig ansetzen | J23: =J20+AK48 -> 44211.375 | K23: viel Kneten => kälteres Wasser wählen | O23: 0.01041666667 | P23: 0.003472222222 | Q23: 0.01388888889 | AF23: Schritt 2b vorgelagert? | AI23: =OR(AND(AI25<AI26,AI25>0),AND(AI26>AI24,AH19)) -> FALSE | AK23: Mo | AL23: 1 | AM23: 2021-01-11 | AQ23: =ROUND(AQ22/AR23,1) -> 1.2 | AR23: 00:35:00 | CE23: =IF(CD22>1,2,0) -> 0 | CF23: 2. Auffrischung | CI23: =ROUND(CJ23/$CG$12*100,1) -> 0 | CJ23: =IF(CJ$8=4,J6,0) -> 0 | CK23: =CL23/CL$7 -> 0.8936170213 | CL23: =ROUNDUP(CF17*($CG$12)/100,0) -> 252 | CM23: =IF(CG17>0,ROUND(CL23*BA17,0),0) -> 0 | CN23: =IF(CH17>0,ROUND(CL23*BC17,0),0) -> 0 | CO23: 1 | CP23: =CL23+CM23+CN23 -> 252 | CQ23: =CM23*CO23 -> 0 | CR23: =CN23*CO23 -> 0 | CT23: =ROUND(1/CE17,2) -> 1 | CU23: =ROUND((CL23*CU22*0.5+CN23)/(CM23+CL23-(CL23*CU22*0.5)),3) -> 1 | CY23: [Backrahmen lange schmale Hälfte] (2x) | DA23: 1200 | DC23: 1930 | DH23: lange Königskuchenform (29x10) | DJ23: 800 | DL23: 1150 | DP23: "Salz"-Behälter | DR23: 1000 | DW23: in Abhängigkeit vom obigen Volumen
A24: FALSE | C24: 2021-01-15T09:15:00 | D24: 44211.38542 | E24: 4 | F24: =CONCATENATE(T24,"x S&F alle ",W24,"min"," => Stockgare Agitationsphase") -> 3x S&F alle 30min => Stockgare Agitationsphase | J24: =J23+O23 -> 44211.38542 | K24: ideal: Fenster-Test positiv | N24: 24 | O24: =T24*AG32 -> 01:30:00 | P24: 0 | Q24: 0.1041666667 | S24: Stretch&Fold | T24: 3 | U24: x alle | W24: 30 | X24: min (meist 3-5x alle 30-45') | AF24: Dauer vorangehender ST-Schritt | AI24: =IF(O20>0,O20,IF(O19>0,O19,IF(O18>0,O18,O17))) -> 0.5 | AK24: Sa | AL24: 6 | AM24: 2021-01-16 | BP24: Prognostizierte Dauer der einzelnen Stufen | BW24: zuletzt auf-gefrischt vor | CD24: ST-Stufen | CE24: =IF(CD22>2,3,0) -> 0 | CF24: 3. Aufrischung | CQ24: =SUM(CQ20:CQ23) -> 112 | CR24: =SUM(CR20:CR23) -> 112 | CS24: HT | CT24: =('Kreations-UI'!Q23+'Kreations-UI'!Q30)/100 -> 0.1205236991 | DY24: ò | ED24: ò
A25: FALSE | C25: 2021-01-15T10:45:00 | D25: 44211.44792 | E25: 5 | F25: Stockgare => Ruhephase | J25: =J24+O24 -> 44211.44792 | K25: Teigvol => + 20-50% | N25: 24 | O25: 0.2708333333 | P25: 0.02083333333 | Q25: 0.5 | R25: * | AC25: =IF($BC$6=0,AA17,0) -> 0 | AF25: Dauer Schritt 2a | AI25: =O21 -> 0 | AK25: So | AL25: 7 | AM25: 2021-01-17 | AN25: =J7 -> 2 | AO25: Stufe, von der ASG genommen wird | CD25: =BC7 -> 1 | CE25: =IF(CD25=3,CD27,0) -> 0 | CF25: Anfrischsauer | CL25: *Zusatzmehl = Mehl, dass noch nicht im ASG enthalten ist, sondern ihm zugesetzt wird | CY25: [Kastenbrotbackform] | DA25: 1210 | DC25: 1950 | DH25: Kastenbrotbackform (12,5x28,5x10) | DJ25: 1210 | DL25: 1950 | DP25: Weißer Messbecher | DR25: 1200 | DY25: =CONCATENATE(ROUND(DY$20*EB25*0.1,0)*10,"g") -> 780g | EA25: min: | EB25: 0.35 | EC25: ~35 | ED25: =CONCATENATE(ROUND(ED$20*EB25*0.1,0)*10,"g") -> 420g
F26: Stockgare gesamt (Agitation+Ruhe) | M26: Stockgare gesamt | O26: =O25+O24 -> 0.3333333333 | AC26: =IF($BC$6<2,AA18,0) -> 0 | AF26: Dauer Schritt 2b | AI26: =O22 -> 0.02083333333 | AN26: =IF(AH20,BC8,0) -> 2 | AO26: Stufenmerker (bei Hefeteig = 0) | BP26: =IF(Garzeiten!C19<=0,"Aktuell ist ein normaler Sauerteig ohne Salz ausgewählt.","Achtung: Aktuell ist Salz-Sauerteig ausgewählt.") -> Aktuell ist ein normaler Sauerteig ohne Salz ausgewählt. | BX26: 3 | BY26: Tg | CD26: Startpos. ST: | CE26: =IF(CE25>0,CE25+1,IF(CD25=2,CD27,0)) -> 0 | CF26: Grundsauer | CO26: =Garzeiten!Q39 -> 0 | CP26: Salz = | CQ26: =ROUND((CL7/(1+CQ35))*CO26,1) -> 0 | CR26: g für Salzsauerteig (inkl Schwund) | DY26: =CONCATENATE(ROUND(DY$20*EB26*0.1,0)*10,"g") -> 990g | EA26: ideal: | EB26: 0.44 | EC26: ~42 | ED26: =CONCATENATE(ROUND(ED$20*EB26*0.1,0)*10,"g") -> 530g
A27: =IF(AP$33,OR(TIME(HOUR(D27),MINUTE(D27),0)>AO$31,TIME(HOUR(D27),MINUTE(D27),0)<AQ$31),AND(TIME(HOUR(D27),MINUTE(D27),0)>AO$31,TIME(HOUR(D27),MINUTE(D27),0)<AQ$31)) -> FALSE | C27: =J27 -> 2021-01-15T17:15:00 | D27: =J27 -> 44211.71875 | E27: 6 | F27: Diverses (z.B. letztes S&F 1h vor Pre-Shaping) | J27: =J28-O27 -> 44211.71875 | K27: parallel zu #5 (hh:mm vor nächstem #) | O27: 0 | P27: 0 | Q27: 0.08333333333 | AC27: =IF($BC$6<3,AA19,0) -> 0 | AR27: -3 | AX27: Vorlagen für personalisierbare einstufige ST-Führungen | BP27: Bitte ggf. erforderliche Parameter aktualisieren. ø | BX27: (0-30) | CD27: =MAX(CE21:CE24)+1 -> 2 | CE27: =IF(CE26>0,CE26+1,CD27) -> 2 | CF27: Vollsauer | CL27: Volumen [ml] Gesamt-ST | CN27: =ROUND(J8*0.084,0)*10 -> 240 | CQ27: =ROUND(CO26*CK31,1) -> 0 | CR27: g für Salzsauerteig netto (vom HT abziehen) | CY27: [Backrahmen breite kurze Hälfte] (2x) | DA27: 1220 | DC27: 1980 | DH27: Backrahmen Hälfte: 15x24x10 (2x) | DJ27: 1220 | DL27: 1980 | DP27: Käsedeckel-Container | DR27: 2800 | DY27: =CONCATENATE(ROUND(DY$20*EB27*0.1,0)*10,"g") -> 1160g | EA27: max: | EB27: 0.52 | EC27: ~48 | ED27: =CONCATENATE(ROUND(ED$20*EB27*0.1,0)*10,"g") -> 630g
A28: FALSE | C28: 2021-01-15T17:15:00 | D28: 44211.71875 | E28: 7 | F28: 2 Teiglinge rund formen | J28: =J25+O25 -> 44211.71875 | O28: 0.006944444444 | P28: 0 | Q28: 0.02083333333 | AC28: =AA20 -> 0 | AD28: Soll-Teigtemperatur: | AE28: ='Kreations-UI'!AX17 -> 24 | AF28: °C (lt. Rezept oder kalkuliert) | AJ28: Inokulation | AM28: Temp-Prüfsumme | AR28: -2 | BS28: min | BT28: Ø | BU28: max | CL28: für Garzeitberechnung: | CP28: =ROUND('Kreations-UI'!J6-'Teig-Führung'!CQ27,1) -> 20.2 | CQ28: =ROUND('Kreations-UI'!AR8-'Teig-Führung'!CQ27,1) -> 22.7 | CR28: g Salz im HT korrigiert (Standard vs High Hydration)
A29: FALSE | C29: 2021-01-15T17:25:00 | D29: 44211.72569 | E29: 8 | F29: Ballengare, Gärkörbchen vorbereiten | J29: 44211.72569 | N29: 24 | O29: 0.01041666667 | P29: 0 | Q29: 0.02777777778 | AC29: =SUM(AC25:AC28) -> 0 | AD29: Temp. Zuschüttwasser: | AE29: =ROUND(AR61,0) -> 25 | AF29: °C bzw. | AG29: =ROUND(BG60,0) -> 17 | AH29: °C | AJ29: ASG/ST | AK29: =CH10 -> 12.43 | AL29: % | AM29: ohne ST | AR29: -1 | AY29: Verhältnisse S : M : W | BG29: Dauer | BL29: Temperatur | BP29: =Garzeiten!P58 -> Auffrischung (22°) | BS29: =Garzeiten!J11 -> 0.4548611111 | BT29: =Garzeiten!K11 -> 0.4925355268 | BU29: =Garzeiten!L11 -> 0.5520833333 | CG29: Zielstring | CH29: gerundet | CI29: gemittelte Zeit | CK29: =ROUND(INDIRECT("CL"&BC8+19)/CP23*CL9,1) -> 30.5 | CL29: g genutzter* ASG/Starter für den Vollsauer = Starter von letzter Stufe (-ggf neues ASG) | CX29: * Die Teigeinlage in g entspricht ungefähr 40-50% des gegebenen Volumens in ml (je nach Teig und zu erwartender Volumenzunahme). Siehe Volumenassistent weiter rechts auf dieser Arbeitsfläche =>
A30: FALSE | C30: 2021-01-15T17:40:00 | D30: 44211.73611 | E30: 9 | F30: Final Shape | J30: 44211.73611 | K30: ggf. off. Schluss: kurz mit RM einschlagen | O30: 0.006944444444 | P30: 0.003472222222 | Q30: 0.02083333333 | AC30: 2. Mehl ST ohne ASG (=> AC29) | AF30: (ohne bzw. mit geplanter Knetung) | AJ30: ST/TM | AK30: =ROUND(J5/'Kreations-UI'!G10*100,1) -> 13.8 | AL30: % | AM30: =SUM(N21:N32) -> 375 | AP30: Ruhezeit zwischen | BP30: =Garzeiten!P59 -> Vollsauer (20°) | BS30: =Garzeiten!J12 -> 0.5 | BT30: =Garzeiten!K12 -> 0.5423828763 | BU30: =Garzeiten!L12 -> 0.6076388889 | CD30: Text Vorlage 1: | CE30: =CONCATENATE("1 : ",BA32," : ",BC32," / ",CJ30,CG30,"h / ",BM32,"°C") -> 1 : 1 : 1 / ≈5h / 24°C | CG30: =TEXT(CH30,"H") -> 5 | CH30: =ROUND(CI30*24,0)/24 -> 05:00:00 | CI30: =(BG32+BI32)/2 -> 04:30:00 | CJ30: ≈ | CK30: =ROUND(INDIRECT("CP"&BC8+31)/CP23*CL9,1) -> 15.2 | CL30: g davon Mehl, das entspricht | CN30: =IF(CK29>0,CK30/CK29,0) -> 0.4983606557 | CO30: vom ASG
A31: FALSE | C31: 2021-01-15T17:50:00 | D31: 44211.74306 | E31: 10 | F31: Stückgare | H31: typisch im Gärkorb (Fingerdruck-Test) | J31: 44211.74306 | K31: 0,5-3h bei RT oder 8-48h im KS | N31: 5 | O31: 0.8333333333 | P31: 0.02083333333 | Q31: 2 | R31: * | AO31: =Admin!M9 -> 22:45:00 | AP31: und | AQ31: =Admin!M11 -> 07:15:00 | BP31: =Garzeiten!P60 -> Stockgare (24°) | BS31: =Garzeiten!J13 -> 0.2291666667 | BT31: =Garzeiten!K13 -> 0.2503955493 | BU31: =Garzeiten!L13 -> 0.28125 | CD31: Text Vorlage 2: | CE31: =CONCATENATE("1 : ",BA33," : ",BC33," / ",CJ31,CG31,"h / ",BM33,"°C") -> 1 : 2 : 2 / ≈6h / 24°C | CG31: =TEXT(CH31,"H") -> 6 | CH31: =ROUND(CI31*24,0)/24 -> 06:00:00 | CI31: =(BG33+BI33)/2 -> 06:15:00 | CJ31: ≈ | CK31: =INDIRECT("CP"&BC8+32) -> 126 | CL31: g Mehlanteil vom Vollsauer*=> | CN31: =IF(CL9>0,CP36/CL9,0) -> 0.5 | CO31: vom ST | CP31: M(a) [g] | CQ31: inok MMabs | CR31: M(a) relativ | CS31: Inok MM
A32: FALSE | C32: 2021-01-16T13:05:00 | D32: 44212.54514 | E32: 11 | F32: Ofen vorheizen: Stn/Stl Dampfer Umluft => O/U | J32: =J33-O32 -> 44212.54514 | K32: mit Stahl und Dampfer | N32: 250 | O32: 0.03125 | P32: 0.02777777778 | Q32: 0.05208333333 | AC32: =IF($BC$6=0,M17,0) -> 0 | AF32: =TIMEVALUE(AG32) -> 00:30:00 | AG32: =CONCATENATE("00:",W24) -> 00:30 | AH32: <= Stretch&Fold-Zeit-Umformung | AP32: über Mitternacht | AY32: Vorlage 1 | AZ32: 1 : | BA32: 1 | BB32: : | BC32: 1 | BG32: 03:00:00 | BH32: - | BI32: 06:00:00 | BJ32: h | BM32: 24 | BN32: °C | BP32: =Garzeiten!P61 -> Stückgare (5°) | BS32: =Garzeiten!J14 -> 0.8020833333 | BT32: =Garzeiten!K14 -> 0.8719007797 | BU32: =Garzeiten!L14 -> 0.9756944444 | CD32: Text Vorlage 3: | CE32: =CONCATENATE("1 : ",BA34," : ",BC34," / ",CJ32,CG32,"h / ",BM34,"°C") -> 1 : 5 : 5 / ≈10h / 20°C | CG32: =TEXT(CH32,"H") -> 10 | CH32: =ROUND(CI32*24,0)/24 -> 10:00:00 | CI32: =(BG34+BI34)/2 -> 10:00:00 | CJ32: ≈ | CK32: ='Kreations-UI'!F12+CK30 -> 1023.2 | CL32: backfähiges Getreide ST inkl ASG | CP32: =ROUND(0.5*CL20,1) -> 1.5 | CQ32: =ROUND(CP32/(CP32+CM20),3) -> 0.091 | CR32: =ROUND(0.5*CL14,1) -> 0.6 | CS32: =ROUND(CR32/(CR32+CM14),3) -> 0.092
A33: FALSE | C33: 2021-01-16T13:50:00 | D33: 44212.57639 | E33: 12 | F33: =IF('Kreations-UI'!AP15<=1,"Teigling vorbereiten und einschießen mit Dampf","Teiglinge vorbereiten und einschießen mit Dampf") -> Teiglinge vorbereiten und einschießen mit Dampf | J33: =J31+O31 -> 44212.57639 | K33: 250>220°, nach 20' entschwaden | O33: 00:45:00 | P33: 0.02430555556 | Q33: 0.03645833333 | R33: ='Kreations-UI'!AN9 -> 0.02708333333 | S33: kalkulierte Mindest-Backzeit | AC33: =IF($BC$6<2,M18,0) -> 128 | AP33: =AO31>AQ31 -> TRUE | AY33: Vorlage 2 | AZ33: 1 : | BA33: 2 | BB33: : | BC33: 2 | BG33: 04:30:00 | BH33: - | BI33: 08:00:00 | BJ33: h | BM33: 24 | BN33: °C | BP33: =Garzeiten!P62 ->  | BS33: =Garzeiten!J15 ->  | BT33: =Garzeiten!K15 ->  | BU33: =Garzeiten!L15 ->  | CK33: =ROUND(CK31/CK32,5) -> 0.12314 | CL33: Versäuertes Mehl/Gesamtmehl="Inok HT" | CP33: =ROUND(CL21/(1+CU20),1) -> 16 | CQ33: =ROUND(CP33/(CP33+CM21),3) -> 0.111 | CR33: =ROUND(CL15/(1+CU20),1) -> 6.2 | CS33: =ROUND(CR33/(CR33+CM15),3) -> 0.111
A34: FALSE | C34: 2021-01-16T14:35:00 | D34: =J34 -> 44212.60764 | F34: =IF(AND(C$9>1,'Kreations-UI'!I10>2),"1. Charge fertig",CONCATENATE(IF(AD35,"1. Brot",IF('Kreations-UI'!I10>1,"Brote","Brot"))," fertig (Kerntemperatur in der Regel 94-98°C)")) -> Brote fertig (Kerntemperatur in der Regel 94-98°C) | J34: =J33+O33 -> 44212.60764 | N34: =IF(C9=1,"Gesamtzeiten","Gesamtzeiten 1 Backvorgang") -> Gesamtzeiten | O34: =O116+O117 -> 2.065972222 | P34: =P116+P117 -> 0.65625 | Q34: =Q116+Q117 -> 3.723958333 | R34: =R33*1.35 -> 0.0365625 | S34: mit Holz-Backrahmen | AC34: =IF($BC$6<3,M19,0) -> 0 | AD34: 2. Backvorgang sinnvoll? | AY34: Vorlage 3 | AZ34: 1 : | BA34: 5 | BB34: : | BC34: 5 | BG34: 08:00:00 | BH34: - | BI34: 12:00:00 | BJ34: h | BM34: 20 | BN34: °C | BP34: =Garzeiten!P63 ->  | BS34: =Garzeiten!J16 ->  | BT34: =Garzeiten!K16 ->  | BU34: =Garzeiten!L16 ->  | CP34: =ROUND(CL22/(1+CU21),1) -> 126 | CQ34: =ROUND(CP34/(CP34+CM22),3) -> 1 | CR34: =ROUND(CL16/(1+CU21),1) -> 50 | CS34: =ROUND(CR34/(CR34+CM16),3) -> 1
D35: =J35 ->  | E35: =IF(C9>1,13,"") ->  | F35: =IF(C9<2,"(Ggf. noch ein wenig im offenen Ofen belassen.)","Ofen wieder aufheizen") -> (Ggf. noch ein wenig im offenen Ofen belassen.) | J35: =IF(C9>1,J34,"") ->  | O35: 00:30:00 | P35: 0 | Q35: 0.04166666667 | R35: =O32+C9*O33+(C9-1)*O35 -> 01:30:00 | S35: Ofenzeit gesamt | V35: (2 Backvorgänge) | AC35: =M20 -> 0 | AD35: =IF(AND(C9>1,'Kreations-UI'!I10>1),TRUE,FALSE) -> FALSE | CL35: *korrigiert auf tatsächliche Rezeptmenge | CP35: =ROUND(CL23/(1+CU22),1) -> 126 | CQ35: =ROUND(CP35/(CP35+CM23),3) -> 1 | CR35: =ROUND(CL17/(1+CU22),1) -> 50 | CS35: =ROUND(CR35/(CR35+CM17),3) -> 1
D36: =J36 ->  | E36: =IF(C9>1,14,"") ->  | F36: =IF(C9>1,IF('Kreations-UI'!AP15<=1,"Teigling vorbereiten und einschießen O mit Dampf","Teiglinge vorbereiten und einschießen O mit Dampf"),"") ->  | J36: =IF(C9>1,D35+O35,"") ->  | N36: wie erste Backzeit | O36: =O33 -> 00:45:00 | R36: =O32+O33 -> 0.0625 | S36: Ofenzeit für 1 Backvorgang | AC36: =SUM(AC32:AC35) -> 128 | BP36: Beim Übertrag der Stockgare in die Teigführung wird eine | CL36: ohne Schwund etc. | CO36: ST*: | CP36: =ROUND(CL9/(1+CU23),1) -> 120 | CQ36: nicht verschieben!
D37: =J37 ->  | F37: =IF(C9<2,"",(IF(AND(C$9>1,'Kreations-UI'!I10>2),"2. Charge fertig",CONCATENATE(IF($C$9='Kreations-UI'!I10,"2. ","")&"Brot fertig")))) ->  | J37: =IF(C9>1,D36+O33,"") ->  | N37: Gesamtzeiten 2 Backvorgänge | O37: =O34+O35+O36 -> 2.118055556 | R37: ='Teig-Führung'!C9>'Kreations-UI'!I10 -> FALSE | S37: nur 1 Backvorgang sinnvoll | AC37: Wasser ST ohne ASG (=> AC29) | BP37: evt. geplante Agitationsphase mit berücksichtigt.
A38: =COUNTIF(A17:A37,TRUE) -> 0 | B38: =IF(A38=0,"","i") ->  | C38: =IF(A38>0,CONCATENATE("Achtung, nach der aktuellen Planung gibt es Arbeit in deiner Ruhezeit zwischen ",TEXT(AO31,"HH:MM"),"h und ",TEXT(AQ31,"hh:mm"),"h!"),"") -> 
AD39: =J12+AM16 -> 2021-01-14T21:00:00 | AX39: Plausibilität | AZ39: =SUM(AX41:AX45) -> 0 | BA39: <= Fehlersumme | BG39: =BG41-(4-BC7) -> -2 | BH39: überzählige Auffrischungen nach "Anzahl Stufen"
B40: 1 | BG40: =BG41-BC6 -> 0 | BH40: Überzählige Auffrischungen nach "Anzahl Auffrischungen"
AD41: Dynamische Startzeit | AI41: 24h-Überlauf-Zeit | AX41: =IF(BG40>0,1,0) -> 0 | AY41: mehr Auffrischstufen als angegeben positioniert | BG41: =5-COUNTIF(BW6:BW10,"") -> 1 | BH41: Anzahl ausgewählter Auffrischungen (auto)
B42: 1
AD43: =J13 -> 2 | AE43: StartPos 1 | AF43: StartPos 2 | AG43: StartPos 3 | AH43: StartPos 4 | AI43: 1 | AJ43: gewählte Dauern | AK43: gültige Dauern | AX43: =IF(AND(MAX(BW6:BW10)=BG41,BG43=0),0,2) -> 0 | AY43: Auffrisch-Positon übersprungen oder doppelt vergeben | BG43: =SUM(BG45:BG48) -> 0 | BH43: doppelte | BM43: 102 | BN43: Startzeile Führg #4 in UI.Daten | BS43: 112 | BT43: Startzeile für 1. Auffrischung in UI.Daten
B44: 1
AD45: Stufe 1 | AE45: =AD39 -> 44210.875 | AF45: =IF(AF46-AK45>=0,AF46-AK45,AF46-AK45+$AI$43) -> 44210.54167 | AG45: =IF(AG46-$O$17>=0,AG46-$O$17,AG46-$O$17+$AI$43) -> 44210.04167 | AH45: =IF(AH46-$O$17>=0,AH46-$O$17,AH46-$O$17+$AI$43) -> 44210.04167 | AI45: =INDEX(AE45:AH45,1,$AD$43) -> 2021-01-14T13:00:00 | AJ45: =O17 -> 08:00:00 | AK45: =IF(AH19,AJ45,0) -> 08:00:00 | AT45: Null-/Vor-Teigtemperatur = Mitteltemp aus 2a und 2b (leider sehr unpräzise) | AX45: =IF(AZ47<5,0,2) -> 0 | AY45: insgesamt zu viele Stufen ausgewählt | BG45: =IF(BH45>1,1,0) -> 0 | BH45: =COUNTIF(BW$6:BW$10,BJ45) -> 1 | BI45: Anzahl | BJ45: 1 | BM45: =IF(AZ39>1,1,0) -> 0 | BN45: Indikator Fehlerkorrektur nötig | BT45: Auffr | BU45: 1 | BV45: in Zeile | BW45: =MATCH(BU45,BW$6:BW$10,0) -> 5 | BY45: =BS$43-1+BW45 -> 116
AD46: Stufe 2 | AE46: =AE45+AK45 -> 44211.20833 | AF46: =AD39 -> 44210.875 | AG46: =IF(AG47-AK46>=0,AG47-AK46,AG47-AK46+$AI$43) -> 44210.375 | AH46: =IF(AH47-AK46>=0,AH47-AK46,AH47-AK46+$AI$43) -> 44210.375 | AI46: =INDEX(AE46:AH46,1,$AD$43) -> 2021-01-14T21:00:00 | AJ46: =O18 -> 12:00:00 | AK46: =IF(AND(AH19,$BC$8>1),AJ46,0) -> 12:00:00 | AS46: 2a: | AT46: =IF(O21>0,N21,N22) -> 24 | AY46: ST-Stufen | AZ46: =IF(BU14>6,VLOOKUP(BU14,A102:V108,22),1) -> 1 | BG46: =IF(BH46>1,1,0) -> 0 | BH46: =COUNTIF(BW$6:BW$10,BJ46) -> 0 | BI46: Anzahl | BJ46: 2 | BM46: 0 | BN46: Indikator Warnung durch Makro | BT46: Auffr | BU46: 2 | BV46: in Zeile | BW46: =MATCH(BU46,BW$6:BW$10,0) ->  | BY46: =BS$43-1+BW46 -> 
AD47: Stufe 3 | AE47: =AE46+AK46 -> 44211.70833 | AF47: =AF46+AK46 -> 44211.375 | AG47: =AD39 -> 44210.875 | AH47: =AH48-AK47 -> 44210.875 | AI47: =INDEX(AE47:AH47,1,$AD$43) -> 2021-01-15T09:00:00 | AJ47: =O19 -> 00:00:00 | AK47: =IF(AND(AH20,$BC$8>2),AJ47,0) -> 00:00:00 | AS47: 2b: | AT47: =IF(O22>0,N22,N21) -> 24 | AY47: STSt+ASt (man) | AZ47: =AZ46+BC6 -> 2 | BG47: =IF(BH47>1,1,0) -> 0 | BH47: =COUNTIF(BW$6:BW$10,BJ47) -> 0 | BI47: Anzahl | BJ47: 3 | BM47: =IF(BM45+BM46=2,1,0) -> 0 | BN47: Trigger für Formatierung | BT47: Auffr | BU47: 3 | BV47: in Zeile | BW47: =MATCH(BU47,BW$6:BW$10,0) ->  | BY47: =BS$43-1+BW47 -> 
AD48: Stufe 4 | AE48: =AE47+AK47 -> 44211.70833 | AF48: =AF47+AK47 -> 44211.375 | AG48: =AG47+AK47 -> 44210.875 | AH48: =AD39 -> 44210.875 | AI48: =INDEX(AE48:AH48,1,$AD$43) -> 2021-01-15T09:00:00 | AJ48: =O20 -> 00:00:00 | AK48: =IF(AND(AH21,$BC$8>3),AJ48,0) -> 00:00:00 | AS48: Mittel: | AT48: =(AT46+AT47)/2 -> 24 | AY48: STSt+ASt (auto) | AZ48: =AZ46+BG41 -> 2 | BG48: =IF(BH48>1,1,0) -> 0 | BH48: =COUNTIF(BW$6:BW$10,BJ48) -> 0 | BI48: Anzahl | BJ48: 4
AM49: CL10 | AN49: asg/ZM | AO49: 40 | AR49: Abschätzung Wassertemperatur
D50: =IFERROR(ROW(F21)+LEN(F21)+CODE(LEFT(F21,1)),0) -> 125 | E50: =IFERROR(ROW(K23)+LEN(K23)+CODE(LEFT(K23,1)),0) -> 178 | AM50: CQ10 | AN50: ZusM/GM | AO50: 39 | AT50: °C
D51: =IFERROR(ROW(F22)+LEN(F22)+CODE(LEFT(F22,1)),0) -> 180 | E51: =IFERROR(ROW(K24)+LEN(K24)+CODE(LEFT(K24,1)),0) -> 156 | AS51: RT | AT51: =L11 -> 24 | AU51: (RT = MT)
D52: 142 | E52: =IFERROR(ROW(K25)+LEN(K25)+CODE(LEFT(K25,1)),0) -> 128 | AT52: Temp | AU52: MMenge | AV52: WMenge | AW52: Wärme-Effekt | BS52: A | BV52: M | BW52: W
D53: =IFERROR(ROW(K21)+LEN(K21)+CODE(LEFT(K21,1)),0) -> 162 | E53: =IFERROR(ROW(K26)+LEN(K26)+CODE(LEFT(K26,1)),0) -> 59 | AR53: ST | AT53: =IF(N20<>"",N20,IF(N19<>"",N19,IF(N18<>"",N18,IF(N17<>"",N17,0)))) -> 20 | AU53: =IF(AH19,J5-AV53,0) -> 120 | AV53: =J5/2*AB20 -> 120 | AW53: =(AU53+BA$54*AV53)*(273+AT53) -> 140640 | BG53: 3 | BH53: Knetzunahme (3-5°C)
D54: =IFERROR(ROW(K22)+LEN(K22)+CODE(LEFT(K22,1)),0) -> 163 | AR54: Mehle HT | AS54: :=RT | AT54: =AT51 -> 24 | AU54: =SUM('Kreations-UI'!C18:C26) -> 900 | AW54: =AU54*(273+AT54) -> 267300 | BA54: 3 | BB54: KorrF. f WKap Wasser | BG54: =AT51-AT60 -> 0 | BH54: Diff RT-TT | BR54: =BV54/(BS54+BV54+BW54)*BS55 -> 2 | BS54: 10 | BV54: 20 | BW54: 20 | BX54: =M/(A+M+W)/A2
D55: =IFERROR(ROW(K27)+LEN(K27)+CODE(LEFT(K27,1)),0) -> 176 | E55: =IFERROR(ROW(K28)+LEN(K28)+CODE(LEFT(K28,1)),0) -> 61 | AR55: Zuschütt-W | AT55: =AR61 -> 25.11187297 | AV55: =IF('Kreations-UI'!C17>0,'Kreations-UI'!C17,1) -> 580 | AW55: =(AU55+BA$54*AV55)*(273+AT55) -> 518714.659 | BA55: 0.5 | BB55: KorrF für Luft | BG55: =AT60+BG53+(BG54*BA55) -> 27 | BH55: Teigtemp nach dem Kneten | BR55: =BV55/(BS55+BV55+BW55)*BS56 -> 50 | BS55: 5 | BV55: 50 | BW55: 50 | BX55: =M/(A+M+W)/A3
D56: 141 | E56: =IFERROR(ROW(K29)+LEN(K29)+CODE(LEFT(K29,1)),0) -> 62 | AR56: NT etc | AS56: s.o. | AT56: =AT48 -> 24 | AU56: ='Kreations-UI'!F11-'Kreations-UI'!F17 -> 15.1506432 | AV56: ='Kreations-UI'!G29+'Kreations-UI'!G38+'Kreations-UI'!G47+'Kreations-UI'!G56 -> 0 | AW56: =(AU56+BA$54*AV56)*(273+AT56) -> 4499.74103 | BR56: =BV56/(BS56+BV56+BW56)*BS57 -> 200 | BS56: 105 | BV56: 200 | BW56: 200
D57: 101 | E57: =IFERROR(ROW(K30)+LEN(K30)+CODE(LEFT(K30,1)),0) -> 175 | AR57: Sonstiges | AS57: :=RT | AT57: =AT51 -> 24 | AU57: ='Kreations-UI'!F56 -> 0 | AV57: ='Kreations-UI'!G56 -> 0 | AW57: =(AU57+BA$54*AV57)*(273+AT57) -> 0 | BG57: =BG55-AR60 -> 3 | BH57: Differenz zu Soll-TT | BS57: 505
D58: 130 | E58: =IFERROR(ROW(K31)+LEN(K31)+CODE(LEFT(K31,1)),0) -> 109 | AT58: =ROUND(SUM(AU58:AV58),1) -> 3135.2 | AU58: =SUM(AU53:AU57) -> 1035.150643 | AV58: =SUM(AV53:AV57)*BA54 -> 2100 | AW58: =SUM(AW53:AW57) -> 931154.4
D59: 112 | E59: 162 | BF59: Soll-Teig-Temp. vor geplanter Knetung: | BG59: =AR60-BG53+(AR60-BG53-AT51)*BA55 -> 19.5 | BH59: °C (damit nach Knetung Soll-TT erreicht wird)
D60: =IFERROR(ROW(H31)+LEN(H31)+CODE(LEFT(H31,1)),0) -> 184 | E60: 113 | AR60: ='Kreations-UI'!AX17 -> 24 | AS60: Ziel-Temperatur Teig | AT60: =AW58/AT58-273 -> 24 | AU60: Ist- Teigtemp vor dem Kneten | BF60: WT (mit Kneten) = | BG60: =IF(((273+BG59)*AT58-AW53-AW54-AW56-AW57)/(AV55*BA54)-273>99,99,((273+BG59)*AT58-AW53-AW54-AW56-AW57)/(AV55*BA54)-273) -> 17.00359711
D61: =SUM(D50:D60)+SUM(E50:E60) -> 2819 | E61: Prüfsumme Arbeitsinfo | AR61: =IF(((273+AR60)*AT58-AW53-AW54-AW56-AW57)/(AV55*BA54)-273>99,99,((273+AR60)*AT58-AW53-AW54-AW56-AW57)/(AV55*BA54)-273) -> 25.11187297 | AT61: °C WT (ohne Kneten)
BF62: Test-Teig-Temp. | BG62: 21
BF63: erforderliche Wasser-Temp. | BG63: =((273+BG62)*AT58-AW53-AW54-AW56-AW57)/(AV55*BA54)-273 -> 19.70635573
AU64: Abschätzung der Garzeiten für die einzelnen Stufen
AU66: Die meisten benötigten Daten werden aus den Angaben im Kreator und der Teigführung | BA66: Prognostizierte Dauer der einzelnen Stufen
AU67: übernommen. Ein paar Extra-Angaben zu deinem einzigartigen Sauerteig sind aber erforderlich. | BB67: min | BC67: Ø | BD67: max
BA68: Name Stufe | BB68: =HLOOKUP($N88,$E$32:$K$39,6) ->  | BC68: =HLOOKUP($N88,$E$32:$K$39,7) ->  | BD68: =HLOOKUP($N88,$E$32:$K$39,8) -> 
AU69: 0 | AV69: (0-30) | AW69: Tage seit letzter Auffrischung (ca.) | BA69: Name Stufe | BB69: =HLOOKUP($N89,$E$32:$K$39,6) ->  | BC69: =HLOOKUP($N89,$E$32:$K$39,7) ->  | BD69: =HLOOKUP($N89,$E$32:$K$39,8) -> 
AU70: 2 | AV70: (1-3) | AW70: gewünschte Ziel-Reife des ST, 2=verdoppelt | BA70: Name Stufe | BB70: =HLOOKUP($N90,$E$32:$K$39,6) ->  | BC70: =HLOOKUP($N90,$E$32:$K$39,7) ->  | BD70: =HLOOKUP($N90,$E$32:$K$39,8) -> 
AU71: 0.4 | AV71: (0- >100) | AW71: gewünschter Volumenzuwachs Bulkrise | BA71: Name Stufe | BB71: =IF($N91<9,HLOOKUP($N91,$E$32:$K$39,6),"") ->  | BC71: =IF($N91<9,HLOOKUP($N91,$E$32:$K$39,7),"") ->  | BD71: =IF($N91<9,HLOOKUP($N91,$E$32:$K$39,8),"") -> 
AU72: 7 | AV72: (0-10) | AW72: gewünschte Teigreife nach Proofing . 7=knappe Gare | BA72: Name Stufe | BB72: =IF($N92<9,HLOOKUP($N92,$E$32:$K$39,6),"") ->  | BC72: =IF($N92<9,HLOOKUP($N92,$E$32:$K$39,7),"") ->  | BD72: =IF($N92<9,HLOOKUP($N92,$E$32:$K$39,8),"") -> 
BA73: Name Stufe | BB73: =IF($N93<9,HLOOKUP($N93,$E$32:$K$39,6),"") ->  | BC73: =IF($N93<9,HLOOKUP($N93,$E$32:$K$39,7),"") ->  | BD73: =IF($N93<9,HLOOKUP($N93,$E$32:$K$39,8),"") -> 
G74: 7 | AU74: 4 | AV74: (0-10) | AW74: typische Sauerteig-Power nach Verdopplungstabelle (ð)
AU77: Anzeige der Dauer als Intervall | BB77: Dauern jetzt übertragen
AU78: 0.1 | AV78: Dauer - x% = Minimum | BB78: (TF grob + spezial)
AU79: 0.1 | AV79: Dauer + x% = Maximum
A97: Diese Tabelle wird von Makro Auto_TF genutzt
E98: 5 | F98: 6 | G98: 7 | H98: 8 | I98: 9 | J98: 10 | K98: 11 | L98: 12 | M98: 13 | N98: 14 | O98: 15 | P98: 16 | Q98: 17 | R98: 18 | S98: 19 | T98: 20 | U98: 21 | V98: 22
A99: typ- ST-Führungen
B100: Check StartZeile für Führung Nr 4 aus Teigführung: | D100: ='Teig-Führung'!BM43 -> 102
C101: Stufen gesamt | D101: Stufe | E101: M1 + | F101: W1 | G101: t min | H101: t max | I101: °C | J101: Stufe | K101: M2 + | L101: W2 | M101: t min | N101: t max | O101: °C | P101: Stufe | Q101: M3 + | R101: W3 | S101: t min | T101: t max | U101: °C
A102: 4 | B102: Detmolder 1-Stufen-Führung | C102: 1 | D102: Vollsauer | E102: 2 | F102: 2 | G102: 0.625 | H102: 0.8333333333 | I102: 26 | V102: =C102 -> 1
A103: 5 | B103: 1:4,5:4,5 | C103: 1 | D103: Vollsauer | E103: 4.5 | F103: 4.5 | G103: 0.4583333333 | H103: 0.5833333333 | I103: 22 | V103: =C103 -> 1
A104: 6 | B104: Lievito Madre | C104: 1 | D104: Vollsauer | E104: 1 | F104: 0.5 | G104: 0.08333333333 | H104: 0.1666666667 | I104: 27 | V104: 1
A105: 7 | B105: LOZ | C105: 2 | D105: Grundsauer | E105: 10 | F105: 10 | G105: 0.5 | H105: 0.6666666667 | I105: 21 | J105: Vollsauer | K105: 1 | L105: 1 | M105: 0.08333333333 | N105: 0.125 | O105: 31 | V105: 2
A106: 8 | B106: klass. 3-Stufen-Führung | C106: 3 | D106: Anfrischsauer | E106: 3 | F106: 3 | G106: 0.1666666667 | H106: 0.3333333333 | I106: 25 | J106: Grundsauer | K106: 5.1 | L106: 2.9 | M106: 0.25 | N106: 0.4166666667 | O106: 26 | P106: Vollsauer | Q106: 1.23 | R106: 1.3 | S106: 0.125 | T106: 0.1666666667 | U106: 29 | V106: 3
A107: 9 | B107: altern. 3-Stufen-Führung nach Pöt | C107: 3 | D107: Anfrischsauer | E107: 1.5 | F107: 1.5 | G107: 0.25 | H107: 0.3333333333 | I107: 27 | J107: Grundsauer | K107: 0.375 | L107: 0.375 | M107: 0.25 | N107: 0.3333333333 | O107: 24 | P107: Vollsauer | Q107: 0.214 | R107: 0.214 | S107: 0.125 | T107: 0.1666666667 | U107: 20 | V107: 3
B108: Scrapings nach Michael Greene | C108: 1 | D108: Vollsauer | E108: 10 | F108: 10 | G108: 0.1666666667 | H108: 0.2916666667 | I108: 22 | V108: 1
A111: Hinterlegte Auffrischungen | C111: Startzeile aus TF | D111: ='Teig-Führung'!BS43 -> 112
A112: 1 | B112: 1:2:2 / ≈5h / 27° | C112: 2 | D112: 2 | E112: 03:30:00 | F112: 06:00:00 | G112: 27
A113: 2 | B113: 1:3:3 / ≈6h / 27° | C113: 3 | D113: 3 | E113: 04:30:00 | F113: 07:00:00 | G113: 27
A114: 3 | B114: 1:5:5 / ≈12h / 22° | C114: 5 | D114: 5 | E114: 09:00:00 | F114: 15:00:00 | G114: 22 | O114: =IF($AH$19,SUM(O120:O123),0) -> 20:00:00 | P114: =IF($AH$19,SUM(P120:P123),0) -> 14:00:00 | Q114: =IF($AH$19,SUM(Q120:Q123),0) -> 1
A115: 4 | B115: 1:7:7 / ≈10h / 27° | C115: 7 | D115: 7 | E115: 08:00:00 | F115: 12:00:00 | G115: 27 | O115: Hilfskalkulation für Gesamtzeiten TF | S115: Ofenzeit
A116: 5 | B116: 1:10:5/ ≈15h / 27° | C116: 10 | D116: 5 | E116: 10:00:00 | F116: 18:00:00 | G116: 27 | N116: ST bzw Vorteige | O116: =MAX(O114,MAX(O21,O22)) -> 0.8333333333 | P116: =MAX(P114,MAX(P124,P125)) -> 0.5833333333 | Q116: =MAX(Q114,MAX(Q124,Q125)) -> 1 | S116: =IF(R37,R36,R35) -> 0.0625
N117: Hauptteig komplett (Gare, Backen, etc) | O117: =SUM(O23:O33)-O26-O27-O32 -> 1.232638889 | P117: =SUM(P126:P136)-P129-P130-P135 -> 0.07291666667 | Q117: =SUM(Q126:Q136)-Q129-Q130-Q135 -> 2.723958333
B119: Titel:
B120: =IF(U4=0,O4,W4) -> *** Standard-Vorlage für neues ST-Brotrezept *** | N120: 17 | O120: =IF(AND(AH$19,BC$8>0),O17,0) -> 0.3333333333 | P120: =IF($O120>0,P17,0) -> 0.25 | Q120: 0.5
N121: 18 | O121: =IF(AND(AH$19,BC$8>1),O18,0) -> 0.5 | P121: 0.3333333333 | Q121: 0.5
N122: 19 | O122: =IF(AND(AH$19,BC$8>2),O19,0) -> 0 | P122: 0 | Q122: 0
N123: 20 | O123: =IF(AND(AH$19,BC$8=4),O20,0) -> 0 | P123: 0 | Q123: 0
N124: 21 | O124: =O21 -> 0 | P124: 0 | Q124: 0
N125: 22 | O125: 0.02083333333 | P125: 0.02083333333 | Q125: 0.5
N126: 23 | O126: 0.01041666667 | P126: 0.003472222222 | Q126: 0.01388888889
N127: 24 | O127: 0.0625 | P127: 0 | Q127: 0.1041666667
N128: 25 | O128: 0.2708333333 | P128: 0.02083333333 | Q128: 0.5
N129: 26 | O129: 0.3333333333 | P129: 0 | Q129: 0
N130: 27 | O130: 0 | P130: 0 | Q130: 0
N131: 28 | O131: 0.006944444444 | P131: 0 | Q131: 0.02083333333
N132: 29 | O132: 0.01041666667 | P132: 0 | Q132: 0.02777777778
N133: 30 | O133: 0.006944444444 | P133: 0.003472222222 | Q133: 0.02083333333
N134: 31 | O134: 0.8333333333 | P134: 0.02083333333 | Q134: 2
N135: 32 | O135: 0.03125 | P135: 0.02777777778 | Q135: 0.05208333333
N136: 33 | O136: 0.03125 | P136: 0.02430555556 | Q136: 0.03645833333

Sheet Garzeiten
C1: Parameter Garzeiten - Vorhersage für individuellen Sauerteig
B4: Parameter für die Abschätzung der einzelnen Garzeiten | P4: Verdopplungtabelle ð Sauerteig-Power ermitteln
C7: Die meisten benötigten Daten werden aus den Angaben im Kreator und der Teigführung übernommen. Ein paar Extra-Angaben zu deinem einzigartigen Sauerteig sind aber erforderlich. In den Klammern sind sinnvolle Einstellungen angegeben. | G7: Prognostizierte Dauer der einzelnen Stufen | Q7: Dauer Vol x 2 | S7: ST-Power | U7: unter folgenden Bedingungen:
Q8: =ROUND(R46*288/24,0)/288 -> 0.3541666667 | R8: ð | S8: 0 | U8: 0.2 | V8: Inokulation
Q9: 0.2951388889 | R9: ð | S9: 1 | U9: 26 | V9: °C Temperatur
J10: min | K10: Ø | L10: max | M10: °C | Q10: 0.2534722222 | R10: ð | S10: 2 | U10: 200 | V10: TA
C11: 4 | D11: (0-10) | E11: typische Sauerteig-Power nach Verdopplungstabelle (ð) | G11: ='Teig-Führung'!CE6 -> Auffrischung | J11: =HLOOKUP($P46,$F$44:$M$51,6) -> 0.4548611111 | K11: =HLOOKUP($P46,$F$44:$M$51,7) -> 0.4925355268 | L11: =HLOOKUP($P46,$F$44:$M$51,8) -> 0.5520833333 | M11: =HLOOKUP($P46,$F$44:$M$52,9) -> 22 | Q11: 0.2222222222 | R11: ð | S11: 3 | U11: 0 | V11: Salzgehalt
G12: =IF(Stufen>1,'Teig-Führung'!CE7,"Stockgare") -> Vollsauer | J12: =HLOOKUP($P47,$F$44:$M$51,6) -> 0.5 | K12: =HLOOKUP($P47,$F$44:$M$51,7) -> 0.5423828763 | L12: =HLOOKUP($P47,$F$44:$M$51,8) -> 0.6076388889 | M12: =HLOOKUP($P47,$F$44:$M$52,9) -> 20 | Q12: 0.1979166667 | R12: ð | S12: 4 | U12: 0.6 | V12: VK-Anteil im ST
C13: 2 | D13: (1-3) | E13: gewünschte Ziel-Reife des Sauerteigs, 2≈verdoppelt | G13: =IF(Stufen=2,"Stockgare",IF(Stufen=1,"Stückgare",'Teig-Führung'!CE8)) -> Stockgare | J13: =HLOOKUP($P48,$F$44:$M$51,6) -> 0.2291666667 | K13: =HLOOKUP($P48,$F$44:$M$51,7) -> 0.2503955493 | L13: =HLOOKUP($P48,$F$44:$M$51,8) -> 0.28125 | M13: =HLOOKUP($P48,$F$44:$M$52,9) -> 24 | Q13: 0.1770833333 | R13: ð | S13: 5 | V13: (hohe Typen-Mehle zählen halb)
G14: =IF(Stufen=3,"Stockgare",IF(Stufen=2,"Stückgare",'Teig-Führung'!CE9)) -> Stückgare | J14: =IF($P49<9,HLOOKUP($P49,$F$44:$M$51,6),"") -> 0.8020833333 | K14: =IF($P49<9,HLOOKUP($P49,$F$44:$M$51,7),"") -> 0.8719007797 | L14: =IF($P49<9,HLOOKUP($P49,$F$44:$M$51,8),"") -> 0.9756944444 | M14: =IF($P49<9,HLOOKUP($P49,$F$44:$M$52,9),"") -> 5 | Q14: 0.1631944444 | R14: ð | S14: 6
C15: 0.3 | D15: (0- >100) | E15: gewünschter Volumenzuwachs Bulkrise | G15: =IF(Stufen=4,"Stockgare",IF(Stufen=3,"Stückgare","")) ->  | J15: =IF($P50<9,HLOOKUP($P50,$F$44:$M$51,6),"") ->  | K15: =IF($P50<9,HLOOKUP($P50,$F$44:$M$51,7),"") ->  | L15: =IF($P50<9,HLOOKUP($P50,$F$44:$M$51,8),"") ->  | M15: =IF($P50<9,HLOOKUP($P50,$F$44:$M$52,9),"") ->  | Q15: 0.1493055556 | R15: ð | S15: 7 | U15: Diese Parameter können deinem Bedarf entsprechend individuell angepasst werden!
G16: =IF(Stufen=4,"Stückgare","") ->  | J16: =IF($P51<9,HLOOKUP($P51,$F$44:$M$51,6),"") ->  | K16: =IF($P51<9,HLOOKUP($P51,$F$44:$M$51,7),"") ->  | L16: =IF($P51<9,HLOOKUP($P51,$F$44:$M$51,8),"") ->  | M16: =IF($P51<9,HLOOKUP($P51,$F$44:$M$52,9),"") ->  | Q16: 0.1354166667 | R16: ð | S16: 8
C17: 7 | D17: (0-10) | E17: gewünschte Teigreife nach Proofing, 7≈knappe Gare | Q17: 0.1284722222 | R17: ð | S17: 9
G18: Alle Angaben sind selbstverständlich ohne Gewähr :-) | Q18: 0.1180555556 | R18: ð | S18: 10
C19: 0 | D19: (0-2) | E19: =CONCATENATE("Salzgehalt Sauerteig",IF(C19>0,Q42,"")) -> Salzgehalt Sauerteig
C20: ñ | G20: Intervallbreite in der Anzeige | Q20: =CONCATENATE("Info: Die Verdoppelungszeit gilt für einen angefrischten Sauerteig. Die gewählte Inokulation entspricht einem Mischungsverhältnis von 1 : ",ROUND((1/U8-1)/2,1)," : ",ROUND((1/U8-1)/2,1),". Die gewählte TA entspricht einer Hydratation von ",(U10-100),"%") -> Info: Die Verdoppelungszeit gilt für einen angefrischten Sauerteig. Die gewählte Inokulation entspricht einem Mischungsverhältnis von 1 : 2 : 2. Die gewählte TA entspricht einer Hydratation von 100%
C21: Auswahl Salzsauer-Verfahren | G21: 0.08 | H21: Ø Dauer - x% = Minimum
C22: (Angabe in Prozent vom ST-Mehl) | G22: 0.12 | H22: Ø Dauer + x% = Maximum
P25: Wie lange braucht dein Sauerteig normalerweise, um sich zu verdoppeln? Stelle hier die Bedingungen ein, die auf deinen Sauerteig und deinen Umgang damit zutreffen und lies dann die Power neben der passenden Zeit ab. Normalerweise sollte sich diese Power bei älteren Sauerteigen nicht mehr stark verändern.
E34: Haupttabelle
C35: =Stf -> 2 | D35: Anzahl ST-Stufen gesamt Reihenfolge von unten aufgefüllt | J35: 0.09 | K35: Power-Zuwachs pro Stufe | P35: ='Teig-Führung'!BX26 -> 3 | Q35: Tage seit letzter Auffrischung
B36: 1 | C36: =IF(Stufen>3,VLOOKUP($B36,$B$64:$J$67,2),0.01) -> 0.01 | D36: ST -3 | E36: Datenquelle für Funktionen | F36: =IF(Stufen>3,VLOOKUP($B36,$B$64:$J$67,5),0.01) -> 0.01 | G36: Hydratation 1 | J36: =IF(Stufen>3,VLOOKUP($B36,$B$64:$J$67,9),10) -> 10 | K36: Temperatur 1 | Q36: 0 | R36: ggf. Salz im ST 1
B37: 2 | C37: =IF(Stufen>2,VLOOKUP($B37,$B$64:$J$67,2),0.01) -> 0.01 | D37: ST -2 | E37: übernimmt Daten von Hilfstabelle unten | F37: =IF(Stufen>2,VLOOKUP($B37,$B$64:$J$67,5),0.01) -> 0.01 | G37: Hydratation 2 | J37: =IF(Stufen>2,VLOOKUP($B37,$B$64:$J$67,9),10) -> 10 | K37: Temperatur 2 | Q37: 0 | R37: ggf. Salz im ST 2
B38: 3 | C38: =IF(Stufen>1,VLOOKUP($B38,$B$64:$J$67,2),0.01) -> 0.091 | D38: ST-1 | F38: =IF(Stufen>1,VLOOKUP($B38,$B$64:$J$67,5),0.01) -> 1 | G38: Hydratation 3 | J38: =IF(Stufen>1,VLOOKUP($B38,$B$64:$J$67,9),10) -> 22 | K38: Temperatur 3 | Q38: 0 | R38: ggf. Salz im ST 3
B39: 4 | C39: =IF(Stufen>0,VLOOKUP($B39,$B$64:$J$67,2),0.01) -> 0.111 | D39: Inok in ST | F39: =IF(Stufen>0,VLOOKUP($B39,$B$64:$J$67,5),0.01) -> 1 | G39: Hydratation ST | J39: =IF(Stufen>0,VLOOKUP($B39,$B$64:$J$67,9),10) -> 20 | K39: Temperatur ST | Q39: =C19 -> 0 | R39: ggf. Salz im ST 4
C40: ='Kreations-UI'!AK80 -> 0 | D40: Vollkornanteil aktuelle Führung | F40: =C13 -> 2 | G40: Stufen-Zielreife | J40: =C40-U12 -> -0.6 | K40: Delta akt. VKA zu Standard-VKA | R40: = | S40: =ROUND('Teig-Führung'!CQ26,1) -> 0 | T40: g
C41: ='Teig-Führung'!CK33 -> 0.12314 | D41: Inok. ST von HT | F41: =('Teig-Führung'!AM11-100)/100 -> 0.6863821776 | G41: Hydratation HT | J41: ='Teig-Führung'!N25 -> 24 | K41: Temperatur Bulk | Q41: ='Kreations-UI'!L6/100 -> 0.02 | R41: Salzanteil HT
C42: ='Kreations-UI'!AL78 -> 0 | D42: Vollkornanteil Mehle Restteig | J42: ='Teig-Führung'!N31 -> 5 | K42: Temperatur Proof | Q42: =CONCATENATE(" => Salzsauer gewählt => ",S40,"g Salz") -> => Salzsauer gewählt => 0g Salz
E44: Position | F44: =Stufen-3 -> -1 | G44: =1+F44 -> 0 | H44: =1+G44 -> 1 | J44: =1+H44 -> 2 | K44: =1+J44 -> 3 | L44: =1+K44 -> 4 | M44: 9 | P44: nicht löschen, nur verschieben
D45: Ausgangs-ASG | E45: Stufe | F45: 1. Stufe | G45: 2. Stufe | H45: 3. Stufe | J45: ST | K45: Bulk | L45: Proof | P45: #Stufe | Q45: Primär-Power | R45: Verd-Zeit
D46: =ROUND(MAX(MIN(L53-L54+C40*J40*D56,1.7),0.3),2) -> 0.87 | E46: Starter-Power | F46: =D46 -> 0.87 | G46: =IF(Stufen>3,F47,D46) -> 0.87 | H46: =IF(Stufen>2,G47,D46) -> 0.87 | J46: =IF(Stufen>1,H47,D46) -> 0.96 | K46: =J47 -> 1.05 | L46: =K46 -> 1.05 | P46: 1 | Q46: 0.5 | R46: =LN(1/(U$8*D$55))/uall_ave(U$9,(U$10-100)/100,U$11,(Q46+D$56*U$12),U$8*D$53) -> 8.48081219 | S46: 0
E47: Power nachher | F47: =MIN(F46+$J35,1.8) -> 0.96 | G47: =MIN(G46+$J35,1.8) -> 0.96 | H47: =MIN(H46+$J35,1.8) -> 0.96 | J47: =MIN(H47+J35+0.2*C42,1.8) -> 1.05 | P47: 2 | Q47: 0.62 | R47: 7.082876115 | S47: 1
E48: Garzeit Stufe [,] | F48: =LN(F$40/(C36*D55))/urise_ave(J36,F36,Q36,F46,C36*$D$53) -> 421.6681134 | G48: =LN(F$40/(C37*D55))/urise_ave(J37,F37,Q37,G46,C37*$D$53) -> 421.6681134 | H48: =LN(F$40/(C38*D55))/urise_ave(J38,F38,Q38,H46,C38*$D$53) -> 11.82085264 | J48: =LN(F$40/(C39*D55))/urise_ave(J39,F39,Q39,J46,C39*$D$53) -> 13.01718903 | K48: =KorrBulk*LN(L55/(C41*D55))/urise_ave(J41,F41,Q41,K46,C41*$D$53) -> 6.009493184 | L48: =KorrProof*LN(L56/L55)/urise_ave(J42,F41,Q41,L46,C41*$D$53) -> 20.92561871 | P48: 3 | Q48: 0.74 | R48: 6.080582325 | S48: 2
E49: Garzeit min | F49: =ROUND((F50-$G21*F50)*288,0)/288 -> 16.16319444 | G49: =ROUND((G50-$G21*G50)*288,0)/288 -> 16.16319444 | H49: =ROUND((H50-$G21*H50)*288,0)/288 -> 0.4548611111 | J49: =ROUND((J50-$G21*J50)*288,0)/288 -> 0.5 | K49: =ROUND((K50-$G21*K50)*288,0)/288 -> 0.2291666667 | L49: =ROUND((L50-$G21*L50)*288,0)/288 -> 0.8020833333 | P49: =IF(Stufen>1,4,9) -> 4 | Q49: 0.86 | R49: 5.326791128 | S49: 3
E50: Garzeit Stufe [hh:mm] | F50: =F48/24 -> 17.56950473 | G50: =G48/24 -> 17.56950473 | H50: =H48/24 -> 0.4925355268 | J50: =J48/24 -> 0.5423828763 | K50: =K48/24 -> 0.2503955493 | L50: =L48/24 -> 0.8719007797 | P50: =IF(Stufen>2,5,9) -> 9 | Q50: 0.98 | R50: 4.7392774 | S50: 4
E51: Garzeit max | F51: =ROUND((F50+$G22*F50)*288,0)/288 -> 19.67708333 | G51: =ROUND((G50+$G22*G50)*288,0)/288 -> 19.67708333 | H51: =ROUND((H50+$G22*H50)*288,0)/288 -> 0.5520833333 | J51: =ROUND((J50+$G22*J50)*288,0)/288 -> 0.6076388889 | K51: =ROUND((K50+$G22*K50)*288,0)/288 -> 0.28125 | L51: =ROUND((L50+$G22*L50)*288,0)/288 -> 0.9756944444 | P51: =IF(Stufen>3,6,9) -> 9 | Q51: 1.1 | R51: 4.268488255 | S51: 5
E52: Temp | F52: =J36 -> 10 | G52: =J37 -> 10 | H52: =J38 -> 22 | J52: =J39 -> 20 | K52: =J41 -> 24 | L52: =J42 -> 5 | Q52: 1.22 | R52: 3.882781485 | S52: 6
C53: rot factor | D53: 1.03 | E53: direkte Nutzer-Eingaben | K53: PP: Primär-Power | L53: =0.12*C11+0.5 -> 0.98 | Q53: 1.34 | R53: 3.561004014 | S53: 7
C54: glutqfactor | D54: 1.01 | E54: Angaben aus Kreator oder TF | K54: Verlust durch TsA | L54: =ROUND((TANH((P35-5)*0.11)+1)/2.5-0.2,2) -> 0.11 | Q54: 1.46 | R54: 3.288478196 | S54: 8
C55: starter pot | D55: 0.98 | E55: berechnete Daten | K55: BR-Faktor: | L55: =ROUND(0.6927*C15^2+0.1721*C15+0.6363,2) -> 0.75 | Q55: 1.58 | R55: 3.054700125 | S55: 9
C56: VK-Einfluss-F | D56: 0.18 | E56: Konstanten | K56: Proof-Fkt: | L56: =ROUND(0.0025*C17^3-0.0223*C17^2+0.1203*C17+1.4709,1) -> 2.1 | Q56: 1.7 | R56: 2.851954542 | S56: 10
B57: Verdopplungszeit ST=LN(1/(inok*startPot))/uall_ave(Temp;Hydr;Salz;ASG-Power;Inok*rotF) | K57: Temp-Korrektur Bulk | L57: =1-(24-J41)*0.035 -> 1
B58: Garzeit=LN(Zielreife/(Inokulation*StarterPot))/urise_ave(Temp;Hydr;Salz;ASG-Power;Inokulation*rotF) | K58: Temp-Korrektur Proof | L58: =1-(24-J42)*0.035 -> 0.335 | P58: =CONCATENATE(Garzeiten!G11," (",Garzeiten!M11,"°)") -> Auffrischung (22°)
B59: BR=LN(BRF/(StInok*StarterPot))/urise_ave(Temp;Hydr;Salz;STPower;Inok*rotF) | K59: (Originalzeiten bei kalter Führung viel zu lang) | P59: =IF(Garzeiten!G12<>"",CONCATENATE(Garzeiten!G12," (",Garzeiten!M12,"°)"),"") -> Vollsauer (20°)
B60: Proof=LN(ProofF/BRF)/urise_ave(Temp;Hydr;Salz;StPower;Inok*rotF) | P60: =IF(Garzeiten!G13<>"",CONCATENATE(Garzeiten!G13," (",Garzeiten!M13,"°)"),"") -> Stockgare (24°)
B61: Inoculation in diesem Sinne: Mehl vom Starter / Gesamtmehl (nicht ST/GesTeig) | P61: =IF(Garzeiten!G14<>"",CONCATENATE(Garzeiten!G14," (",Garzeiten!M14,"°)"),"") -> Stückgare (5°)
E62: Hilfstabelle | P62: =IF(Garzeiten!G15<>"",CONCATENATE(Garzeiten!G15," (",Garzeiten!M15,"°)"),"") -> 
C63: ='Teig-Führung'!BC8 -> 2 | D63: Anzahl ST-Stufen gesamt Reihenfolge oben nach unten | P63: =IF(Garzeiten!G16<>"",CONCATENATE(Garzeiten!G16," (",Garzeiten!M16,"°)"),"") -> 
B64: =B65-1 -> 3 | C64: ='Teig-Führung'!CQ32 -> 0.091 | D64: Inok 1 | E64: Datenquelle für Haupttabelle oben | F64: ='Teig-Führung'!CU20 -> 1 | G64: Hydratation 1 | J64: ='Teig-Führung'!BM14 -> 22 | K64: Temperatur 1
B65: =B66-1 -> 4 | C65: ='Teig-Führung'!CQ33 -> 0.111 | D65: Inok 2 | E65: übernimmt Daten von TF bzw Kreator | F65: ='Teig-Führung'!CU21 -> 1 | G65: Hydratation 2 | J65: ='Teig-Führung'!BM15 -> 20 | K65: Temperatur 2
B66: =B67-1 -> 5 | C66: ='Teig-Führung'!CQ34 -> 1 | D66: Inok 3 | F66: ='Teig-Führung'!CU22 -> 1 | G66: Hydratation 3 | J66: ='Teig-Führung'!BM16 -> 27 | K66: Temperatur 3
B67: =8-Stf -> 6 | C67: ='Teig-Führung'!CQ35 -> 1 | D67: Inok 4 | F67: ='Teig-Führung'!CU23 -> 1 | G67: Hydratation 4 | J67: ='Teig-Führung'!BM17 -> 22 | K67: Temperatur 4

Sheet HefeAss
A1: Hefe-Assistent | F1: =CONCATENATE("Aktuelles Rezept: ",'Teig-Führung'!B120) -> Aktuelles Rezept: *** Standard-Vorlage für neues ST-Brotrezept ***
J3: ñ
C4: =IF(K36<>'Rp-Verwaltung'!Z14,"Die Daten in der Tabelle sind noch von einem anderen Rezept.","") ->  | I4: Achtung, bei diesem Rezept handelt es sich um ein Sauerteig-Rezept, nicht um ein Hefe-Rezept. | Y4: 
Y5: 
Y6: 
Y7: 
C8: Teig Mengen in [g] | F8: Teig-T: | G8: 24
C9: Mehlmenge | D9: 1008 | E9: Phase | F9: Dauer | G9: Temp. | H9: Dauer | I9: Temp. | J9: Dauer | K9: Temp.
C10: Teigmenge | D10: 1740 | E10: Bulk 1 | F10: 0.0625 | G10: 24 | H10: =F10+F11 -> 0.3333333333 | I10: =ROUND(N83,1) -> 24 | J10: =H10+H12 -> 1.177083333 | K10: =ROUND(P83,1) -> 11.2
E11: Bulk 2 | F11: 0.2708333333 | G11: 24
C12: Teigeinlage | D12: 870 | E12: Proof 1 | F12: 0.01041666667 | G12: 24 | H12: =F12+F13 -> 0.84375 | I12: =ROUND(O83,1) -> 6.2
E13: Proof 2 | F13: 0.8333333333 | G13: 5
C14: Hefemenge [g] | D14: trocken | E14: frisch | F14: End-T: | G14: =ROUND(K76,1) -> 5 | J14: orig.Rezept | K14: neue TF | AF14: 0
A15: =C51/100 -> 0.0213 | C15: laut orig.Rezept wenn unbekannt ð 0 | D15: 7.16 | E15: =3*D15 -> 21.48 | I15: Bulk-Anteil | J15: 0.8648796791 | K15: =F62 -> 0.8648796791
A16: =C48/100 -> 0.0213 | C16: neu relativ berechnet | D16: =H58 -> 7.16 | E16: =3*D16 -> 21.48 | I16: Proof-Anteil | J16: 0.1351203209 | K16: =F63 -> 0.1351203209
A17: =C49/100 -> 0.0056 | C17: neu unabhängig berechnet* | D17: 1.888756832 | E17: =3*D17 -> 5.666270495
C19: Abweichung der originalen Hefemenge von der unabhängig berechneten Hefemenge: | E19: =J58 -> -0.7362071464
C20: Diese Abweichung ist ungewöhnlich groß! Bitte prüfe, ob das so in Ordnung ist.
C23: manueller Hefe-Korrektur-Faktor (unabhängig) falls gewünscht | E23: 1.7 | F23: nach eigener Erfahrung, z.B. 1,4 bei fettreichen Teigen
A24: =F45/100 -> 0.0095 | C24: ð korr. unabhängige Hefe: | D24: =ROUND(E23*D17,1) -> 3.2 | E24: =3*D24 -> 9.6 | M24: Die unabhängig berechnete Hefe ergibt leider einen ziemlich unzuverlässigen Wert. Die relative Hefe ist vertrauenswürdiger. Allerdings brauchst du dafür eben einen guten Ausgangswert.
C28: =F77 -> 1.143600275 | D28: Errechnete Zeit (für Makro)
C35: Angaben aus aktuellem Rezept
B36: L12 | C36: ='Teig-Führung'!$AE$28 -> 24 | D36: Teigtemperatur | E36: AI8 | K36: 1 | L36: Rezept-Nr aktuelle Daten
B37: L11 | C37: ='Teig-Führung'!L11 -> 24 | D37: Raumtemperatur | E37: -
B38: N24 | C38: ='Teig-Führung'!N24 -> 24 | D38: Bulk-T 1 | E38: G10 | F38: ='Teig-Führung'!N29 -> 24 | G38: Proof-Temp 1 | H38: G12 | I38: N29
B39: O24 | C39: ='Teig-Führung'!O24 -> 0.0625 | D39: Bulk-Z 1 | E39: F10 | F39: ='Teig-Führung'!O29 -> 0.01041666667 | G39: Proof-Zeit 1 | H39: F12 | I39: O29
B40: N25 | C40: ='Teig-Führung'!N25 -> 24 | D40: Bulk-T 2 | E40: G11 | F40: ='Teig-Führung'!N31 -> 5 | G40: Proof-Temp 2 | H40: G13 | I40: N31
B41: O25 | C41: ='Teig-Führung'!O25 -> 0.2708333333 | D41: Bulk-Z 2 | E41: F11 | F41: ='Teig-Führung'!O31 -> 0.8333333333 | G41: Proof-Zeit 2 | H41: F13 | I41: O31
B42: G10 | C42: ='Kreations-UI'!G10 -> 1740 | D42: Teigmenge | E42: D10 | F42: ='Teig-Führung'!AH20 -> 1 | G42: ST-Rezept? | H42: TF-AH20
B43: AR13 | C43: ='Kreations-UI'!AR12 -> 870 | D43: Teigeinlage | E43: D11 | G43: Dauer F
B44: F12 | C44: ='Kreations-UI'!F12 -> 1008 | D44: Mehlmenge | E44: D9 | G44: Temp G
B45: J7 | C45: ='Kreations-UI'!J7 -> 7.16 | D45: Hefe Rp | E45: D14 | F45: =ROUND(D24/D9*300,2) -> 0.95 | G45: Hefe% unabh. korrigiert
D46: trocken (aus Rez für Tab)
C47: =D15 -> 7.16 | D47: (1) Hefe Rp trocken (aus Tabelle) | H47: dynamische Werte
C48: =ROUND(D16/D9*300,2) -> 2.13 | D48: Hefe% rel | E48: L7 | G48: Hefe calc pur | H48: KorrF | I48: H calc korr | N48: Hefe calc alt man F
C49: =ROUND(D17/D9*300,2) -> 0.56 | D49: Hefe% unabh. | E49: L7 | G49: =ROUND(D9/480*(1800*EXP(-0.205*K10))*P81^-1.45,2) -> 2.99 | H49: =IF(AND(C47>0,K49),H52,E23) -> 2.394648829 | I49: =ROUND(G49*H49,2) -> 7.16 | N49: =G49*E23 -> 5.083
C50: 1.325842697 | D50: KorrF fix | E50: H49 | G50: G49 | H50: H49 | I50: I49
C51: =ROUND(D15/D9*300,2) -> 2.13 | D51: Hefe% Rp | P51: HefeFix (jetzt automatisch changebyvalue
C52: reinkopiert aus Rezept, per StartMakro in Tabelle | G52: KorrF RP/calcAlt | H52: =C45/G49 -> 2.394648829 | K52: =(IF(H56=0,0,(H57/H56)-1)) -> -0.7362071464 | L52: Hefeabweichung zur Fixierung
C53: per StartMakro und per Fix-Makro gesetzt | G53: KorrF RP/cNeu | H53: =C45/D17 -> 3.790853264 | I53: =ROUND(D17*H49,2) -> 4.52
C55: Hefeberechnung für die verschiedenen Teigführungen (TF)
C56: Ausgangs-TF: | D56: angegebene Hefe* im Ausgangs-Rezept: | H56: 7.16 | I56: Hefec/HRp | J56: =H57/H56 -> 0.2637928536 | M56: fix | N56: 3720.177 | O56: Prüfsumme Rezept
D57: unabhängig berechnete Hefe: | H57: 1.888756832 | I57: Abweichung | J57: -0.7362071464 | K57: aus K52 | M57: var | N57: =ROUND(SUM(F10:G13)+G8+ROUND(SUM(D9:D13),2),3) -> 3720.177 | O57: Prüfsumme Rezept
C58: geänderte TF: | D58: relativ zum Ausgangs-Rezept berechnete Hefe: | H58: =IF(H56=0,H59,H59/J56) -> 7.16 | I58: Abweichung korr | J58: =IF(D15>0,J57,0) -> -0.7362071464 | N58: =ABS(N56-N57) -> 0 | O58: Hefe aktuell? (0=aktuell)
D59: unabhängig berechnete Hefe | H59: =D17 -> 1.888756832 | I59: vormals: | J59: =G49*E23*F60 -> 6.6079 | N59: =ABS(N61-N60) -> 0.7 | O59: man. KorrF aktuell?
D60: interner Hefe-Faktor: | F60: 1.3 | M60: fix | N60: 1 | O60: man KorrF
C61: Gewichtung | D61: Hefe | F61: Kombi T*T/Hefe | G61: Temp-Anteil | H61: Zeit*temp | J61: Z | K61: T | M61: var | N61: =E23 -> 1.7 | O61: man KorrF
C62: Bulk | D62: =ROUND(D9/480*(1800*EXP(-0.205*K62))*J62^-1.45,2) -> 1.35 | E62: =D62/D64 -> 0.09024064171 | F62: =(E63+I62)/2 -> 0.8648796791 | G62: =2^((30-K62)/5) -> 2.29739671 | H62: =J62/G62 -> 3.482202253 | I62: =ROUND(H62/H64,2) -> 0.82 | J62: =N81 -> 8 | K62: =N83 -> 24
C63: Proof | D63: =ROUND(D9/480*(1800*EXP(-0.205*K63))*J63^-1.45,2) -> 13.61 | E63: =1-E62 -> 0.9097593583 | F63: =(E62+I63)/2 -> 0.1351203209 | G63: =2^((30-K63)/5) -> 27.21168838 | H63: =J63/G63 -> 0.7441655114 | I63: =1-I62 -> 0.18 | J63: =O81 -> 20.25 | K63: =O83 -> 6.16922716
C64: Summe | D64: =D62+D63 -> 14.96 | F64: =F63+F62 -> 1 | H64: =SUM(H62:H63) -> 4.226367765 | J64: 0.01649948562
A67: Phase | C67: Zeit | D67: Temp | F67: akt | G67: Basis | I67: Z | J67: Tm | K67: Te | L67: D/Schritt | M67: n Schritte | O67: Z(MM;H/T) | P67: Z B
C68: TrHefe [g] | E68: Hdr | F68: =(F70-F69)/F69*100 -> 72.61904762 | J68: =D69 -> 24 | P68: =((G$69/480*1800/G$72*EXP(-0.205*G71))^0.6) -> 1.49730396 | S68: ^0,69
A69: Teig | C69: =IF(D17>0.01,D17,0.01) -> 1.888756832 | D69: =G8 -> 24 | F69: =D9 -> 1008 | G69: 305 | H69: BÜ1 | I69: =G81/24 -> 0 | J69: =I81 -> 24 | K69: =L81 -> 24 | L69: =B$94*P69 -> 00:01:42.857 | M69: =ROUND(I69/L69,0) -> 0 | N69: =M69*L69 -> 00:00:00 | O69: =((F$69/480*1800/F$72*EXP(-0.22*J69))^0.75) -> 5.704015085 | P69: =O69/P$68 -> 3.80952381 | R69: ^0,75
A70: B1 | B70: 00:00:00 | C70: =F10 -> 01:30:00 | D70: 24 | F70: =D10 -> 1740 | G70: 505 | H70: B1 | I70: =H81/24 -> 0.0625 | J70: =J81 -> 24 | K70: =K69 -> 24 | L70: 00:01:42.857 | M70: 53 | N70: =M70*L70 -> 01:30:51.429 | O70: =((F$69/480*1800/F$72*EXP(-0.22*J70))^0.75) -> 5.704015085 | P70: 3.80952381
A71: B2 | B71: =B70+C70 -> 01:30:00 | C71: 06:30:00 | D71: 24 | F71: =D12 -> 870 | G71: 26.6 | H71: BÜ2 | I71: =G82/24 -> 0 | J71: =I82 -> 24 | K71: =L82 -> 24 | L71: 00:01:42.857 | M71: 0 | N71: 00:00:00 | O71: 5.704015085 | P71: 3.80952381
A72: P1 | B72: =B71+C71 -> 08:00:00 | C72: 00:15:00 | D72: 24 | F72: =C69 -> 1.888756832 | G72: 2.5 | H72: B2 | I72: =H82/24 -> 0.2708333333 | J72: =J82 -> 24 | K72: =K71 -> 24 | L72: 00:01:42.857 | M72: 228 | N72: 06:30:51.429 | O72: 5.704015085 | P72: 3.80952381 | R72: 2.25 | S72: ursprgl Inhalt von G72
A73: P2 | B73: =B72+C72 -> 08:15:00 | C73: 20:00:00 | D73: 5 | F73: =F72/F69 -> 0.001873766698 | G73: =G72/G69 -> 0.008196721311 | H73: P1Ü | I73: =G83/24 -> 0 | J73: =I83 -> 24 | K73: =L83 -> 24 | L73: 00:01:42.857 | M73: 0 | N73: 00:00:00 | O73: 5.704015085 | P73: 3.80952381
B74: =B73+C73 -> 1.177083333 | C74: =SUM(C70:C73) -> 1.177083333 | E74: Soll Bulk-Ende | F74: 85 | G74: =F73/G73 -> 0.2285995372 | H74: P1 | I74: =H83/24 -> 0.01041666667 | J74: =J83 -> 24 | K74: =K73 -> 24 | L74: 00:01:42.857 | M74: 9 | N74: 00:15:25.714 | O74: 5.704015085 | P74: 3.80952381
A75: M-Temp | B75: =P83 -> 11.21864956 | C75: °C | E75: nach | F75: =VLOOKUP(F74,D96:I450,4) -> 0.2488095238 | H75: P2Ü | I75: =G84/24 -> 0.0830125 | J75: =I84 -> 14.5 | K75: =L84 -> 5 | L75: 00:08:13.164 | M75: 15 | N75: 02:03:17.455 | O75: 27.34873643 | P75: 18.26532031
E76: Soll-MaxGare | F76: 98 | H76: P2 | I76: =H84/24 -> 0.7503208333 | J76: =J84 -> 5 | K76: =K75 -> 5 | L76: 00:39:24.545 | M76: 27 | N76: 17:44:02.726 | O76: 131.1275256 | P76: 87.57575559
E77: nach | F77: =VLOOKUP(F76,D96:I456,4) -> 1.143600275 | M77: =SUM(M69:M76) -> 332 | N77: =SUM(N69:N76) -> 1.169777222
A79: TE | B79: Phase | C79: Zeit | D79: Temp
D80: =D69 -> 24 | E80: Z | F80: Zü | G80: Zük | H80: Zr | I80: Tü m | J80: Tr | K80: Tm | L80: Te | M80: dT | N80: ZB | O80: ZP | P80: ZBP | Q80: alte ZÜ | R80: neu ÜZ | S80: Kombi-Z | T80: Zük/Zü
A81: =F70 -> 1740 | B81: B1 | C81: =C70 -> 01:30:00 | D81: =D70 -> 24 | E81: =C81*24 -> 1.5 | F81: =IF(M81<>0,S81,1) -> 1 | G81: =MIN(E81,S81) -> 0 | H81: =MAX(0,E81-G81) -> 1.5 | I81: =D80+((M81/2)*(G81/F81)) -> 24 | J81: =D81 -> 24 | K81: =IF(E81>0,(G81*I81+H81*J81)/E81,D69) -> 24 | L81: =D80+(M81*G81/F81) -> 24 | M81: =D81-D80 -> 0 | N81: =IF(E81+E82>0,E81+E82,0.0167) -> 8 | O81: =IF(E83+E84>0,E83+E84,0.0167) -> 20.25 | P81: =N81+O81 -> 28.25 | Q81: =ABS(0.00035*A$81*M81) -> 0 | R81: =IF(M81<>0,0.0012*A$81,0) -> 0 | S81: =R81*S$87+Q81*(1-S$87) -> 0 | T81: =G81/F81 -> 0
B82: B2 | C82: =C71 -> 06:30:00 | D82: =D71 -> 24 | E82: =C82*24 -> 6.5 | F82: =IF(M82<>0,S82,1) -> 1 | G82: =MIN(E82,S82) -> 0 | H82: =MAX(0,E82-G82) -> 6.5 | I82: =L81+((M82/2)*(G82/F82)) -> 24 | J82: =D82 -> 24 | K82: =IF(E82>0,(G82*I82+H82*J82)/E82,L81) -> 24 | L82: =L81+(M82*G82/F82) -> 24 | M82: =D82-L81 -> 0 | N82: TmB | O82: tmP | P82: TmBP | Q82: =ABS(0.00035*A$81*M82) -> 0 | R82: =IF(M82<>0,0.0012*A$81,0) -> 0 | S82: =R82*S$87+Q82*(1-S$87) -> 0 | T82: =G82/F82 -> 0
A83: =F71 -> 870 | B83: P1 | C83: =C72 -> 00:15:00 | D83: =D72 -> 24 | E83: =C83*24 -> 0.25 | F83: =IF(M83<>0,S83,1) -> 1 | G83: =MIN(E83,S83) -> 0 | H83: =MAX(0,E83-G83) -> 0.25 | I83: =L82+((M83/2)*(G83/F83)) -> 24 | J83: =D83 -> 24 | K83: =IF(E83>0,(G83*I83+H83*J83)/E83,L82) -> 24 | L83: =L82+(M83*G83/F83) -> 24 | M83: =D83-L82 -> 0 | N83: =IF((K81*E81+K82*E82)/N81>0,(K81*E81+K82*E82)/N81,D80) -> 24 | O83: =IF((K83*E83+K84*E84)/O81>0,(K83*E83+K84*E84)/O81,N83) -> 6.16922716 | P83: =(N83*N81+O83*O81)/P81 -> 11.21864956 | Q83: =ABS(0.00035*A$83*M83) -> 0 | R83: =IF(M83<>0,0.0012*A$83,0) -> 0 | S83: =R83*S$87+Q83*(1-S$87) -> 0 | T83: =G83/F83 -> 0
B84: P2 | C84: =C73 -> 20:00:00 | D84: =D73 -> 5 | E84: =C84*24 -> 20 | F84: =IF(M84<>0,S84,1) -> 1.9923 | G84: =MIN(E84,S84) -> 1.9923 | H84: =MAX(0,E84-G84) -> 18.0077 | I84: =L83+((M84/2)*(G84/F84)) -> 14.5 | J84: =D84 -> 5 | K84: =IF(E84>0,(G84*I84+H84*J84)/E84,L83) -> 5.9463425 | L84: =L83+(M84*G84/F84) -> 5 | M84: =D84-L83 -> -19 | Q84: =ABS(0.00035*A$83*M84) -> 5.7855 | R84: =IF(M84<>0,0.0012*A$83,0) -> 1.044 | S84: =R84*S$87+Q84*(1-S$87) -> 1.9923 | T84: =G84/F84 -> 1
Q85: Rohdaten | R85: nur Teigmnenge
R86: Standard-dT | S86: Wichtung neue Zeit
B87: 1000 | C87: 600 | D87: 530 | F87: Zeit= | G87: =((MM/480*1800/TrHefe*EXP(-0,22*Temp))^0,75) | M87: geändert | R87: 10 | S87: 0.8
C88: 1060 | D88: 900 | F88: Temp= | G88: =LN(TrHefe/1800*480/MM*Zeit^1,45)/-0,205
C89: 1060 | D89: 850 | F89: TrHefe = | G89: =MM/480*(1800*EXP(-0,205*Temp))*Zeit^-1,45
C90: 0.26 | D90: 0.81
P91: Zeilenversatz
B92: =C74/360 -> 00:04:42.500 | C92: Max | D92: 100 | P92: 96
B93: B-D/Schritt | C93: Lage | D93: 110 | J93: Schritt-Nr | L93: Schr/Stufe | P93: Zeile
B94: 00:00:27 | C94: Flachheit | D94: 57 | O94: Temp
B95: Zeit/Schritt | C95: Zeit kumuliert | D95: Reife | E95: Z-Fkt | F95: Zeit/Schritt | G95: Zeit kumuliert | J95: 0 | L95: =M69 -> 0 | M95: =P69 -> 3.80952381 | N95: 00:00:00 | O95: =J68 -> 24 | P95: =J95+P$92 -> 96 | Q95: TT
A96: 0 | B96: =B94 -> 00:00:27 | C96: =B96 -> 00:00:27 | D96: =$D$92/(1+EXP(-(A96-$D$93)/$D$94)) -> 12.67699998 | E96: =VLOOKUP(A96,$J$95:$M$102,4) -> 3.80952381 | F96: =E96*B$94 -> 0.00119047619 | G96: =F96 -> 0.00119047619 | H96: =D96 -> 12.67699998 | I96: =VLOOKUP(A96,$J$95:$O$102,5) -> 0 | J96: =L95+1 -> 1 | L96: =J96-1+M70 -> 53 | M96: 3.80952381 | N96: =INDIRECT("G"&P96) -> 00:03:25.714 | O96: =IF(M69=0,O95,K69) -> 24 | P96: 97 | Q96: BÜ1
A97: 1 | B97: =B96 -> 00:00:27 | C97: =C96+B97 -> 00:00:54 | D97: 12.87248439 | E97: =VLOOKUP(A97,$J$95:$M$102,4) -> 3.80952381 | F97: =E97*B$94 -> 0.00119047619 | G97: =F97+G96 -> 0.002380952381 | H97: =D97 -> 12.87248439 | I97: =VLOOKUP(A97,$J$95:$O$102,5) -> 0.002380952381 | J97: 54 | L97: 53 | M97: 3.80952381 | N97: 01:34:17.143 | O97: 24 | P97: 150 | Q97: B1
A98: 2 | B98: =B97 -> 00:00:27 | C98: =C97+B98 -> 00:01:21 | D98: 13.07053205 | E98: 3.80952381 | F98: 0.00119047619 | G98: =F98+G97 -> 0.003571428571 | H98: 13.07053205 | I98: 0.002380952381 | J98: 54 | L98: 281 | M98: 3.80952381 | N98: 01:34:17.143 | O98: 24 | P98: 150 | Q98: BÜ2
A99: 3 | B99: 00:00:27 | C99: 00:01:48 | D99: 13.27116262 | E99: 3.80952381 | F99: 0.00119047619 | G99: 0.004761904762 | H99: 13.27116262 | I99: 0.002380952381 | J99: 282 | L99: 281 | M99: 3.80952381 | N99: 08:05:08.571 | O99: 24 | P99: 378 | Q99: B2
A100: 4 | B100: 00:00:27 | C100: 00:02:15 | D100: 13.47439548 | E100: 3.80952381 | F100: 0.00119047619 | G100: 0.005952380952 | H100: 13.47439548 | I100: 0.002380952381 | J100: 282 | L100: 290 | M100: 3.80952381 | N100: 08:05:08.571 | O100: 24 | P100: 378 | Q100: P1Ü
A101: 5 | B101: 00:00:27 | C101: 00:02:42 | D101: 13.6802497 | E101: 3.80952381 | F101: 0.00119047619 | G101: 0.007142857143 | H101: 13.6802497 | I101: 0.002380952381 | J101: 291 | L101: 305 | M101: 18.26532031 | N101: 08:27:04.592 | O101: 24 | P101: 387 | Q101: P1
A102: 6 | B102: 00:00:27 | C102: 00:03:09 | D102: 13.88874404 | E102: 3.80952381 | F102: 0.00119047619 | G102: 0.008333333333 | H102: 13.88874404 | I102: 0.002380952381 | J102: =L101+1 -> 306 | L102: 332 | M102: 87.57575559 | N102: 11:01:33.429 | O102: 5 | P102: 402 | Q102: P2Ü
A103: 7 | B103: 00:00:27 | C103: 00:03:36 | D103: 14.0998969 | E103: 3.80952381 | F103: 0.00119047619 | G103: 0.009523809524 | H103: 14.0998969 | I103: 0.002380952381 | J103: =L102+1 -> 333 | L103: 664 | M103: =W77 -> 0 | N103: 1.198335122 | O103: 5 | P103: 429 | Q103: P2
A104: 8 | B104: 00:00:27 | C104: 00:04:03 | D104: 14.31372635 | E104: 3.80952381 | F104: 0.00119047619 | G104: 0.01071428571 | H104: 14.31372635 | I104: 0.002380952381
A105: 9 | B105: 00:00:27 | C105: 00:04:30 | D105: 14.53025005 | E105: 3.80952381 | F105: 0.00119047619 | G105: 0.0119047619 | H105: 14.53025005 | I105: 0.002380952381 | M105: Zwischenschritte | O105: Reife | P105: Zeile
A106: 10 | B106: 00:00:27 | C106: 00:04:57 | D106: 14.74948532 | E106: 3.80952381 | F106: 0.00119047619 | G106: 0.0130952381 | H106: 14.74948532 | I106: 0.002380952381 | N106: =N95 -> 00:00:00 | O106: 0 | P106: =P95 -> 96 | Q106: =0.5*Q107 -> 6.33849999 | R106: auf Null festgelegt
A107: 11 | B107: 00:00:27 | C107: 00:05:24 | D107: 14.97144902 | E107: 3.80952381 | F107: 0.00119047619 | G107: 0.01428571429 | H107: 14.97144902 | I107: 0.002380952381 | M107: =IF(J96-J95>1,J95+ROUND(0.5*(J96-J95),0),J95) -> 0 | N107: =INDIRECT("G"&P107) -> 00:01:42.857 | O107: =0.9*MAX(Q107,O106) -> 11.40929998 | P107: =M107+P$92 -> 96 | Q107: =INDIRECT("H"&P107) -> 12.67699998 | R107: auf 90% vom Wert festgelegt
A108: 12 | B108: 00:00:27 | C108: 00:05:51 | D108: 15.19615761 | E108: 3.80952381 | F108: 0.00119047619 | G108: 0.01547619048 | H108: 15.19615761 | I108: 0.002380952381 | N108: =N96 -> 00:03:25.714 | O108: =MAX(Q108,O107) -> 12.87248439 | P108: =P96 -> 97 | Q108: =INDIRECT("H"&P108) -> 12.87248439
A109: 13 | B109: 00:00:27 | C109: 00:06:18 | D109: 15.42362711 | E109: 3.80952381 | F109: 0.00119047619 | G109: 0.01666666667 | H109: 15.42362711 | I109: 0.002380952381 | M109: =IF(J97-J96>1,J96+ROUND(0.5*(J97-J96),0),J96) -> 28 | N109: =INDIRECT("G"&P109) -> 00:49:42.857 | O109: 19.1762784 | P109: =M109+P$92 -> 124 | Q109: 19.1762784
A110: 14 | B110: 00:00:27 | C110: 00:06:45 | D110: 15.65387304 | E110: 3.80952381 | F110: 0.00119047619 | G110: 0.01785714286 | H110: 15.65387304 | I110: 0.002380952381 | N110: =N97 -> 01:34:17.143 | O110: 27.24047037 | P110: =P97 -> 150 | Q110: 27.24047037
A111: 15 | B111: 00:00:27 | C111: 00:07:12 | D111: 15.88691049 | E111: 3.80952381 | F111: 0.00119047619 | G111: 0.01904761905 | H111: 15.88691049 | I111: 0.002380952381 | M111: =IF(J98-J97>1,J97+ROUND(0.5*(J98-J97),0),J97) -> 54 | N111: =INDIRECT("G"&P111) -> 01:34:17.143 | O111: 27.24047037 | P111: =M111+P$92 -> 150 | Q111: 27.24047037
A112: 16 | B112: 00:00:27 | C112: 00:07:39 | D112: 16.122754 | E112: 3.80952381 | F112: 0.00119047619 | G112: 0.02023809524 | H112: 16.122754 | I112: 0.002380952381 | N112: =N98 -> 01:34:17.143 | O112: 27.24047037 | P112: =P98 -> 150 | Q112: 27.24047037
A113: 17 | B113: 00:00:27 | C113: 00:08:06 | D113: 16.36141761 | E113: 3.80952381 | F113: 0.00119047619 | G113: 0.02142857143 | H113: 16.36141761 | I113: 0.002380952381 | M113: =IF(J99-J98>1,J98+ROUND(0.5*(J99-J98),0),J98) -> 168 | N113: =INDIRECT("G"&P113) -> 04:49:42.857 | O113: 73.44938971 | P113: =M113+P$92 -> 264 | Q113: 73.44938971
A114: 18 | B114: 00:00:27 | C114: 00:08:33 | D114: 16.60291482 | E114: 3.80952381 | F114: 0.00119047619 | G114: 0.02261904762 | H114: 16.60291482 | I114: 0.002380952381 | N114: =N99 -> 08:05:08.571 | O114: 95.33604364 | P114: =P99 -> 378 | Q114: 95.33604364
A115: 19 | B115: 00:00:27 | C115: 00:09:00 | D115: 16.84725856 | E115: 3.80952381 | F115: 0.00119047619 | G115: 0.02380952381 | H115: 16.84725856 | I115: 0.002380952381 | M115: =IF(J100-J99>1,J99+ROUND(0.5*(J100-J99),0),J99) -> 282 | N115: =INDIRECT("G"&P115) -> 08:05:08.571 | O115: 95.33604364 | P115: =M115+P$92 -> 378 | Q115: 95.33604364
A116: 20 | B116: 00:00:27 | C116: 00:09:27 | D116: 17.0944612 | E116: 3.80952381 | F116: 0.00119047619 | G116: 0.025 | H116: 17.0944612 | I116: 0.002380952381 | N116: =N100 -> 08:05:08.571 | O116: 95.33604364 | P116: =P100 -> 378 | Q116: 95.33604364
A117: 21 | B117: 00:00:27 | C117: 00:09:54 | D117: 17.34453449 | E117: 3.80952381 | F117: 0.00119047619 | G117: 0.02619047619 | H117: 17.34453449 | I117: 0.002380952381 | M117: =IF(J101-J100>1,J100+ROUND(0.5*(J101-J100),0),J100) -> 287 | N117: =INDIRECT("G"&P117) -> 08:13:42.857 | O117: 95.71093239 | P117: =M117+P$92 -> 383 | Q117: 95.71093239
A118: 22 | B118: 00:00:27 | C118: 00:10:21 | D118: 17.59748957 | E118: 3.80952381 | F118: 0.00119047619 | G118: 0.02738095238 | H118: 17.59748957 | I118: 0.002380952381 | N118: =N101 -> 08:27:04.592 | O118: 95.98994541 | P118: =P101 -> 387 | Q118: 95.98994541
A119: 23 | B119: 00:00:27 | C119: 00:10:48 | D119: 17.85333694 | E119: 3.80952381 | F119: 0.00119047619 | G119: 0.02857142857 | H119: 17.85333694 | I119: 0.002380952381 | M119: =IF(J102-J101>1,J101+ROUND(0.5*(J102-J101),0),J101) -> 299 | N119: =INDIRECT("G"&P119) -> 09:32:49.901 | O119: 96.49665282 | P119: =M119+P$92 -> 395 | Q119: 96.49665282
A120: 24 | B120: 00:00:27 | C120: 00:11:15 | D120: 18.11208644 | E120: 3.80952381 | F120: 0.00119047619 | G120: 0.02976190476 | H120: 18.11208644 | I120: 0.002380952381 | N120: =N102 -> 11:01:33.429 | O120: 96.88892379 | P120: =P102 -> 402 | Q120: 96.88892379
A121: 25 | B121: 00:00:27 | C121: 00:11:42 | D121: 18.37374724 | E121: 3.80952381 | F121: 0.00119047619 | G121: 0.03095238095 | H121: 18.37374724 | I121: 0.002380952381 | M121: =IF(J103-J102>1,J102+ROUND(0.5*(J103-J102),0),J102) -> 320 | N121: =INDIRECT("G"&P121) -> 20:13:17.064 | O121: 97.54984102 | P121: =M121+P$92 -> 416 | Q121: 97.54984102
A122: 26 | B122: 00:00:27 | C122: 00:12:09 | D122: 18.63832779 | E122: 3.80952381 | F122: 0.00119047619 | G122: 0.03214285714 | H122: 18.63832779 | I122: 0.002380952381 | N122: =N103 -> 1.198335122 | O122: 98.039711 | P122: =P103 -> 429 | Q122: 98.039711
A123: 27 | B123: 00:00:27 | C123: 00:12:36 | D123: 18.90583584 | E123: 3.80952381 | F123: 0.00119047619 | G123: 0.03333333333 | H123: 18.90583584 | I123: 0.002380952381
A124: 28 | B124: 00:00:27 | C124: 00:13:03 | D124: 19.1762784 | E124: 3.80952381 | F124: 0.00119047619 | G124: 0.03452380952 | H124: 19.1762784 | I124: 0.002380952381
A125: 29 | B125: 00:00:27 | C125: 00:13:30 | D125: 19.44966172 | E125: 3.80952381 | F125: 0.00119047619 | G125: 0.03571428571 | H125: 19.44966172 | I125: 0.002380952381
A126: 30 | B126: 00:00:27 | C126: 00:13:57 | D126: 19.72599126 | E126: 3.80952381 | F126: 0.00119047619 | G126: 0.0369047619 | H126: 19.72599126 | I126: 0.002380952381
A127: 31 | B127: 00:00:27 | C127: 00:14:24 | D127: 20.0052717 | E127: 3.80952381 | F127: 0.00119047619 | G127: 0.0380952381 | H127: 20.0052717 | I127: 0.002380952381
A128: 32 | B128: 00:00:27 | C128: 00:14:51 | D128: 20.28750689 | E128: 3.80952381 | F128: 0.00119047619 | G128: 0.03928571429 | H128: 20.28750689 | I128: 0.002380952381
A129: 33 | B129: 00:00:27 | C129: 00:15:18 | D129: 20.57269985 | E129: 3.80952381 | F129: 0.00119047619 | G129: 0.04047619048 | H129: 20.57269985 | I129: 0.002380952381
A130: 34 | B130: 00:00:27 | C130: 00:15:45 | D130: 20.86085273 | E130: 3.80952381 | F130: 0.00119047619 | G130: 0.04166666667 | H130: 20.86085273 | I130: 0.002380952381
A131: 35 | B131: 00:00:27 | C131: 00:16:12 | D131: 21.15196683 | E131: 3.80952381 | F131: 0.00119047619 | G131: 0.04285714286 | H131: 21.15196683 | I131: 0.002380952381
A132: 36 | B132: 00:00:27 | C132: 00:16:39 | D132: 21.44604253 | E132: 3.80952381 | F132: 0.00119047619 | G132: 0.04404761905 | H132: 21.44604253 | I132: 0.002380952381
A133: 37 | B133: 00:00:27 | C133: 00:17:06 | D133: 21.74307931 | E133: 3.80952381 | F133: 0.00119047619 | G133: 0.04523809524 | H133: 21.74307931 | I133: 0.002380952381
A134: 38 | B134: 00:00:27 | C134: 00:17:33 | D134: 22.04307573 | E134: 3.80952381 | F134: 0.00119047619 | G134: 0.04642857143 | H134: 22.04307573 | I134: 0.002380952381
A135: 39 | B135: 00:00:27 | C135: 00:18:00 | D135: 22.34602936 | E135: 3.80952381 | F135: 0.00119047619 | G135: 0.04761904762 | H135: 22.34602936 | I135: 0.002380952381
A136: 40 | B136: 00:00:27 | C136: 00:18:27 | D136: 22.65193686 | E136: 3.80952381 | F136: 0.00119047619 | G136: 0.04880952381 | H136: 22.65193686 | I136: 0.002380952381
A137: 41 | B137: 00:00:27 | C137: 00:18:54 | D137: 22.96079387 | E137: 3.80952381 | F137: 0.00119047619 | G137: 0.05 | H137: 22.96079387 | I137: 0.002380952381
A138: 42 | B138: 00:00:27 | C138: 00:19:21 | D138: 23.27259503 | E138: 3.80952381 | F138: 0.00119047619 | G138: 0.05119047619 | H138: 23.27259503 | I138: 0.002380952381
A139: 43 | B139: 00:00:27 | C139: 00:19:48 | D139: 23.58733397 | E139: 3.80952381 | F139: 0.00119047619 | G139: 0.05238095238 | H139: 23.58733397 | I139: 0.002380952381
A140: 44 | B140: 00:00:27 | C140: 00:20:15 | D140: 23.90500329 | E140: 3.80952381 | F140: 0.00119047619 | G140: 0.05357142857 | H140: 23.90500329 | I140: 0.002380952381
A141: 45 | B141: 00:00:27 | C141: 00:20:42 | D141: 24.22559453 | E141: 3.80952381 | F141: 0.00119047619 | G141: 0.05476190476 | H141: 24.22559453 | I141: 0.002380952381
A142: 46 | B142: 00:00:27 | C142: 00:21:09 | D142: 24.54909819 | E142: 3.80952381 | F142: 0.00119047619 | G142: 0.05595238095 | H142: 24.54909819 | I142: 0.002380952381
A143: 47 | B143: 00:00:27 | C143: 00:21:36 | D143: 24.87550366 | E143: 3.80952381 | F143: 0.00119047619 | G143: 0.05714285714 | H143: 24.87550366 | I143: 0.002380952381
A144: 48 | B144: 00:00:27 | C144: 00:22:03 | D144: 25.20479926 | E144: 3.80952381 | F144: 0.00119047619 | G144: 0.05833333333 | H144: 25.20479926 | I144: 0.002380952381
A145: 49 | B145: 00:00:27 | C145: 00:22:30 | D145: 25.5369722 | E145: 3.80952381 | F145: 0.00119047619 | G145: 0.05952380952 | H145: 25.5369722 | I145: 0.002380952381
A146: 50 | B146: 00:00:27 | C146: 00:22:57 | D146: 25.87200857 | E146: 3.80952381 | F146: 0.00119047619 | G146: 0.06071428571 | H146: 25.87200857 | I146: 0.002380952381
A147: 51 | B147: 00:00:27 | C147: 00:23:24 | D147: 26.20989333 | E147: 3.80952381 | F147: 0.00119047619 | G147: 0.0619047619 | H147: 26.20989333 | I147: 0.002380952381
A148: 52 | B148: 00:00:27 | C148: 00:23:51 | D148: 26.55061029 | E148: 3.80952381 | F148: 0.00119047619 | G148: 0.0630952381 | H148: 26.55061029 | I148: 0.002380952381
A149: 53 | B149: 00:00:27 | C149: 00:24:18 | D149: 26.89414214 | E149: 3.80952381 | F149: 0.00119047619 | G149: 0.06428571429 | H149: 26.89414214 | I149: 0.002380952381
A150: 54 | B150: 00:00:27 | C150: 00:24:45 | D150: 27.24047037 | E150: 3.80952381 | F150: 0.00119047619 | G150: 0.06547619048 | H150: 27.24047037 | I150: 0.06547619048
A151: 55 | B151: 00:00:27 | C151: 00:25:12 | D151: 27.58957532 | E151: 3.80952381 | F151: 0.00119047619 | G151: 0.06666666667 | H151: 27.58957532 | I151: 0.06547619048
A152: 56 | B152: 00:00:27 | C152: 00:25:39 | D152: 27.94143616 | E152: 3.80952381 | F152: 0.00119047619 | G152: 0.06785714286 | H152: 27.94143616 | I152: 0.06547619048
A153: 57 | B153: 00:00:27 | C153: 00:26:06 | D153: 28.29603086 | E153: 3.80952381 | F153: 0.00119047619 | G153: 0.06904761905 | H153: 28.29603086 | I153: 0.06547619048
A154: 58 | B154: 00:00:27 | C154: 00:26:33 | D154: 28.65333619 | E154: 3.80952381 | F154: 0.00119047619 | G154: 0.07023809524 | H154: 28.65333619 | I154: 0.06547619048
A155: 59 | B155: 00:00:27 | C155: 00:27:00 | D155: 29.01332776 | E155: 3.80952381 | F155: 0.00119047619 | G155: 0.07142857143 | H155: 29.01332776 | I155: 0.06547619048
A156: 60 | B156: 00:00:27 | C156: 00:27:27 | D156: 29.37597994 | E156: 3.80952381 | F156: 0.00119047619 | G156: 0.07261904762 | H156: 29.37597994 | I156: 0.06547619048
A157: 61 | B157: 00:00:27 | C157: 00:27:54 | D157: 29.74126592 | E157: 3.80952381 | F157: 0.00119047619 | G157: 0.07380952381 | H157: 29.74126592 | I157: 0.06547619048
A158: 62 | B158: 00:00:27 | C158: 00:28:21 | D158: 30.10915766 | E158: 3.80952381 | F158: 0.00119047619 | G158: 0.075 | H158: 30.10915766 | I158: 0.06547619048
A159: 63 | B159: 00:00:27 | C159: 00:28:48 | D159: 30.47962593 | E159: 3.80952381 | F159: 0.00119047619 | G159: 0.07619047619 | H159: 30.47962593 | I159: 0.06547619048
A160: 64 | B160: 00:00:27 | C160: 00:29:15 | D160: =$D$92/(1+EXP(-(A160-$D$93)/$D$94)) -> 30.85264029 | E160: 3.80952381 | F160: 0.00119047619 | G160: 0.07738095238 | H160: 30.85264029 | I160: 0.06547619048
A161: 65 | B161: 00:00:27 | C161: 00:29:42 | D161: 31.22816908 | E161: =VLOOKUP(A161,$J$95:$M$102,4) -> 3.80952381 | F161: =E161*B$94 -> 0.00119047619 | G161: 0.07857142857 | H161: =D161 -> 31.22816908 | I161: =VLOOKUP(A161,$J$95:$O$102,5) -> 0.06547619048
A162: 66 | B162: =B161 -> 00:00:27 | C162: =C161+B162 -> 00:30:09 | D162: 31.60617944 | E162: 3.80952381 | F162: 0.00119047619 | G162: =F162+G161 -> 0.07976190476 | H162: 31.60617944 | I162: 0.06547619048
A163: 67 | B163: 00:00:27 | C163: 00:30:36 | D163: 31.9866373 | E163: 3.80952381 | F163: 0.00119047619 | G163: 0.08095238095 | H163: 31.9866373 | I163: 0.06547619048
A164: 68 | B164: 00:00:27 | C164: 00:31:03 | D164: 32.3695074 | E164: 3.80952381 | F164: 0.00119047619 | G164: 0.08214285714 | H164: 32.3695074 | I164: 0.06547619048
A165: 69 | B165: 00:00:27 | C165: 00:31:30 | D165: 32.75475327 | E165: 3.80952381 | F165: 0.00119047619 | G165: 0.08333333333 | H165: 32.75475327 | I165: 0.06547619048
A166: 70 | B166: 00:00:27 | C166: 00:31:57 | D166: 33.14233727 | E166: 3.80952381 | F166: 0.00119047619 | G166: 0.08452380952 | H166: 33.14233727 | I166: 0.06547619048
A167: 71 | B167: 00:00:27 | C167: 00:32:24 | D167: 33.53222056 | E167: 3.80952381 | F167: 0.00119047619 | G167: 0.08571428571 | H167: 33.53222056 | I167: 0.06547619048
A168: 72 | B168: 00:00:27 | C168: 00:32:51 | D168: 33.92436312 | E168: 3.80952381 | F168: 0.00119047619 | G168: 0.0869047619 | H168: 33.92436312 | I168: 0.06547619048
A169: 73 | B169: 00:00:27 | C169: 00:33:18 | D169: 34.3187238 | E169: 3.80952381 | F169: 0.00119047619 | G169: 0.0880952381 | H169: 34.3187238 | I169: 0.06547619048
A170: 74 | B170: 00:00:27 | C170: 00:33:45 | D170: 34.71526025 | E170: 3.80952381 | F170: 0.00119047619 | G170: 0.08928571429 | H170: 34.71526025 | I170: 0.06547619048
A171: 75 | B171: 00:00:27 | C171: 00:34:12 | D171: 35.11392903 | E171: 3.80952381 | F171: 0.00119047619 | G171: 0.09047619048 | H171: 35.11392903 | I171: 0.06547619048
A172: 76 | B172: 00:00:27 | C172: 00:34:39 | D172: 35.51468551 | E172: 3.80952381 | F172: 0.00119047619 | G172: 0.09166666667 | H172: 35.51468551 | I172: 0.06547619048
A173: 77 | B173: 00:00:27 | C173: 00:35:06 | D173: 35.91748401 | E173: 3.80952381 | F173: 0.00119047619 | G173: 0.09285714286 | H173: 35.91748401 | I173: 0.06547619048
A174: 78 | B174: 00:00:27 | C174: 00:35:33 | D174: 36.32227771 | E174: 3.80952381 | F174: 0.00119047619 | G174: 0.09404761905 | H174: 36.32227771 | I174: 0.06547619048
A175: 79 | B175: 00:00:27 | C175: 00:36:00 | D175: 36.72901872 | E175: 3.80952381 | F175: 0.00119047619 | G175: 0.09523809524 | H175: 36.72901872 | I175: 0.06547619048
A176: 80 | B176: 00:00:27 | C176: 00:36:27 | D176: 37.13765808 | E176: 3.80952381 | F176: 0.00119047619 | G176: 0.09642857143 | H176: 37.13765808 | I176: 0.06547619048
A177: 81 | B177: 00:00:27 | C177: 00:36:54 | D177: 37.54814579 | E177: 3.80952381 | F177: 0.00119047619 | G177: 0.09761904762 | H177: 37.54814579 | I177: 0.06547619048
A178: 82 | B178: 00:00:27 | C178: 00:37:21 | D178: 37.96043084 | E178: 3.80952381 | F178: 0.00119047619 | G178: 0.09880952381 | H178: 37.96043084 | I178: 0.06547619048
A179: 83 | B179: 00:00:27 | C179: 00:37:48 | D179: 38.37446119 | E179: 3.80952381 | F179: 0.00119047619 | G179: 0.1 | H179: 38.37446119 | I179: 0.06547619048
A180: 84 | B180: 00:00:27 | C180: 00:38:15 | D180: 38.79018383 | E180: 3.80952381 | F180: 0.00119047619 | G180: 0.1011904762 | H180: 38.79018383 | I180: 0.06547619048
A181: 85 | B181: 00:00:27 | C181: 00:38:42 | D181: 39.20754481 | E181: 3.80952381 | F181: 0.00119047619 | G181: 0.1023809524 | H181: 39.20754481 | I181: 0.06547619048
A182: 86 | B182: 00:00:27 | C182: 00:39:09 | D182: 39.62648921 | E182: 3.80952381 | F182: 0.00119047619 | G182: 0.1035714286 | H182: 39.62648921 | I182: 0.06547619048
A183: 87 | B183: 00:00:27 | C183: 00:39:36 | D183: 40.04696124 | E183: 3.80952381 | F183: 0.00119047619 | G183: 0.1047619048 | H183: 40.04696124 | I183: 0.06547619048
A184: 88 | B184: 00:00:27 | C184: 00:40:03 | D184: 40.46890421 | E184: 3.80952381 | F184: 0.00119047619 | G184: 0.105952381 | H184: 40.46890421 | I184: 0.06547619048
A185: 89 | B185: 00:00:27 | C185: 00:40:30 | D185: 40.89226059 | E185: 3.80952381 | F185: 0.00119047619 | G185: 0.1071428571 | H185: 40.89226059 | I185: 0.06547619048
A186: 90 | B186: 00:00:27 | C186: 00:40:57 | D186: 41.31697202 | E186: 3.80952381 | F186: 0.00119047619 | G186: 0.1083333333 | H186: 41.31697202 | I186: 0.06547619048
A187: 91 | B187: 00:00:27 | C187: 00:41:24 | D187: 41.74297935 | E187: 3.80952381 | F187: 0.00119047619 | G187: 0.1095238095 | H187: 41.74297935 | I187: 0.06547619048
A188: 92 | B188: 00:00:27 | C188: 00:41:51 | D188: 42.17022267 | E188: 3.80952381 | F188: 0.00119047619 | G188: 0.1107142857 | H188: 42.17022267 | I188: 0.06547619048
A189: 93 | B189: 00:00:27 | C189: 00:42:18 | D189: 42.59864133 | E189: 3.80952381 | F189: 0.00119047619 | G189: 0.1119047619 | H189: 42.59864133 | I189: 0.06547619048
A190: 94 | B190: 00:00:27 | C190: 00:42:45 | D190: 43.028174 | E190: 3.80952381 | F190: 0.00119047619 | G190: 0.1130952381 | H190: 43.028174 | I190: 0.06547619048
A191: 95 | B191: 00:00:27 | C191: 00:43:12 | D191: 43.45875868 | E191: 3.80952381 | F191: 0.00119047619 | G191: 0.1142857143 | H191: 43.45875868 | I191: 0.06547619048
A192: 96 | B192: 00:00:27 | C192: 00:43:39 | D192: 43.89033273 | E192: 3.80952381 | F192: 0.00119047619 | G192: 0.1154761905 | H192: 43.89033273 | I192: 0.06547619048
A193: 97 | B193: 00:00:27 | C193: 00:44:06 | D193: 44.32283294 | E193: 3.80952381 | F193: 0.00119047619 | G193: 0.1166666667 | H193: 44.32283294 | I193: 0.06547619048
A194: 98 | B194: 00:00:27 | C194: 00:44:33 | D194: 44.75619551 | E194: 3.80952381 | F194: 0.00119047619 | G194: 0.1178571429 | H194: 44.75619551 | I194: 0.06547619048
A195: 99 | B195: 00:00:27 | C195: 00:45:00 | D195: 45.19035616 | E195: 3.80952381 | F195: 0.00119047619 | G195: 0.119047619 | H195: 45.19035616 | I195: 0.06547619048
A196: 100 | B196: 00:00:27 | C196: 00:45:27 | D196: 45.6252501 | E196: 3.80952381 | F196: 0.00119047619 | G196: 0.1202380952 | H196: 45.6252501 | I196: 0.06547619048
A197: 101 | B197: 00:00:27 | C197: 00:45:54 | D197: 46.06081209 | E197: 3.80952381 | F197: 0.00119047619 | G197: 0.1214285714 | H197: 46.06081209 | I197: 0.06547619048
A198: 102 | B198: 00:00:27 | C198: 00:46:21 | D198: 46.4969765 | E198: 3.80952381 | F198: 0.00119047619 | G198: 0.1226190476 | H198: 46.4969765 | I198: 0.06547619048
A199: 103 | B199: 00:00:27 | C199: 00:46:48 | D199: 46.93367734 | E199: 3.80952381 | F199: 0.00119047619 | G199: 0.1238095238 | H199: 46.93367734 | I199: 0.06547619048
A200: 104 | B200: 00:00:27 | C200: 00:47:15 | D200: 47.37084826 | E200: 3.80952381 | F200: 0.00119047619 | G200: 0.125 | H200: 47.37084826 | I200: 0.06547619048
A201: 105 | B201: 00:00:27 | C201: 00:47:42 | D201: 47.80842265 | E201: 3.80952381 | F201: 0.00119047619 | G201: 0.1261904762 | H201: 47.80842265 | I201: 0.06547619048
A202: 106 | B202: 00:00:27 | C202: 00:48:09 | D202: 48.24633365 | E202: 3.80952381 | F202: 0.00119047619 | G202: 0.1273809524 | H202: 48.24633365 | I202: 0.06547619048
A203: 107 | B203: 00:00:27 | C203: 00:48:36 | D203: 48.68451418 | E203: 3.80952381 | F203: 0.00119047619 | G203: 0.1285714286 | H203: 48.68451418 | I203: 0.06547619048
A204: 108 | B204: 00:00:27 | C204: 00:49:03 | D204: 49.122897 | E204: 3.80952381 | F204: 0.00119047619 | G204: 0.1297619048 | H204: 49.122897 | I204: 0.06547619048
A205: 109 | B205: 00:00:27 | C205: 00:49:30 | D205: 49.56141476 | E205: 3.80952381 | F205: 0.00119047619 | G205: 0.130952381 | H205: 49.56141476 | I205: 0.06547619048
A206: 110 | B206: 00:00:27 | C206: 00:49:57 | D206: 50 | E206: 3.80952381 | F206: 0.00119047619 | G206: 0.1321428571 | H206: 50 | I206: 0.06547619048
A207: 111 | B207: 00:00:27 | C207: 00:50:24 | D207: 50.43858524 | E207: 3.80952381 | F207: 0.00119047619 | G207: 0.1333333333 | H207: 50.43858524 | I207: 0.06547619048
A208: 112 | B208: 00:00:27 | C208: 00:50:51 | D208: 50.877103 | E208: 3.80952381 | F208: 0.00119047619 | G208: 0.1345238095 | H208: 50.877103 | I208: 0.06547619048
A209: 113 | B209: 00:00:27 | C209: 00:51:18 | D209: 51.31548582 | E209: 3.80952381 | F209: 0.00119047619 | G209: 0.1357142857 | H209: 51.31548582 | I209: 0.06547619048
A210: 114 | B210: 00:00:27 | C210: 00:51:45 | D210: 51.75366635 | E210: 3.80952381 | F210: 0.00119047619 | G210: 0.1369047619 | H210: 51.75366635 | I210: 0.06547619048
A211: 115 | B211: 00:00:27 | C211: 00:52:12 | D211: 52.19157735 | E211: 3.80952381 | F211: 0.00119047619 | G211: 0.1380952381 | H211: 52.19157735 | I211: 0.06547619048
A212: 116 | B212: 00:00:27 | C212: 00:52:39 | D212: 52.62915174 | E212: 3.80952381 | F212: 0.00119047619 | G212: 0.1392857143 | H212: 52.62915174 | I212: 0.06547619048
A213: 117 | B213: 00:00:27 | C213: 00:53:06 | D213: 53.06632266 | E213: 3.80952381 | F213: 0.00119047619 | G213: 0.1404761905 | H213: 53.06632266 | I213: 0.06547619048
A214: 118 | B214: 00:00:27 | C214: 00:53:33 | D214: 53.5030235 | E214: 3.80952381 | F214: 0.00119047619 | G214: 0.1416666667 | H214: 53.5030235 | I214: 0.06547619048
A215: 119 | B215: 00:00:27 | C215: 00:54:00 | D215: 53.93918791 | E215: 3.80952381 | F215: 0.00119047619 | G215: 0.1428571429 | H215: 53.93918791 | I215: 0.06547619048
A216: 120 | B216: 00:00:27 | C216: 00:54:27 | D216: 54.3747499 | E216: 3.80952381 | F216: 0.00119047619 | G216: 0.144047619 | H216: 54.3747499 | I216: 0.06547619048
A217: 121 | B217: 00:00:27 | C217: 00:54:54 | D217: 54.80964384 | E217: 3.80952381 | F217: 0.00119047619 | G217: 0.1452380952 | H217: 54.80964384 | I217: 0.06547619048
... 252 more rows

Sheet Druck
B1: =CONCATENATE(" Druckansicht (#",'Rp-Verwaltung'!Z14,")") -> Druckansicht (#1) | F1: =IF('Kreations-UI'!BB56," ●","") ->  | J1: =IF(T27="","","●") ->  | W1: Kompakt-Übersicht | AI1: zum Fotogafieren
A3: Y | B3: ='Teig-Führung'!P7 -> *** Standard-Vorlage für neues ST-Brotrezept *** | Q3: Reale Temperaturen: RT | S3: °C | T3: 0
B5: =IF('Teig-Führung'!P10=1,'Teig-Führung'!Q10,"") -> 100% Weizen / 0% Dinkel / 0% Roggen | G5: =IF('Rp-Verwaltung'!Z14>'Rp-Verwaltung'!V6,"Dieses Rezept wurde gelöscht und muss ggf. neu gespeichert werden.","") ->  | O5: =CONCATENATE('Teig-Führung'!L11,"°C RT lt. Rezept warmer Ort") -> 24°C RT lt. Rezept warmer Ort | Q5: °C KS | S5: °C
B7: ¨ Sauerteig, TA 200 (240g / 252g ~ 240ml) | E7: Plan A | G7: Plan B | H7: Realität | I7: # | J7: Tätigkeit | L7: Vorstufe [g] | M7: Zugabe [g] | O7: Soll-Temp. [°C] | P7: Dauer [hh:mm] | U7: =IF(M11=0,1,IF(M12=0,2,3)) -> 1 | AF7: besetzt
B8: ¨ 32g | C8: ASG (11,3% Inokulation) | M8: M | N8: W | P8: Wahl | Q8: min | R8: max | U8: 00:05:00
B9: ¨ 128g | C9: Weizen 550 (108g = 10,7%) | E9: ='Teig-Führung'!C17 -> 2021-01-14T13:00:00 | F9: ='Teig-Führung'!D17 -> 44210.54167 | I9: ='Teig-Führung'!E17 -> 1a | J9: =IF(AND('Teig-Führung'!AH20=1,Garzeiten!C19>0),CONCATENATE("SALZSAUER!",CHAR(10),Garzeiten!S40,"g Salz in letzte Stufe"),IF('Teig-Führung'!AH20=1,"ST-Bereitung (Vol=>2-3x, Float-Test)","kein Sauerteig vorgesehen")) -> ST-Bereitung (Vol=>2-3x, Float-Test) | K9: ='Teig-Führung'!I17 -> Auffrischung (1:5:5) 33g | L9: ='Teig-Führung'!K17 -> 3 | M9: ='Teig-Führung'!L17 -> 15 | N9: ='Teig-Führung'!M17 -> 15 | O9: ='Teig-Führung'!N17 -> 22 | P9: ='Teig-Führung'!O17 -> 0.3333333333 | Q9: ='Teig-Führung'!P17 -> 0.25 | R9: ='Teig-Führung'!Q17 -> 0.5 | U9: 00:05:00 | AA9: =IF('Teig-Führung'!U4=1,'Teig-Führung'!W4,'Teig-Führung'!O4) -> *** Standard-Vorlage für neues ST-Brotrezept ***
B10: ¨ 128g | C10: Wasser | E10: ='Teig-Führung'!C18 -> 2021-01-14T21:00:00 | F10: ='Teig-Führung'!D18 -> 44210.875 | I10: ='Teig-Führung'!E18 -> 1b | K10: ='Teig-Führung'!I18 -> Vollsauer (1:4:4) 252g +30g ASG | L10: ='Teig-Führung'!K18 -> 32 | M10: ='Teig-Führung'!L18 -> 128 | N10: ='Teig-Führung'!M18 -> 128 | O10: ='Teig-Führung'!N18 -> 20 | P10: ='Teig-Führung'!O18 -> 0.5 | Q10: ='Teig-Führung'!P18 -> 0.3333333333 | R10: ='Teig-Führung'!Q18 -> 0.5 | S10: * | U10: 00:05:00 | AB10: von | AC10: bis | AD10: Dauer | AE10: Tätigkeit
B11: Versäuerung 12% | E11: ='Teig-Führung'!C19 -> 2021-01-15T09:00:00 | F11: ='Teig-Führung'!D19 -> 44211.375 | I11: ='Teig-Führung'!E19 -> 1c | K11: ='Teig-Führung'!I19 ->  | L11: ='Teig-Führung'!K19 -> 252 | M11: ='Teig-Führung'!L19 -> 0 | N11: ='Teig-Führung'!M19 -> 0 | O11: ='Teig-Führung'!N19 -> 20 | P11: ='Teig-Führung'!O19 -> 0 | Q11: ='Teig-Führung'!P19 ->  | R11: ='Teig-Führung'!Q19 ->  | U11: 00:05:00 | AA11: =IF(AND('Teig-Führung'!$AH$19,AB11<>""),E9,"") -> 2021-01-14T13:00:00 | AB11: =IF(AND('Teig-Führung'!$AH$19,'Teig-Führung'!BC$8>0,P9>0),F9,"") -> 44210.54167 | AC11: =IF(AB11<>"",AB11+U8,"") -> 44210.54514 | AD11: =IF(AB11<>"",U8,"") -> 0.003472222222 | AE11: =IF(AB11<>"",'Teig-Führung'!CE6,"") -> Auffrischung
E12: ='Teig-Führung'!C20 -> 2021-01-15T09:00:00 | F12: ='Teig-Führung'!D20 -> 44211.375 | I12: ='Teig-Führung'!E20 -> 1d | K12: ='Teig-Führung'!I20 ->  | L12: ='Teig-Führung'!K20 -> 252 | M12: ='Teig-Führung'!L20 -> 0 | N12: ='Teig-Führung'!M20 -> 0 | O12: ='Teig-Führung'!N20 -> 20 | P12: ='Teig-Führung'!O20 -> 0 | Q12: ='Teig-Führung'!P20 ->  | R12: ='Teig-Führung'!Q20 ->  | U12: 00:10:00 | AA12: =IF(AND('Teig-Führung'!$AH$19,AB12<>""),E10,"") -> 2021-01-14T21:00:00 | AB12: =IF(AND('Teig-Führung'!$AH$19,'Teig-Führung'!BC$8>1,P10>0),F10,"") -> 44210.875 | AC12: =IF(AB12<>"",AB12+U9,"") -> 44210.87847 | AD12: =IF(AB12<>"",U9,"") -> 0.003472222222 | AE12: =IF(AB12<>"",'Teig-Führung'!CE7,IF(NOT('Teig-Führung'!AH19),"kein ST vorgesehen","")) -> Vollsauer
B13: ¨ Hauptteig (1500g ohne ST/NT/..., ), 24°C | E13: ='Teig-Führung'!C21 -> 2021-01-15T09:00:00 | F13: ='Teig-Führung'!D21 -> 44211.375 | I13: 2a | J13: =IF('Teig-Führung'!F21="","",'Teig-Führung'!F21) -> Vorteige/Nullteige | L13: =IF('Teig-Führung'!K21<>"parallel zu #1 (hh:mm vor #3)",'Teig-Führung'!K21,"") ->  | O13: ='Teig-Führung'!N21 -> 24 | P13: ='Teig-Führung'!O21 -> 0 | Q13: ='Teig-Führung'!P21 -> 0 | R13: ='Teig-Führung'!Q21 -> 1 | S13: * | AA13: =IF(AND('Teig-Führung'!$AH$19,AB13<>""),E11,"") ->  | AB13: =IF(AND('Teig-Führung'!$AH$19,'Teig-Führung'!BC$8>2,P11>0),F11,"") ->  | AC13: =IF(AB13<>"",AB13+U10,"") ->  | AD13: =IF(AB13<>"",U10,"") ->  | AE13: =IF(AB13<>"",'Teig-Führung'!CE8,"") -> 
B14: ¨ 900g | C14: Weizen 550 (89,3%) | E14: ='Teig-Führung'!C22 -> 2021-01-15T08:30:00 | F14: ='Teig-Führung'!D22 -> 44211.35417 | I14: ='Teig-Führung'!E22 -> 2b | J14: =IF('Teig-Führung'!F22="","",'Teig-Führung'!F22) -> ggf. Autolyse/Fermentolyse (WM) + ggf. andere Nullteige | L14: =IF('Teig-Führung'!K22<>"parallel zu #1 (hh:mm vor #3)",'Teig-Führung'!K22,"") ->  | O14: ='Teig-Führung'!N22 -> 24 | P14: ='Teig-Führung'!O22 -> 0.02083333333 | Q14: ='Teig-Führung'!P22 -> 0.02083333333 | R14: ='Teig-Führung'!Q22 -> 0.5 | S14: * | U14: =P15 -> 00:15:00 | AA14: =IF(AND('Teig-Führung'!$AH$19,AB14<>""),E12,"") ->  | AB14: =IF(AND('Teig-Führung'!$AH$19,'Teig-Führung'!BC$8>3,P12>0),F12,"") ->  | AC14: =IF(AB14<>"",AB14+U11,"") ->  | AD14: =IF(AB14<>"",U11,"") ->  | AE14: =IF(AB14<>"",'Teig-Führung'!CE9,"") -> 
B15: ¨ 580g | C15: Wasser (17°C bzw. 25°C +/- Knetung) | E15: ='Teig-Führung'!C23 -> 2021-01-15T09:00:00 | F15: ='Teig-Führung'!D23 -> 44211.375 | I15: ='Teig-Führung'!E23 -> 3 | J15: ='Teig-Führung'!F23 -> Ca. 30g ASG abnehmen! HT mit 240g Sauerteig ansetzen | L15: =IF('Teig-Führung'!K23<>"",'Teig-Führung'!K23," ") -> viel Kneten => kälteres Wasser wählen | P15: ='Teig-Führung'!O23 -> 0.01041666667 | Q15: ='Teig-Führung'!P23 -> 0.003472222222 | R15: ='Teig-Führung'!Q23 -> 0.01388888889 | U15: ='Teig-Führung'!AF32 -> 00:30:00 | AA15: =IF(P13>0,E13,"") ->  | AB15: =IF(P13>0,F13,"") ->  | AC15: =IF(AB15<>"",AB15+U11,"") ->  | AD15: =IF(AB15<>"",U11,"") ->  | AE15: =IF(P13>0,LEFT(J13,29),"") -> 
B16: ¨ 20,2g | C16: Salz (2%) | E16: ='Teig-Führung'!C24 -> 2021-01-15T09:15:00 | F16: ='Teig-Führung'!D24 -> 44211.38542 | I16: ='Teig-Führung'!E24 -> 4 | J16: =IF('Teig-Führung'!O24>0,'Teig-Führung'!F24,"kein Stretch&Fold vorgesehen") -> 3x S&F alle 30min => Stockgare Agitationsphase | L16: =IF(AND('Teig-Führung'!K24<>"",'Teig-Führung'!O24>0),'Teig-Führung'!K24," ") -> ideal: Fenster-Test positiv | O16: =IF('Teig-Führung'!O24>0,'Teig-Führung'!N24,"") -> 24 | P16: ='Teig-Führung'!O24 -> 0.0625 | Q16: ='Teig-Führung'!P24 -> 0 | R16: ='Teig-Führung'!Q24 -> 0.1041666667 | U16: =IF(P16<>0,P16-U15,"") -> 01:00:00 | AA16: =IF(P14>0,E14,"") -> 2021-01-15T08:30:00 | AB16: =IF(P14>0,F14,"") -> 44211.35417 | AC16: =IF(AB16<>"",AB16+U12,"") -> 44211.36111 | AD16: =IF(AB16<>"",U12,"") -> 0.006944444444 | AE16: =IF(P14>0,LEFT(J14,29),"") -> ggf. Autolyse/Fermentolyse (W
B17: dazu ST (13,8% Inokulation) | L17: =IF('Teig-Führung'!K26<>"",'Teig-Führung'!K26," ") ->  | O17: Stockgare gesamt | P17: =P16+P18 -> 0.3333333333 | U17: =P18 -> 06:30:00 | AA17: =IF(P15>0,E15,"") -> 2021-01-15T09:00:00 | AB17: =IF(P15>0,F15,"") -> 44211.375 | AC17: =IF(AB17<>"",AB17+U14,"") -> 44211.38542 | AD17: =IF(AB17<>"",U14,"") -> 0.01041666667 | AE17: =IF(AB17<>"","Hauptteig machen","") -> Hauptteig machen
E18: ='Teig-Führung'!C25 -> 2021-01-15T10:45:00 | F18: ='Teig-Führung'!D25 -> 44211.44792 | I18: ='Teig-Führung'!E25 -> 5 | J18: ='Teig-Führung'!F25 -> Stockgare => Ruhephase | L18: =IF(P18>0,IF('Teig-Führung'!K25<>"",'Teig-Führung'!K25," ")," ") -> Teigvol => + 20-50% | O18: ='Teig-Führung'!N25 -> 24 | P18: ='Teig-Führung'!O25 -> 0.2708333333 | Q18: ='Teig-Führung'!P25 -> 0.02083333333 | R18: ='Teig-Führung'!Q25 -> 0.5 | S18: * | U18: 00:05:00 | AA18: =IF(P16<>0,E16,"") -> 2021-01-15T09:15:00 | AB18: =IF(P16<>0,F16+U15,"") -> 44211.40625 | AC18: =IF(AB18<>"",AB18+U16,"") -> 44211.44792 | AD18: =IF(AB18<>"",U16,"") -> 0.04166666667 | AE18: =IF(AB18<>"","Agitation","") -> Agitation
B19: TM 1740g // TE 870g // TA 169 | E19: =IF(P19>0,'Teig-Führung'!C27,"") ->  | F19: =IF(P19>0,'Teig-Führung'!D27,"") ->  | I19: =IF(P19>0,'Teig-Führung'!E27,"") ->  | J19: =IF(P19>0,'Teig-Führung'!F27,"") ->  | L19: =IF('Teig-Führung'!K27<>"parallel zu #5 (hh:mm vor nächstem #)",'Teig-Führung'!K27,"") ->  | P19: ='Teig-Führung'!O27 -> 0 | Q19: =IF(P19>0,'Teig-Führung'!P27,"") ->  | R19: =IF(P19>0,'Teig-Führung'!Q27,"") ->  | U19: =P20+P21+P22 -> 0.02430555556 | AA19: =IF(P18>0,E18,"") -> 2021-01-15T10:45:00 | AB19: =IF(P18>0,F18,"") -> 44211.44792 | AC19: =IF(AB19<>"",AB19+U17,"") -> 44211.71875 | AD19: =IF(AB19<>"",U17,"") -> 0.2708333333 | AE19: =IF(AB19<>"","Stockgare Ruhephase","") -> Stockgare Ruhephase
B20: Backzeit 00:45h, ges. Ofenzeit 01:30h | E20: ='Teig-Führung'!C28 -> 2021-01-15T17:15:00 | F20: ='Teig-Führung'!D28 -> 44211.71875 | I20: ='Teig-Führung'!E28 -> 7 | J20: =IF('Teig-Führung'!F28=0,"",'Teig-Führung'!F28) -> 2 Teiglinge rund formen | L20: =IF('Teig-Führung'!K28<>"",'Teig-Führung'!K28,"") ->  | P20: ='Teig-Führung'!O28 -> 0.006944444444 | Q20: ='Teig-Führung'!P28 -> 0 | R20: ='Teig-Führung'!Q28 -> 0.02083333333 | AA20: =IF(P19>0,E19,"") ->  | AB20: =IF(P19>0,F19,"") ->  | AC20: =IF(AB20<>"",AB20+U18,"") ->  | AD20: =IF(AB20<>"",U18,"") ->  | AE20: =IF(AB20<>"",LEFT(J19,29),"") -> 
E21: ='Teig-Führung'!C29 -> 2021-01-15T17:25:00 | F21: ='Teig-Führung'!D29 -> 44211.72569 | I21: ='Teig-Führung'!E29 -> 8 | J21: =IF('Teig-Führung'!F29=0,"",'Teig-Führung'!F29) -> Ballengare, Gärkörbchen vorbereiten | L21: =IF('Teig-Führung'!K29<>"",'Teig-Führung'!K29,"") ->  | O21: ='Teig-Führung'!N29 -> 24 | P21: ='Teig-Führung'!O29 -> 0.01041666667 | Q21: ='Teig-Führung'!P29 -> 0 | R21: ='Teig-Führung'!Q29 -> 0.02777777778 | AA21: =IF(U19>0,E20,"") -> 2021-01-15T17:15:00 | AB21: =IF(U19>0,F20,"") -> 44211.71875 | AC21: =IF(AB21<>"",AB21+U19,"") -> 44211.74306 | AD21: =IF(AB21<>"",U19,"") -> 0.02430555556 | AE21: =IF(AB21<>"","Shaping + Ablage zur StG","") -> Shaping + Ablage zur StG
E22: ='Teig-Führung'!C30 -> 2021-01-15T17:40:00 | F22: ='Teig-Führung'!D30 -> 44211.73611 | I22: ='Teig-Führung'!E30 -> 9 | J22: =IF('Teig-Führung'!F30>0,'Teig-Führung'!F30,"") -> Final Shape | L22: =IF('Teig-Führung'!K30<>"",'Teig-Führung'!K30,"") -> ggf. off. Schluss: kurz mit RM einschlagen | P22: ='Teig-Führung'!O30 -> 0.006944444444 | Q22: ='Teig-Führung'!P30 -> 0.003472222222 | R22: ='Teig-Führung'!Q30 -> 0.02083333333 | U22: =P23 -> 20:00:00 | AA22: =E23 -> 2021-01-15T17:50:00 | AB22: 44211.74306 | AC22: =AB22+AD22 -> 44212.57639 | AD22: =IF(AB22<>"",U22,"") -> 0.8333333333 | AE22: =IF(AB22<>"","Stückgare","") -> Stückgare
E23: ='Teig-Führung'!C31 -> 2021-01-15T17:50:00 | F23: ='Teig-Führung'!D31 -> 44211.74306 | I23: ='Teig-Führung'!E31 -> 10 | J23: =IF('Teig-Führung'!F31>0,'Teig-Führung'!F31,"") -> Stückgare | K23: =IF('Teig-Führung'!H31=0,"",'Teig-Führung'!H31) -> typisch im Gärkorb (Fingerdruck-Test) | L23: =IF('Teig-Führung'!K31<>"",'Teig-Führung'!K31,"") -> 0,5-3h bei RT oder 8-48h im KS | O23: ='Teig-Führung'!N31 -> 5 | P23: ='Teig-Führung'!O31 -> 0.8333333333 | Q23: ='Teig-Führung'!P31 -> 0.02083333333 | R23: ='Teig-Führung'!Q31 -> 2 | S23: * | U23: 00:05:00 | AA23: 2021-01-16T13:05:00 | AB23: 44212.54514 | AC23: =IF(AB23<>"",AB23+U23,"") -> 44212.54861 | AD23: =IF(AB23<>"",U23,"") -> 0.003472222222 | AE23: =IF(AB23<>"","Ofen vorheizen","") -> Ofen vorheizen
E24: ='Teig-Führung'!C32 -> 2021-01-16T13:05:00 | F24: ='Teig-Führung'!D32 -> 44212.54514 | I24: ='Teig-Führung'!E32 -> 11 | J24: ='Teig-Führung'!F32 -> Ofen vorheizen: Stn/Stl Dampfer Umluft => O/U | L24: =IF('Teig-Führung'!K32<>"",'Teig-Führung'!K32,"") -> mit Stahl und Dampfer | O24: =IF('Teig-Führung'!N32<>"",'Teig-Führung'!N32,"") -> 250 | P24: ='Teig-Führung'!O32 -> 0.03125 | Q24: ='Teig-Führung'!P32 -> 0.02777777778 | R24: ='Teig-Führung'!Q32 -> 0.05208333333 | U24: 00:05:00 | AA24: 2021-01-16T13:50:00 | AB24: 44212.57639 | AC24: =IF(AB24<>"",AB24+U24,"") -> 44212.57986 | AD24: =IF(AB24<>"",U24,"") -> 0.003472222222 | AE24: =IF(AB24<>"","Scoring etc. und Einschießen","") -> Scoring etc. und Einschießen
E25: ='Teig-Führung'!C33 -> 2021-01-16T13:50:00 | F25: ='Teig-Führung'!D33 -> 44212.57639 | I25: ='Teig-Führung'!E33 -> 12 | J25: ='Teig-Führung'!F33 -> Teiglinge vorbereiten und einschießen mit Dampf | L25: =IF('Teig-Führung'!K33<>"",'Teig-Führung'!K33,"") -> 250>220°, nach 20' entschwaden | P25: ='Teig-Führung'!O33 -> 0.03125 | Q25: ='Teig-Führung'!P33 -> 0.02430555556 | R25: ='Teig-Führung'!Q33 -> 0.03645833333 | T25: Arbeitsinfos | U25: 00:05:00 | X25: 0.003472222222 | AB25: =F26 -> 44212.60764 | AC25: =IF(AB25<>"",AB25+U25,"") -> 44212.61111 | AD25: =IF(AB25<>"",U25,"") -> 0.003472222222 | AE25: =IF(AB25<>"",IF(AB26<>"","Brot raus+Ofen wieder heizen","aus dem Ofen zum Auskühlen")) -> aus dem Ofen zum Auskühlen
E26: ='Teig-Führung'!C34 -> 2021-01-16T14:35:00 | F26: ='Teig-Führung'!J34 -> 44212.60764 | J26: ='Teig-Führung'!F34 -> Brote fertig (Kerntemperatur in der Regel 94-98°C) | L26: Temp. ø | N26: Schwaden | P26: ='Teig-Führung'!O34 -> 2.065972222 | Q26: ='Teig-Führung'!P34 -> 0.65625 | R26: ='Teig-Führung'!Q34 -> 3.723958333 | U26: TRUE | AB26: =F28 ->  | AC26: =IF(AB26<>"",AB26+U28,"") ->  | AD26: =IF(AB26<>"",U28,"") ->  | AE26: =IF(AB26<>"","2. Charge in den Ofen","") -> 
E27: ='Teig-Führung'!C35 ->  | F27: ='Teig-Führung'!D35 ->  | J27: ='Teig-Führung'!F35 -> (Ggf. noch ein wenig im offenen Ofen belassen.) | T27: ='Kreations-UI'!BC68 ->  | AB27: =IF(F29<>"",F29,"") ->  | AC27: =IF(AB27<>"",AB27+U29,"") ->  | AD27: =IF(AB27<>"",U29,"") ->  | AE27: =IF(AB27<>"","aus dem Ofen zum Auskühlen","") -> 
E28: ='Teig-Führung'!C36 ->  | F28: ='Teig-Führung'!D36 ->  | J28: ='Teig-Führung'!F36 ->  | U28: 00:15:00
E29: ='Teig-Führung'!C37 ->  | F29: ='Teig-Führung'!J37 ->  | J29: ='Teig-Führung'!F37 ->  | U29: 00:05:00
E31: (1a) Den Sauerteig mit dem gewohntem Mehl/Mehlmischung auffrischen. | U31: =LEFT(E31,2)="'=" -> FALSE
E32: (1b) Sauerteig mit dem im Rezept angegeben Mehl ansetzen. (2b) Kurz bevor der ST peakt, die Autolyse (typischerweise ohne Salz) ansetzen. | AE32: =TODAY() -> 2023-11-07
E33: (3) Hauptteig (=Autolyseteig + zugewogener Sauerteig) mischen und kneten. (4) In Abständen Stretchen und Folden.
E34: (7/8) Teiglinge abteilen, vorformen und kurz entspannen lassen. (9) Finale Formung passend zu den Gärkörbchen. (10) Stückgare im Kühlschrank.
B36: geeignete Gärkörbe: | E36: (12) Bei 250° mit viel Dampf anbacken und sofort Hitze reduzieren. Bei 220° zu Ende backen. Nach 20 min entschwaden.
B37: Gärkörbchen Peddigrohr rund (2x) | E37: Nach dem Backen ggf. noch bei offener Tür ausdampfen lassen für eine knusprige Kruste.
B38: Gärkörbchen Peddigrohr oval (2x)
B39: Gärkörbchen Holzschliff kurz | E39: Info: | G39: =IF('Teig-Führung'!P12=1,'Teig-Führung'!Q12,"") -> Vorlage
B40: =C70 -> Quelle: Steffi | M40: =CONCATENATE('Kreations-UI'!AT45,"Aufwand ",'Kreations-UI'!AP54) -> ↘Aufwand 6,3 | R40: ="gespeichert am "&TEXT('Teig-Führung'!AB11,"TT.MM.JJ")&", gedruckt am "&TEXT('Teig-Führung'!AB12,"TT.MM.JJ") -> gespeichert am -, gedruckt am -
J42: TM 3347g // TE 1674g // TA 211 | K42: TE aktuell | L42: ='Kreations-UI'!AR12-M42 -> 870 | M42: 0
J43: kl. Abw. | K43: Form | L43: min | M43: max | N43: dlt min | O43: dlt max | P43: delta
J44: =MIN(N44,O44) -> -350 | K44: ='Teig-Führung'!DH27 -> Backrahmen Hälfte: 15x24x10 (2x) | L44: ='Teig-Führung'!DJ27 -> 1220 | M44: ='Teig-Führung'!DL27 -> 1980 | N44: =($L$42-L44) -> -350 | O44: =(M44-$L$42)+0.5 -> 1110.5 | P44: =M44-L44 -> 760 | Q44: BF
J45: -340 | K45: ='Teig-Führung'!DH25 -> Kastenbrotbackform (12,5x28,5x10) | L45: ='Teig-Führung'!DJ25 -> 1210 | M45: ='Teig-Führung'!DL25 -> 1950 | N45: -340 | O45: =(M45-$L$42)+0.5 -> 1080.5 | P45: 740 | Q45: BF
J46: 70 | K46: ='Teig-Führung'!DH23 -> lange Königskuchenform (29x10) | L46: ='Teig-Führung'!DJ23 -> 800 | M46: ='Teig-Führung'!DL23 -> 1150 | N46: 70 | O46: 280.5 | P46: 350 | Q46: BF
J47: 170 | K47: ='Teig-Führung'!DH21 -> Kleine Springform (22cm) | L47: ='Teig-Führung'!DJ21 -> 700 | M47: ='Teig-Führung'!DL21 -> 1105 | N47: 170 | O47: 235.5 | P47: 405 | Q47: BF
J48: 10.5 | K48: ='Teig-Führung'!DH19 -> Backrahmen Viertel: 15x11x10 (4x) | L48: ='Teig-Führung'!DJ19 -> 560 | M48: ='Teig-Führung'!DL19 -> 880 | N48: 310 | O48: 10.5 | P48: 320 | Q48: BF
J49: -109.5 | K49: ='Teig-Führung'!DH17 -> kurze Königskuchenform (24x9) | L49: ='Teig-Führung'!DJ17 -> 551 | M49: ='Teig-Führung'!DL17 -> 760 | N49: 319 | O49: =(M49-$L$42)+0.5 -> -109.5 | P49: 209 | Q49: BF
J50: -119.5 | K50: ='Teig-Führung'!DH15 -> Mini-Kastenform (3x) | L50: ='Teig-Führung'!DJ15 -> 500 | M50: ='Teig-Führung'!DL15 -> 750 | N50: 370 | O50: -119.5 | P50: 250 | Q50: BF
J51: -219.5 | K51: ='Teig-Führung'!DH13 -> Mini-Springform (16cm) | L51: ='Teig-Führung'!DJ13 -> 450 | M51: ='Teig-Führung'!DL13 -> 650 | N51: 420 | O51: -219.5 | P51: 200 | Q51: BF
J52: -350 | K52: ='Teig-Führung'!CY27 -> [Backrahmen breite kurze Hälfte] (2x) | L52: ='Teig-Führung'!DA27 -> 1220 | M52: ='Teig-Führung'!DC27 -> 1980 | N52: -350 | O52: 1110.5 | P52: 760 | Q52: GK
J53: -340 | K53: ='Teig-Führung'!CY25 -> [Kastenbrotbackform] | L53: ='Teig-Führung'!DA25 -> 1210 | M53: ='Teig-Führung'!DC25 -> 1950 | N53: -340 | O53: 1080.5 | P53: 740 | Q53: GK
J54: -330 | K54: ='Teig-Führung'!CY23 -> [Backrahmen lange schmale Hälfte] (2x) | L54: ='Teig-Führung'!DA23 -> 1200 | M54: ='Teig-Führung'!DC23 -> 1930 | N54: -330 | O54: 1060.5 | P54: 730 | Q54: GK
J55: -30 | K55: ='Teig-Führung'!CY21 -> Gärkörbchen Holzschliff lang | L55: ='Teig-Führung'!DA21 -> 900 | M55: ='Teig-Führung'!DC21 -> 1300 | N55: -30 | O55: 430.5 | P55: 400 | Q55: GK
J56: -29 | K56: ='Teig-Führung'!CY19 -> Gärkörbchen Holzschliff rund (2x) | L56: ='Teig-Führung'!DA19 -> 899 | M56: ='Teig-Führung'!DC19 -> 1301 | N56: -29 | O56: 431.5 | P56: 402 | Q56: GK
J57: 80.5 | K57: ='Teig-Führung'!CY17 -> Gärkörbchen Holzschliff kurz | L57: ='Teig-Führung'!DA17 -> 750 | M57: ='Teig-Führung'!DC17 -> 950 | N57: 120 | O57: 80.5 | P57: 200 | Q57: GK
J58: 150.5 | K58: ='Teig-Führung'!CY15 -> Gärkörbchen Peddigrohr oval (2x) | L58: ='Teig-Führung'!DA15 -> 650 | M58: ='Teig-Führung'!DC15 -> 1020 | N58: 220 | O58: 150.5 | P58: 370 | Q58: GK
J59: 210.5 | K59: ='Teig-Führung'!CY13 -> Gärkörbchen Peddigrohr rund (2x) | L59: ='Teig-Führung'!DA13 -> 600 | M59: ='Teig-Führung'!DC13 -> 1080 | N59: 270 | O59: 210.5 | P59: 480 | Q59: GK
C63: Diagrammdaten liegen unterhalb des Diagramms | J63: Prio GK | K63: =COUNTIF(J64:J66,">=0") -> 3 | L63: Prio BF | M63: =COUNTIF(L64:L66,">=0") -> 3
J64: =LARGE(J$52:J$59,1) -> 210.5 | K64: =IF(J64>=0,VLOOKUP(J64,J$52:K$59,2,0),K71) -> Gärkörbchen Peddigrohr rund (2x) | L64: =LARGE(J$44:J$51,1) -> 170 | M64: =IF(L64>=0,VLOOKUP(L64,J$44:K$51,2,0),M71) -> Kleine Springform (22cm)
C65: Länge von Quellenangabe | D65: =LEN('Teig-Führung'!Q9) -> 6 | J65: =LARGE(J$52:J$59,2) -> 150.5 | K65: =IF(J65>=0,VLOOKUP(J65,J$52:K$59,2,0),"") -> Gärkörbchen Peddigrohr oval (2x) | L65: =LARGE(J$44:J$51,2) -> 70 | M65: =IF(L65>=0,VLOOKUP(L65,J$44:K$51,2,0),"") -> lange Königskuchenform (29x10)
C66: Länge von Formen | D66: =LEN(K83) -> 94 | J66: =LARGE(J$52:J$59,3) -> 80.5 | K66: =IF(J66>=0,VLOOKUP(J66,J$52:K$59,2,0),"") -> Gärkörbchen Holzschliff kurz | L66: =LARGE(J$44:J$51,3) -> 10.5 | M66: =IF(L66>=0,VLOOKUP(L66,J$44:K$51,2,0),"") -> Backrahmen Viertel: 15x11x10 (4x)
C67: max verfügbare Zch Sp B-K: | D67: 128 | J67: Behelfs--GK | K67: =COUNTIF(J68:J69,">=0") -> 2
C68: aktuell verfügbar für Quelle: | D68: =IF(NOT('Kreations-UI'!BB44),Druck!D67,D67-D66-1) -> 128 | J68: =LARGE(J$44:J$51,1) -> 170 | K68: =IF(J68>=0,VLOOKUP(J68,J44:K51,2,0),"") -> Kleine Springform (22cm)
C69: Quellentext: | D69: =IF(D68<D65+7,"","Quelle: ") -> Quelle: | E69: =IF(F69=1,"...","") ->  | F69: =IF(LEN('Teig-Führung'!Q9)>D68+1,1,0) -> 0 | G69: =LEN(C70) -> 14 | J69: =LARGE(J45:J52,2) -> 70 | K69: =IF(J69>=0,VLOOKUP(J69,J44:K51,2,0),"") -> lange Königskuchenform (29x10)
C70: =CONCATENATE(LEFT(CONCATENATE(D69,'Teig-Führung'!Q9),D68-F69+1),E69) -> Quelle: Steffi
C71: =IFERROR(ROW(E31)+LEN(E31)+CODE(LEFT(E31,1)),0) -> 138 | K71: kein geeigneter Gärkorb | M71: keine geeignete Backform | P71: Backformen:
C72: =IFERROR(ROW(E32)+LEN(E32)+CODE(LEFT(E32,1)),0) -> 209 | J72: 1 | K72: =IF(K63>=1,K64,IF(K67>=1,K68,K71)) -> Gärkörbchen Peddigrohr rund (2x)
C73: 185 | J73: 2 | K73: =IF(K63>=2,K65,IF(AND(K63=1,K67>=1),K68,IF(K63=0,K69))) -> Gärkörbchen Peddigrohr oval (2x)
C74: 215 | J74: 3 | K74: =IF(K63=3,K66,IF(AND(K63=2,K67>=1),K68,IF(AND(K63=1,K67=2),K69,""))) -> Gärkörbchen Holzschliff kurz
C75: 0
C76: 192 | J76: ='Kreations-UI'!AR6 -> 0 | K76: freigeschoben (0) / Form (1) | L76: 0 | M76: =IF(M63=1,P76,P78) -> geeignete Backformen: | P76: geeignete Backform:
C77: 201 | L77: 1 | M77: =IF(K63+K67>1,P79,P77) -> geeignete Gärkörbe: | P77: geeigneter Gärkorb:
C78: =SUM(C71:C77) -> 1140 | D78: Prüfsumme Drucktext | H78: =MAX(H79:H81) -> 3 | I78: Anzahl Zeilen | K78: =IF(AND(J76=0,K63+K67>0),M77,IF(AND(J76=1,M63>0),M76,"")) -> geeignete Gärkörbe: | P78: geeignete Backformen: | R78: Backformen:
H79: =I79*J79 -> 1 | I79: =IF(K79="",0,1) -> 1 | J79: 1 | K79: =IF($J$76=0,K72,M64) -> Gärkörbchen Peddigrohr rund (2x) | L79: =IF(H78>1,", ","") -> , | P79: geeignete Gärkörbe: | R79: Gärkörbe:
H80: =I80*J80 -> 2 | I80: =IF(K80="",0,1) -> 1 | J80: 2 | K80: =IF($J$76=0,K73,M65) -> Gärkörbchen Peddigrohr oval (2x) | L80: =IF(H78>2,", ","") -> ,
H81: =I81*J81 -> 3 | I81: =IF(K81="",0,1) -> 1 | J81: 3 | K81: =IF($J$76=0,K74,M66) -> Gärkörbchen Holzschliff kurz
K82: =IF(OR(K78=P78,K78=P79),VLOOKUP(K78,P78:R79,3),K78) -> Gärkörbe:
J83: Platzmangeltext: | K83: =IF(LEN(K85)<94,K85,K84) -> Gärkörbe: Gärkörbchen Peddigrohr rund (2x), Gärkörbchen Peddigrohr oval (2x), Gärkörbchen H...
J84: gekürzt => | K84: =CONCATENATE(LEFT(CONCATENATE(K82,K79,L79,K80,L80,K81),91),"...") -> Gärkörbe: Gärkörbchen Peddigrohr rund (2x), Gärkörbchen Peddigrohr oval (2x), Gärkörbchen H...
J85: komplett => | K85: =CONCATENATE(K82,K79,L79,K80,L80,K81) -> Gärkörbe: Gärkörbchen Peddigrohr rund (2x), Gärkörbchen Peddigrohr oval (2x), Gärkörbchen Holzschliff kurz

Sheet Rp-Verwaltung
B1: Rezeptverwaltung | G1: =CONCATENATE(V6," Rezepte im Speicher") -> 34 Rezepte im Speicher
W2: variabel, errechnet | AA2: fix gesetzt | AD2: alt | AE2: neu | AJ2: aktualisiert die RezListe, dauert sehr lang, nur für Notfälle .
T3: F(akt Zeile) | U3: =INDIRECT("F"&V4) -> 5 | V3: =IF(V4<Z4,U4,IF(V4>V7,U5,U3)) -> 5 | W3: Rp-Nummer der aktuellen Zeile (F9) | Z3: 6 | AA3: Beginn Tab RV Spalte | AB3: F | AC3: Sortierung nach Spalte | AD3: F | AE3: F
E4: =IF(Druck!T27="","","●") ->  | F4: =CONCATENATE("aktuelles Rezept im Editor: ",Z14," ⁞ ",'Teig-Führung'!P7) -> aktuelles Rezept im Editor: 1 ⁞ *** Standard-Vorlage für neues ST-Brotrezept *** | T4: F(oberste Zeile) | U4: =INDIRECT("F"&Z4) -> 1 | V4: =CELL("zeile") -> 12 | W4: Aktive Zeile | Z4: 8 | AA4: Beginn Tab RV Zeile | AC4: Sortierungsrichtung | AD4: 1 | AE4: =IF(AD3<>AE3,AC7,IF(AD4=AC7,AC8,AC7)) -> 2
T5: F(unterste Zeile) | U5: =INDIRECT("F"&V7) -> 34 | V5: 41 | W5: gemerkte Zeile | Z5: 13 | AA5: Ende Tab RV Spalte | AB5: O | AC5: Sortierungswechsel | AD5: =IF(AD3=AE3,1,0) -> 1
V6: =SuW!P1 -> 34 | W6: Anzahl Rezepte
D7: 0 | E7: Y | F7: Nr | G7: Name | H7: Getreide (R / W / D) | I7: Vollwert-Rating | J7: Aufwand | K7: Zeitbedarf [Tage] | L7: Info | M7: zuletzt gespeichert | N7: Quelle | O7: =SUM(O8:O508) -> 0 | T7: F7:L | V7: =Z3+V6+1 -> 41 | W7: Ende Tab Zeile | Z7: 17 | AA7: Beginn Tab SUW Spalte | AC7: 1 | AD7: xlAscending
E8: Y | F8: 1 | G8: *** Standard-Vorlage für neues ST-Brotrezept *** | H8: 0 / 100 / 0 | I8: 0 | J8: 6.3 | K8: 2.1 | L8: Vorlage | M8: 2023-11-04T17:26:14 | N8: Steffi | O8: 0 | T8: =CONCATENATE(T7,V7) -> F7:L41 | U8: T3 | V8: =MATCH(V6,INDIRECT("F8:F"&V7),0)+7 -> 41 | W8: Zeile des letzten Rp (höchste Nr) | Z8: 1 | AA8: Beginn Tab SUW Zeile | AC8: 2 | AD8: xlDescending
E9: Y | F9: 2 | G9: *** Standard-Vorlage für neues Hefe-Brotrezept *** | H9: 0 / 100 / 0 | I9: 0 | J9: 2.1 | K9: 0.2 | L9: Vorlage | M9: 2023-11-04T17:30:12 | N9: Steffi | O9: 0
E10: Y | F10: 3 | G10: ՕՕ Sune's Beginner's SD-Bread (Var), 2 Stück á ca. 835g | H10: 0 / 100 / 0 | I10: 0.9 | J10: 5.9 | K10: 1.8 | L10: (S) super | M10: 2023-11-05T13:17:16 | N10: nach Sune Trudslev (Foodgeek): https://foodgeek.dk/en/sourdough-bread-recipe-for-beginners/ | O10: 0 | T10: Fehlerabfang | U10: =IF(OR(V10<1,V10>V6),1,V10) -> 1 | V10: 1 | W10: Nr des letzten selekt Rezepts vor up/down in Druck | AA10: Startzelle RV-Tabelle | AB10: =CONCATENATE(AB3,Z4) -> F8 | AE10: =Z14 -> 1 | AF10: Rezept im Editor
E11: Y | F11: 4 | G11: ჻ Baguettes aus Hefeteig, 3 Stück | H11: 0 / 100 / 0 | I11: 0.1 | J11: 4 | K11: 0.1 | L11: (H) lecker, sehr kurze Teigführung | M11: 2023-11-05T13:33:29 | N11: frei nach Schwiegermama | O11: 0 | V11: =MATCH(U10,INDIRECT("F8:F"&V7),0)+7 -> 8 | W11: Zeile des zuletzt selektierten Rezepts | AA11: Endzelle RV-Tabelle | AB11: =CONCATENATE(AB5,V7) -> O41 | AE11: =MATCH(AE10,INDIRECT("F8:F"&V7),0)+7 -> 8 | AF11: aktuelle Zeile des Rp im Editor
E12: Y | F12: 5 | G12: ՕՕ TwinBake TwoNights, 2 Stück á ca. 870g | H12: 12 / 77 / 12 | I12: 1.2 | J12: 6.8 | K12: 1.9 | L12: (S) einfach und gut! | M12: 2023-11-04T17:45:50 | N12: Steffi | O12: 0 | V12: =CONCATENATE(AB3,V11,":",AB5,V11) -> F8:O8 | W12: Bereich Selektion akt. Rezept | AA12: Bereich RV-Tabelle | AB12: =CONCATENATE(AB10,":",AB11) -> F8:O41 | AE12: =CONCATENATE("F",AE11,":F",AE11) -> F8:F8
B13: 1 | E13: Y | F13: 6 | G13: ⃝ Mediterranes Dinkelbrot, Hefevariation | H13: 0 / 6 / 94 | I13: 0.1 | J13: 4.8 | K13: 0.2 | L13: (H) Lecker aus der Springform. Brühstück getunt. | M13: 2023-11-06T08:56:23 | N13: frei nach Lutz Geißler (Plötzblog): Brotbackbuch Nr 4, S. 137 | O13: 0
E14: Y | F14: 7 | G14: ՕՕ Ruchbrote mit Roggen, 2 Stück á ca. 715g | H14: 10 / 90 / 0 | I14: 2.3 | J14: 6.2 | K14: 2 | L14: (S) Gut! | M14: 2023-11-05T13:42:47 | N14: Steffi nach René (Brooot): https://www.brooot.de/weizenbrote/schweizer-ruchbrot-mit-sauerteig/ | O14: 0 | V14: =IF(V11=Z4,Z4,V11-1) -> 8 | W14: Zeile des vorangehenden Rezepts | Z14: 1 | AA14: # Quell-Rp in Druck-Oberfläche | AE14: =IF(AE11-1<8,8,AE11-1) -> 8 | AF14: Rezeptzeile darüber (oder oberste Zeile)
B15: =VLOOKUP(B13,F8:G308,2,FALSE) -> *** Standard-Vorlage für neues ST-Brotrezept *** | E15: Y | F15: 8 | G15: ՕՕ Sonnenblumenbrot, 2 Stück á ca. 880g | H15: 17 / 83 / 0 | I15: 3.4 | J15: 10.4 | K15: 2.6 | L15: (S) Gut! Vormittags-BulkRise | M15: 2023-11-05T13:51:33 | N15: Steffi | O15: 0 | V15: =INDIRECT("F"&V14) -> 1 | W15: Nr des des vorangehenden Rezepts | Z15: =V6+1 -> 35 | AA15: nächste freie Rp-#
E16: Y | F16: 9 | G16: ՕՕ Rustikales Bauernbrot, für schwächeren ST, 2 Stück á ca. 775g | H16: 70 / 30 / 0 | I16: 3.2 | J16: 6.5 | K16: 1.1 | L16: (S) Lecker mit Alpenroggen. Offener Schluss :-) | M16: 2023-11-05T13:53:43 | N16: frei nach Lutz Geißler (Plötzblog) 2013:https://www.ploetzblog.de/2013/04/27/leserwunsch-rustikales-bauernbrot/ | O16: 0
E17: Y | F17: 10 | G17: □ Sonnenblumen-Hefebrot á ca. 1745g | H17: 18 / 82 / 0 | I17: 3.4 | J17: 4 | K17: 0.3 | L17: (H) gut gelungen | M17: 2023-11-05T13:59:02 | N17: Steffi | O17: 0 | V17: =IF(V11=V7,V7,V11+1) -> 9 | W17: Zeile des folgenden Rezepts | AE17: =IF(AE11+1>V7,V7,AE11+1) -> 9 | AF17: Rezeptzeile darunter (oder unertste Zeile)
E18: Y | F18: 11 | G18: ՕՕ W/D-ST-Brot mit Altbrot-QS, 2 Stück á ca. 815g | H18: 0 / 88 / 12 | I18: 1.6 | J18: 8.8 | K18: 1.5 | L18: (S) Gut! mehrfach adaptiert | M18: 2023-11-05T14:03:00 | N18: Steffi nach Sune Trudslev (Foodgeek) | O18: 0 | V18: =INDIRECT("F"&V17) -> 2 | W18: Nr des folgenden Rezepts | Z18: 0 | AA18: letzte Aktion manuell (0) / up (1) down (-1)
E19: Y | F19: 12 | G19: □ Weizen-ST-Brot mit Altbrot-BS (ST üN/Mix Proof) á ca. 1735g | H19: 0 / 100 / 0 | I19: 1.5 | J19: 9.3 | K19: 1.4 | L19: (S) Gutes Kastenbrot! | M19: 2023-11-05T14:08:37 | N19: Steffi nach Sune Trudslev (Foodgeek) | O19: 0 | AE19: =SUM(P8:P506) -> 0 | AF19: Favoritensumme (P)
E20: Y | F20: 13 | G20: ⃝ Herzhaftes Weizenmisch-Rundbrot aus der Springform | H20: 15 / 85 / 0 | I20: 1.5 | J20: 5.9 | K20: 1 | L20: (S) Sehr lecker | M20: 2023-11-06T09:01:06 | N20: Steffi | O20: 0 | V20: =CONCATENATE(AB3,V17,":",AB5,V17) -> F9:O9 | W20: Bereich Selektion Folge-Rezept | Z20: -1 | AA20: =V21 -> F8:O8 | AB20: =CONCATENATE(AB3,Z4,":",AB5,Z4) -> F8:O8 | AC20: oberstes Rezept | AE20: 264 | AF20: gemerkte Favoritensumme
E21: Y | F21: 14 | G21: ՕՕ Haferquelle mit Saatenkruste, 2 Stück á ca. 825g | H21: 13 / 87 / 0 | I21: 2.2 | J21: 6.9 | K21: 1 | L21: (S) gut! | M21: 2023-11-05T14:26:50 | N21: Steffi | O21: 0 | V21: =CONCATENATE(AB3,V14,":",AB5,V14) -> F8:O8 | W21: Bereich Selektion Vorgänger-Rezept | Z21: 0 | AA21: =V12 -> F8:O8 | AB21: =CONCATENATE(AB3,V7,":",AB5,V7) -> F41:O41 | AC21: unterstes Rezept | AE21: =INDIRECT("F"&V4) -> 5 | AF21: RezNr (Fav)
B22: 7 | E22: Y | F22: 15 | G22: □ Aromatisches Hefebrot mit langer Haltbarkeit | H22: 20 / 73 / 7 | I22: 1.3 | J22: 7.8 | K22: 0.3 | L22: (H) Sehr gut, lockere Krume. Shaping schwierig => Backform | M22: 2023-11-05T14:29:19 | N22: Steffi | O22: 0 | Z22: 1 | AA22: =V20 -> F9:O9 | AE22: =AE21+16 -> 21 | AF22: Rezeptspalte in SuW
E23: Y | F23: 16 | G23: ⃝ Kräftiges Walnuss-Cranberry-Brot | H23: 60 / 40 / 0 | I23: 3.1 | J23: 9.5 | K23: 0.6 | L23: (S) gut! | M23: 2023-11-05T14:51:51 | N23: sehr frei nach Katharina Arrigoni : https://www.besondersgut.ch/baumnussbrot/ | O23: 0 | U23: =V12 | V23: =V12 -> F8:O8 | W23: zu selektierender Bereich bei Rückkehr auf Seite
E24: Y | F24: 17 | G24: □ Herzhaftes Saatenbrot | H24: 20 / 80 / 0 | I24: 3.7 | J24: 9.8 | K24: 2 | L24: (S) Sehr gut! | M24: 2023-11-05T14:59:58 | N24: Steffi | O24: 0
E25: Y | F25: 18 | G25: ՕՕ Herzhaftes ST-Weizenmischbrot, 2 Stück á ca. 750g | H25: 19 / 81 / 0 | I25: 2.2 | J25: 7.9 | K25: 1.9 | L25: (S) Basisrezept, gut zum Artisan-Scoring | M25: 2023-11-05T15:05:55 | N25: Steffi | O25: 0 | V25: =IF(V7<Z4,AB20,IF(V11>V7,AB21,VLOOKUP(Z18,Z20:AA22,2))) -> F8:O8 | W25: zu selektierender Bereich bei neuem Focus
E26: Y | F26: 19 | G26: ՕՕ Einfaches Recycling-Hefebrot | H26: 13 / 88 / 0 | I26: 2 | J26: 4 | K26: 0.2 | L26: (H) Sehr gut geworden. Mit viel Altbrot+Alt-ST | M26: 2023-11-06T09:03:20 | N26: Steffi | O26: 0 | AD26: *Hinweis!
E27: Y | F27: 20 | G27: ՕՕ Opas Kümmel-Brot, 2 Stück á ca. 800g | H27: 22 / 78 / 0 | I27: 2.4 | J27: 10.4 | K27: 2.1 | L27: (S) Sehr gut angekommen! | M27: 2023-11-05T16:16:34 | N27: Steffi | O27: 0 | V27: 1 | W27: Rp-Nr von ST-Rezept-Vorlage* | Z27: *** Standard-Vorlage für neues ST-Brotrezept *** | AC27: =INDIRECT("F"&V30) -> 1 | AD27: Rezeptnummern für Vorlagen (Spalte V) sind jetzt fix, damit Namensänderungen
E28: Y | F28: 21 | G28: □ Schnelles Müsli-Brot aus dem Kasten | H28: 19 / 52 / 29 | I28: 3.7 | J28: 3.8 | K28: 0.2 | L28: (H) Sehr lecker und unkompliziert | M28: 2023-11-06T09:13:19 | N28: Steffi | O28: 0 | V28: 2 | W28: Rp-Nr von Hefeteig-Rezept-Vorlage* | Z28: *** Standard-Vorlage für neues Hefe-Brotrezept *** | AC28: =INDIRECT("F"&V31) -> 2 | AD28: kein Problem machen. Variable Angaben siehe links (in blau)
E29: Y | F29: 22 | G29: □ Roggenmischbrot aus dem Kasten á ca. 1495g | H29: 68 / 32 / 0 | I29: 1.6 | J29: 4.4 | K29: 1 | L29: (S) Schnell, einfach und gut | M29: 2023-11-05T16:44:57 | N29: Steffi | O29: 0
E30: Y | F30: 23 | G30: □ Sandwich-Brot á ca. 1580g | H30: 0 / 100 / 0 | I30: 1 | J30: 3 | K30: 0.2 | L30: (H) Gut! | M30: 2023-11-05T16:54:26 | N30: umgeheft nach Sune Trudslev (Foodgeek) | O30: 0 | V30: =MATCH(Z27,INDIRECT("G8:G"&V7),0)+7 -> 8 | W30: Zeile von ST-Vorlage
E31: Y | F31: 24 | G31: ՕՕ Trauben-Nuss-Brot, 2 Stück á ca. 745g | H31: 10 / 90 / 0 | I31: 3.1 | J31: 7.5 | K31: 1.3 | L31: (S) Sehr lecker | M31: 2023-11-05T17:07:12 | N31: frei nach René (Brooot): https://www.brooot.de/weizenbrote/schweizer-ruchbrot-mit-sauerteig/ | O31: 0 | V31: =MATCH(Z28,INDIRECT("G8:G"&V7),0)+7 -> 9 | W31: Zeile von Hefe-Vorlage
E32: Y | F32: 25 | G32: ֎ Stutenkerle / Weckmänner, 3 Stück á ca. 175g | H32: 0 / 100 / 0 | I32: 0 | J32: 3.3 | K32: 0.2 | L32: (H) gut! | M32: 2023-11-05T17:14:05 | N32: diverse Rezepte kombiniert | O32: 0
E33: Y | F33: 26 | G33: ⃝ Einfaches Weizenmischbrot, retardiert, ca. 765g | H33: 10 / 90 / 0 | I33: 2.5 | J33: 6.9 | K33: 1.9 | L33: (S) gutes Alltagsrezept | M33: 2023-11-05T17:20:10 | N33: Steffi | O33: 0 | W33: Toggle-Status AutoWahl vs ManuellWahl
E34: Y | F34: 27 | G34: ՕՕ 8-Stunden-Müsli-Brot | H34: 19 / 52 / 29 | I34: 3.1 | J34: 4.1 | K34: 0.3 | L34: (H) Gut! | M34: 2023-11-05T17:30:02 | N34: Steffi | O34: 0 | W34: Autowahl = | X34: TRUE | Y34: X34 | Z34: Einfach-Auswahl=Autowahl = breite Zeile
E35: Y | F35: 28 | G35: □ Paderborner Landbrot aus dem Backrahmen, 2 Stück á ca. 690g | H35: 80 / 20 / 0 | I35: 2.4 | J35: 5.9 | K35: 1.3 | L35: (S) gutes Rezpt, klappt gut im Holzrahmen | M35: 2023-11-05T17:41:43 | N35: Sylvia (Brotwein): https://brotwein.net/paderborner-brot-landbrot-als-roggenmischbrot-4969 | O35: 0 | W35: Merker = | X35: TRUE | Y35: X35
E36: Y | F36: 29 | G36: □□ Steinberg-Kanten aus dem Backrahmen, 2 Stück á ca. 780g | H36: 33 / 67 / 0 | I36: 4.8 | J36: 9.1 | K36: 1.2 | L36: (S) Gut! TA/TE/Garzeiten angepasst | M36: 2023-11-05T17:45:55 | N36: nach Björn Hollensteiner (Brotdoc): https://brotdoc.com/2016/06/05/steinberg-kanten/ | O36: 0
E37: Y | F37: 30 | G37: □□ Schwabachtaler Stuten im BR, 2 Stück á ca. 675g | H37: 27 / 73 / 0 | I37: 1.3 | J37: 4.2 | K37: 0.3 | L37: (H) Sehr lecker und fluffig | M37: 2023-11-06T09:07:23 | N37: frei nach René (Brooot): https://www.brooot.de/mischbrote/schwabachtaler-stuten/ | O37: 0
E38: Y | F38: 31 | G38: ֎ Osternachts-Zopf | H38: 0 / 100 / 0 | I38: 0 | J38: 8.1 | K38: 0.8 | L38: (H) sehr lecker! | M38: 2023-11-05T17:52:12 | N38: frei nach Marcel Paa: https://www.marcelpaa.com/rezepte/osterzopf-osterstriezel/ | O38: 0 | W38: 2023-08-08 | X38: gerettetes Speicherdatum für Sub Rp_neu_berechnen() in DB_Editor
B39: =B13 -> 1 | C39: =B$13 -> 1 | E39: Y | F39: 32 | G39: □ Vollflocke | H39: 72 / 28 / 0 | I39: 7.7 | J39: 9.5 | K39: 1.1 | L39: (SS) Sehr gut und kernig. Ideale Menge für BR: +10% | M39: 2023-11-04T18:24:30 | N39: Steffi | O39: 0
E40: Y | F40: 33 | G40: ჻ Mailänder Schrippen, 9 Stück á ca. 75g | H40: 0 / 100 / 0 | I40: 0 | J40: 3.3 | K40: 0.2 | L40: (H) Sehr gut! Direkt oder ÜN-Proof. | M40: 2023-11-04T18:28:42 | N40: Sonja: https://cookieundco.de/mailaender-schrippen-schnelle-broetchen-mit-wenig-hefe/ | O40: 0 | V40: 24 | W40: gesuchtes Rezept bei Fav Änderung
B41: =B$15 -> *** Standard-Vorlage für neues ST-Brotrezept *** | E41: Y | F41: 34 | G41: ჻ Simit-Sesamkringel, 10 Stück á ca. 70g | H41: 0 / 100 / 0 | I41: 0 | J41: 3.1 | K41: 0.1 | L41: (H) Super :-) | M41: 2023-11-04T19:50:35 | N41: frei nach Marcel Paa: https://www.marcelpaa.com/rezepte/simit-tuerkische-sesamringe/?utm_source=newsletter&utm_medium=email&utm_campaign=simit_tuerkische_sesamringe&utm_term=2023-10-03 | O41: 0 | V41: =MATCH(V40,INDIRECT("F8:F508"),0)+7 -> 31 | W41: Zeile für gesuchtes Fav-Rezept
E42: Y | V42: =MATCH(SuFiRp!AF5,INDIRECT("F8:F508"),0)+7 -> 8 | W42: Zeile für gesuchtes Info-Rezept
E43: Y
E44: Y
E45: Y
E46: Y
E47: Y
E48: Y
E49: Y
E50: Y
E51: Y
E52: Y
E53: Y
E54: Y
E55: Y
E56: Y
E57: Y
E58: Y
E59: Y
E60: Y
E61: Y
E62: Y
E63: Y
E64: Y
B65: =B13 -> 1 | C65: =B$13 -> 1 | E65: Y
E66: Y
B67: =B$15 -> *** Standard-Vorlage für neues ST-Brotrezept *** | E67: Y
E68: Y
E69: Y
E70: Y
E71: Y
E72: Y
E73: Y
E74: Y
E75: Y
E76: Y
E77: Y
E78: Y
E79: Y
E80: Y
E81: Y
E82: Y
E83: Y
E84: Y
E85: Y
E86: Y
E87: Y
E88: Y
E89: Y
E90: Y
B91: =B13 -> 1 | C91: =B$13 -> 1 | E91: Y
E92: Y
B93: =B$15 -> *** Standard-Vorlage für neues ST-Brotrezept *** | E93: Y
E94: Y
E95: Y
E96: Y
E97: Y
E98: Y
E99: Y
E100: Y
E101: Y
E102: Y
E103: Y
E104: Y
E105: Y
E106: Y
E107: Y
E108: Y
E109: Y
E110: Y
E111: Y
E112: Y
E113: Y
E114: Y
E115: Y
E116: Y
B117: =B13 -> 1 | C117: =B$13 -> 1 | E117: Y
E118: Y
B119: =B$15 -> *** Standard-Vorlage für neues ST-Brotrezept *** | E119: Y
E120: Y
E121: Y
E122: Y
E123: Y
E124: Y
E125: Y
E126: Y
E127: Y
E128: Y
E129: Y
E130: Y
E131: Y
E132: Y
E133: Y
E134: Y
E135: Y
E136: Y
E137: Y
E138: Y
E139: Y
E140: Y
E141: Y
E142: Y
B143: =B13 -> 1 | C143: =B$13 -> 1 | E143: Y
E144: Y
B145: =B$15 -> *** Standard-Vorlage für neues ST-Brotrezept *** | E145: Y
E146: Y
E147: Y
E148: Y
E149: Y
E150: Y
E151: Y
E152: Y
E153: Y
E154: Y
E155: Y
E156: Y
E157: Y
E158: Y
E159: Y
E160: Y
E161: Y
E162: Y
E163: Y
E164: Y
E165: Y
E166: Y
E167: Y
E168: Y
B169: =B13 -> 1 | C169: =B$13 -> 1 | E169: Y
E170: Y
B171: =B$15 -> *** Standard-Vorlage für neues ST-Brotrezept *** | E171: Y
E172: Y
E173: Y
E174: Y
E175: Y
E176: Y
E177: Y
E178: Y
E179: Y
E180: Y
E181: Y
E182: Y
E183: Y
E184: Y
E185: Y
E186: Y
E187: Y
E188: Y
E189: Y
E190: Y
E191: Y
E192: Y
E193: Y
E194: Y
B195: =B13 -> 1 | C195: =B$13 -> 1 | E195: Y
E196: Y
B197: =B$15 -> *** Standard-Vorlage für neues ST-Brotrezept *** | E197: Y
E198: Y
E199: Y
E200: Y
... 308 more rows

Sheet SuFiRp
B1: Suchen und Filtern | E1: ='Rp-Verwaltung'!G1 -> 34 Rezepte im Speicher | L1: =IF(Druck!T27="","","●") ->  | M1: =CONCATENATE("aktuelles Rezept im Editor: ",AF3,'Rp-Verwaltung'!Z14," ⁞ ",'Teig-Führung'!P7) -> aktuelles Rezept im Editor: 1 ⁞ *** Standard-Vorlage für neues ST-Brotrezept *** | AE1: 1
M3: =CONCATENATE(" ",AF4,AF5," ⁞ ",VLOOKUP(AF5,L8:M508,2,FALSE)) -> 1 ⁞ *** Standard-Vorlage für neues ST-Brotrezept *** | AF3: =IF('Rp-Verwaltung'!Z14>99,"",IF('Rp-Verwaltung'!Z14>9," "," ")) ->  | AG3: ja
J4: 1 | AF4: =IF(AF5>99,"",IF(AF5>9," "," ")) ->  | AG4: nein
A5: =COUNT(L8:L508) -> 13 | B5: Suchkriterien | H5: 1 | L5: =IF(A5>1,CONCATENATE(A5," Rezepte, auf die deine Suchkriterien zutreffen:"),IF(A5=1,"Einziges Rezept, auf das deine Suchkriterien zutreffen:","Es gibt leider keine Rezepte, auf die deine Suchkriterien zutreffen")) -> 13 Rezepte, auf die deine Suchkriterien zutreffen: | AF5: 1 | AG5: egal
H6: 1
A7: =E7 -> 0 | E7: 0 | F7: Y | J7: 0 | K7: Y | L7: Nr | M7: Name | N7: Getreide (R / W / D) | O7: Vollwert- Rating | P7: Aufwand | Q7: Zeitbedarf [Tage] | R7: Info | S7: zuletzt gespeichert | T7: Quelle | U7: =SUM(U8:U508) -> 0 | AG7: <=
A8: =IF(D8="ja",2,IF(D8="nein",1,0)) -> 2 | B8: Sauerteigbrot? | C8: u | D8: ja | E8: =IF(D8="nein",1,IF(D8="ja",2,0)) -> 2 | I8: 58 | J8: =H8*L8 -> 0 | K8: Y | L8: 1 | M8: *** Standard-Vorlage für neues ST-Brotrezept *** | N8: 0 / 100 / 0 | O8: 0 | P8: 6.3 | Q8: 2.1 | R8: Vorlage | S8: 2023-11-04T17:26:14 | T8: Steffi | U8: 0 | AG8: >=
I9: 28 | J9: 0 | K9: Y | L9: 3 | M9: ՕՕ Sune's Beginner's SD-Bread (Var), 2 Stück á ca. 835g | N9: 0 / 100 / 0 | O9: 0.9 | P9: 5.9 | Q9: 1.8 | R9: (S) super | S9: 2023-11-05T13:17:16 | T9: nach Sune Trudslev (https://foodgeek.dk/en/sourdough-bread-recipe-for-beginners/) | U9: 0 | AD9: Rezeptbereich Info | AE9: =CONCATENATE("R8:R",AE13) -> R8:R20 | AG9: =
A10: =IF(D10="ja",2,IF(D10="nein",1,0)) -> 2 | B10: freigeschoben? | C10: u | D10: ja | E10: =IF(D10="nein",1,IF(D10="ja",2,0)) -> 2 | I10: 8 | J10: 0 | K10: Y | L10: 5 | M10: ՕՕ TwinBake TwoNights, 2 Stück á ca. 870g | N10: 12 / 77 / 12 | O10: 1.2 | P10: 6.8 | Q10: 1.9 | R10: (S) einfach und gut! | S10: 2023-11-04T17:45:50 | T10: Steffi | U10: 0 | AG10: egal
I11: 34 | J11: 0 | K11: Y | L11: 7 | M11: ՕՕ Ruchbrote mit Roggen, 2 Stück á ca. 715g | N11: 10 / 90 / 0 | O11: 2.3 | P11: 6.2 | Q11: 2 | R11: (S) Gut! | S11: 2023-11-05T13:42:47 | T11: Steffi nach René (Brooot): https://www.brooot.de/weizenbrote/schweizer-ruchbrot-mit-sauerteig/ | U11: 0 | AD11: Z-Nr gesicherte RpNr | AE11: =MATCH(AE19,INDIRECT("L8:L"&AE13),0)+7 -> 
A12: =E12*F12 -> 0 | B12: Zeitbedarf [Tage] | C12: u | D12: egal | E12: =IF(D12="<=",1,IF(D12="=",2,IF(D12=">=",3,0))) -> 0 | I12: 64 | J12: 0 | K12: Y | L12: 8 | M12: ՕՕ Sonnenblumenbrot, 2 Stück á ca. 880g | N12: 17 / 83 / 0 | O12: 3.4 | P12: 10.4 | Q12: 2.6 | R12: (S) Gut! Vormittags-BulkRise | S12: 2023-11-05T13:51:33 | T12: Steffi | U12: 0 | AD12: erste Rezeptzeile | AE12: 8 | AF12: $L$8
I13: 61 | J13: 0 | K13: Y | L13: 9 | M13: ՕՕ Rustikales Bauernbrot, für schwächeren ST, 2 Stück á ca. 775g | N13: 70 / 30 / 0 | O13: 3.2 | P13: 6.5 | Q13: 1.1 | R13: (S) Lecker mit Alpenroggen. Offener Schluss :-) | S13: 2023-11-05T13:53:43 | T13: frei nach Lutz Geißler 2013 (https://www.ploetzblog.de/2013/04/27/leserwunsch-rustikales-bauernbrot/) | U13: 0 | AD13: letzte RezZeile | AE13: =A5+7 -> 20 | AF13: 8 | AG13: aktive Zeile
A14: =E14*F14 -> 0 | B14: Aufwand (≈2-15) | C14: u | D14: egal | E14: =IF(D14="<=",1,IF(D14="=",2,IF(D14=">=",3,0))) -> 0 | I14: 22 | J14: 0 | K14: Y | L14: 11 | M14: ՕՕ W/D-ST-Brot mit Altbrot-QS, 2 Stück á ca. 815g | N14: 0 / 88 / 12 | O14: 1.6 | P14: 8.8 | Q14: 1.5 | R14: (S) Gut! mehrfach adaptiert | S14: 2023-11-05T14:03:00 | T14: Steffi nach Sune Trudslev | U14: 0 | AD14: erste Spalte | AE14: H | AF14: =IF(AF13<AE12,AE12,IF(AF13>AE13,AE13,AF13)) -> 8 | AG14: korrigierte Zeile
I15: 39 | J15: 0 | K15: Y | L15: 14 | M15: ՕՕ Haferquelle mit Saatenkruste, 2 Stück á ca. 825g | N15: 13 / 87 / 0 | O15: 2.2 | P15: 6.9 | Q15: 1 | R15: (S) gut! | S15: 2023-11-05T14:26:50 | T15: Steffi | U15: 0 | AD15: letzte Spalte | AE15: U | AF15: =INDIRECT("L"&AF14) -> 1 | AG15: Rp Nr (akt Zeile)
A16: =E16*F16 -> 0 | B16: Vollwert-Rating (0-5-10) | C16: u | D16: egal | E16: 0 | I16: 66 | J16: 0 | K16: Y | L16: 16 | M16: ⃝ Kräftiges Walnuss-Cranberry-Brot | N16: 60 / 40 / 0 | O16: 3.1 | P16: 9.5 | Q16: 0.6 | R16: (S) gut! | S16: 2023-11-05T14:51:51 | T16: sehr frei nach Katharina Arrigoni (https://www.besondersgut.ch/baumnussbrot/) | U16: 0 | AD16: neuer SelBer nach Sort | AE16: =IFERROR("L"&AE11&":T"&AE11,"D8") -> D8 | AF16: ="L"&AF14&":T"&AF14 -> L8:T8 | AG16: SelBer
I17: 9 | J17: 0 | K17: Y | L17: 18 | M17: ՕՕ Herzhaftes ST-Weizenmischbrot, 2 Stück á ca. 750g | N17: 19 / 81 / 0 | O17: 2.2 | P17: 7.9 | Q17: 1.9 | R17: (S) Basisrezept, gut zum Artisan-Scoring | S17: 2023-11-05T15:05:55 | T17: Steffi | U17: 0 | AD17: letzte gewählte RezNr | AE17: =IF(AF5>0,AF5,1) -> 1
A18: =E18*F18 -> 0 | B18: Roggen [%] | C18: u | D18: egal | E18: 0 | I18: 81 | J18: 0 | K18: Y | L18: 20 | M18: ՕՕ Opas Kümmel-Brot, 2 Stück á ca. 800g | N18: 22 / 78 / 0 | O18: 2.4 | P18: 10.4 | Q18: 2.1 | R18: (S) Sehr gut angekommen! | S18: 2023-11-05T16:16:34 | T18: Steffi | U18: 0 | AD18: Zeilennummer von l Rp | AE18: =MATCH(AE17,INDIRECT("L8:L"&AE13),0)+7 -> 8 | AF18: L8:T8 | AG18: selBer vor Sort
I19: 15 | J19: 0 | K19: Y | L19: 24 | M19: ՕՕ Trauben-Nuss-Brot, 2 Stück á ca. 745g | N19: 10 / 90 / 0 | O19: 3.1 | P19: 7.5 | Q19: 1.3 | R19: (S) Sehr lecker | S19: 2023-11-05T17:07:12 | T19: VarVar. nach René (Brooot): https://www.brooot.de/weizenbrote/schweizer-ruchbrot-mit-sauerteig/ | U19: 0 | AD19: Safe letzte RpNr | AE19: 33
A20: =E20*F20 -> 0 | B20: Weizen [%] | C20: u | D20: egal | E20: 0 | I20: 43 | J20: 0 | K20: Y | L20: 26 | M20: ⃝ Einfaches Weizenmischbrot, retardiert, ca. 765g | N20: 10 / 90 / 0 | O20: 2.5 | P20: 6.9 | Q20: 1.9 | R20: (S) gutes Alltagsrezept | S20: 2023-11-05T17:20:10 | T20: Steffi | U20: 0 | AE20: alt | AF20: neu
I21: 10 | J21: 0 | K21: Y | AD21: Sortierung nach Spalte | AE21: Q | AF21: Q
A22: =E22*F22 -> 0 | B22: Dinkel [%] | C22: u | D22: egal | E22: 0 | I22: 38 | J22: 0 | K22: Y | AD22: Sortierungsrichtung | AE22: 1 | AF22: =IF(AE21<>AF21,AE24,IF(AE22=AE24,AE25,AE24)) -> 2
B23: Suche gleich | I23: 50 | J23: 0 | K23: Y | AD23: Sortierungswechsel | AE23: (bei gleicher Spalte Richtungswechsel)
A24: =LEN(D24)+IFERROR(CODE(D24),0) -> 0 | B24: Zutaten enthalten | C24: u | G24: Suchtext | I24: 53 | J24: 0 | K24: Y | AE24: 1 | AF24: xlAscending
I25: 89 | J25: 0 | K25: Y | AE25: 2 | AF25: xlDescending
A26: =LEN(D26)+IFERROR(CODE(D26),0) -> 0 | B26: Textfelder enthalten | C26: u | G26: Suchtext | I26: 56 | J26: 0 | K26: Y
I27: 51 | J27: 0 | K27: Y | AD27: Favoritensumme akt | AF27: (von SuW K27)
A28: =E28*F28 -> 0 | B28: Temp. Stockgare [°C] | C28: u | D28: egal | E28: =IF(D28="<=",1,IF(D28="=",2,IF(D28=">=",3,0))) -> 0 | I28: 40 | J28: 0 | K28: Y | AD28: akt Zeile (Fav) | AE28: =CELL("zeile") -> 12
I29: 82 | J29: 0 | K29: Y | AD29: RezNr (Fav) | AE29: =INDIRECT("L"&AE28) -> 8
A30: =E30*F30 -> 0 | B30: Temp. Ballen-/Stückgare [°C] | C30: u | D30: egal | E30: =IF(D30="<=",1,IF(D30="=",2,IF(D30=">=",3,0))) -> 0 | I30: 63 | J30: 0 | K30: Y | AD30: Spalte Rez in SuW | AE30: =AE29+16 -> 24
I31: 12 | J31: 0 | K31: Y | AD31: Favoritensumme gemerkt | AE31: 260 | AF31: (von SuW K27)
A32: =E32*F32 -> 0 | B32: Anzahl Teiglinge | C32: u | D32: egal | E32: =IF(D32="<=",1,IF(D32="=",2,IF(D32=">=",3,0))) -> 0 | I32: 71 | J32: 0 | K32: Y
I33: 87 | J33: 0 | K33: Y
A34: =LEN(D34)+IFERROR(CODE(D34),0) -> 0 | B34: Vorteig-Namen enthalten | C34: u | G34: Suchtext | I34: 20 | J34: 0 | K34: Y | AE34: 24 | AF34: gesuchtes Rezept für Fav Änderung
I35: 31 | J35: 0 | K35: Y | AE35: =MATCH(AE34,INDIRECT("L8:L508"),0)+7 -> 19 | AF35: Zeile für Fv Änderung
A36: =E36*F36 -> 0 | B36: Speicherdatum | C36: u | D36: egal | E36: =IF(D36="<=",1,IF(D36="=",2,IF(D36=">=",3,0))) -> 0 | G36: TT.MM.JJJJ | I36: 68 | J36: 0 | K36: Y | AE36: =IF(ISERROR(AE35),0,) -> 0
A37: =SUM(E7:E23)+SUM(E28:E32)+E36+A34+A26+A24 -> 4 | B37: <- Reset-Indikator 1 ( Reset-I 2 -> | F37: =SUM(F12:F22)+SUM(F28:F32)+F36 -> 0 | I37: 17 | J37: 0 | K37: Y | AD37: W | AE37: =TODAY() -> 2023-11-07
A38: =A39<>A40 -> FALSE | I38: 18 | J38: 0 | K38: Y | AD38: BrotWerk: | AE38: =CONCATENATE(" (",TEXT(AE37,"TT.MM.JJJJ"),")") -> (07.11.2023)
A39: =SUM(A8:A37) -> 8 | B39: Hinweise: Suchkriterien sind nur aktiv, wenn alle nötigen Angaben gemacht | I39: 26 | J39: 0 | K39: Y | AC39: A | AD39: autom. Titel | AE39: Ausgewählte Rezepte | AF39: (ausgewählte)
A40: 8 | B40: wurden, sie werden dann hervorgehoben. | I40: 65 | J40: 0 | K40: Y | AC40: W | AD40: Wunschtitel | AE40: Brötchen | AF40: =AE40 -> Brötchen
B41: Die Suchtexte werden unabhängig von Groß- und Kleinschreibung und auch | I41: 83 | J41: 0 | K41: Y
A42: =IF($A$38,1,0) -> 0 | B42: in der Mitte von Wörtern gefunden. | I42: 30 | J42: =H42*L42 -> 0 | K42: Y | AD42: gewählter Titel | AE42: =CONCATENATE(AD38,VLOOKUP(AD37,AC39:AE40,3),AE38) -> BrotWerk: Brötchen (07.11.2023)
A43: =IF(A37+F37>0,1,0) -> 1 | B43: Ein Suchtext mit mehreren Wörtern wird nur im Zusammenhang gesucht. | I43: 44 | J43: 0 | K43: Y | AD43: Dateiname | AE43: =CONCATENATE("BW-RezListe ",VLOOKUP(AD37,AC39:AF40,4)) -> BW-RezListe Brötchen
I44: 27 | J44: 0 | K44: Y | AG44: (plus Datum+Zeit)
I45: 59 | J45: 0 | K45: Y | AE45: =MATCH(AF5,INDIRECT('Rp-Verwaltung'!F8:F508),0)+7 ->  | AF45: RV-Zeile für Info-Änderung
I46: 21 | J46: =H46*L46 -> 0 | K46: Y
I47: 35 | J47: 0 | K47: Y
I48: 62 | J48: 0 | K48: Y
I49: 52 | J49: 0 | K49: Y
I50: 78 | J50: 0 | K50: Y
I51: 41 | J51: 0 | K51: Y
I52: 85 | J52: 0 | K52: Y
J53: 0 | K53: Y
I54: 73 | J54: 0 | K54: Y
I55: 36 | J55: 0 | K55: Y
I56: 16 | J56: 0 | K56: Y
I57: 88 | J57: 0 | K57: Y
I58: 49 | J58: 0 | K58: Y
I59: 37 | J59: 0 | K59: Y
I60: 42 | J60: =H60*L60 -> 0 | K60: Y
I61: 54 | J61: =H61*L61 -> 0 | K61: Y
I62: 80 | J62: 0 | K62: Y
I63: 72 | J63: 0 | K63: Y
I64: 70 | J64: =H64*L64 -> 0 | K64: Y
I65: 45 | J65: 0 | K65: Y
I66: 46 | J66: 0 | K66: Y
I67: 67 | J67: 0 | K67: Y
I68: 14 | J68: 0 | K68: Y
I69: 55 | J69: 0 | K69: Y
I70: 33 | J70: 0 | K70: Y
I71: 48 | J71: 0 | K71: Y
I72: 86 | J72: =H72*L72 -> 0 | K72: Y
I73: 29 | J73: 0 | K73: Y
I74: 79 | J74: 0 | K74: Y
I75: 60 | J75: 0 | K75: Y
I76: 84 | J76: 0 | K76: Y
I77: 76 | J77: 0 | K77: Y
I78: 13 | J78: 0 | K78: Y
I79: 24 | J79: 0 | K79: Y
I80: 47 | J80: 0 | K80: Y
I81: 25 | J81: 0 | K81: Y
I82: 32 | J82: 0 | K82: Y
I83: 77 | J83: 0 | K83: Y
I84: 23 | J84: 0 | K84: Y
I85: 57 | J85: 0 | K85: Y
I86: 74 | J86: 0 | K86: Y
I87: 69 | J87: 0 | K87: Y
I88: 75 | J88: 0 | K88: Y
I89: 19 | J89: 0 | K89: Y
I90: 90 | J90: 0 | K90: Y
I91: 91 | J91: =H91*L91 -> 0 | K91: Y
I92: 92 | J92: 0 | K92: Y
I93: 93 | J93: 0 | K93: Y
I94: 94 | J94: 0 | K94: Y
I95: 95 | J95: 0 | K95: Y
I96: 96 | J96: 0 | K96: Y
I97: 97 | J97: 0 | K97: Y
I98: 98 | J98: 0 | K98: Y
I99: 99 | J99: 0 | K99: Y
I100: 100 | J100: 0 | K100: Y
I101: 101 | J101: 0 | K101: Y
I102: 102 | J102: 0 | K102: Y
I103: 103 | J103: 0 | K103: Y
I104: 104 | J104: =H104*L104 -> 0 | K104: Y
I105: 105 | J105: 0 | K105: Y
I106: 106 | J106: 0 | K106: Y
I107: 107 | J107: 0 | K107: Y
I108: 108 | J108: 0 | K108: Y
I109: 109 | J109: 0 | K109: Y
I110: 110 | J110: 0 | K110: Y
I111: 111 | J111: 0 | K111: Y
I112: 112 | J112: 0 | K112: Y
I113: 113 | J113: 0 | K113: Y
I114: 114 | J114: 0 | K114: Y
I115: 115 | J115: 0 | K115: Y
I116: 116 | J116: 0 | K116: Y
I117: 117 | J117: 0 | K117: Y
I118: 118 | J118: 0 | K118: Y
I119: 119 | J119: 0 | K119: Y
I120: 120 | J120: 0 | K120: Y
I121: 121 | J121: 0 | K121: Y
I122: 122 | J122: 0 | K122: Y
I123: 123 | J123: 0 | K123: Y
I124: 124 | J124: 0 | K124: Y
I125: 125 | J125: 0 | K125: Y
I126: 126 | J126: 0 | K126: Y
I127: 127 | J127: 0 | K127: Y
I128: 128 | J128: 0 | K128: Y
I129: 129 | J129: 0 | K129: Y
I130: 130 | J130: 0 | K130: Y
I131: 131 | J131: 0 | K131: Y
I132: 132 | J132: 0 | K132: Y
I133: 133 | J133: 0 | K133: Y
I134: 134 | J134: 0 | K134: Y
I135: 135 | J135: 0 | K135: Y
I136: 136 | J136: =H136*L136 -> 0 | K136: Y
I137: 137 | J137: 0 | K137: Y
I138: 138 | J138: 0 | K138: Y
I139: 139 | J139: 0 | K139: Y
I140: 140 | J140: 0 | K140: Y
I141: 141 | J141: 0 | K141: Y
I142: 142 | J142: 0 | K142: Y
I143: 143 | J143: 0 | K143: Y
I144: 144 | J144: 0 | K144: Y
I145: 145 | J145: 0 | K145: Y
I146: 146 | J146: 0 | K146: Y
I147: 147 | J147: 0 | K147: Y
I148: 148 | J148: 0 | K148: Y
I149: 149 | J149: 0 | K149: Y
I150: 150 | J150: 0 | K150: Y
I151: 151 | J151: 0 | K151: Y
I152: 152 | J152: 0 | K152: Y
I153: 153 | J153: 0 | K153: Y
I154: 154 | J154: 0 | K154: Y
I155: 155 | J155: 0 | K155: Y
I156: 156 | J156: 0 | K156: Y
I157: 157 | J157: 0 | K157: Y
I158: 158 | J158: 0 | K158: Y
I159: 159 | J159: 0 | K159: Y
I160: 160 | J160: 0 | K160: Y
I161: 161 | J161: 0 | K161: Y
I162: 162 | J162: 0 | K162: Y
I163: 163 | J163: 0 | K163: Y
I164: 164 | J164: 0 | K164: Y
I165: 165 | J165: 0 | K165: Y
I166: 166 | J166: 0 | K166: Y
I167: 167 | J167: 0 | K167: Y
I168: 168 | J168: =H168*L168 -> 0 | K168: Y
I169: 169 | J169: 0 | K169: Y
I170: 170 | J170: 0 | K170: Y
I171: 171 | J171: 0 | K171: Y
I172: 172 | J172: 0 | K172: Y
I173: 173 | J173: 0 | K173: Y
I174: 174 | J174: 0 | K174: Y
I175: 175 | J175: 0 | K175: Y
I176: 176 | J176: 0 | K176: Y
I177: 177 | J177: 0 | K177: Y
I178: 178 | J178: 0 | K178: Y
I179: 179 | J179: 0 | K179: Y
I180: 180 | J180: 0 | K180: Y
I181: 181 | J181: 0 | K181: Y
I182: 182 | J182: 0 | K182: Y
I183: 183 | J183: 0 | K183: Y
I184: 184 | J184: 0 | K184: Y
I185: 185 | J185: 0 | K185: Y
I186: 186 | J186: 0 | K186: Y
I187: 187 | J187: 0 | K187: Y
I188: 188 | J188: 0 | K188: Y
I189: 189 | J189: 0 | K189: Y
I190: 190 | J190: 0 | K190: Y
I191: 191 | J191: 0 | K191: Y
I192: 192 | J192: 0 | K192: Y
I193: 193 | J193: 0 | K193: Y
I194: 194 | J194: 0 | K194: Y
I195: 195 | J195: 0 | K195: Y
I196: 196 | J196: 0 | K196: Y
I197: 197 | J197: 0 | K197: Y
I198: 198 | J198: 0 | K198: Y
I199: 199 | J199: 0 | K199: Y
I200: 200 | J200: 0 | K200: Y
I201: 201 | J201: =H201*L201 -> 0 | K201: Y
... 309 more rows

Sheet Admin
B1: Administration
F5: =K22 -> an
F7: =K24 -> an
D8: gewünschter Auto-Zoom | M8: gewünschte Ruhezeit von
D9: 100 | E9: % | M9: 22:45:00 | N9: h
D10: (25-400) | M10: bis
M11: 07:15:00 | N11: h
M13: hervorgehoben)
B14: Galerie 1.0.xlsm | F14: Name der Galerie-Mappe
B16: Scroll-Areas | D16: von | E16: bis
B17: Kreator | D17: A1 | E17: AC82
B18: Teigführung | D18: A1 | E18: AB37 | G18: 3 | H18: off. Versionsnummer BW
B19: TF ST | D19: AU1 | E19: BZ37 | G19: 2 | H19: ImpExp-Format
B20: TF GK/BF | D20: CW1 | E20: DR39 | G20: Rp-Verwaltung | H20: Ziel Jokersprung
B21: Druck | D21: A1 | E21: T57 | F21: 21 | G21: =INT(D9) -> 100 | H21: gewünschter Zoom-Faktor | K21: =IF(G21<25,25,IF(G21>400,400,G21)) -> 100
B22: Druck Fotoview | D22: V1 | E22: AL35 | F22: 22 | G22: 1 | H22: Anzeige Bearbeitungsleiste an / aus | K22: =IF(G22=0,"aus","an") -> an | L22: public Var: | M22: UserWillEditzeile
B23: Rp-Verwaltung | D23: A1 | E23: N110 | F23: 23 | G23: 1 | H23: Überschriften einblenden (1/0 = an/aus) | K23: =IF(G23=0,"aus","an") -> an | L23: ungenutzt (?)
B24: 1 | D24: A1 | E24: AA600 | F24: 24 | G24: 1 | H24: Startbildschirm aufrufen (1/0 = an/aus) | K24: =IF(G24=0,"aus","an") -> an
B25: Info | D25: A1 | E25: V700 | F25: Zeilen
B26: Admin | D26: A1 | E26: S28 | G26: TRUE | H26: SelectionChange durchführen
C30: Übergabe-Informationen
C31: FALSE | J31: Galerie geöffnet
C32: C:\Users\palma\Documents\BrotWerk\Backoffice\Homepage\letzte Releases | J32: Pfad allgemein ohne Dateiname
C33: BrotWerk 4.3.xlsm | J33: Dateiname Brotwerk inkl. Version
C34: Galerie | J34: Dateiname Galerie aus Quellmappe inkl. Version
C35: =B14 -> Galerie 1.0.xlsm | J35: Dateiname Galerie lt. User-Angabe
C36: =CONCATENATE(C32,"\",C34) -> C:\Users\palma\Documents\BrotWerk\Backoffice\Homepage\letzte Releases\Galerie | J36: Galerie Pfad inkl Name ohne Erw.
C37: =CONCATENATE(C32,"\",C33) -> C:\Users\palma\Documents\BrotWerk\Backoffice\Homepage\letzte Releases\BrotWerk 4.3.xlsm | J37: BrotWerk Pfad inkl Name
C38: =CONCATENATE(C32,"\",C35) -> C:\Users\palma\Documents\BrotWerk\Backoffice\Homepage\letzte Releases\Galerie 1.0.xlsm | J38: Galerie Pfad inkl Name lt. User
C39: FALSE | J39: Admin-Modus aktiv?
J40: public Variable SollmodusBack
C41: TRUE | J41: BW neu geöffnet?
C42: C:\Users\palma\Documents\BrotWerk\Backoffice\Homepage\letzte Releases\Exporte\BW-Rez 231107 15.50.22.xlsx | J42: Name letzte Export-Datei
C43: C:\Users\palma\Documents\BrotWerk\Exporte\BW-Rez (3) 231104 18.22.11.xlsx | J43: Pfad Import-Datei
C44: BW-Rez (3) 231104 18.22.11.xlsx | J44: Name Import-Datei

Sheet ZvGal

Sheet Lexikon
C2: Lexikon | E2: Suchbegriff | T2: Quellen
R4: Quellen => | T4: Diese Informationen stammen aus diversen und zum Teil nicht mehr eruierbaren Quellen.
A5: A | C5: Abkürzungen | D5: ASG | E5: Anstellgut (s.u.) | T5: Oft finden sich auch widersprüchliche Angaben.
A6: A | D6: BG | E6: Basisgetreide: alle klebenden Direktzutaten: Weizen/Dinkel/Grünkern/Roggen als Mehl oder feiner Schrot | T6: Ich habe sie in diesem Lexikon so zusammengefasst, wie es mir am plausibelsten erschien.
A7: A | D7: BGM | E7: Backfähige Getreidemenge = GM
A8: A | D8: DM | E8: Dinkelmehl | T8: Besonders häufig benutzte Quellen und empfehlenswerte Seiten:
A9: A | D9: FM | E9: Festmasse: TrM + Quell-Flüssigkeit der Nullteige (+Okara) | O9: Druck | P9: 1 | T9: Lutz Geißler: Bäckerlatein (https://www.baeckerlatein.de/) bzw. Plötzblog (https://www.ploetzblog.de/)
A10: A | D10: GM | E10: Getreidemenge: Mehl + Schrot, inkl. backfähige Nullteigbestandteile = backfähige Zutaten mind. 70-75% | O10: TRUE | T10: Brotbackbuch Nr 4 (Lutz Geißler)
A11: A | D11: HT | E11: Hauptteig | T11: Dietmar Kappl / Homebaking-Blog (https://www.homebaking.at/)
A12: A | D12: KS | E12: Kühlschrank | N12: Teig-Führung | T12: https://www.diebackstube.de
A13: A | D13: NBZ | E13: Nicht-backfähige Zusätze: Kleie, Saaten und Nüsse, inkl. NBZ-Nullteiganteile, Okara je nach Feuchtigkeit anteilig, max. 25% | N13: $C$9 | T13: Der Sauerteig (www.Der-Sauerteig.com mit Pöt, Marla,...)
A14: A | D14: NT | E14: Nullteig: Quell-,Brüh, und Kochstücke (Getr. oder NBZ + W) ohne Hefe. Darf nicht mehr als 50% des Getreides enthalten | N14: $U$63 | T14: Brotbackforum (https://brotbackforum.iphpbb3.com)
A15: A | D15: MM | E15: Mehlmenge: nur fein gemahlene Mehle | T15: BreadCode / Hendrik (YouTube: https://www.youtube.com/c/TheBreadCode)
A16: A | D16: MO | E16: Mikroorganismen | T16: www.besondersgut.ch
A17: A | D17: RM | E17: Roggenmehl | T17: Foodgeek / Sune Trudslev (https://foodgeek.dk/en/ sowie auf YouTube)
D18: ST | E18: Sauerteig | T18: Jack Sturgess: Bake with Jack (https://www.bakewithjack.co.uk/ sowie auf YouTube)
A19: A | D19: TA | E19: Teigausbeute (s.u.) | T19: Marcel Paa: Einfach backen (https://www.marcelpaa.com/ sowie auf YouTube)
A20: A | D20: TE | E20: Teigeinlage (Teiggewicht des einzelnen Teiglings) | T20: Der BrotDoc / Björn Hollensteiner (https://brotdoc.com)
A21: A | D21: TG / TM | E21: Teiggewicht insgesamt / Teigmenge | N21: Rp-Verwaltung | T21: https://cookin.eu
A22: A | D22: TrM | E22: Trockenmasse = GM + NBZ | N22: $F$23 | T22: https://www.backdorf.de
A23: A | D23: WM | E23: Weizenmehl | T23: https://www.brooot.de
A24: A | D24: ZF | E24: Zuschütt-Flüssigkeit: erforderliches Wasser oder andere Flüssigkeiten, die nicht in Nullteigen gebunden sind und dem Hauptteig zugeschüttet werden | T24: Charlie Chainbaker (https://www.chainbaker.com/ sowie auf YouTube)
A25: A | T25: www.lebensmittellexikon.de
A26: A
A27: A | C27: Abstreichen | D27: Manche Brotsorten (z.B. Paderborner) werden noch ofenheiß mit Wasser bestrichen oder besprüht, um einen schönen Oberflächenglanz zu erzeugen.
A28: A | D28: Man kann hierzu das Wasser auch mit etwas Stärkemehl (z.B. Kartoffelstärke) andicken, was die Wirkung verstärkt.
A29: A | D29: Besonders effektvoll ist es, wenn die Stärke zuvor im heißen Ofen angeröstet wurde und dann erst mit heißem Wasser verrührt wird. | T29: Vielen Dank an alle, die ihre Informationen für die Allgemeinheit zur Verfügung stellen!
A30: A
A31: A | C31: Agitation | D31: Bewegen des Teig in der ersten Phase der Stockgare zum Ausbilden eines starken Glutengerüst, zur Verteilung der sich bildenden Blasen und zum Temperaturausgleich innerhalb des Teigs.
A32: A | D32: Wird typischerweise mindestens 3x im Abstand von 30-60 min durchgeführt. Zuerst mindestens 30 min nach Hauptteig-Anmischung, das letzte mal mindestens 1h vor Preshaping, dazwischen variierbar
A33: A | D33: Erfolgskontrolle mittels Fenstertest (siehe dort)
A34: A | D34: Verschiedene Methoden (auch abwechselnd) sind möglich: z.B. Dehnen und Falten / Stretch & Fold, Wickelfaltung / Coil Fold, Lamination, Slap&Fold
A35: A
A36: A | C36: Altbrot | D36: Darf laut Industrie-Verordnung nur bis 6% (Weizenteige) bzw. 20% (Roggenteige) bezogen auf die Mehlmenge zugegeben werden. Backtechnisch gehen bis zu 50%.
A37: A | D37: Sollte nur aus Brot ohne Saaten gewonnen werden (damit es fettarm = haltbar bleibt) und immer vorgequollen werden (ca. 1:2). In der Regel fein gemahlen, idealerweise vorgeröstet im Backofen 120° Umluft 30'.
A38: A
A39: A | C39: Alt-Sauerteig | D39: Übrig gebliebener, nicht mehr aktiver ST, kann in Hefeteigen bis zu 20% als Aromageber zugegeben werden (100g pro 500g Mehl). Das Wasser im Hauptteig muss dann entsprechend reduziert werden, um TA zu halten.
A40: A | D40: Alternativ kann man es trocknen (und ggf. im Backofen rösten) und im Mixer mahlen und verwenden wie folgt:
A41: A | D41: - als Streumehl im Gärkorb | J41: - mit Wasser verkochen, um daraus eine Art Mehlkochstück herzustellen, das Frischhaltung und Geschmack bringt
A42: A | D42: - zum Panieren | J42: - in Hefeteige geben (5-15% der Mehlmenge) und dadurch Konsistenz/Wasserbindung und Aroma verbessern => "Sourdough Spice"
A43: A | D43: - zum Kochen: Soßen abbinden, als Zugabe in Crêpe-Teigen, Mürbeteig, Mehlspeisen aller Art, als Flüssigpanade zum Frittieren, …
A44: A
A45: A | C45: Anbacktemperatur | D45: Soll hoch sein zur Unterstützung eines guten Ofentriebs (250-280° für Brote, für Brötchen 230-250°).
A46: A | D46: Kastenbrote werden besonders heiß angebacken, um die kalte Form zu kompensieren.
A47: A | D47: Je höher die TA, desto höher sollte die Anbacktemperatur gewählt werden, um ein Flachlaufen zu verhindern.
A48: A
A49: A | C49: Anfrischen | D49: siehe Sauerteig-"Fütterung"
A50: A
A51: A | C51: Anstellgut | D51: Wird aus der letzten Sauerteig-Herstellung zurückbehalten oder alternativ kontinuierlich separat geführt.
A52: A | C52: ASG / | D52: Dient als Startkultur für das Ansetzen eines neuen Sauerteigs über eine oder mehrere Stufen. Dafür sollte das ASG aktiv sein, d.h. entweder relativ frisch entnommen oder aufgefrischt.
A53: A | C53: Starter | D53: Lagern kann man es gut im verschlossenen Glas im Kühlschrank. Je nach Führung reicht dafür eine sehr kleine Menge (20-30g). Wenn man weiß, dass man es mehrere Tage dauert, bis man es wieder verwenden will,
A54: A | D54: kann man es auch frisch gefüttert in den KS stellen. Zum Weiterverarbeiten kann man das ASG direkt kühlschrankkalt verwenden.
A55: A | D55: Sollte ASG übrig sein, kann man es z.B. im Kühlschrank zum Alt-ST mutieren lassen (siehe dort) und entsprechend weiter verwenden.
A56: A | D56: Das typische ASG hat eine TA von 200, d.h. es besteht zu 50% aus Wasser und zu 50% aus Mehl. Wenn man sein ASG mehrfach mit höherem Mehl- oder höherem Wasseranteil füttert, kann man es transformieren:
A57: A | D57: Ein flüssiges ASG ("liquid starter") besteht aus M:W im Verhältnis 1:5, ein festes ASG ("stiff starter") aus einem M-W-Verhältnis von 2:1. Je mehr Wasser, desto saurer (joghurtsaure Note) und desto bakterienbetonter
A58: A | D58: das ASG. Ein festes ASG (fruchtige Note) bevorzugt die Hefen und erzeugt deshalb einen sehr guten Ofentrieb auch bei glutenschwachen Mehlen, aber auch weniger ST-Geschmack im Brot.
A59: A
A60: A | C60: Ausbund | D60: Aufreißen des Brotes am Beginn des Backprozesses durch den Ofentrieb an der schwächsten Stelle der Teighaut. Kann gewollt oder ungewollte geschehen.
A61: A | D61: Wird u.a. durch das Einschneiden gesteuert (Sollbruchstelle) oder geschieht eher zufällig-rustikal beim Backen mit offenen Schluss nach oben.
A62: A | D62: Die durch den Ausbund vergrößerte Oberfläche des Brotes verbessert das Aroma. Außerdem optimiert der Ausbund das Volumen und die Porung der Krume.
A63: A | D63: Voraussetzung für die Ausbildung eines Ausbundes ist ein Teigling mit knapper Gare (Dreiviertelgare). Die Teighaut ist nur anfangs elastisch genug, den Ofentrieb durch Ausdehnen aufzufangen.
A64: A | D64: Der andauernde Ofentrieb führt schließlich zum Reißen der Teigoberfläche.
A65: A | D65: Für einen starken Ausbund erst nach 1-3 Minuten kräftig Schwaden, nach Ende des Ofentriebs ablassen. Mittelheiße Anbacktemperatur (230-240°) wählen, die Hitze auf die Oberseite sollte nicht zu hoch sein.
A66: A
A67: A | C67: Auswuchsschaden | D67: Durch Getreidekörner, die ungewollt in Keimstimmung geraten sind und nun auswachsen (wollen). Mehl aus solchen Körnern ist enzymaktiver und hat deshalb schlechtere Backeigenschaften.
A68: A | D68: Typische Brotfehler durch auswuchsgeschädigtes Getreide sind: unelastische Brotkrume, Wasserstreifen am Boden des Brotes und im Extremfall ein Abreißen der Krume oben von der Kruste.
A69: A
A70: A | C70: Auszugsmehl | D70: siehe Mehle
A71: A
A72: A | C72: Autolyse | D72: Bloßes Mischen (kein Kneten!) von M+W des Hauptteiges ohne Salz und ohne Hefe bzw. Sauerteig, bis keine Mehlnester mehr vorhanden sind, d.h. das Mehl vollkommen hydriert ist. Im engen Sinn ohne Salz.
A73: A | D73: Autolyse gefolgt von Agitationsmaßnahmen wie Stretch and Fold ersetzt das anfängliche 10minütige Kneten, weil es die Glutenbildung von ganz alleine verbessert.
A74: A | D74: Außerdem entwickelt sich mehr Aroma durch weniger Oxidation und ein besserer Ofentrieb.
A75: A | D75: Generell ist eine Autolyse umso sinnvoller, je höher die Hydratation des Teiges, je kürzer die vorgesehene Gare und je höher der Vollkornmehl-Anteil ist. Bei langen Garzeiten kann sie nachteilig sein, weil das Gluten
A76: A | D76: dann zu früh abgebaut wird. Macht nur bei weizenlastigen Teigen Sinn, da roggenlastige Teige ohnehin nicht geknetet werden. Bei Teigen mit geringer TA wäre der Autolyseteig zu trocken.
A77: A | D77: Siehe auch Fermentolyse.
A78: A
A79: A | C79: Anbacken/ | D79: Brote backt man mit O-U-Hitze, am besten mit vorgeheiztem Stein oder Backstahl. Heiß anbacken, nach dem Ofentrieb die Temperatur reduzieren => "Fallende Hitze".
A80: A | C80: Ausbacken/ | D80: Brote werden heißer (z.B. 260°) angebacken als Brötchen und Kleingebäcke (z.B. 220°). Beispiel für Brot: Für 10 min bei 250° anbacken, dann für 10 min auf 220° herunterschalten, danach bei 190° ausbacken.
A81: A | C81: Backtemperatur | D81: Alternativer Ansatz für besonders guten Ofentrieb: Vorheizen auf 230-240°, zum Einschuss Ofen ausmachen, nach ca. 20min bei 210° zu Ende backen.
A82: A | D82: Kastenbrote werden auch heiß angebacken, weil die kalte Form die Hitze zunächst abhält. Solche Brote ggf. am Ende ohne Form zusätzl. 10-15 min mit Umluft ausbacken.
A83: A | D83: Brot durchgebacken? => Klopftest! (hohler Klang), bzw. Kerntemperatur je nach Gebäck mind. 94-95°, ggf. auch 98°C.
A84: A
A85: B | C85: Bäckerprozent/ | D85: In Brotrezepten sind alle Mengenangaben auf die Gesamtmehlmenge bezogen. Damit kann ein Rezept rasch eingeschätzt und auch auf andere Mengen umgerechnet werden.
A86: B | C86: Baker's Math | D86: Eine typische Salzmenge ist z.B. 2%, d.h. 20g pro Kilo Mehl.
A87: B | D87: Auch die Teigausbeute (siehe dort) ist eine häufig benutzte Rechengröße, die sich auf die Mehlmenge bezieht.
A88: B | D88: Innerhalb vom BrotWerk wird auch die Mehlmenge vom Sauerteig in die Berechnung einbezogen. Bei anderen Quellen wird manchmal nur auf die Mehlmenge des Hauptteigs Bezug genommen.
A89: B
A90: B | C90: Backstahl/Backstein | D90: Sorgen für gleichmäßigere Hitze im Ofen und vermindern das Abkühlen durch den Einschuss. Sorgen mit guter Unterhitze für einen kräftigeren Boden (=> bessere Haltbarkeit) und guten Ofentrieb
A91: B | D91: Stein ideal für länger und gut durchgebackene Brote wie Roggenbrote, Stahl für kräftig und kurz gebackene rustikale Gebäcke mit noch besserem Ausbund
A92: B
A93: B | C93: Backfähigkeit | D93: Die Backfähigkeit/Eigenbackfähigkeit von Getreide bezeichnet die Fähigkeit, einen "langen", d.h. elastischen und kräftigen Teig und damit ein poröses Brot zu bilden und ist abhängig vom Gluten- und Pentosangehalt.
A94: B | D94: Die eigenbackfähigen Getreide nennt man auch Brotgetreide.
A95: B | E95: Backfähiges, glutenhaltiges Getreide: Weizenfamilie (Triticum)
A96: B | F96: Weizen (harter und weicher)
A97: B | F97: Dinkel (nur reif, nicht als Grünkern)
A98: B | F98: Emmer (=Zweikorn)
A99: B | F99: Einkorn
A100: B | F100: Kamut
A101: B | E101: Backfähiges, stark pentosanhaltiges Getreide: Roggen (Secale)
A102: B | E102: Nicht backfähige Getreide mit wenig Gluten: Gerste, Hafer
A103: B | E103: Nicht backfähige Getreide ohne Pentosane und ohne Gluten: Gerste, Hafer, Mais, Reis, Hirse, Pseudogetreide
A104: B
A105: B | C105: Backformen | D105: Backformen für Sauerteig müssen säurebeständig t(typischerweise aus Schwarzblech) sein. Häufig wird die Form vorher mit Backpapier ausgelegt oder leicht eingeölt.
A106: B | D106: Die Stückgare des Teiglings für ein Kastenbrot erfolgt typischerweise direkt in der Backform.
A107: B | D107: Das Backen in Formen verlängert die Backzeit um ca. 10 min. Obwohl unüblich, kann man auch gut Brote in kleinen runden Springformen backen.
A108: B | D108: Auch die Verwendung von => Holzbackrahmen ist möglich.
A109: B
A110: B | C110: Backmalz | D110: Malz ist ein aus gekeimtem Getreide (meist Gerste, Weizen oder Roggen) hergestelltes Backmittel. Es kann die Krumen- und Krusteneigenschaften von Backwaren verbessern.
A111: B | D111: Es besteht aus schnell verwertbaren Zuckern und Aminosäuren. Die Zuckerstoffe, die von den Hefen nicht umgesetzt werden, verbessern die Krustenbräunung (Maillard-Reaktion). Das Aroma wird positiv beeinflusst.
A112: B | D112: Malz ist eines der ältesten Backmittel und zugleich ein natürliches Produkt. Es gibt enzymaktive (diastatische) Malze und enzyminaktive (nicht-diastatische) Malze.
A113: B | D113: Inaktive Malze werden vor allem zur Geschmacksverbesserung und Färbung von Broten eingesetzt. Zugabe typischerweise 2% (1-5%) der Mehlmenge, theoretisch auch mehr.
A114: B | D114: Als Ersatz für inaktives Malz ist Honig oder Sirup (in gleicher Dosierung) gut geeignet.
A115: B | D115: Bei langen Teigführungen nur inaktives Malz einsetzen, da aktives Malz die Stärke dann zu stark abbaut und die Teigstabilität leidet!
A116: B | D116: Aktive Malze beschleunigen dagegen vor allem den Stärkeabbau und versorgen die Hefen so noch schneller mit vergärbaren Zuckern. Reifezeiten können sich etwas verkürzen, die Teigstabilität lässt früher nach.
A117: B | D117: Bei gezieltem Einsatz können enzymaktive Malze die Krusten- und Krumeneigenschaften verbessern: Die Kruste wird röscher, die Krume lockerer und saftiger.
A118: B | D118: Aktive Malze gibt es als flüssiges Extrakt oder in Pulverform. Die Dosierung (in g) ist gleich, aber das Pulver greift die Kleberstruktur etwas stärker an als das Flüssigextrakt. Kann schlechter durch Honig o.ä. ersetzt werden.
A119: B | D119: Die Zugabe von aktivem Malz sollte nur bei weizendominierten Teigen erfolgen mit ca. 1% (0,5-1-3%) der Mehlmenge. Roggenteige verfügen von Haus aus über mehr Enzyme.
A120: B
A121: B | C121: Backrahmen | D121: => Holzbackrahmen
A122: B
A123: B | C123: Backstein/Backstahl | D123: Sorgen für gleichmäßigere Hitze im Ofen und vermindern das Abkühlen durch den Einschuss. Sorgen mit guter Unterhitze für einen kräftigeren Boden (=> bessere Haltbarkeit) und guten Ofentrieb
A124: B | D124: Stein ideal für länger und gut durchgebackene Brote wie Roggenbrote, Stein für kräftig und kurz gebackene rustikale Gebäcke mit noch besserem Ausbund
A125: B | C125: Backstahl | D125: Wird mit vorgeheizt und verlängert die Vorheizzeit. Hat eine hohe Wärmekapazität und verhindert, dass die Ofentemperatur durch den Einschuss des kühleren Teiges zu stark abkühlt.
A126: B | D126: Vor der ersten Verwendung: Platte zuerst mit Wasser und Spülmittel reinigen und dann mit Speiseöl (z.B. Leinöl) einreiben und einmal oder mehrfach 30 min bei 200°C einbrennen. Beim Einbrennen gut lüften.
A127: B | D127: Material: Rohstahl (unlegiert, unverzinkt), z.B. S355, 4-6mm stark
A128: B
A129: B | C129: Backverlust | D129: Schätzung: | E129: Verlust | F129: Teigmenge | G129: => | H129: Brotgewicht | I129: Restprozent
A130: B | E130: 0.11 | F130: 2000 | G130: => | H130: =F130-F130*E130 -> 1780 | I130: =H130/F130 -> 0.89 | J130: Brot
A131: B | E131: 0.12 | F131: 1500 | G131: => | H131: =F131-F131*E131 -> 1320 | I131: =H131/F131 -> 0.88 | J131: Brot
A132: B | E132: 0.13 | F132: 1000 | G132: => | H132: =F132-F132*E132 -> 870 | I132: =H132/F132 -> 0.87 | J132: Brot
A133: B | E133: =1-I133 -> 0.25 | F133: 60 | G133: => | H133: 45 | I133: =H133/F133 -> 0.75 | J133: Brötchen
A134: B | D134: Da auch nach dem Backen während des Abkühlprozesses noch Wasser verdampft, steht das Endgewicht des Brotes erst nach kompletter Auskühlung fest.
A135: B
A136: B | C136: Backvorgang | D136: Verschiedene Prozesse laufen in den verschiedenen Temperaturbereichen des Brots über die Backzeit ab.
A137: B | D137: -45° | E137: Max. Aktivität der Enzyme und Mikroorganismen (MO). Gärgase dehnen sich aus => Ofentrieb
A138: B | D138: 45-60° | E138: MO sterben, Ofentrieb beendet
A139: B | D139: 55-90° | E139: Die Eiweiße gerinnen und geben ihr zuvor aufgenommenes Wasser aus dem Quellvorgang wieder ab => Beginn Krumengerüstbildung. Auch Pentosane geben Wasser ab, aber weniger als die Eiweiße.
A140: B | E140: Das freie und freigegebene Wasser steht nun der Stärke zur Verkleisterung zur Verfügung => Krume bildet sich weiter aus. Amylase z.T. noch aktiv => Stärkeabbau (klitschige Krume) => Kritische Phase!
A141: B | D141: ab 80° | E141: Gär-Alkohole verdunsten und reagieren mit Teigsäuren (Veresterung) => Aromabildung
A142: B | D142: bis 100° | E142: Maillard-Reaktion: In den Randbereichen verbinden sich Zucker und Aminosäuren nicht-enzymatisch zu Melanoiden (Aroma- und Bräunungsstoffe)
A143: B | D143: ab 100° | E143: Wasser verdampft => Backverlust
A144: B | D144: 100-115° | E144: Durch das Bedampfen/Beschwaden wird die Wärmezufuhr zur Teigoberfläche beschleunigt. Eiweiße gerinnen, Stärke verkleistert, trocknet und wird zu blaßgelben, löslichen Dextrinen abgebaut.
A145: B | D145: 140-150° | E145: Die löslichen Zucker auf der Teighaut (Dextrine, Maltose, Arabinose) karamellisieren.
A146: B | D146: 150-200° | E146: Dunkle Röststoffe entstehenden => entscheidende Aromastoffe. Ab 180° entstehen auch zunehmenden Bitterstoffe (Verbrennung).
A147: B | D147: Brote werden typischerweise immer mit Ober-Unterhitze gebacken, nie mit Umluft.
A148: B | D148: Beim Abkühlen entsteht im Inneren des Brotes ein Unterdruck, wodurch ein Teil der Aromastoffe aus der Kruste in die Krume übergeht und zur deren Geschmack beiträgt.
A149: B
A150: B | C150: Backzeit | D150: Zeiten [min] hier für Roggenmischbrote, für Weizen 5-10 min kürzer
A151: B | D151: Teigmasse | F151: freigeschoben max. | H151: Kastenform (+5-10') | J151: Backzeit FM
A152: B | D152: 60 | F152: 22 | G152: =F152-5 -> 17
A153: B | D153: 750 | F153: 42 | G153: =F153-5 -> 37 | H153: 54 | I153: =H153-5 -> 49 | J153: =D153/1.7 -> 441.1764706
A154: B | D154: 875 | F154: 46 | G154: 41 | H154: 57 | I154: =H154-5 -> 52 | J154: 514.7058824
A155: B | D155: 1000 | F155: 50 | G155: 45 | H155: 60 | I155: 55 | J155: 588.2352941
A156: B | D156: 1250 | F156: 57 | G156: 52 | H156: 66 | I156: 61 | J156: 735.2941176
A157: B | D157: 1500 | F157: 64 | G157: 59 | H157: 71 | I157: 66 | J157: 882.3529412
A158: B | D158: 1750 | F158: 70 | G158: 65 | H158: 76 | I158: 71 | J158: 1029.411765
A159: B | D159: 2000 | F159: 75 | G159: 70 | H159: 80 | I159: 75 | J159: 1176.470588
A160: B | D160: 2250 | F160: 78 | G160: 73 | H160: 83 | I160: 78 | J160: 1323.529412
A161: B
A162: B | C162: Ballengare/ | D162: Zeit zwischen dem Pre-Shaping und dem Final Shaping. Soll ein Teigling zweimal geformt werden, muss er zwischendurch kurz ruhen, um wieder zu entspannen und weiter geformt werden zu können.
A163: B | C163: Bench Rest | D163: Dies geschieht typischerweise auf der Arbeitsfläche oder dem Bäckerleinen mit der unklebrigen Seite nach oben, bemehlt und zugedeckt für 5 und 30 min, typischerweise 10-15 min.
A164: B
A165: B | C165: Bassinage | D165: Die Bassinage ist eine Technik, die bei weichen Teigen sinnvoll sein kann. Dabei wird ein Teil des Schüttwassers zunächst zurückgehalten und erst gegen Ende der Knetphase, wenn die Glutenbildung schon weit
A166: B | D166: fortgeschritten ist, schluckweise zugegeben. Dadurch werden verschiedene Effekte erzielt: Die benötigte Knetzeit verkürzt sich insgesamt, wodurch auch die Teigtemperatur weniger stark ansteigt.
A167: B | D167: Insgesamt kann mehr Wasser in den Teig aufgenommen werden, da es im Glutennetz gespeichert werden kann und nicht zwangsläufig als Quellwasser durch das Mehl aufgenommen werden muss.
A168: B | D168: So bleibt ein Teil des Wassers ungebunden und verdampft beim Backen, was zu einer gröberen Porung des fertigen Brotes führt.
A169: B
A170: B | C170: Batard | D170: Längliche Brotform. Wird in einem zweiten Schritt nach dem Rundschleifen durch verschiedene Manöver erreicht. Der Teigling wird oft mit der mehligen Seite nach unten platziert und rechteckig ausgezogen.
A171: B | D171: Variante 1: Die langen Seiten werden zur Mitte hin eingeschlagen. Dann wird der Teig von einem schmalen Ende her unter einem gewissen Zug aufgerollt.
A172: B | D172: Variante 2: Der Teigling wird direkt von der kurzen Seite her eingeschlagen und aufgerollt. Die entstandene Wurst noch kurz anrollen und die Enden ggf. spitz ausformen.
A173: B | D173: Soll der Teigling mit Schluss nach unten gebacken werden, kommt er mit Schluss nach oben in den Gärkorb. Je nach Situation kann sie Naht dann noch per Stitching verschlossen werden.
A174: B | D174: Video von Sune dazu: | F174: https://www.youtube.com/watch?v=IxVSlizlt-s&fbclid=IwAR0YsPtUQ7EkaccZ_p89D0y4lU6jEPjCqVB7Sw_8uxy5jMts_6X9buft4tE
A175: B | E175: 2:25 Pre-Shaping (Boule), 5:15 Shaping Boule, 7:15 Shaping Batard, 8:45h Stitching Batard
A176: B
A177: B | C177: Biga | D177: Gehört zu den hefehaltigen (1%) Vorteigen und entspricht einem Poolish mit weniger Wasser (TA 140-160), kann bis zu 100% des Mehls enthalten und macht den Teig stärker.
A178: B | D178: Steht länger als ein Poolish (1h RT + 12-18h bei 15°), hat aber eine höhere Verarbeitungstoleranz. Im Hauptteig muss trotzdem noch extra Hefe zugegeben werden.
A179: B
A180: B | C180: Brotfehler | D180: Merkmale des fertigen Brots, die nicht den allgemeinen oder persönlichen Anforderungen entsprechen.
A181: B | D181: zu flach: Übergare, Teig zu weich (enzymreiches Mehl, TA zu hoch), zu wenig versäuert/triebschwacher ST, zu wenig Salz, Ofen zu kalt, zu viel geschwadet
A182: B | D182: zu rund (oft zusammen mit dichter Porung): TA zu niedrig, Stückgare zu kurz, Ofen zu heiß
A183: B | D183: zu kleines Volumen: TA zu hoch, zu wenig versäuert, Gare zu knapp bei zu heißem Ofen, frisches/auswuchshaltiges Mehl
A184: B | D184: Krustenriss, horizontal, bodennah: zu viel/wenig/lang kurz/früh/spät geschwadet, Ofen zu heiß(?), zu eng geschoben
A185: B | D185: Kruste zu hart/zu dick: zu lange gebacken => kürzer backen, dafür evt. heißer
A186: B | D186: Porung zu dicht: TA zu niedrig, zu viel versäuert, zu wenig Hefe, Stückgare zu kurz
A187: B | D187: Porung zu grob: TA zu weich, zu viel Hefe, Stückgare zu lang
A188: B | D188: Speckstreifen/Wasserstreifen: Versäuerung zu gering, zu kurz gebacken
A189: B | D189: Hohlräume/Blasen in der Porung: Wirken mit zu viel Mehl, zu kurz geknetet, Untergare
A190: B
A191: B | C191: Brotgewürz | D191: Besteht klassischerweise aus Kümmel, Fenchel, Anis und Koriander zu gleichen Teilen. Je nach Geschmack ca. 0,5% d Mehlmenge zugeben.
A192: B | D192: Nach Wunsch ergänzen, z.B. mit Bockshornklee, Muskatnuss.
A193: B
A194: B | C194: Brühstück | D194: Gehört wie das Brüh- und Quellstück zu den Nullteigen (siehe dort). Verwendung mit Schrot, Flocken, VK-Mehl, seltener Saaten. TA liegt um 200. Japanische Variation => "Yudane"
A195: B | D195: Herstellung: Kochendes! Wasser über Getreideerzeugnis geben und verrühren. Abkühlen lassen und quellen: 8-12h im Kühlschrank (am besten mit Salz) oder 3-6h bei Raumtemp.
A196: B | D196: Eiweiß gerinnt (teilweise?) und steht nicht mehr (komplett?) als Kleber zur Verfügung.
A197: B | D197: => Mehr Aroma, besser verdaulich, mehr Feuchtigkeit im Teig => bessere Frischhaltung
A198: B | D198: 3 | E198: Altbrot
A199: B | D199: 1.5 | E199: Schrot
A200: B | D200: 1.5 | E200: Körner
A201: B
A202: C | C202: Coil Fold / | D202: Agitatationsmethode ähnlich Stretch & Fold, bei der der Teig mit beiden Händen mittig angehoben wird und so zurückgesetzt wird, dass die herabhängende vordere und hintere Seite untergeschlagen wird.
... 571 more rows

Sheet Info
A2: Info | B2: Handbuch zur Benutzung von BrotWerk | I2: Suchbegriff
B5: Mit BrotWerk könnt ihr eigene Brotrezepte entwerfen und anpassen, Rezepte von anderen leicht ein- und umarbeiten sowie Rezepte mit aktuellem Zeitplan ausdrucken.
B6: Bei der Rezepterstellung stehen vielfältige Prüfmechanismen und Assistenten zur Verfügung, die dafür sorgen sollen, dass eure eigenen Rezepte auch funktionieren.
B7: Auch eine Rezeptverwaltung, ein umfangreiches Sauerteiglexikon und eine Galerie für die schönsten Brot-Portraits steht zur Verfügung. | T7: Druck | U7: 1
B8: Das Motto von BrotWerk ist: Alles kann, nichts muss! Alle einstellbaren Parameter sind von Anfang an auf typische Werte eingestellt. Ihr könnt unglaublich viel | T8: TRUE
B9: ändern und auf eure Bedürfnisse anpassen, wenn ihr das möchtet. Ihr könnt aber auch einfach das meiste so lassen, wie es ist :-)
B12: Für die Erstellung und Bearbeitung von Rezepten stehen im Wesentlichen zwei Arbeitsplätze zur Verfügung:
C13: Kreator: Bestimmung der Zutaten und ihrer Mengen
C14: Teigführung: Bestimmung der Sauerteig-Führung und der Zeitabläufe, Zugang zum Hefeassistenten
B16: Außerdem können am Arbeitsplatz
C17: Druck zusätzliche Hinweise und Besonderheiten angegeben werden.
C18: Auf dieser Seite werden alle relevanten Informationen zum Rezept zum Ausdruck übersichtlich zusammengefasst.
B19: Die Seiten Kreator, Teigführung und Druck bilden zusammen den Editor.
B21: In der | C21: Rezeptverwaltung sind alle Rezepte mit ihren wichtigsten Informationen aufgelistet.
C22: Hier können Rezepte geladen, gespeichert und gelöscht sowie gesucht, gefiltert und sortiert werden.
C23: Von hier besteht ein Zugang zur
C24: Administration zur Einstellung verschiedener Darstellungsmöglichkeiten, zur
C25: Galerie und zum
C26: Ausgang aus dem BrotWerk.
B28: Ihr könnt außerdem eure eigenen
C29: Lieblingszutaten einpflegen und euren Fundus an Gärkörbchen und Backformen berücksichtigen lassen.
B30: Von fast jeder Seite aus habt ihr die Möglichkeit, zum schnellen Nachschlagen auf das
C31: Lexikon und dieses Handbuch zuzugreifen.
B34: Übersicht
B50: Mit einem Klick auf ein Symbol in dieser Übersicht gelangt ihr direkt zum entsprechenden Spezial-Kapitel.
B51: Das weitere Handbuch gliedert sich in folgende Abschnitte: | I51: Die Idee
B52: Ein Klick auf die Pfeile beamt euch hin. | I52: Der Prozess
I53: Steuerung
I54: Detail-Informationen über die einzelnen Arbeitsplätze
I55: Spezialtipp fürs Desktop-Icon (fortgeschrittene Kenntnisse erforderlich)
B58: Die Idee
B59: Die Idee ist, dass ihr gemütlich mit dem Laptop auf dem Sofa sitzt und in aller Ruhe softwareunterstützt planen könnt, wann ihr wie welches Backvorhaben am besten in euren Terminkalender einbauen könnt. BrotWerk druckt euch dann das Rezept samt individuellem Zeitplan aus. Den klebt ihr z.B. an euren Küchenschrank und könnt nun ganz entspannt und sorgenfrei losbacken.
B60: Außerdem bietet euch BrotWerk einen Zeitplan-To Go an, den ihr fotografieren könnt, damit ihr auch unterwegs immer wisst, wann der nächste Brotbackschritt an der Reihe ist.
B64: Der Prozess
B65: Grundsätzlich gibt es drei typische Anwendungsfälle, die jeweils eine etwas andere Herangehensweise nahelegen.
B66: 1) | C66: Ihr möchtet ein Rezept aus anderer Quelle im BrotWerk speichern, um in Zukunft leichten Zugriff darauf zu haben und Änderungen komfortabel und schnell vornehmen zu können. Solche Änderungen können z.B. sein: Ihr möchtet nicht ein, sondern zwei Brote backen. Ihr möchtet ein größeres oder kleineres Brot backen. Ihr wollt ein Sauerteigbrot ausnahmsweise als Hefebrot backen (wenn es nicht zu viel Roggen hat) oder umgekehrt. Ihr stellt fest, dass euer Sauerteig fitter geworden ist und möchtet die geplanten Gärzeiten etwas verkürzen. Oder ihr möchtet ganz schlicht den Wochentag oder die Tageszeit des Herstellungsbeginns ändern. Oder, oder, oder...
B67: 2) | C67: Ihr möchtet ein ganz neues Brot kreieren. Weil ihr gerade eine tolle Eingebung (vielleicht ein Kasten-Dinkel-Sonnenblumenbrot?) habt oder ganz bestimmte Mehle verwenden möchtet. BrotWerk wird euch dabei systematisch unterstützen. Ein paar Vorkenntnisse schaden hier aber nicht.
B68: 3) | C68: Ihr möchtet nach einem Rezept, das schon im BrotWerk abgelegt ist, backen und könnt dabei auf Zutaten und Teigführungen zurückgreifen, die sich bei euch schon bewährt haben. Oder ihr habt gerade nach dem Rezept gebacken und wollt noch einige Optimierungen einpflegen (z.B. Änderung der TA, der Versäuerung, oder der Gar- oder Backzeit), damit es beim nächsten Mal noch besser wird.
D69: Ihr öffnet als erstes die Rezeptverwaltung. Links findet ihr eine Aktionsleiste, rechts eine Liste mit den vorhanden Rezepten. In der Aktionsleiste gibt es eine zweigeteilte Brot-Schaltfläche, mit der ihr für die Fälle 1 und 2 die Vorlage für ein neues Sauerteigbrot oder ein neues Hefebrot laden könnt. Das Gute an den Vorlagen ist, dass bereits alle Eingaben, die gemacht werden müssen, mit sinnvollen Zahlen hinterlegt sind. Ihr könnt also ändern, was ihr ändern möchtet, und den Rest einfach so lassen, ohne etwas Wichtiges zu vergessen.
B70: Für den Fall 3 klickt ihr das gewünschte Rezept an und ladet es über die gelbe Schaltfläche der Aktionsleiste in den Editor. In allen Fällen öffnet sich die Druckansicht, die im Wesentlichen alle Eingaben aus dem Kreator und der Teigführung zusammenfasst. In Fall 1 und 2 macht am besten im Kreator weiter, für Fall 3 in der Teigführung.
D71: Der Kreator: Oben findet ihr Detailangaben zu aktuellen Mehl-, Wasser- und Teigmengen. Außerdem werden verschiedene Teigausbeuten angegeben.
D72: Am linken Bildschirmrand gibt es für jede Teigart einen eigenen Kasten: Hauptteig, wobei bei ST-Rezepten auch der Sauerteig inbegriffen ist, Quell,-Brüh- und Kochstück oder Vorteige, sowie einen Kasten für sonstige Zutaten.
B73: Wenden wir uns dem Hauptteig zu: In den blauen und bräunlichen Feldern könnt ihr per Drag-Down-Menü unter den vorhandenen Mehlsorten auswählen. Die Farben dienen der Abgrenzung von Weizen,-Dinkel- und Roggen-Erzeugnissen. Diese Trennung ist nicht in jedem Fall wichtig. Beachtet aber unbedingt, dass ihr nur maximal zwei Mehlsorten in den Sauerteig packen könnt: Die müssen in den Zeilen stehen, die mit einem "ST" gekennzeichnet und etwas kräftiger gefärbt sind. Also entweder die beiden oberen "ST" nutzen oder die unteren beiden. Außerdem müsst ihr die Menge der jeweiligen Mehle noch angeben, dies geschieht in den gelben Spalte rechts daneben.
B74: In allen Kästen repräsentiert die gelbe Spalte die Menge der trockenen Zutaten und die blaue Spalte die Menge der flüssigen Zutaten. Diese Unterscheidung ist für die Berechnung der TA und der Einschätzung der Teigfestigkeit wichtig.
B75: Wenn ihr ein Sauerteigbrot backen möchtet, müsst ihr dazu die Versäuerung angeben. BrotWerk versteht darunter die Menge einer Getreidesorte (Weizen inklusive Dinkel versus Roggen), die im Sauerteig verarbeitet wird. Andere Verhältnisse, wie etwa die Versäuerung bezogen auf die gesamte Getreidemenge im Brot, könnt ihr auch ablesen. Beim eigenen Rezept bietet es sich eher an, direkt die gewünschte Versäuerung in % anzugeben. Beim bestehenden Rezept ist es einfacher, wenn ihr den Versäuerungsassistenten benutzt (Kasten weiter unten). Er gibt euch schon an, wieviel Mehle der zu versäuernden Sorte im Moment im Rezept sind. Ihr gebt nun die Menge der Mehle im ST an und erhaltet die resultierende Versäuerung. Zum Übernehmen auf die Feder klicken.
B76: Ein Beispiel zum Versäuerungs-Assistenten: Ihr habt ein Rezept, das 600g Mehl im Hauptteig hat und 200g Mehl im Sauerteig. Die Summe von 800 schreibt ihr im Hauptteigkasten in die gelbe Spalte. Wenn ihr jetzt beim Assistenten 200 eingebt, erhaltet ihr die passende Versäuerung: 25%! Wenn ihr diesen Wert jetzt manuell oder per Federklick in das Feld für die Versäuerung eingebt, werden sich eure Mehle wie von Geisterhand selbst auf Haupt- und Sauerteig verteilen :-)
B77: In der blauen Spalte daneben wird eine typische passende Wassermenge angegeben. Wenn ihr mit einem bestehenden Rezept arbeitet, ist es am einfachsten, wenn ihr weiter oben unter "Zuschüttwasser (Angabe K oder Z =>)" ein "Z" für Zielwert oder auch für Zuschüttwasser eingebt, denn dann wird der Wert, den ihr in der Zelle darunter angebt "Ges-Wass-Korrektur (K) / Zuschütt-W (Z)" direkt als endgültige Menge für das Zuschüttwasser verwendet. Wenn ihr selbst ein Rezept erstellt, wollt ihr vielleicht lieber die automatisch vorgeschlagene Wassermenge nach und nach korrigieren, bis ihr denkt, dass es für euren Teig passt oder bis eine gewünschte TA erreicht ist. Für diesen Fall gibt es eine praktische Hilfe: Den TA-Assistenten (Kasten weiter unten). Hier könnt ihr eure Ziel-TA eingeben, und das passende Zuschüttwasser wird euch vorgeschlagen. Wenn ihr es übernehmen wollt, reicht ein Klick auf die Feder. Ihr könnt den Wert natürlich auch von Hand ändern.
B78: Die Kästen für die Nullteige funktionieren alle gleich: In der jeweiligen Überschrift des Kästchens könnt ihr per Dropdown-Menü die Art des Teigs wählen: Quellstück/Brühstück/Kochstück jeweils mit und ohne geplante Salzzugabe oder auch einen Vorteig, den ihr über Klick direkt auf das Feld frei benennen könnt (er wird wie ein Wasser- und Zutaten-technisch wie der Hauptteig behandelt). Dann wählt ihr eine Zutat aus der Dropdownliste der gewünschten Zeile aus und gebt die Menge in der gelben Spalte an, das Wasser dazu wird vorgeschlagen. Wenn ihr diese Wassermenge ändern wollt, gibt es folgenden Trick: In die jeweils unterste Zeile "X Korrekturwasser - als TrM angeben" könnt ihr in der trockenen Spalte den Korrekturwert eingeben. So ändert sich die berechnete Trockenmasse nicht, die Wassermasse jedoch kann korrigiert werden.
B79: Beispiel für die Wasserkorrektur der Nullteige: 216g Wasser werden für euer Quellstück vorgeschlagen, ihr wollt jedoch nur 200g verwenden, also 16g weniger. Gebt "-16" in die gelbe Spalte ein, und - schwupps - das Wasser ändert sich auf 200g. So einfach.
B80: Der Kasten für "Sonstige Zutaten Hauptteig" ist der einzige, bei dem auch die blaue Spalte für euch freigegeben ist. Solltet ihr hier Flüssigkeiten, also z.B. Öle, Milch oder Sirup verwenden wollen, bitte die Menge in der "flüssigen" Spalte angeben. Bei Zutaten, bei denen ihr euch nicht entscheiden könnt, ob ihr sie als flüssig oder fest ansehen sollt, könnt ihr das Gewicht auch einfach z.B. fifty-fifty auf beide Spalten aufteilen.
B81: Andere Einstellungen im oberen Bereich des Kreators: Hier könnt ihr noch Veränderungen an der Salz- und ggf. Hefemenge vornehmen und die Anzahl der gewünschten Teiglinge festlegen. Wollt ihr zwischen Sauerteig und Hefeteig wechseln, betätigt die passende Schaltfläche. Weiteres findet ihr im Abschnitt "Kreator".
D82: Nun wechselt ihr in Teigführung. Wenn das Rezept schon gespeichert ist, im Anwendungsfall 3 also, wendet ihr euch am besten direkt hierher.
D83: Oben links legt ihr fest, die Zahl der Backvorgänge fest: 1 oder 2, das wird benötigt für das Timing beim Vorheizen und Backen. Rechts davon legt ihr die gewünschte Startzeit fest. Backt ihr ein Hefebrot, ist dafür die Angabe der Position 1-4 irrelevant und es geht es weiter im unteren Teil der Zeittafel ab Punkt 2a. Für einen Sauerteig legt unbedingt die Angabe der definitiv gewünschten ST-Menge fest. Die vom Kreator ausgerechnete Menge steht als Erinnerungshilfe dabei. Die Menge fürs Rezept könnt ihr ruhig ein wenig runden.
B84: Da ich davon ausgehe, dass ihr auch neues ASG erzeugen wollt, habe ich es so eingerichtet, dass ihr die entsprechende Menge auch noch festlegen könnt. Außerdem wird etwas Schwund einkalkuliert (für das, was im Gefäß kleben bleibt). Über die Lupe könnt ihr die Feineinstellungen für die Sauerteigführung tätigen, falls der Standard nicht zu eurem Vorstellungen vom Rezept passt.
B85: In der Tabelle könnt ihr alles ändern, was grün ist, auch die Textfelder. In den rechten drei Spalten findet ihr die Zeitangaben "Wahl", "min" und "max". Am wichtigsten ist der vorausschauende Eintrag bei "Wahl", hieraus berechnen sich alle folgenden Zeiten. Achtung: Die Schritte 2a, 2b und 6 sind jeweils vorgelagert, hier werden die Zeiten quasi rückwärts von Schritt 3 bzw. Schritt 7 gerechnet. "Min" und "max" stellen die maximale Zeitspanne dar, in der sich der jeweilige Schritt schätzungsweise bewegt.
B86: Im oberen rechten Teil könnt ihr den Namen eures Brots und weitere Zusatz-Infos festhalten.
B87: Ihr könnt beliebig oft zwischen den einzelnen Oberflächen hin und her wechseln, bis ihr mit dem Ergebnis zufrieden seid.
D88: Dann ist es Zeit für die Druckansicht. Achtung: Der linke Teil der Druckansicht aktualisiert sich nur nach sanftem Anstupsen:
D89: Er enthält neben den Zutaten und ihren relativen Anteilen (Bäcker-Mathe) weitere Informationen, wie z.B. die passenden Gärkörbe gemäß der an anderer Stelle hinterlegten Daten. Die Tabelle im rechten Teil ist immer auf dem neuesten Stand.
B90: Der einzige Abschnitt, der in dieser Oberfläche editiert werden kann, ist der markierte Schreibbereich ganz unten. Hier müsst ihr jede Zeile einzeln per Doppelklick auswählen, um sie zu beschreiben. Bei einem Einfach-Klick wird eventuell schon vorhandener Text überschrieben. Es gibt keinen automatischen Zeilenumbruch.
B91: Von der Druckansicht aus könnt ihr das Rezept speichern: Wählt das Diskettensymbol mit dem Plus, wenn ihr das vorliegende Rezept als zusätzliches Rezept speichern möchtet. Bei Rezepten, die frisch aus den Vorlagen heraus erstellt worden sind, ist das zwingend. Wenn ihr ein bereits gespeichertes Rezept verändert habt, könnt ihr auswählen, ob ihr es als neues Rezept speichern möchtet oder das alte Rezept überschreiben möchtet => Diskettensymbol ohne Plus.
B92: Was wäre eine Druckansicht ohne Druckoption? Über das Druckersymbol erhaltet ihr euren Ausdruck. Warum es im Ausdruck noch leere Felder gibt, erkläre ich euch in der Detail-Information.
B93: Das Symbol mit der Stoppuhr in der Presse führt euch zu einer Spezial-Kompakt-Ansicht. Hier sind die Zeiten zusammen mit einem Stichwort dargestellt. Ideal, um sie mit dem Handy zu fotografieren um auch unterwegs zu wissen, ob man noch Zeit hat oder lieber doch schnell in die Backstube eilen sollte. Ein Zeitplan To Go sozusagen.
B94: Mit dieser Erklärung des Prozesses könnt ihr schon die wichtigsten Funktionen nutzen. Viele Möglichkeiten werdet ihr sicher durch Herumstöbern im BrotWerk entdecken. Wenn ihr genauere Erklärungen zu den vielen Optionen sucht, schaut euch den Abschnitt zu den Detail-Informationen an.
B97: Steuerung
B98: Die Steuerung erfolgt über verschiedene Schaltflächen und auch Eingaben direkt in den Arbeitsbereichen.
B99: Die Felder, die ausgefüllt werden können, sind meistens grün hinterlegt und mit einem Rahmen versehen. Durch einen Doppelklick auf eine Zelle wird sie editierbar.
B100: Die Bewegung zwischen den Haupt-Arbeitsplätzen erfolgt mittels blauer Pfeile. | R100: Zurück zur letzten Seite:
B101: Die Spezialseiten (Lexikon, Infoseite, Galerie, Administration) können über Symbole in der Kopfleiste erreicht werden. Ebenso der Ausgang zum Verlassen des BrotWerks:
B102: Vom Kreator aus geht es zur "Mehlseite", in der ihr neue Zutaten hinterlegen könnt. Von der Teigführung aus gelangt ihr zur Gärkörbchen- und Backform-Management.
B103: An verschiedenen Stellen habt ihr die Möglichkeit, zu drucken. BrotWerk verwendet automatisch euren Standarddrucker, bzw. den Drucker, der für Excel eingestellt ist.
B104: Wenn Druck als pdf ausgewählt ist, müsst ihr je nachdem, was ihr für einen pdf-Drucker benutzt, evt. einen Dateinamen und einen Speicherort auswählen, bevor es weitergeht.
B105: Innerhalb vom Lexikon gibt es die Feder bzw. das Schloss zum Aus- und Einschalten des Seitenschutzes.
B106: Die Feder dient an anderen Stellen dazu, bestimmte vorgeschlagene oder eingegebene Werte definitv ins BrotWerk zu übertragen und anzuwenden. Weitere Bedienelemente werden den jeweiligen Arbeitsbereichen abgehandelt.
B107: Zuweilen werdet ihr Infoboxen begegnen. Sie enthalten fixe oder variable Informationen und können nicht geändert werden.
B110: Detail-Informationen über die einzelnen Arbeitsplätze
B112: In diesem Kapitel geht es nicht ums große Ganze, dafür schaut bitte im vorangehenden Kapitel "Der Prozess" nach oder im Schnell-Einstieg: Wie der Name schon sagt, findet ihr hier eine relativ detaillierte Erklärung jeder Eingabemöglichkeit und jeder Anzeige.
B113: Für die einfachere Erklärung der einzelnen Bereiche habe ich Screenshots erstellt und mit Nummern versehen. Die Optionen werden (meistens) in der Reihenfolge der Zahlenmarkierungen besprochen, dabei stehen schwarz hinterlegte Zahlen für Anzeigen von BrotWerk und weiß hinterlegte Zahlen für Eingabe-Möglichkeiten durch euch (Werte eingeben oder Schaltflächen zum Anklicken).
B114: Vorbemerkung: Alle grünen Felder zum Ausfüllen sind anfangs mit Standardwerten besetzt. BrotWerk versucht, offensichtliche Rezeptfehler zu vermeiden, in dem es durch rot markierte Werte auf Unstimmigkeiten aufmerksam macht. Natürlich kann BrotWerk nicht alle erdenklichen Fehler bemerken, und manchmal ist der Bäcker vielleicht absichtlich besonders experimentierfreudig ;-)
B115: Aus dem Kontext ist klar, ob als Eingabe eine Zahl, ein Text oder eine Zeitangabe (in der Form hh:mm) erwartet wird. Wenn plötzlich ##### im aktuellen oder auch in anderen Feldern erscheint, hat eure letzte Eingabe nicht ins vorgesehene Schema gepasst. Einfach das Feld nochmal richtig ausfüllen, dann regelt sich alles wieder. Bitte achtet auch darauf, dass ihr bei Texteingaben nicht mit +/-/= oder anderen Rechenzeichen beginnt. Stellt ggf. ein Leerzeichen voran.
B116: Andere Stellen der Arbeitsbereiche sind für Eingaben durch den Nutzer gesperrt. Ihr braucht euch also keine Sorgen zu machen, dass ihr aus Versehen etwas kaputt machen könntet.
E118: Kreator, seine Assistenten und Neue Mehle / neue Zutaten
B121: Kopfbereich
B122: (1): Bereich für allgemeine Angaben. (2): Gewünschte Brotmenge (gebacken) angeben. Hilft bei der richtigen Wahl der Zutatenmengen und kann zur Mengenumrechnung (siehe unten) verwendet werden. Spalte (3): Korrespondierende Angaben aus der Teigführung zur Kontrolle. Kleinere Rundungsfehler sind häufig, größere Abweichungen deuten auf eine abweichende Sauerteigmenge hin (siehe Teigführung ganz oben) und sollen als Warnsignal verstanden werden. (4): Salzangabe in % Mehlmenge mit Empfehlung. Zusätzlich Empfehlung in Bezug auf die Teigmenge. Beides wird im Ausdruck angegeben.
B123: (5): Hefemenge (frisch oder trocken): Ist nur bei Hefebroten erforderlich und bei Sauerteigbroten blass dargestellt. (6): Hilfs- oder Angsthefe zur Unterstützung bei eigentlich ST-getriebenen Broten. (7): Wahl der Anzahl der Teiglinge. Daran werden die Angaben für die Teigeinlage, die geschätzte Backzeit und das erwartete Endgewicht nach Backverlust angepasst. (8) Angabe der TA: Eine für die Mehlzusammensetzung und Back-Art (freigeschoben versus in der Form) typische TA wird angegeben. Außerdem die TA des Hauptteigs und die des Gesamtteigs (mit Nullteigen etc.). Die Primär-TA stellt die unkorrigierte Roh-TA dar. Die korrigierte TA aus dem Kreator und der TF weicht voneinander ab (das Feld wird dann rosa hinterlegt), wenn in der Teigführung (noch) nicht die angemessene Sauerteigmenge angegeben wurde => unbedingt korrigieren! (9) Zeigt die ungefähre Klebefähigkeit des Teiges an. Bei einem reinen Weizenmehlteig ohne Null- oder Vorteige wäre sie 100%. Je mehr nicht oder nur schwach backfähige Zutaten dazukommen, desto mehr sinkt dieser Wert. Backfähige Zutaten büßen Klebepotential ein, wenn sie z.B. als Brüh- oder Kochstück zugefügt werden. Nicht hinterlegten Zutaten bei den Null- oder Vorteigen wird die Klebrigkeit Null zugeordnet. Ein Wert von unter 75% könnte kritisch sein, vor allem für freigeschobene Brote. Mit den zwei (10)er-Tasten kann man das Rezept zwischen Hefeteig und Sauerteig umschalten. Das klappt gut, wenn das Wasser im Hauptteig mit "K" gesteuert wird und nicht mit "Z" => siehe nächster Abschnitt unter Punkt (8). Sollte ein Salzsauer-Verfahren gewählt worden sein, wird dies durch ein kleines Warndreieck auf der Sauerteig-Taste angezeigt. Ein Geheimtipp verbirgt sich unter (11): Bei Klick auf den rechten Teil der Überschrift könnt ihr auch hier im Kreator bequem wechseln zwischen freigeschobenen oder in der Form gebackenen Broten.
C127: Hauptteig: (1): Bereich für die trockenen Zutaten des Hauptteigs inklusive Sauerteig. Per Dropdown-Menü (2) können in jeder Zeile die voreingestellten Mehle/Schrote abgerufen werden. Die blauen Zeilen sind für alle Nicht-Roggen-Getreide gedacht, die braunen für Roggenerzeugnisse. Diese Einteilung ist jedoch nur in den vier Zeilen, die mit "ST" (= SauerTeig, wer hätte das gedacht?) gekennzeichnet sind, wirklich wichtig. Die Mehle, die in den ST-Spalten stehen, werden im angegebenen Verhältnis für den Sauerteig verwendet, soweit im Rezept überhaupt ein Sauerteig vorgesehen ist.
G128: Es muss entweder ein Roggen- oder ein Weizen-Sauerteig ausgewählt werden (siehe Sauerteig-Kasten weiter unten). Spalte (3): Gewünschte Menge des Getreides inkl. Sauerteig. Will man ein Rezept für einen Teig mit 750g 550er Mehl im Hauptteig und 500g Sauerteig (TA 200, d.h. halb Mehl/halb Wasser) erstellen, so gibt man in den obersten Sauerteigzeilen die entsprechende Mehlsorten an.
H129: In diesem Falle also der Spalte (3) den Wert 1000 (750 für das Mehl im Hauptteig + 250 für die Mehlmenge im Sauerteig). Spalte (4): Enthält das korrespondierende Wasser und wird automatisch ausgefüllt entsprechend der hinterlegten Hydratation => Spalte 6. In den beiden oberen Zellen von (3) und (4) sind die Summen angegeben. Spalte (6): Anzeige der Mengen im Verhältnis zu den Getreideerzeugnissen des Hauptteigs. Bereich (7): Zuschüttwasser für den Hauptteig. Gesamt-Primär-Wasser = alle Wasser (aus Hauptteig, Nullteigen, sonstigen Zutaten und ggf. auch dem ASG bei Sauerteignutzung). Soll diese Menge korrigiert werden, gibt es zwei Möglichkeiten: In Zelle (8) ein "K" für Korrektur eintragen und in Zelle (9) die gewünschte Differenzmenge (plus oder minus) angeben, bis z.B. die gewünschte TA erreicht ist. Dafür kann auch der TA-Assistent (siehe unten) genutzt werden. Wenn man eine ganz bestimmte Menge an Zuschüttwasser erreichen will, weil man nach einem vorgegebenen Rezept backen möchte, kann man die Zielmenge auch direkt eingeben: Ein "Z" in Zelle (8) und die gewünschte Zielmenge in Zelle (9) eingeben. Beim automatischen Umstellen zwischen Sauerteig- und Hefeverfahren sollte Korrekturwasser ausgewählt sein, ansonsten muss man das Zuschüttwasser manuell nachregeln.
B130: Spalte (10) zeigt die Zutatenmengen des Sauerteigs an, die vom Hauptteig abgezweigt werden, Spalte (11) die im Hauptteig verbleibenden. Die blaue Zahl steht jeweils für Wasser. (12): Anteil des Hauptteigs am Gesamtteig mit empfohlener Menge. Die Zelle wird rot bei Abweichungen. (13): Art des Brotes gemessen am Roggenanteil.
I132: (1): Sauerteignutzung. (2): ST wird benutzt „1“ oder nicht benutzt „0“. (3) Wunsch ist „1“, wenn „Sauerteig“ über den großen ST-Knopf weiter oben gewählt wurde und „0“ bei Hefeteignutzung. (4) Sauerteigpflicht besteht „1“ oder besteht nicht „0“. (5)/(6) Bereiche für Weizen und Roggen-ST. (7): Info darüber, welcher ST verwendet werden soll/kann. (8) Wahl der gewünschten Versäuerung (siehe auch „Versäuerungsassistent“ weiter unten). Die entsprechenden Mengen werden vom Hauptteig in den Sauerteig verschoben. Bereich (9): Zusammensetzung des resultierenden ST, bei zwei verschiedenen Mehlsorten wird nur die Summe der Mehlmengen angegeben. Die ASG-Menge und die TA ergibt sich aus den Angaben in der Sauerteigführung (siehe dort).
S134: Infobereich über grundlegende Versäuerungsregeln. Siehe auch Grafik unten im Kreator
S136: Infobereich über die aktuellen Versäuerungswerte.
H138: Nullteige/Vorteige: (1) Teigbezeichnung aus dem DropDown-Menü wählen. Voreingestellt sind Quellstück, Brühstück, Kochstück, jeweils mit und ohne Salz. Auch möglich ist die Auswahl von "Vorteig" oder die Vergabe eines beliebigen Namens durch Klick direkt auf das Feld. In diesem Fall wird der Teig dann wie ein Hauptteig verwaltet (Zutatenauswahl und Hydrierung). Hintertürchen: Wenn euer Name mit QS, BS oder KS beginnt, wird er wie ein Quell-/Brüh- oder Kochstück behandelt! Die Zutaten (2) der Teige sind wählbar per DropDown-Menü und ergänzbar über die „Neue Mehle"-Seite“ (siehe unten). Tatsächlich könnt ihr auch hier Freitext eingeben, allerdings wird bei einer Zutat, die nicht für die ausgesuchte Teigsorte hinterlegt ist, die angegebene Menge dann nur als Trockenmasse gewertet, nie als Mehl bzw. "backfähige Getreidemasse". Das würde dann ggf. die gewünschten Anteile an Salz und Hefe sowie die "Klebrigkeitsberechnung" und die Vollwertigkeitsbetrachtung verzerren. Zur besseren Erkennbarkeit sind diese "unbekannten" Zutaten in leicht rötlicher Schriftfarbe dargestellt. (4): Gewünschte Menge der (trockenen) Zutaten in gelber Spalte angeben. (5): Errechnete korrespondierende Wassermenge gemäß Spalte (9). Eine Mengenangabe ohne konkrete Zutat wird rötlich hervorgehoben. Bei Auswahl von „X Korrekturwasser - als TrM angeben“ aus dem Dropdown-Menü: Wenn eine andere als die voreingestellte Wassermenge gewünscht wird, könnt ihr das erreichen, indem ihr die Differenz im zugehörigen (6) Trockenfeld (gelb) angebt. Um z.B. 25ml mehr Wasser zu verwenden, gebt in der zugehörigen trockenen Spalte (4) „25“ ein. Um 35ml weniger zu verwenden, gebt dort -35 ein. Die Wassermenge wird dann entsprechend berücksichtigt, ohne die trockene Menge zu beeinflussen. Info: Für Nutzer einer älteren Version ist der dort verwendete Workaround "X Korrekturwasser (1/100 TrM angeben)" noch vorhanden. (7): Übersichtsspalte (mit Wasser in blau). (8): Verhältnis des Nullteigs zur Getreidemasse mit empfohlener Höchstmenge. Die Zelle färbt sich rot bei Überschreitung. (10): Verhältnisse der Zutaten zur backfähigen Getreidemasse (BGM ≈ Mehlmenge).
H140: Für die "Sonstigen Zutaten Hauptteig" (1) entscheidet ihr selbst, ob die jeweilige Zutat zu den trockenen (2) oder flüssigen (3) Bestandteilen gerechnet werden soll. Ihr könnt die Menge auch aufteilen zwischen fest und flüssig. (4) Für Zutaten, die ohne feste Mengenangaben ins Rezept genommen werden sollen, muss aus technischen Gründen die trockene Menge "0,1" angegeben werden. Sie erscheint in Spalte (2) als „0“, an der Stelle (5) jedoch als „0,1“.
B142: Assistenten
F144: Möchte man die Teigmengen umrechnen, steht dafür ein praktisches Werkzeug zur Verfügung. Es kann in zwei Modi arbeiten: Umrechnung mit einem einzugebenden Faktor (Modus 1) oder Umrechnung auf die ganz oben links angegebene Wunsch-Brotmenge (Modus 2). Nach Wahl des Modus in (1) und ggf. des Umrechnungsfaktors in Zelle (2) erledigt ein Klick auf den Doppelrichter (4) die Umrechnung. | L144: TA-Assistent: (1) Wunsch-TA. (2): Neu-Berechnung der Anzeige des für diese TA erforderlichen Wasserkorrekturwerts (für weiter oben über dem Hauptteig). Mit der Feder (3) wird dieser Wert automatisch an der richtigen Stelle eingetragen. TA-Taschenrechner: In die (4)er Spalten können beliebige Daten eingetragen werden, um mal eben eine TA (5) auszurechnen von einem Rezept oder Rezeptteil, das nicht bereits im Kreator eingegeben ist.
B147: Versäuerungs-Assistent: (6) Anzeige der Menge der zu versäuernden Mehle im Hauptteig (alle Weizen ODER Roggen-Mehle, die im markierten ST-Bereich stehen). (7) Eingabe der gewünschten Mehlmenge für den ST. Die dafür erforderliche Versäuerung aktualisiert sich nicht automatisch, sondern muss über (8) neu berechnet werden. Mit der Feder (9) wird der Wert in das Rezept übernommen. Gluten-Assistent: Wenn ihr nicht immer hochwertige, backstarke Mehle zur Hand habt, könnt ihr euch mit der Zugabe von Gluten behelfen. Gebt dazu an, um wieviel Mehl (10) es geht und welchen Proteingehalt (≈Glutengehalt) es hat (12). Außerdem gebt an (12), wieviel Protein euer Glutenprodukt tatsächlich enthält und wieviel Protein ihr in der fertigen Mischung haben wollt. 12-15g ist dafür ein typischer Wert. Unter (11) findet ihr die nötige Menge von eurem Glutenprodukt. Überschreitet diese Menge die empfohlene Höchstdosis, wird sie ebenfalls hier angezeigt.
L148: Salz-Assistent (13): Wenn ihr die konkrete Salzmenge und nicht den Anteil in Bäckerprozent eingeben wollt, seid ihr hier richtig. Tragt euren Wunschwert ein und übernehmt ihn mit der Feder ins Rezept. Wollt ihr ein Salzsauer-Verfahren wählen, tragt im oberen Kästchen die Gesamtmenge Salz ein und im unteren Kästchen die Salzmenge, die davon in den ST soll. Mit der unteren Feder wird der Wert an der entsprechenden Stelle hinterlegt. Außerdem seht ihr auch direkt, welchen Salzgehalt (Bäcker%) euer ST damit hat.
S149: Hefe-Assitent (14): Wenn ihr die konkrete Hefemenge und nicht den Anteil ein Bäckerprozent angeben wollt, ist hier der Ort dafür. Ihr könnt auch die Menge der Hilfshefe für ein Sauerteigbrot angeben, wenn ihr sie verwenden wollt. Mit dem Symbol (15) wechselt ihr zwischen Frisch- und Trockenhefe, mit der Feder übernehmt ihr die jeweilige Menge ins Rezept.
K152: Infokästen: Teigeinlage der eigenen Gärkörbchen und Backformen. Kann bei der Ermittlung einer günstigen Brotmenge bzw. der Menge der Teiglinge helfen. Die Bearbeitung erfolgt auf der Seite "Gärkörbchen, Backformen" von der Teigführung aus. Wahl des passenden Triebmittels: Veranschaulichung der Hefe- bzw. Sauerteigwahl bei Teigen mit unterschiedlichem Roggengehalt.
Q154: Folgt diesem Pfeil, um die Zutaten zu ergänzen, die euch in den DropDown-Listen für die einzelnen Teigsorten noch fehlen.
C159: Neue Mehle / Neue Zutaten
B160: Jede Zutat wird einer bestimmten Teigsorte (Hauptteig, Quellstück, Brühstück, Kochstück) zugeordnet. Soll sie in mehreren Teigen verwendet werden, muss sie auch mehrmals hinzugefügt werden. Maximal 60 Zutaten pro Teig können hinterlegt werden. Ihr könnt Zutaten zufügen oder ändern. (1) Auswahl der gewünschten Teigsorte per DropDown-Menü. (2) Angabe des Namens der gewünschten Zutat. (3) Auswahl der zugehörigen Getreidegruppe oder auch der Nicht-Getreidegruppe über DropDown-Menü. (4) Angabe der typischen Hydratation. BrotWerk nutzt diese Angabe, um im Kreator die passende Flüssigkeitsmenge zu bestimmen. Wenn hier nichts eingegeben wird, wird ein für die gewählte Teigsorte häufiger Wert zugeordnet. Wenn die Wassermenge später im Rezept nicht passen sollte, kann sie über den Weg des Korrekturwassers im einzelnen Teig adaptiert werden. (5) Vollwertigkeit der Zutat im DropDown-Menü auswählen. (6) Die "Klebrigkeit" dient dem Kreator zum Einschätzen der Backfähigkeit des Gesamt-Rezepts. Sie liegt zwischen 0 und 1 außer für hyperklebrige Zutaten wir Gluten. Mit dem Assistenten (7) kann die typische Klebrigkeit ermittelt werden, sie kann aber manuell überschrieben werden. Mit der Feder (10) werden die angegebenen Werte (2-6) so in den Speicher geschrieben. (8) Anzeige der bereits zugeordneten Zutaten für den gewählten Teig. Über den Mehlsack (9) könnt ihr die aus dieser Liste ausgewählte (angeklickte) Zutat zur Änderung in den Editor laden.
B166: Hinweis: In dieser Version können die eingegebenen Zutaten durch Klick auf den Mehlsack auch nachträglich editiert werden. Der Name allerdings kann nicht mehr geändert werden, weil es sonst zu Konflikten mit bestehenden Rezepten käme. Aus diesem Grund gibt es auch keine Löschfunktion.
E171: Teigführung mit Sauerteigführung und Hefe-Assistent, Gärkörbchen- und Backform-Management
I173: Sauerteigeigenschaften und Garzeit-Parameter
L176: Basiseinstellungen
L177: (1): Angabe des Backmodus. (2): Eingabe der Anzahl der Backvorgänge (nur ein oder zwei) möglich. Die Zeiten für das Wiederaufheizen und den zweiten Backvorgang werden dann entsprechend ggf. mitberechnet. (3): Angabe der grob geschätzten Backzeit. (4): Sauerteigmenge laut Kreator. (5): Eingabe der tatsächlich gewünschten ST-Menge (z.B. gerundet auf glatte Werte). (6): Menge des ASGs, das aus dieser ST-Führung wieder rückgewonnen werden soll. (7): Führungsstufe bzw. Position, aus der dieses ASG entnommen werden soll. Bei Angabe einer nicht sinnvollen Zahl wählt BrotWerk automatisch die letzte Auffrischstufe oder, falls nicht vorhanden, die Vollsauerstufe aus. Für die Aktivität des ASG ist es gut, wenn möglichst viele Führungsstufen vor der Entnahme mit durchlaufen werden. Soll das ASG aber reproduzierbar immer aus bestimmten Mehlen bestehen, die im Vollsauer so nicht enthalten sein
B178: werden, muss es vorher abgenommen werden. (8): Resultierende Vollsauermenge inklusive Schwund, der im Glas kleben bleibt. Die Schwundmenge kann in der ST-Führung (13) geändert werden. (9) Angabe des Zeitpunkts (Wochentag und Uhrzeit), an der eine bestimmte Stufe (10) der max. vier ST-Stufen bzw. der Hefeteig angesetzt werden soll. (11): Raumtemperatur am Backtag, wird für die Berechnung der Wassertemperatur und die Angabe der Ballengaretemperatur benötigt und kann, wenn gewünscht, mit der zugehörigen Feder in die Temperaturfelder des Hauptteigs übernommen werden. (12): Angabe der Teigtemperatur, falls eine bestimmte vorgesehen ist. Ansonsten verwendet BrotWerk einen typischen Wert (13) für die gewählte Teigzusammensetzung. (14): Navigationsschaltfläche zur Sauerteigführung im Detail. Das Warndreieck für Salzsauer (15) erscheint nur, wenn Salzsauer gewählt ist und führt direkt in die ST-Eigenschaften.
B180: Rezeptname
B181: (1) und (2) sind automatisch generierte Namensbestandteile. In Spalte (4) können sie übernommen werden ("0") oder die anzugebenden Alternativen ("1") aus (5) oder (6) ausgewählt werden. Auch ein leeres Alternativfeld kann ausgewählt werden. Bei (3) stehen Symbole zur Auswahl, die dem Titel zur besseren Erkennbarkeit vorangestellt werden können. Z.B. Nr. 1 für ein freigeschobenes Brot, Nr. 5 für zwei Kastenbrote oder Nr. 4 für Brötchen oder andere Kleingebäcke. Die Auswahl erfolgt in Spalte (4), (7) zeigt das gewählte Symbol. (8): Der fertig zusammengestellte Name. (10): Anzeigeoptionen (an/aus) für die anzugebende Quelle (10), automatisch generierte Getreideverhältnisse (nur Weizen/Roggen/Dinkel) und das BrotWerk-Vollwert-Rating (11). Theoretischer Maximalwert des VW-Ratings ist 90 für ein reines Schrotbrot. 9 ergibt sich für ein Brot aus reinem VK-Mehl, und 0,9 für ein Brot aus höheren Typenmehlen. Da die meisten Brote in diesem Sinne „Mischbrote“ sein werden, ergeben sich vor allem Zahlen zwischen 0,2 und 20. (12): optionaler Infotext. Bitte achtet darauf, eure Texteingaben nicht mit Rechenzeichen (z.B. +, -, =, oder *) zu beginnen. (13): Infofeld
B183: Die Zeittafel: Alle Felder mit einer grünen Färbung [außer Spalte (4)] können geändert werden!
O185: (1): Angaben für die Startzeitpunkte der einzelnen Arbeitsschritte, kommt der Übersichtlichkeit wegen zweimal vor. Die grau hinterlegte Uhrzeit in der ersten Spalte markiert eine Tätigkeit außerhalb der Ruhezeit, die auf der Administrationsseite angegeben wurde. Die lila/purpur gefärbten Zeiten werden unter Punkt (9) näher erläutert. (2): Nummer der Schritte, auf sie kann im Freitext der Druckansicht später Bezug genommen werden. (3): Bereich der
Q186: Sauerteigführung, bleibt bei Hefeteigen leer. (4): Kennzeichnung der Positionen der möglichen ST-Stufen, ihre Angabe wird für die ASG-Entnahme und die Startzeitpunkt-bestimmung abgefragt. (5): Menge des für die jeweilige Stufe erforderlichen Starters/Anstellguts. (6): erforderliche Mehlmenge (ggf. auch als Mehlmischung) für die jeweilige Stufe. (7): erforderliche Wassermenge für die jeweilige Stufe. (8): Temperaturen, bei der die Prozesse ablaufen sollen. (9): Angabe der Dauer, die ein bestimmter Prozess vermutlich beanspruchen wird. Wenn die Zeit „0:00“ angegeben wird, wird dieser Prozess übersprungen Die Zellen färben sich rot, wenn sie außerhalb der (10) Mindest- oder Maximaldauern liegen.
B187: Die Mindest- und Maximaldauern für die Schritte 1a bis 1d werden von der ST-Führung (siehe dort) übernommen und sind nur dort änderbar. Die MinMaxDauern für die anderen Schritte jedoch werden hier geändert, falls die Voreinstellungen nicht passend sind. Die Angaben für die Schritte 2a, 2b und 6 sind bunt hervorgehoben. Dies sind die Schritte, die eine bestimmte Zeit VOR einem anderen Schritt - siehe entsprechend bunte Felder in Spalte (1) - erfolgen sollen. Hier wird also nicht unbedingt die Dauer, sondern der Zeitpunkt eines Schritts angegeben. Im Beispiel soll das Quellstück 12 Stunden vor der Mischung des Hauptteigs angesetzt werden, die Autolyse 1h vor dem Hauptteig. Auch Schritt 6 ermöglicht es, eine Aktion in einem bestimmten Zeitabstand VOR dem nächsten Schritt zu planen, z.B. das Einfetten der Backform 5 min vor dem Shaping eines Toastbrots. (11): Angabe der gewünschten Stretch&Fold-Prozesse (Anzahl und Zeitabstand). (12): Platz für frei formulierbare Arbeitsinfos, d.h. die Bezeichnung der einzelnen Arbeitsschritte und ggf. Hinweise dazu. Eine Änderungen der meisten Infos kann auch noch in der Druckansicht mittels der Feder oder per Doppelklick vorgenommen werden (siehe dort). (13): Vorgeschlagene Backzeit, ggf. auch die Backzeit für den Backrahmen und die Gesamtzeit, die der Ofen in Betrieb ist. (14) Bereich für den 2. Backvorgang. Wird nicht angezeigt, wenn nur ein Backvorgang gewählt wurde. (15): Navigations-Schaltflächen zum Hefe-Assistenten und zur Verwaltung des eigenen Fundus an Gärkörbchen und Backformen (siehe unten).
D190: Sauerteigführung
B192: (1): Aktivierungs- oder Auffrischstufen. Je länger das ASG schon ungenutzt ist, desto mehr Auffrischstufen sollten gewählt werden. Bei einer Mehrstufen-ST-Führung ist dies weniger nötig. (2): Anzahl der ST-Stufen. (3): Anzeige der gewählten Stufen insgesamt. In den Spalten (4) und (5) werden die (M) Mehl- und (W) Wassermengen im Verhältnis zum (S) Starter der jeweiligen Stufe festgelegt. (6) und (7): geschätzte Mindest- und Maximaldauern (8): Temperatur der jeweiligen Stufe. Die Werte (4)-(8) werden in die Zeittafel der Teigführung übertragen. Angaben in Zeilen, die über die gewählte Stufenanzahl hinausgehen, werden nicht berücksichtigt (wie hier die Positionen 3 und 4). Die rezeptübergreifenden Angaben werden normalerweise selten bis nie geändert. (9): Die Menge Sauerteig, die beim Herstellungsprozess verloren geht bzw. im Glas kleben bleibt. Bei mir passt 25g ganz gut. Die Angaben (10) und (11) sollen zu kleine Stufen, die leichter kontaminiert werden könnten, vermeiden.
I194: Automatisierte Führungsoptionen erleich- tern die Zusammenstellung häufig genutzter Führungsstufen, ihre Nutzung ist optional. (1): Aufstellung einiger Auffrischstufen, die mit den Eintragungen in Spalte (2) den Positionen 1-3 zugeordnet werden können. (3)-(5): verschiedene ST-Führungen, davon sind die einstufigen ST-Führungen in Bereich (3) personalisierbar. (4): Fix vorgegebene einstufige Führungen. (5): Fix vorgegebene mehrstufige Führungen. (6): Auswahl einer der Führungen Nr. 1-9. (7): Durch Anklicken der Feder werden die ausgesuchten Auffrisch- und Führungsstufen in die Führungstabelle übernommen.
J198: Die Vorlagen für die personalisierten Führungen (siehe (3) unter den automatisierten Führungs-optionen) enthalten die gleichen Felder wie die eigentliche Führungstabelle weiter oben. Durch Klick in ein Feld kann dies direkt geändert werden. Für das Rezept ausgewählt wird eine bestimmte Vorlage im Bereich „Automatisierte Führungsoptionen“.
P199: Nach einem Vorhersagemodell, dass sich stark an bwraith von The Fresh Loaf orientiert, werden die Dauern der Sauerteigstufen (1, 2) und der Stock- und Stückgare (3, 4) prognostiziert. Diese sind abhängig von den jeweiligen Inokulationen, den Temperaturen und nicht zuletzt von der Triebkraft eures Sauerteigs. Mit (3) und (5) könnt ihr die Daten für ST und HT getrennt in die Tabelle für die jeweiligen Führungsstufen übernehmen. Die verfügbare Kraft des Sauerteigs nimmt ab mit jedem
J201: Tag (6), die seit der letzten Auffrischung vergangen ist. Unter (7) gelangt ihr zu den Spezial-Parametern eures Sauerteigs, damit ihr eine möglichst gute Prognose erreichen könnt. Außerdem kann hier, ebenso wie im Kreator, die Salz-Sauer-Verwendung eingestellt werden.
B203: Sauerteig-Parameter
M205: In die Felder (1-5) werden die bezeichneten Parameter eingegeben, die für die Abschätzung der Garzeiten in diesem Rezept wichtig sind und nicht direkt aus den Rezeptdaten hervorgehen. Dabei wird die grundsätzliche Sauerteig-Power (1) aus nebenstehender Verdoppelungstabelle (siehe dort) ermittelt. Sie ändert sich bei älteren, regelmäßig geführten Sauerteigen/Anstellguten kaum noch. Das Feld (5) Salzgehalt ist speziell, weil der Salzanteil sowohl hier als auch im Kreator (Salz-Assistent) eingegeben werden kann. Es ist sinnvoll, für die erwarteten Gardauern ein Zeitintervall anzugeben, dafür können in (6 und 7) die gewünschten Abweichungen des Minimal- und Maximalwerts von der ermittelten Dauer festgelegt werden.
M207: Um die Sauerteigpower festzustellen, muss BrotWerk wissen, unter welchen Bedingungen sich dein spezieller Sauerteig verdoppelt (1-5). Um was für einen Sauerteig handelt es sich (TA, Salzgehalt, Vollkornanteil) und bei welcher Temperatur verdoppelt er sich bei welchem Mischungsverhältnis. Wenn sich z.B. der eigene Sauerteig unter den gegebenen Umständen in 6 Stunden verdoppelt, hat er laut der Aufstellung (6) eine Power von 4. Beispiel zu (5): Deine typische Sauerteig-Mehlmischung besteht zu 30% aus Vollkornmehl, zu 20% aus Typenmehl 1050 und zu 50% aus hellem Mehl. Damit läge der Vollkornanteil hier bei 30% + (1/2 x 20%) = 30%+10% = 40%. Weitere Erläuterungen zu (1) und (3) gibt es unter (7).
B209: Hefe-Assistent
H210: Der Hefe-Assistent hilft am besten bei der Umstellung von Gardauern, Temperaturen und Hefemengen eines bekannten, funktionierenden Hefebrot-Rezeptes. Er schwächelt leider, wenn er für bestimmte Garbedingungen erstmals eine Hefemenge bestimmen soll, ohne sich an einem Vorgänger-Rezept orientieren zu können. Auf der linken Seite könnt ihr die Daten übernehmen und editieren, auf der rechten Seite findet ihr die grafische Darstellung des gewählten Verlaufs.
K212: Typischerweise habt ihr bereits ein Rezept im Editor, dass ihr bearbeiten möchtet. Mit Klick auf (1) könnt ihr alle relevanten Angaben (grüne Zahlen) in den Assistenten laden, d.h. sowohl die Mengenangaben (2) als auch die Dauern und Temperaturen (3). Alle diese Daten könnt ihr durch Klick in das entsprechende Feld ändern. Sobald ihr eine Änderung vornehmt, ändert sich die Grafik rechts. Die dicke braune Kurve zeigt den Temperaturverlauf im Teig an, die dünnere orange den Gärfortschritt, der je nach Temperatur schneller oder langsamer verläuft.
B214: Die Kurve kann zwischenzeitlich etwas grotesk aussehen, spätestens mit Klick auf das "Neu berechnen"-Symbol (5) formiert sie sich aber wieder ordentlich. Erst mit diesem Klick werden die neuen Hefemengen berechnet. "Relativ" bedeutet hier, dass die Hefemenge aus dem Originalrezept zugrunde gelegt wird und die Änderungen daraufhin angepasst werden. Solange keine Änderungen vorgenommen werden, ist die relative Hefe immer gleich der Originalhefe. "Neu unabhängig berechnet" ignoriert frühere Hefeangaben und rechnet die Menge unabhängig aus (mit unterschiedlichem Erfolg). Mit (4) kann man die relative Hefemenge auf den aktuelle gegebenen Original-Hefemenge zurücksetzen. Die Werte unter (10) geben den Frischhefe-Anteil in Bäckerprozent wieder. Mit den Federn (8, 9, oder 12) könnt ihr entscheiden, welche Hefemenge ins Rezept übernommen wird. (6) veranschaulicht den Anteil der Stock- bzw. Stückgare (Bulk und Proof) an der Gesamtgare. Je länger und wärmer eine Garphase gegenüber der anderen ist, desto höher ihr Anteil. Wenn ihr Änderungen an Zeiten oder Temperaturen vornehmt, könnt ihr also direkt sehen, ob sich diese Verteilung relevant verändert (links die Angaben vom Ursprungsrezept, rechts vom aktuellen). Eine deutliche Änderung kann sich stark auf das Backergebnis (z.B. Krumenstruktur) auswirken. Ob ihr das möchtet oder nicht, bleibt euch überlassen. Diese Verschiebung lässt sich natürlich auch auf Sauerteigbrote übertragen.
L216: Im Anhängsel unten könnt ihr die unabhängig berechnete Hefe noch um einen eigenen Faktor korrigieren, z.B. wenn ihr keinen typischen Brotteig kalkulieren wollt und für einen schwereren Teig etwas draufschlagen wollt. Mit dem Symbol (7) übernehmt ihr alle Dauern und Temperaturen in das Rezept. Die ausgewählte Hefemenge müsst ihr über die Wahl der entsprechenden Feder übernehmen. Die Mengen unter (2) werden nicht ins Rezept übernommen.
B218: Management Gärkörbchen und Backformen
N220: (1) Bereich für die Gärkörbchen. (2) Bereich für die Backformen. In den Spalten (3-5) können die eigenen Utensilien (je max. 8 Stück) benannt werden und ihre Mindest- und Höchst-Füllmenge (in Gramm Teigeinlage) angegeben werden. Ich habe festgestellt, dass die maximale Füllmenge in g knapp der Hälfte des Volumens der Form in ml entspricht, zumindest bei weizenlastigen Teigen, bei roggenlastigen passt eher mehr hinein. Es kann sinnvoll sein, etwas krumme Zahlen einzugeben, damit die Gefäße bei den Vorschlägen in der Druckansicht wunschgemäß priorisiert werden. Auf der gleichen Seite findet ihr einen Volumenassistenten (9), der euch bei der Bestimmung der Teigeinlage unter die Arme greift. In die Felder (6) ist noch kein Gefäß eingegeben, es ist nur von einem Platzhalter besetzt. Bereits eingegebene Daten können jederzeit geändert werden. (7) Zusatzbereich für Sonstige Gefäße, z.B. Gläser für Sauerteig (im Rezept wird extra dafür das Volumen des ungereiften ST angegeben) oder Behälter für die Stockgare. (8) Grafische Übersicht über die Füllmengen der vorhandenen Gärkörbchen und Backformen. Diese Ansicht kann auch gedruckt (15) werden. Hinweis: Sollte es bei einem freigeschobenen Backprojekt weniger als 3 geeignete Gärkörbchen geben, werden alternativ passende Backformen für die Stückgare vorgeschlagen.
N223: Volumenassistent (9) Hier könnt ihr die Maße eurer Backformen und ggf. auch Gärkörbchen eingeben und erhaltet sofort das Füllvolumen (12). Bei den runden Formen sind zylindrische Gefäße wie Gläser oder Springformen gemeint, keine schüsselartigen Formen. Im unteren Teil wird die Teigeinlage (14) errechnet gemäß den Angaben, die ihr unter (13) ggf. noch verändern könnt.
E227: Druck
G230: Im späteren Ausdruck wird nur der hell hinterlegte Bereich gedruckt. Zutatenbereich
G231: (1): Nr. des Rezepts in der Rezeptverwaltung. (2): Aktualisierungsknopf für die Zutatenliste und die Gärkorb/Backform-Info. Bitte nach jeder Änderung im Kreator oder der Änderung der Sauerteigführung betätigen. Zutatenbereich: Hier kann man nichts ändern! Alle Angaben werden aus der Teigführung übernommen und müssen ggf. dort geändert werden. (3): Titel samt in der Teigführung ausgewählten Zusatzinfos. Das Vollwert-Rating reicht von 0 (nur Weißmehl) über 5 (nur Vollkornmehle) bis theoretisch 10 (nur Schrot/Saaten). Unmittelbar links vom Titel findet ihr den Favoritenstatus, den ihr durch anklicken einfach ändern könnt (rotes bzw. blasses Herz). (4): Sauerteig mit der tatsächlich zu verbackenden Menge und der Gesamtmenge sowie | N231: Steuersymbole in der Kopfleiste (1): Speicherung des Rezepts unter der angegebenen Nummer, das alte Rezept wird dabei überschrieben. Die beiden Vorlagen-Rezepte können nicht ohne Rückfrage überschrieben werden. Achtung: Wenn Veränderungen im Rezept hier nicht manuell gespeichert werden, gehen sie beim Beenden von BrotWerk verloren! Um das zu vermeiden, wird neben dem Speicherknopf (1) ein roter Punkt● angezeigt, wenn die letzten Änderungen noch nicht gespeichert sind. Zusätzlich gibt es rechts unten neben dem Brotwerk-Symbol einen entsprechenden Hinweistext. (2): Speicherung des Rezepts unter einer neuen Nummer. (3) Speicherung/Export als PDF-Dokument. (4)/(5) Auswahl des vorangehenden oder nachfolgenden Rezepts gemäß der aktuellen Sortierung in der Rezeptverwaltung. Hinweis: Die Aktionen (1)-(5) dauern einige Sekunden, bitte Geduld. (6): Ausdruck des hell hinterlegten Bereichs der Seite auf Papier. (7): Wechsel zur Kompaktansicht (siehe dort)
G233: Versäuerungsinfos. ACHTUNG: Die hier angegeben Mengen beziehen sich nur auf die eigentlichen Sauerteigstufen, eventuelle Auffrischstufen erfordern zusätzliches Mehl und Wasser. (5): Verwendete Nullteige, hier Quellstück mit Gesamtgewicht und ggf. der Hinweis, das Salz (8) hier zuzusetzen statt beim Hauptteig, wo die Salzmenge angegeben ist. (6): Hauptteig mit Gesamtmenge und idealer Teigtemperatur (7). Diese sollte in etwa durch Verwendung des Wassers mit der angegebenen Temperatur erreicht werden. Soll der Teig länger geknetet werden, wählt die kältere Wassertemperatur aus. (8): Salzmenge im Hauptteig oder ggf. mit Angabe des Verwendung. (9) Zutaten ohne Mengenangabe. (10): Weitere Angaben zum Teig, zur Teigeinlage bei mehreren Teiglingen und zur Backzeit.
G236: Druck-Edition der Zeittafel
G237: In der Zeittafel kann man nichts direkt ändern! Alle Angaben werden aus der Teigführung übernommen und müssen ggf. dort geändert werden. Ausnahme:
B238: Die Arbeitsinfofelder und die Backtemperatur können über die Feder ganz rechts einzeln geändert werden. Dazu das gewünschte Feld auswählen (direkt per Doppelklick oder offiziell per Einfach-Klick+Feder). Wenn das Feld zur Bearbeitung freigegeben ist, könnt ihr es nun über die sich öffnende Dialogbox ändern. Wenn ihr den Text eines Feldes ganz löschen wollt, bitte ein Leerzeichen eingeben, sonst erscheint wieder der vorherige Text. (1): Angabe der geplanten Startzeiten (Plan A) der verschiedenen Tätigkeiten. Die Spalten (2) und (3) werden leer ausgedruckt, damit ihr beim Arbeiten nach und nach die jeweils aktuellen Zeiten von Hand mit dem Bleistift eintragen könnt, denn – sind wir ehrlich – es ergeben sich doch fast immer Abweichungen vom Plan ;-) In (3) tragt ihr also ein, wann ihr tatsächlich einen Schritt begonnen habt, falls es nicht die vorgesehene Zeit aus (1) ist, und in die „Plan B“-Spalte (2) in der Zeile darunter, wann demnach der folgende Schritt [Dauer siehe Spalte (9)] an der Reihe sein müsste. So hangelt ihr euch nach und nach bis unten durch und behaltet immer den nächsten Schritt im Auge. Die Angaben (4-9) kennt ihr schon aus der Teigführung. In die Kästchen (10) tragt ihr zum Zeitpunkt von (4) die tatsächlichen Zeiten für die S&F-Aktionen ein. Die Zeile (11) ist hier leer, weil in der Teigführung die zugehörige Uhrzeit auf „0:00“ gesetzt ist. Die Kästchen unter (12) dienen der Erinnerung an ggf. vorgesehene Ofen-Vorbereitungen, die ich aus eigener leidiger Erfahrungen eingeführt habe. Erst, wenn ich alles angekreuzt oder ggf. als nicht erforderlich durchgestrichen habe, gebe ich den Teigling auf den Einschießer. Also: Ist der Backstahl/-Stein mit vorgeheizt? Ist ein Gefäß zum Schwaden im
B239: Ofen ("Dampfer", idealerweise natürlich auch vorgeheizt)? Ist der Ofen zum Einschuss auf Ober/Unterhitze umgestellt, falls er zum Vorheizen auf Umluft war? Ist das Wasser zum Schwaden griffbereit? (13): Hier könnt ihr abhängig von der tatsächlichen Einschusszeit die Zeiten für die Temperaturreduktion und das Schwaden bzw. Entschwaden aufschreiben. So ist es am sichersten, dass ihr nichts vergesst.
B240: Der Kommentar-Bereich
T242: Im grün umrahmten Kommentarbereich (1) könnt ihr zusätzliche Hinweise notieren, die zu komplex für die kurzen Arbeitsinfos oben in der Zeittafel sind. Ich stelle dabei immer die Nummer des Arbeitsschrittes voran, dann finde ich mich leichter zurecht. Ihr könnt das natürlich machen, wie ihr
B243: wollt, oder sogar ganz auf den Text verzichten. Der Text muss zeilenweise getrennt eingegeben werden, es gibt hier keinen automatischen Zeilenumbruch. Die gewünschte Zeile auswählen (Einfachklick) und dann dort hinein doppelklicken. Die drei Zeilenwerkzeuge (2-4) erleichtern euch nachträgliche Veränderungen im Text: (2) fügt eine Leerzeile oberhalb der ausgewählten Zeile ein, wenn mindestens eine der Zeilen noch leer ist. (3) bricht einen zu langen Text in der angeklickten Zeile in die nächste um. (4) löscht die aktuelle Zeile. (5/6/7) gehört nicht zum eigentlichen Kommentarbereich: Unter (5) findet ihr bei freigeschobenen Broten die zur Teigeinlage passenden Gärkörbe bzw. bei Kastenbroten die passenden Backformen. Dafür solltet ihr euer Inventar natürlich am entsprechenden Arbeitsplatz (von der Teigführung aus zu erreichen) hinterlegt haben. Hinweis: Sollte es bei einem freigeschobenen Backprojekt weniger als 3 geeignete Gärkörbchen geben, werden alternativ passende Backformen zur Gare vorgeschlagen. Außerdem findet ihr hier die von euch angegebene Quelle wieder. (7): Aufwand des Rezepts gemäß BrotWerk-Einschätzung (bewegt sich ca. zwischen 2 und 15) sowie Speicher- und Druckdatum.
C245: Kompaktansicht
H246: Zeitplan mit den wichtigsten Schritten Das Format ist so gewählt, dass ihr den Plan gut fotografieren und euch so auch unterwegs durch einen Blick aufs Handy orientieren könnt. Wenn ihr also etwas unternehmen wollt, behaltet ihr immer den Überblick, wann der nächste Schritt erforderlich ist und wieviel Zeit ihr euch noch Zeit lassen könnt: Das Handsymbol (1) kennzeichnet ein aktives Eingreifen eurerseits. Bei Dauern ab 20min wird die entsprechende Zeile (2) orange hervorgehoben. Selbst wenn es dabei kurze Pausenzeiten gibt, sollte man in diesen Phasen lieber daheimbleiben. Die Zahnräder (3) kennzeichnen Wartezeiten, die man getrost anderweitig nutzen kann. Die Uhr (4) symbolisiert das Vorheizen des Ofens, das man je nach Ofen schon im Vorfeld programmieren kann und somit auch nicht anwesend sein müsste. Die Tätigkeitsbeschreibung in der Kompaktansicht ist abhängig von den Eingaben in der Teigführung und im Gegensatz zur normalen Druckansicht insgesamt stark vereinheitlicht.
E251: Rezeptverwaltung
K255: Kopfleiste (linker Teil) und Rezeptliste .. | P255: (1) Anzahl der gespeicherten Rezepte (max. 300). (3) Import und Export von BrotWerk-Rezepten (nur unter Windows). Wird nur gebraucht, wenn man BrotWerk-Rezepte (z.B. von anderen Nutzern) einpflegen möchte oder seine eigenen Rezepte sichern möchte (z.B. vor einem Update). Um mehrere Rezepte zum Export auszuwählen, muss der Mehrfach-Auswahlmodus (siehe 4) aktiviert sein. Nun die Strg-Taste (oder Ctrl-Taste) auf der Tastatur gedrückt halten, während alle gewünschten Rezeptnamen angeklickt werden. Anschließend zum Export auf das rechte der beiden Rezeptsymbole (3) klicken. Eine Datei wird erzeugt und unter Exporte abgespeichert. Diese Rezepte bleiben weiterhin im BrotWerk und werden nicht gelöscht! Um Rezepte zu importieren, muss eine entsprechende Datei im Exporte-Ordner abgelegt sein. Bei Klick auf die Import-Schaltfläche = linkes Rezeptsymbol (3) öffnet sich ein Fenster, mit dem man die gewünschte Datei auswählen kann. Die Rezepte in dieser Datei werden der Liste vorhandener Rezepte hinzugefügt. Je nach Umfang
B256: eurer Rezeptliste kann die anschließende Aktualisierung eurer Liste durchaus einige Zeit dauern. Bitte habt Geduld! (4): Umschaltfläche zwischen Einfach-Auswahl und Mehrfach-Auswahl: Bei gewählter Einfach-Auswahl wird bei Klick auf eine Rezeptzeile gleich die ganze Zeile ausgewählt und das entsprechende Rezept in die Aktionsleiste ganz links übernommen. Wenn die Einfach-Auswahl aktiv ist, zeigt das Symbol oberhalb des Pfeils ein relativ langes ausgewähltes Feld an. Wenn die Mehrfach-Auswahl aktiv ist, bei der nur eine einzelne Zelle ausgewählt wird, ist das Feld im Symbol deutlich kürzer. Für den Export von mehreren Rezepten (siehe 3) muss der Mehrfach-Modus ausgewählt werden. (5) Öffnet eine extra Such und Filter-Oberfläche, um sich bei umfangreichen Rezeptsammlungen besser zu orientieren. (7): Spalten, die verschiedene Informationen der Rezepte anzeigen. Der Titel einer Spalte ist dunkelblau hervorgehoben, weil aktuell nach dieser Spalte (also in diesem Fall nach dem Vollwert-Ratng) sortiert wurde. Um zu sortieren, bitte die Überschrift (8) der entsprechenden Spalte anklicken (manchmal klappt es erst beim 2. Versuch). Bei erneutem Klick auf die gleiche Überschrift kehrt sich die Sortierreihenfolge um. (9): Markiertes = ausgewähltes Rezept innerhalb der Rezeptliste.
D259: Aktionsleiste
D261: (1) Druckt die Liste aller Rezepte in der momentanen Sortierung aus. (2) Zeigt das momentan ausgewählte Rezept an. Es kann durch Klick auf ein Rezept aus der Liste geändert werden. ACHTUNG: Das funktioniert nur im Einzel-Auswahl-Modus. (3) Lädt das unter (2) angegebene Rezept in den Editor. Das bis dahin im Editor befindliche Rezept wird verworfen und nicht automatisch abgespeichert. Wenn ihr es noch speichern möchtet, geht in die Druckansicht und speichert es dort. Im konventionellem Auswahlmodus (siehe oben) wird das angeklickte Rezept nicht in das das Feld (2) übernommen. (4) Löscht das in Feld (2) angegebene Rezept nach einer Sicherheitsabfrage. Ein einmal gelöschtes Rezept kann nicht wiederhergestellt werden! Die beiden Vorlagenrezepte für Sauerteig- bzw. Hefebrot können nicht gelöscht werden. ACHTUNG: Je mehr Rezepte ihr speichert habt, um so länger dauert die Aktualisierung eurer Liste nach dem Löschen. Bitte habt etwas Geduld! Im untersten Kasten kann das Vorlagenrezept für Sauerteigbrot (5) oder Hefebrot (6) in den Editor geladen werden. Das zuvor im Editor befindliche Rezept wird nicht erneut abgespeichert.
N262: Kopfleiste (rechter Teil)
N263: (1-3) Navigation zu den entsprechenden Arbeitsplätzen. (4) Wechsel in die Galerie (ausgelagerte Datei). Das funktioniert nur, wenn die Galerie-Datei zuvor im gleichen Verzeichnis wie die BrotWerk-Datei abgelegt wurde. (5) Wechsel ins ST-Lexikon. (6) Wechsel in das Handbuch (also hierher). (7): Wechsel auf die Admin-Seite zum Einstellen bestimmter Präferenzen. (8): Aufruf des Ausgangs-Menüs.
C268: Rezepte suchen und filtern
B269: Wenn ihr vor lauter Enthusiasmus den Überblick zu verlieren droht, wird euch diese vielseitige Suchfunktion sicher gute Dienste leisten. Auf der linken Seite findet ihr die Such-und Filterfunktionen. Immer, wenn euch ein Filter nicht "egal" (2) ist (bitte per Dropdown-Menü festlegen) und ihr einen entsprechenden Filterwert (3)
B270: angegeben habt (z.B. Zeitbedarf weniger
B271: als 1,1 Tage oder 550er Weizenmehl in den (4) Zutaten), wird er hervorgehoben und ein kleiner dreieckiger Pfeil (5) signalisiert euch zusätzlich, dass dieser Filter ausgewählt ist. Der Pfeil ist so lange rot, bis ihr per Klick auf den Aktualisierungsknopf (6) eine neue Suche gestartet habt, der Knopf selbst wird grau. Sobald ihr irgend eins eurer Suchkriterien ändert, werden die Pfeile und auch der Aktualisierungsknopf (6) wieder rot. Das zeigt euch, dass die Rezepte im Ergebnisfenster nicht allen euren aktuellen Kriterien entsprechen. Der Reset-Knopf (1) ermöglicht es euch, | L271: Rechts (7/8) ist der Ergebnis- und Sortierbereich, in dem euch alle passenden Rezepte angezeigt werden, sofern es solche gibt. Zur besseren Übersicht könnt ihr sie noch sortieren. Das funktioniert, indem ihr auf die einzelnen Überschriften (10) klickt, nach denen sortiert werden soll, genauso so wie in der eigentlichen Rezeptverwaltung. Auch diese Liste könnt ihr ausdrucken mit Klick auf das Druckersymbol (16). Am Kopf dieser Arbeitsfläche findet ihr Informationen über das gerade im Editor befindliche Rezept (12). Wenn es mit einem roten Punkt versehen ist, soll euch das warnen: Im Editor-Rezept gibt es noch Änderungen, die noch nicht gespeichert wurden. Sobald ihr ein anderes Rezept in den Editor ladet, gehen diese Änderungen verloren. Wenn ihr das nicht wollt, geht über den Druck-Button (13) in den Editor und speichert das dort befindliche Rezept. Wenn ihr nun zur Suche zurückkehrt, ist auch der rote Punkt verschwunden :-) Durch einfaches Klicken auf ein Rezept in der Liste (9) wird es direkt unterhalb der Kopfzeile angezeigt (11). Ihr habt jetzt die Möglichkeit, dieses Rezept mit dem nebenstehenden Knopf (11) in den Editor zu holen und es euch dort genauer anzuschauen oder zu bearbeiten. Special-Feature: Durch Doppelklick auf ein Rezept habt ihr die Möglichkeit, ganz unkompliziert den zugehörigen Info-Text zu ändern. So könnt ihr z.B. Schlüsselwörter hinzufügen, um das Rezept in einer späteren Suche besser wiederfinden zu können. Mit den Buttons (14) und (15) gelangt ihr zurück zur Rezeptverwaltung bzw. in dieses Handbuch, das ihr gerade lest.
B272: eure Suchmaske in zwei Schritten
B273: komplett zu leeren: Beim ersten Klick werden alle linken Felder (2) "egalisiert" bzw. geleert. Wollt ihr auch die Inhalte der rechten Felder (3) leeren, genügt ein weiterer Klick. Der Reset-Knopf wird dann grau. | O273: Spezialfall Herzchen: Das Herzchensymbol (2) ermöglicht es euch, nach Favoriten zu filtern. Es ändert seine Farbe jedesmal, wenn ihr drauf klickt. Ein rotes Herzchen bedeutet: Zeige nur Favoriten an, ein blasses Herz zeigt euch die Rezepte unabhängig vom Favoritenstatus an und das schwarze durchgestrichene Symbol filtert nur nach Nicht-Favortiten. Auch diese Filterauswahl wird erst aktiv, wenn ihr den Aktualisierungsknopf (6) betätigt.
E275: Administration
M279: Hier könnt ihr grundlegende Einstellungen, die BrotWerk-weit gelten sollen, festlegen. (1): Ansicht ändern, indem am oberen Bildrand eine Zeile zur einfacheren Texteingabe ein- oder ausgeblendet wird. (2): Auswahl, ob am Programmstart die Startansicht mit Direkt-Navigationsoption zu allen Hauptseiten angezeigt wird. Wenn die Startansicht ausgeschaltet wird, startet BrotWerk beim nächsten Mal direkt mit der Rezeptverwaltung. (3): Möglichkeit, die Größe der Darstellung zu ändern, damit sie besser zum eigenen Bildschirm oder der eigenen Sehstärke passt. Der ausgewählte Zoom wird mit Klick auf den Schraubschlüssel (4) sofort angewendet und bei jedem Neustart automatisch gewählt. BrotWerk ist optimiert für eine Auflösung von 1920x1080. (5): Sollte unbeabsichtigt die Ansicht umgeschaltet worden sein (kann z.B. nach Minimierung des Fenster geschehen) und eine Formatierungsleiste oder ähnliches oben auf der Seite sichtbar sein, so könnt ihr hier die gewohnte, für Bäcker*innen geeignete Ansicht wiederherstellen. (6): Genauer Name der Galerie-Datei. Er ist standardmäßig voreingestellt. Es gibt keinen zwingenden Grund, ihn zu ändern. (7): Hier könnt ihr einen Zeitraum einstellen, in dem ihr nicht mit Backarbeiten beschäftigt sein wollt. Wenn ein Arbeitsschritt in eurem Zeitplan trotzdem in diesen Bereich fällt, wird er besonders hervorgehoben. So seid ihr nicht überrascht und könnt den Plan ggf. anpassen. Wenn ihr keine solche Pause braucht, setzt einfach zwei gleiche Uhrzeiten ein. (8): Navigation zu den Hauptseiten. (9): Öffnet den Disclaimer. (10) Navigation zum Ausgangs-Menü.
E286: Galerie
B289: Die Galerie erreicht ihr über das Kamera-Icon in der Rezeptverwaltung. Die Galerie ist eine eigenständige Anwendung und hat ihr eigenes Handbüchlein dabei ;-)
E295: Lexikon
B299: (1): Feld für Suchbegriff. (2): Lupe, springt bei jedem Klick zur nächsten Stelle, an der der Suchbegriff vorkommt. (3): Springt zum Anfang des Lexikons. (4): Springt zum Ende des Lexikons. Die Feder (5): Setzt das Lexikon in den „Schreib-Modus“, um Einträge hinzuzufügen oder zu verändern. Dabei ändert sich auch die Ansicht der Seite, weil Bearbeitungszeilen eingeblendet werden.
B300: Das Schloss (6) schließt das Lexikon nach der Bearbeitung wieder und setzt es zurück in den „Lese-Modus“. Beim Verlassen des Lexikons wird automatisch der Lesemodus aktiviert. Der Joker (7) führt zurück zum letzten besuchten Arbeitsplatz. Die Tür (8) öffnet das Ausgangs-Menü. (9): Die Quellenangaben sind mit einem Scrollen nach rechts zu finden. Das Lesezeichen (10) springt direkt zum Schnelleinstieg, wo das Wichtigste für den Anfang zusammengefasst ist. Der eigentliche Informationsbereich (11) gliedert sich in eine alphabetisch sortierte Stichwortliste (12) und die zugehörigen Erläuterungen (13).
E304: Handbuch
N307: (1): Feld für Suchbegriff. (2): Lupe, springt bei jedem Klick zur nächsten Stelle, an der der Suchbegriff vorkommt. (3): Springt zum Anfang des Handbuchs. (4): Springt zum Ende des Handbuchs. Der Wegweiser (5) führt euch zum Abschnitt Übersicht, von dem aus ihr euch rasch gezielt m Handbuch bewegen könnt. Der Joker (6) bringt euch zurück zu dem Arbeitsplatz, vom dem aus ihr das Handbuch angewählt habt. Das Lesezeichen (7) springt direkt zum Schnelleinstieg, wo das Wichtigste für den Anfang zusammengefasst ist. Das Handbuch ist in folgende Abschnitte gegliedert: - Übersicht: Grafische Übersicht zum Aufbau von BrotWerk. Mit Klick auf eines der Symbole gelangt ihr direkt zum passenden Kapitel. - Die Idee hinter BrotWerk - Der Prozess: Grundlegender Ablauf beim Erstellen und Bearbeiten von Backprojekten - Steuerung: Funktionsweise der Schaltflächen und Eingabefelder - Detail-Informationen zu den einzelnen Arbeitsplätzen - Spezialtipp fürs Desktop-Icon
E314: Ausgang
N317: (1)-(3) selbsterklärend :-) (4) BrotWerk schließen und speichern. Achtung: Das aktuelle Rezept im Editor wird nicht automatisch mit den letzten Änderungen gespeichert. Das müsst ihr ggf. vor Verlassen von BrotWerk manuell über den Speicherknopf in der Druckansicht machen. Falls die Galerie noch geöffnet ist, bleibt sie geöffnet und kann bei Bedarf über ihr eigenes Ausgangsmenü geschlossen werden. (5) Mit Klick auf den Spendenbeutel erscheint ein QR-Code, mit dem ihr gerne eine Kleinigkeit per PayPal für mich deponieren könnt, wenn euch BrotWerk gefällt. (6) Auf der BrotWerk-Homepage habt ihr die Gelegenheit, eure Anregungen und Kommentare loszuwerden.
B323: Spezialtipp fürs Desktop-Icon
H325: Bei der Anwendung dieses Tipps solltet ihr euch ein kleines bisschen bei Windows auskennen. Falls ihr euch für den schnelleren Zugriff eine Verknüpfung von BrotWerk oder der Galerie auf den Desktop legen möchtet (Rechtsklick auf den Dateinamen und Auswahl von "Verknüpfung erstellen"), könnt ihr die neu angelegten Excelsymbole durch diesen beiden Icons ersetzen.
G326: Link zum Icon-Konverter | H326: Speichert die beiden Icons (Rechts-Klick auf das entsprechende Symbol links => "Als Grafik speichern"; als Format .png auswählen und Ziel-Order festlegen) an einem Ort, wo ihr sie wiederfindet (z.B. im BrotWerk-Ordner). Nutzt dann einen Icon-Konverter (ein Beispiel ist im Links links hinterlegt) und wandelt die jeweilige .png-Bilddatei in eine .ico-Datei um.
B327: Mit Rechts-Klick auf das zu ändernde bisherige Verknüpfungs-Excel-Symbol auf dem Desktop erscheint ein Kontext-Menü, klickt ganz unten auf "Eigenschaften". Im erscheinenden Fenster (siehe rechts) klickt ihr auf "Anderes Symbol", navigiert zum richtigen Ordner und wählt dann das passende Icon aus. Damit wäre schon einmal das Wesentliche vollbracht.
B328: Für alle, die es noch "un-exceliger" haben möchten, hier ein Geheimtipp: Ergänzt den Eintrag von "Ziel" um " /i /e" (mit führendem Leerzeichen ohne die Anführungszeichen). Es sollte also in etwa Folgendes dort stehen: "C:\ ... \BrotWerk 1.0.xlsm" /i /e So wird BrotWerk direkt geöffnet, ohne "Excel-Vorspann".
B335: Schnelleinstieg für Eilige
B337: Ihr wollt sofort loslegen? Also gut: In vier Schritten zum fertigen Rezept!
B338: 1 | C338: In der Rezeptverwaltung ein bestehendes Rezept anklicken und über die Aktionssleiste links in den Editor laden. Für ein neues Rezept die passende Rezeptvorlage aus der Aktionsleiste auszuwählen (Hefe- oder Sauerteig-Basis).
B339: 2 | C339: Das Rezept wird in der Druckansicht angezeigt. Wenn euch das Rezept an sich so gefällt, ihr aber das aktuelle Timing anpassen wollt, wechselt in die Teigführung. Wenn ihr strukturelle Änderungen machen möchtet, wechselt in den Kreator.
B340: 3 | C340: Sowohl im Kreator als auch in der Teigführung gibt es Felder, die ihr verändern könnt und solche, die euch Informationen geben, aber für Eingaben gesperrt sind. Die meisten Felder, in denen ihr Änderungen vornehmen könnt, sind grün hinterlegt. Alle notwendigen Felder sind schon ausgefüllt, ihr könnt sie ändern, müsst es aber nicht.
A341: SE | B341: 3-TF | C341: In der Teigführung könnt ihr als einfachste Änderung den Wochentag und die Uhrzeit ändern (direkt oberhalb der Tabelle), an dem ihr starten wollt. Alle folgenden Zeiten werden daraufhin angepasst. Passt nur auf, dass ihr nicht aus Versehen mitten in der Nacht eure Teige mischen ansetzen müsst... Wenn euch das schon reicht - prima! Weiter zu Schritt 4. Links oben gebt ihr an, ob ihr in der Form oder freigeschoben backen wollt, und ob ihr bei mehreren Broten ein oder zwei Backvorgänge plant. Außerdem legt ihr im Kasten oben rechts auch den Namen eures Rezepts fest, nach Wunsch auch mit Bemerkung und Quellenangabe. Ihr könnt aber auch die vorgegebenen Zeiten der aufgeführten Prozess-Schritte anpassen. Für die Sauerteigführung klickt ihr auf die Lupe und könnt auf der folgenden Seite die Zeiten und Temperaturen, bei denen ihr euren Sauerteig führen möchtet ändern. Bei Rückkehr zur Teigführungs-Hauptseite werden alle Eintragungen automatisch berücksichtigt. Solltet ihr ein Hefebrot backen wollen, erübrigen sich natürlich die sauerteig-spezifischen Angaben. In der Teigführungstabelle könnt ihr sowohl die Zeitspannen, die für einen Schritt infrage kommen ändern, als auch die konkret von euch eingeplante, wahrscheinlichste Zeit. Bei vielen Schritten lassen sich auch die Beschreibungen oder die Temperaturen ändern. Ihr ahnt es schon: Diese Felder sind grün hinterlegt ;-)
B343: 3-Kr (alle Teige) | C343: Der Kreator ist die komplexeste Oberfläche innerhalb des BrotWerks. Aber ihr wolltet es ja auf die harte (kurze) Tour… An der linken Seite können in den verschiedenen Kästen die Mehle für den Hauptteig inkl. Sauerteig und für die Null- oder Vorteige per Dropdown-Menü ausgewählt werden. In der gelben Spalte rechts daneben gebt ihr die geplante Menge in Gramm ein. Das blaue Feld für Wasser daneben ist gesperrt: Das Wasser wird automatisch berechnet, kann aber von euch korrigiert werden (siehe detaillierte Erklärung). Im untersten Kasten "Sonstiges" können noch diverse Zutaten frei eingegeben werden (Rosinen, Buttermilch, ...), bitte dort für die flüssigen Zutaten die blaue Spalte benutzen. Für fertige Rezepte, die ihr nur übertragt, korrigiert ihr die Wassermenge am besten, in dem ihr oberhalb der Kästen bei "Zuschüttwasser" ein "Z" eingebt und dann die gewünschte Menge an Zuschüttwasser. Ansonsten könnt ihr dort über die Korrektur "K" auch die empfohlene Wassermenge gemäß euren TA-Vorstellungen um eine bestimmte Menge erhöhen oder reduzieren. Für Hefeteig war's das im Wesentlichen, für Sauerteig geht's weiter.
B344: 3-Kr (Sauer-teig) | C344: Die Sauerteig-Kontrolle ist das große Kästchen weiter rechts. Falls euer Roggenmehl-Anteil nicht automatisch zur Sauerteignutzung geführt hat, könnt ihr die Versäuerung auch erzwingen => Sauerteigwunsch mit "1" auswählen. Dann gebt ihr die gewünschte Versäuerung ein. Die Mehle vom Hauptteig mit dem Zusatz "S" werden dann automatisch anteilig in den Sauerteig verschoben. Bei ungewöhnlichen Eingaben werden die entsprechenden Felder rot markiert. Überlegt euch, ob ihr vielleicht doch nochmal was ändern wollt. Achtung: Die empfohlene Sauerteigmenge wird aus technischen Gründen nicht automatisch für das Rezept verwendet. Ihr müsst sie in der Teigführung ganz oben manuell eingeben!
B345: 4 | C345: Das wichtigste ist geschafft, ihr könnt zur Druckansicht wechseln. Bitte nach Veränderungen im Kreator die Druckansicht aktualisieren! Der größte Teil der Druckansicht ist nicht editierbar. In einigen Feldern in der Tabelle sowie im unteren Bereich könnt ihr allerdings gerne zusätzliche Hinweise festhalten, damit ihr beim Backen an alles denkt. In der Druckansicht gibt es außerdem für jede Zutat und auch jeden Vorteig ein Kästchen, das ihr im Verlauf abkreuzen könnt. So kommt ihr nicht durcheinander, was ihr schon zugewogen habt und was noch fehlt. Habt ihr ein neues Rezept erstellt, solltet ihr es auch als neues Rezept speichern (Speichersymbol mit Pluszeichen), bei "normalem" Speichern wird ansonsten das alte Rezept überschrieben. Wenn alles stimmt, könnt ihr jetzt euer Rezept ausdrucken und entspannt drauflosbacken!
B346: Natürlich gibt es im BrotWerk noch viel mehr zu entdecken: Assistenten, die euch bei der Rezeptkreation unterstützen oder die Eingabe von Rezepten aus anderen Quellen vereinfachen. Hinweise, wo ihr womöglich zu stark von allgemeinen Empfehlungen abweicht und das Ergebnis gefährden könntet. Außerdem könnt ihr euer Equipment (Gärkörbchen und Backformen) hinterlegen, damit ihr für jedes Rezept automatisch die richtigen Empfehlungen bekommt. Wenn euch BrotWerk gefällt, nehmt euch doch irgendwann mal die Zeit, ganz in Ruhe alles anzuschauen und auszuprobieren. Dieses Handbuch kann euch dabei bestimmt gute Dienste leisten.
A347: EI | B347: Viel Spaß mit BrotWerk! | U347: Steffi, im Oktober 2023

Sheet Daten für UI
A1: Daten für UI | B1: Zutaten | C1: Wasserzugabe [%] | D1: Klebepotential | E1: "Mehle" | F1: Schrot/VK/ Typ>1000 | G1: höhere Typen | H1: Bemerkung | J1: Teigart | K1: Zutaten | L1: Wasserzugabe [%] | M1: Klebepotential | N1: "Mehle" | O1: Schrot/VK/ Typ>1000 | P1: höhere Typen | Q1: Bemerkung | T1: Brühstück | U1: Wasserzugabe [%] | V1: Klebepotential | W1: "Mehle" | X1: Schrot/VK/ Typ>1000 | Y1: höhere Typen | Z1: Bemerkung | AC1: Kochstück | AD1: Wasserzugabe [%] | AE1: Klebepotential | AF1: "Mehle" | AG1: Schrot/VK/ Typ>1000 | AH1: höhere Typen | AI1: Bemerkung | BO1: Backzeiten (+/- 10%) | BY1: F1 | BZ1: F2 | CE1: inzwischen in Teigführung ab Zeile 100 hinterlegt | CI1: 5 | CJ1: 6 | CK1: 7 | CL1: 8 | CM1: 9 | CN1: 10 | CO1: 11 | CP1: 12 | CQ1: 13 | CR1: 14 | CS1: 15 | CT1: 16 | CU1: 17
